Workbook

Sheet Title
C2: Developed for the CPUC by:
C3: Level 4 Ventures, Inc.
C5: For support or questions:
C6: william@level4ventures.com
C7: (619) 917-4917

Sheet Lookup
A1: Category: | B1: Legal | D1: Low | E1: Median | F1: High
A2: Role: | B2: Attorney | C2: Rate: | D2: =Config!B22 -> 174.9688892 | E2: =Config!B23 -> 233.3888892 | F2: =Config!B24 -> 299.4688892
A3: Level: | B3: I | C3: Effective Period
A4: Education: | B4: =Config!B20 -> JD, MD, PhD or Equivalent | C4: 1/1/2021 thru 12/31/2021
A5: Experience: | B5: =Config!B18 -> 0-1 years
A6: Educational Eqivalency
A7: Ph.D. | B7: Master's plus 4 years
A8: Master's | B8: Bachelor's plus 4 years
A9: Bachelor's | B9: Association plus 4 years or
B10: High School plus 6 years
A11: Description: | B11: =Config!B21 -> Attorney authorized by the California Bar to practice law in California. Higher experience levels should have experience with areas of law and procedures relevant to CPUC matters, such as environmental law or utility regulation.

Sheet Labor Roles
A1: Category | B1: Role | C1: Description | D1: Education I | E1: Education II | F1: Education III | G1: Education IV | H1: Education V
A2: =Config_RawLabor!A2 -> Advocate | B2: =Config_RawLabor!B2 -> Administrative Analyst | C2: =Config_RawLabor!C2 -> Assist in the planning, development and management of a comprehensive program within the eight county service area. Assist in the administration and development of specific programs and projects. Specific areas of focus include human resources, information systems, or grant writing. Represent orgination to community groups, partners, and funders. Coordinate community events, public relations activities. | D2: =VLOOKUP($B2,Config_Education!$A:$F,2,0) -> Bachelor's | E2: =VLOOKUP($B2,Config_Education!$A:$F,3,0) -> Bachelor's | F2: =VLOOKUP($B2,Config_Education!$A:$F,4,0) -> Bachelor's | G2: =VLOOKUP($B2,Config_Education!$A:$F,5,0) -> Bachelor's | H2: =VLOOKUP($B2,Config_Education!$A:$F,6,0) -> Bachelor's
A3: =Config_RawLabor!A3 -> Advocate | B3: =Config_RawLabor!B3 -> Advocate - Not Otherwise Classified | C3: =Config_RawLabor!C3 -> Used for advocate roles that are not better classified as one of the more detailed roles, including for example consumer advocates. May also be used for advocates that fill multiple subroles. | D3: =VLOOKUP($B3,Config_Education!$A:$F,2,0) -> Bachelor's | E3: =VLOOKUP($B3,Config_Education!$A:$F,3,0) -> Bachelor's | F3: =VLOOKUP($B3,Config_Education!$A:$F,4,0) -> Bachelor's | G3: =VLOOKUP($B3,Config_Education!$A:$F,5,0) -> Bachelor's | H3: =VLOOKUP($B3,Config_Education!$A:$F,6,0) -> Bachelor's
A4: =Config_RawLabor!A4 -> Advocate | B4: =Config_RawLabor!B4 -> Community Development Manager | C4: =Config_RawLabor!C4 -> Responsible for the supervision, support, and training of staff within a specific program, and for providing operational and program support to the program director. Meets program and organizational goals. Model and support organization's values. | D4: =VLOOKUP($B4,Config_Education!$A:$F,2,0) -> Bachelor's Degree | E4: =VLOOKUP($B4,Config_Education!$A:$F,3,0) -> Bachelor's Degree | F4: =VLOOKUP($B4,Config_Education!$A:$F,4,0) -> Bachelor's Degree | G4: =VLOOKUP($B4,Config_Education!$A:$F,5,0) -> Bachelor's Degree | H4: =VLOOKUP($B4,Config_Education!$A:$F,6,0) -> Bachelor's Degree
A5: =Config_RawLabor!A5 -> Advocate | B5: =Config_RawLabor!B5 -> Community Development Program Director | C5: =Config_RawLabor!C5 -> A senior management position which provides leadership and management to one or more programs and participates in the overall management of (non-profit) organization. Coordinate, plan and develop comprehensive programs for implementing the organization's goals. On-going in-depth review and analysis of program operations, community needs and program resources. Represents the organization to community, agencies, the media, and participants. | D5: =VLOOKUP($B5,Config_Education!$A:$F,2,0) -> Bachelor's | E5: =VLOOKUP($B5,Config_Education!$A:$F,3,0) -> Bachelor's | F5: =VLOOKUP($B5,Config_Education!$A:$F,4,0) -> Bachelor's | G5: =VLOOKUP($B5,Config_Education!$A:$F,5,0) -> Bachelor's | H5: =VLOOKUP($B5,Config_Education!$A:$F,6,0) -> Bachelor's
A6: =Config_RawLabor!A6 -> Advocate | B6: =Config_RawLabor!B6 -> Community Development Senior Specialist | C6: =Config_RawLabor!C6 -> Work closely with low-income, rural residents to assist them in the development and management of community facilities. Perform advocacy and technical assistance role regarding the needs of rural, low income people for safe and affordable water, waste water and energyfacilities. Responsible for multiple community development projects. Can include organizing, research, loan and grant writing. In addition, the SR CD Specialist provides leadership and support to CD staff, serves as a resource for other staff and effectively and positively represents the organization to staff, participants and the community | D6: =VLOOKUP($B6,Config_Education!$A:$F,2,0) -> Bachelor's | E6: =VLOOKUP($B6,Config_Education!$A:$F,3,0) -> Bachelor's | F6: =VLOOKUP($B6,Config_Education!$A:$F,4,0) -> Bachelor's | G6: =VLOOKUP($B6,Config_Education!$A:$F,5,0) -> Bachelor's | H6: =VLOOKUP($B6,Config_Education!$A:$F,6,0) -> Bachelor's
A7: =Config_RawLabor!A7 -> Advocate | B7: =Config_RawLabor!B7 -> Community Development Specialist | C7: =Config_RawLabor!C7 -> Work closely with low-income, rural residents to assist them in the development and management of community facilities. Perform advocacy and technical assistance role regarding the needs of rural, low income people for safe and affordable water,waste water and energy facilities. Responsible for multiple community development projects. Can include organizing, research, loan and grant writing. | D7: =VLOOKUP($B7,Config_Education!$A:$F,2,0) -> Bachelor's Degree | E7: =VLOOKUP($B7,Config_Education!$A:$F,3,0) -> Bachelor's Degree | F7: =VLOOKUP($B7,Config_Education!$A:$F,4,0) -> Bachelor's Degree | G7: =VLOOKUP($B7,Config_Education!$A:$F,5,0) -> Bachelor's Degree | H7: =VLOOKUP($B7,Config_Education!$A:$F,6,0) -> Bachelor's Degree
A8: =Config_RawLabor!A8 -> Advocate | B8: =Config_RawLabor!B8 -> Executive Director | C8: =Config_RawLabor!C8 -> Provides overall direction and guidance to a non-profit organization's programs. Responsible for the success of special events, community outreach initiatives, and fundraising activities. Acts as a spokesperson and represents the organization's programs to the public. Assesses needs and ensures that program objectives are met, initiates changes to maintain member satisfaction and engagement. | D8: =VLOOKUP($B8,Config_Education!$A:$F,2,0) -> Bachelor's | E8: =VLOOKUP($B8,Config_Education!$A:$F,3,0) -> Bachelor's | F8: =VLOOKUP($B8,Config_Education!$A:$F,4,0) -> Bachelor's | G8: =VLOOKUP($B8,Config_Education!$A:$F,5,0) -> Bachelor's | H8: =VLOOKUP($B8,Config_Education!$A:$F,6,0) -> Bachelor's
A9: =Config_RawLabor!A9 -> Advocate | B9: =Config_RawLabor!B9 -> Housing Program Manager | C9: =Config_RawLabor!C9 -> Oversees operations of a housing program. Sets budget and policies, hires and trains staff, and oversees occupancy eligibility/operations. Develops and provides reports or documentation needed to secure/maintain funding or grants. May lead the work of others. | D9: =VLOOKUP($B9,Config_Education!$A:$F,2,0) -> Bachelor's Degree | E9: =VLOOKUP($B9,Config_Education!$A:$F,3,0) -> Bachelor's Degree | F9: =VLOOKUP($B9,Config_Education!$A:$F,4,0) -> Bachelor's Degree | G9: =VLOOKUP($B9,Config_Education!$A:$F,5,0) -> Bachelor's Degree | H9: =VLOOKUP($B9,Config_Education!$A:$F,6,0) -> Bachelor's Degree
A10: =Config_RawLabor!A10 -> Advocate | B10: =Config_RawLabor!B10 -> Program Coordinator | C10: =Config_RawLabor!C10 -> Plans and coordinates one or more programs for a non-profit organization, including fundraising, budgeting, and community outreach. Develops and implements programs that align with the organization's mission and support the organization's goals. Creates program materials, establishes staffing requirements, and ensures that program achieves stated objectives. May be responsible for special events that publicize the organization and its programs to the community. | D10: =VLOOKUP($B10,Config_Education!$A:$F,2,0) -> Bachelor's | E10: =VLOOKUP($B10,Config_Education!$A:$F,3,0) -> Bachelor's | F10: =VLOOKUP($B10,Config_Education!$A:$F,4,0) -> Bachelor's | G10: =VLOOKUP($B10,Config_Education!$A:$F,5,0) -> Bachelor's | H10: =VLOOKUP($B10,Config_Education!$A:$F,6,0) -> Bachelor's
A11: =Config_RawLabor!A11 -> Advocate | B11: =Config_RawLabor!B11 -> Program Manager | C11: =Config_RawLabor!C11 -> Manages a team that coordinates programs for a non-profit organization. Designs programs that align with the organization's mission and support the organization's goals. Establishes fundraising and development goals, identifies potential donors or sources of funding, and plans outreach strategies. Schedules and forecasts planning for special events that publicize the organization and its programs to the community. May assist in the development of grants applications or proposals. | D11: =VLOOKUP($B11,Config_Education!$A:$F,2,0) -> Bachelor's | E11: =VLOOKUP($B11,Config_Education!$A:$F,3,0) -> Bachelor's | F11: =VLOOKUP($B11,Config_Education!$A:$F,4,0) -> Bachelor's | G11: =VLOOKUP($B11,Config_Education!$A:$F,5,0) -> Bachelor's | H11: =VLOOKUP($B11,Config_Education!$A:$F,6,0) -> Bachelor's
A12: =Config_RawLabor!A12 -> Expert | B12: =Config_RawLabor!B12 -> Accountant | C12: =Config_RawLabor!C12 -> Prepares complex balance sheets, profit and loss statements and other financial reports. Analyzes current costs, revenues, financial commitments, and obligations incurred to predict future revenues and expenses. | D12: =VLOOKUP($B12,Config_Education!$A:$F,2,0) -> Bachelor's Degree | E12: =VLOOKUP($B12,Config_Education!$A:$F,3,0) -> Bachelor's Degree | F12: =VLOOKUP($B12,Config_Education!$A:$F,4,0) -> Bachelor's Degree | G12: =VLOOKUP($B12,Config_Education!$A:$F,5,0) -> Bachelor's Degree | H12: =VLOOKUP($B12,Config_Education!$A:$F,6,0) -> Bachelor's Degree
A13: =Config_RawLabor!A13 -> Expert | B13: =Config_RawLabor!B13 -> Biologist | C13: =Config_RawLabor!C13 -> Analyzes specific regional environments as well as the organisms and wildlife that inhabit those locations. Aids in the protection and survival of wildlife within any given ecosystem, and assesses the impact of human activity on the environment. | D13: =VLOOKUP($B13,Config_Education!$A:$F,2,0) -> Bachelor's Degree | E13: =VLOOKUP($B13,Config_Education!$A:$F,3,0) -> Master's Degree or MBA | F13: =VLOOKUP($B13,Config_Education!$A:$F,4,0) -> Master's Degree or MBA | G13: =VLOOKUP($B13,Config_Education!$A:$F,5,0) -> JD, MD, PhD or Equivalent | H13: =VLOOKUP($B13,Config_Education!$A:$F,6,0) -> JD, MD, PhD or Equivalent
A14: =Config_RawLabor!A14 -> Expert | B14: =Config_RawLabor!B14 -> Certified Depreciation Professional | C14: =Config_RawLabor!C14 -> Specialist in calculating depreciation. | D14: =VLOOKUP($B14,Config_Education!$A:$F,2,0) -> Bachelor's Degree | E14: =VLOOKUP($B14,Config_Education!$A:$F,3,0) -> Bachelor's Degree | F14: =VLOOKUP($B14,Config_Education!$A:$F,4,0) -> Bachelor's Degree | G14: =VLOOKUP($B14,Config_Education!$A:$F,5,0) -> Bachelor's Degree | H14: =VLOOKUP($B14,Config_Education!$A:$F,6,0) -> Bachelor's Degree
A15: =Config_RawLabor!A15 -> Expert | B15: =Config_RawLabor!B15 -> Chemical Engineer | C15: =Config_RawLabor!C15 -> Analyzes processes for the transport and storage of chemicals, including gases. | D15: =VLOOKUP($B15,Config_Education!$A:$F,2,0) -> Bachelor's Degree | E15: =VLOOKUP($B15,Config_Education!$A:$F,3,0) -> Bachelor's Degree | F15: =VLOOKUP($B15,Config_Education!$A:$F,4,0) -> Bachelor's Degree | G15: =VLOOKUP($B15,Config_Education!$A:$F,5,0) -> Bachelor's Degree | H15: =VLOOKUP($B15,Config_Education!$A:$F,6,0) -> Bachelor's Degree
A16: =Config_RawLabor!A16 -> Expert | B16: =Config_RawLabor!B16 -> Civil Engineer | C16: =Config_RawLabor!C16 -> Analyzes construction projects such as channels, dams, and roads. Responsibilities also include estimating costs, personnel, material and schedule needs. | D16: =VLOOKUP($B16,Config_Education!$A:$F,2,0) -> Bachelor's Degree | E16: =VLOOKUP($B16,Config_Education!$A:$F,3,0) -> Bachelor's Degree | F16: =VLOOKUP($B16,Config_Education!$A:$F,4,0) -> Bachelor's Degree | G16: =VLOOKUP($B16,Config_Education!$A:$F,5,0) -> Bachelor's Degree | H16: =VLOOKUP($B16,Config_Education!$A:$F,6,0) -> Bachelor's Degree
A17: =Config_RawLabor!A17 -> Expert | B17: =Config_RawLabor!B17 -> Climate Scientist | C17: =Config_RawLabor!C17 -> Analyze and interpret data obtained from meteorological stations, radar and satellite imagery, and computer models. Analyze past climate conditions and use models to predict future climate trends. Expert on factors that affect climate and cause climate change. Provides information and advises policy-makers on environmental topics such as climate change and air quality. Uses impact models to illustrate how human or natural activities respond to climate, for example crop yields, wetland ecology, biodiversity, and human health. | D17: =VLOOKUP($B17,Config_Education!$A:$F,2,0) -> Master's Degree or MBA | E17: =VLOOKUP($B17,Config_Education!$A:$F,3,0) -> Master's Degree or MBA | F17: =VLOOKUP($B17,Config_Education!$A:$F,4,0) -> Master's Degree or MBA | G17: =VLOOKUP($B17,Config_Education!$A:$F,5,0) -> Master's Degree or MBA | H17: =VLOOKUP($B17,Config_Education!$A:$F,6,0) -> Master's Degree or MBA
A18: =Config_RawLabor!A18 -> Expert | B18: =Config_RawLabor!B18 -> Communication Specialist | C18: =Config_RawLabor!C18 -> Defines, designs and implements communications strategy and programs. Evaluates and assist in establishing standard operating procedures regarding communications. Reviews and edits communications submitted for organizational issues. Works closely with various business departments to ensure messages are delivered clearly and effectively. | D18: =VLOOKUP($B18,Config_Education!$A:$F,2,0) -> Bachelor's Degree | E18: =VLOOKUP($B18,Config_Education!$A:$F,3,0) -> Bachelor's Degree | F18: =VLOOKUP($B18,Config_Education!$A:$F,4,0) -> Bachelor's Degree | G18: =VLOOKUP($B18,Config_Education!$A:$F,5,0) -> Master's Degree or MBA | H18: =VLOOKUP($B18,Config_Education!$A:$F,6,0) -> Bachelor's Degree
A19: =Config_RawLabor!A19 -> Expert | B19: =Config_RawLabor!B19 -> Cost Accountant | C19: =Config_RawLabor!C19 -> Reviews cost accounting procedures and methods. Responsible for the preparation and analysis of cost reports and costing audits. Examines and reviews unusual cost records and ensures cost data is allocated correctly. | D19: =VLOOKUP($B19,Config_Education!$A:$F,2,0) -> Bachelor's Degree | E19: =VLOOKUP($B19,Config_Education!$A:$F,3,0) -> Bachelor's Degree | F19: =VLOOKUP($B19,Config_Education!$A:$F,4,0) -> Bachelor's Degree | G19: =VLOOKUP($B19,Config_Education!$A:$F,5,0) -> Bachelor's Degree | H19: =VLOOKUP($B19,Config_Education!$A:$F,6,0) -> Bachelor's Degree
A20: =Config_RawLabor!A20 -> Expert | B20: =Config_RawLabor!B20 -> Cost Estimation Analyst | C20: =Config_RawLabor!C20 -> Reviews project cost estimates, expenditures, and forecasts. Prepares should cost estimates for comparison as part of cost reasonableness analysis. Requires technical knowledge of the construction work involved, and the ability to use cost-estimating methods. | D20: =VLOOKUP($B20,Config_Education!$A:$F,2,0) -> Bachelor's | E20: =VLOOKUP($B20,Config_Education!$A:$F,3,0) -> Bachelor's | F20: =VLOOKUP($B20,Config_Education!$A:$F,4,0) -> Bachelor's | G20: =VLOOKUP($B20,Config_Education!$A:$F,5,0) -> Bachelor's | H20: =VLOOKUP($B20,Config_Education!$A:$F,6,0) -> Bachelor's
A21: =Config_RawLabor!A21 -> Expert | B21: =Config_RawLabor!B21 -> Design Engineer | C21: =Config_RawLabor!C21 -> Evaluates products, parts, or processes for cost efficiency and reliability and to estimate project completion status. | D21: =VLOOKUP($B21,Config_Education!$A:$F,2,0) -> Bachelor's Degree | E21: =VLOOKUP($B21,Config_Education!$A:$F,3,0) -> Bachelor's Degree | F21: =VLOOKUP($B21,Config_Education!$A:$F,4,0) -> Bachelor's Degree | G21: =VLOOKUP($B21,Config_Education!$A:$F,5,0) -> Bachelor's Degree | H21: =VLOOKUP($B21,Config_Education!$A:$F,6,0) -> Bachelor's Degree
A22: =Config_RawLabor!A22 -> Expert | B22: =Config_RawLabor!B22 -> Drilling Engineer | C22: =Config_RawLabor!C22 -> Provides expert judgment for the design and implementation of oil and gas wells. Resolves highly complex technical issues and conducts advanced research into emerging technology in the field. Recommends alterations to development and design to improve safety, costs, and efficiency. | D22: =VLOOKUP($B22,Config_Education!$A:$F,2,0) -> Bachelor's Degree | E22: =VLOOKUP($B22,Config_Education!$A:$F,3,0) -> Bachelor's Degree | F22: =VLOOKUP($B22,Config_Education!$A:$F,4,0) -> Bachelor's Degree | G22: =VLOOKUP($B22,Config_Education!$A:$F,5,0) -> Bachelor's Degree | H22: =VLOOKUP($B22,Config_Education!$A:$F,6,0) -> Master's Degree or MBA
A23: =Config_RawLabor!A23 -> Expert | B23: =Config_RawLabor!B23 -> Ecologist | C23: =Config_RawLabor!C23 -> Investigates the factors at play in a disturbed ecosystem, anticipates potential effects of proposed actions, and recommends sustainable practices. Work may include fieldwork to collect and analyze data on environmental conditions, or to assess or certify a habitat. May plan or review habitat management or environmental restoration projects, including procedures, resources, schedules, and budgets. | D23: =VLOOKUP($B23,Config_Education!$A:$F,2,0) -> Bachelor's Degree | E23: =VLOOKUP($B23,Config_Education!$A:$F,3,0) -> Master's Degree or MBA | F23: =VLOOKUP($B23,Config_Education!$A:$F,4,0) -> Master's Degree or MBA | G23: =VLOOKUP($B23,Config_Education!$A:$F,5,0) -> JD, MD, PhD or Equivalent | H23: =VLOOKUP($B23,Config_Education!$A:$F,6,0) -> JD, MD, PhD or Equivalent
A24: =Config_RawLabor!A24 -> Expert | B24: =Config_RawLabor!B24 -> Economist | C24: =Config_RawLabor!C24 -> Conducts research and analyses on economic data/trends and provides recommendations based on expertise. Researches and develops new data statistical models and technological innovations. Organizes data into report format and arranges graphic illustrations of research findings. Interprets and predicts economic conditions and advises management on implications. | D24: =VLOOKUP($B24,Config_Education!$A:$F,2,0) -> Bachelor's Degree | E24: =VLOOKUP($B24,Config_Education!$A:$F,3,0) -> Bachelor's Degree | F24: =VLOOKUP($B24,Config_Education!$A:$F,4,0) -> Bachelor's Degree | G24: =VLOOKUP($B24,Config_Education!$A:$F,5,0) -> Bachelor's Degree | H24: =VLOOKUP($B24,Config_Education!$A:$F,6,0) -> Master's Degree or MBA
A25: =Config_RawLabor!A25 -> Expert | B25: =Config_RawLabor!B25 -> Electrical Controls Engineer | C25: =Config_RawLabor!C25 -> Reviews design of electrical control systems, equipment, and machinery. | D25: =VLOOKUP($B25,Config_Education!$A:$F,2,0) -> Bachelor's | E25: =VLOOKUP($B25,Config_Education!$A:$F,3,0) -> Bachelor's | F25: =VLOOKUP($B25,Config_Education!$A:$F,4,0) -> Bachelor's | G25: =VLOOKUP($B25,Config_Education!$A:$F,5,0) -> Bachelor's | H25: =VLOOKUP($B25,Config_Education!$A:$F,6,0) -> Bachelor's Degree
A26: =Config_RawLabor!A26 -> Expert | B26: =Config_RawLabor!B26 -> Electrical Engineer | C26: =Config_RawLabor!C26 -> Reviews electrical equipment, components, or systems. Applies mathematical and engineering principles and methods to analysis of electrical system designs. Studies new technologies and researches innovative solutions and product designs to make alternate recommendations. | D26: =VLOOKUP($B26,Config_Education!$A:$F,2,0) -> Bachelor's Degree | E26: =VLOOKUP($B26,Config_Education!$A:$F,3,0) -> Bachelor's Degree | F26: =VLOOKUP($B26,Config_Education!$A:$F,4,0) -> Bachelor's Degree | G26: =VLOOKUP($B26,Config_Education!$A:$F,5,0) -> Bachelor's Degree | H26: =VLOOKUP($B26,Config_Education!$A:$F,6,0) -> Bachelor's Degree
A27: =Config_RawLabor!A27 -> Expert | B27: =Config_RawLabor!B27 -> Energy & Resources Expert | C27: =Config_RawLabor!C27 -> Offers broad, cross discipline expertise in analytic, methodological, theoretical, and practical approaches to problems in energy, resources, and the environment. | D27: =VLOOKUP($B27,Config_Education!$A:$F,2,0) -> Bachelor's | E27: =VLOOKUP($B27,Config_Education!$A:$F,3,0) -> Bachelor's | F27: =VLOOKUP($B27,Config_Education!$A:$F,4,0) -> Bachelor's | G27: =VLOOKUP($B27,Config_Education!$A:$F,5,0) -> Bachelor's | H27: =VLOOKUP($B27,Config_Education!$A:$F,6,0) -> Bachelor's
A28: =Config_RawLabor!A28 -> Expert | B28: =Config_RawLabor!B28 -> Engineer | C28: =Config_RawLabor!C28 -> Provides expert consultation in one or more areas of engineering. Reviews highly complex technical issues and recommends alterations to development and design to improve quality of products and/or procedures. Has extensive engineering knowledge and is considered an expert in one or more engineering specialties. | D28: =VLOOKUP($B28,Config_Education!$A:$F,2,0) -> Bachelor's Degree | E28: =VLOOKUP($B28,Config_Education!$A:$F,3,0) -> Bachelor's Degree | F28: =VLOOKUP($B28,Config_Education!$A:$F,4,0) -> Master's Degree or MBA | G28: =VLOOKUP($B28,Config_Education!$A:$F,5,0) -> Bachelor's Degree | H28: =VLOOKUP($B28,Config_Education!$A:$F,6,0) -> Master's Degree or MBA
A29: =Config_RawLabor!A29 -> Expert | B29: =Config_RawLabor!B29 -> Env., Health, and Safety Engineer | C29: =Config_RawLabor!C29 -> Provides review and expert recommendations with respect to local, state and federal environmental, health and safety regulations. May review the design of facilities, work areas and work procedures from an environmental, health and safety perspective. Reviews environmental policy and procedures. Ensures compliance with all environmental, health and safety regulations. | D29: =VLOOKUP($B29,Config_Education!$A:$F,2,0) -> Bachelor's Degree | E29: =VLOOKUP($B29,Config_Education!$A:$F,3,0) -> Bachelor's Degree | F29: =VLOOKUP($B29,Config_Education!$A:$F,4,0) -> Bachelor's Degree | G29: =VLOOKUP($B29,Config_Education!$A:$F,5,0) -> Master's Degree or MBA | H29: =VLOOKUP($B29,Config_Education!$A:$F,6,0) -> Bachelor's Degree
A30: =Config_RawLabor!A30 -> Expert | B30: =Config_RawLabor!B30 -> Environmental Engineer | C30: =Config_RawLabor!C30 -> Identifies, assesses and resolves problems concerning the environment. May review measuring approaches, equipment and results in areas such as pollutants involving air, land, and water. Provides reports findings on environmental consequences of equipment, tools, and procedures. Reviews conformance to federal, state, and local environmental legislation. | D30: =VLOOKUP($B30,Config_Education!$A:$F,2,0) -> Master's Degree or MBA | E30: =VLOOKUP($B30,Config_Education!$A:$F,3,0) -> Master's Degree or MBA | F30: =VLOOKUP($B30,Config_Education!$A:$F,4,0) -> Master's Degree or MBA | G30: =VLOOKUP($B30,Config_Education!$A:$F,5,0) -> Master's Degree or MBA | H30: =VLOOKUP($B30,Config_Education!$A:$F,6,0) -> Master's Degree or MBA
A31: =Config_RawLabor!A31 -> Expert | B31: =Config_RawLabor!B31 -> Equipment Engineer | C31: =Config_RawLabor!C31 -> Provides expert consultation with respect to technical products and equipment. Recognized as technical leader and resource. Recommends alterations and enhancements to improve quality of products and/or procedures. | D31: =VLOOKUP($B31,Config_Education!$A:$F,2,0) -> Bachelor's Degree | E31: =VLOOKUP($B31,Config_Education!$A:$F,3,0) -> Bachelor's Degree | F31: =VLOOKUP($B31,Config_Education!$A:$F,4,0) -> Bachelor's Degree | G31: =VLOOKUP($B31,Config_Education!$A:$F,5,0) -> Bachelor's Degree | H31: =VLOOKUP($B31,Config_Education!$A:$F,6,0) -> Bachelor's Degree
A32: =Config_RawLabor!A32 -> Expert | B32: =Config_RawLabor!B32 -> Expert - Not Otherwise Classified | C32: =Config_RawLabor!C32 -> Used for export roles that are not better classified as one of the more detailed roles. May also be used for experts that fill multiple subroles. | D32: =VLOOKUP($B32,Config_Education!$A:$F,2,0) -> Bachelor's Degree | E32: =VLOOKUP($B32,Config_Education!$A:$F,3,0) -> Bachelor's Degree | F32: =VLOOKUP($B32,Config_Education!$A:$F,4,0) -> Bachelor's Degree | G32: =VLOOKUP($B32,Config_Education!$A:$F,5,0) -> Bachelor's Degree | H32: =VLOOKUP($B32,Config_Education!$A:$F,6,0) -> Bachelor's Degree
A33: =Config_RawLabor!A33 -> Expert | B33: =Config_RawLabor!B33 -> Expert - Social Work | C33: =Config_RawLabor!C33 -> Provides expertise in the discipline area of social work. Familiar with current literature and research in the selected field. | D33: =VLOOKUP($B33,Config_Education!$A:$F,2,0) -> Master's Degree or MBA | E33: =VLOOKUP($B33,Config_Education!$A:$F,3,0) -> Master's Degree or MBA | F33: =VLOOKUP($B33,Config_Education!$A:$F,4,0) -> Master's Degree or MBA | G33: =VLOOKUP($B33,Config_Education!$A:$F,5,0) -> Master's Degree or MBA | H33: =VLOOKUP($B33,Config_Education!$A:$F,6,0) -> Master's Degree or MBA
A34: =Config_RawLabor!A34 -> Expert | B34: =Config_RawLabor!B34 -> Field Service Engineer | C34: =Config_RawLabor!C34 -> Reviews installation and maintenance of products/equipment. Identifies, analyzes, makes recommendations regarding product failures, installation of new components or parts. Develops creative recommendations for more unique, chronic, or complex issues. Provides the intervenor team with explanations of product features and typical operation. Has extensive knowledge of an organization's products and services and is considered an expert. | D34: =VLOOKUP($B34,Config_Education!$A:$F,2,0) -> Bachelor's Degree | E34: =VLOOKUP($B34,Config_Education!$A:$F,3,0) -> Bachelor's Degree | F34: =VLOOKUP($B34,Config_Education!$A:$F,4,0) -> Bachelor's Degree | G34: =VLOOKUP($B34,Config_Education!$A:$F,5,0) -> Bachelor's Degree | H34: =VLOOKUP($B34,Config_Education!$A:$F,6,0) -> Bachelor's Degree
A35: =Config_RawLabor!A35 -> Expert | B35: =Config_RawLabor!B35 -> Fire Fighter | C35: =Config_RawLabor!C35 -> Provides explanations of standard or expected fire fighting procedures under typical, potential, or observed scenarios. | D35: =VLOOKUP($B35,Config_Education!$A:$F,2,0) -> Bachelor's | E35: =VLOOKUP($B35,Config_Education!$A:$F,3,0) -> Bachelor's | F35: =VLOOKUP($B35,Config_Education!$A:$F,4,0) -> Bachelor's | G35: =VLOOKUP($B35,Config_Education!$A:$F,5,0) -> Bachelor's | H35: =VLOOKUP($B35,Config_Education!$A:$F,6,0) -> Bachelor's
A36: =Config_RawLabor!A36 -> Expert | B36: =Config_RawLabor!B36 -> Fire Inspector Supervisor | C36: =Config_RawLabor!C36 -> Oversees the inspection of fire-damage to determine cause. Reviews preventive actions for appropriatness. Provides explanations of a variety of fire laws, regulations, and policies, including identifying those that are appropriate for a given situation. Assesses compliance with laws, regulations, and policies. | D36: =VLOOKUP($B36,Config_Education!$A:$F,2,0) -> Bachelor's | E36: =VLOOKUP($B36,Config_Education!$A:$F,3,0) -> Bachelor's | F36: =VLOOKUP($B36,Config_Education!$A:$F,4,0) -> Bachelor's | G36: =VLOOKUP($B36,Config_Education!$A:$F,5,0) -> Bachelor's | H36: =VLOOKUP($B36,Config_Education!$A:$F,6,0) -> Bachelor's
A37: =Config_RawLabor!A37 -> Expert | B37: =Config_RawLabor!B37 -> Fire Prevention Engineer | C37: =Config_RawLabor!C37 -> Examines buildings and equipment to determine compliance with fire prevention best practices. Ensures fire compliance codes are being adhered to. | D37: =VLOOKUP($B37,Config_Education!$A:$F,2,0) -> Bachelor's | E37: =VLOOKUP($B37,Config_Education!$A:$F,3,0) -> Bachelor's | F37: =VLOOKUP($B37,Config_Education!$A:$F,4,0) -> Bachelor's | G37: =VLOOKUP($B37,Config_Education!$A:$F,5,0) -> Bachelor's | H37: =VLOOKUP($B37,Config_Education!$A:$F,6,0) -> Bachelor's
A38: =Config_RawLabor!A38 -> Expert | B38: =Config_RawLabor!B38 -> Geologist | C38: =Config_RawLabor!C38 -> Expert on the formation, dissolution, and content of rock layers, along with the effects of internal pressures, heat, water, pollution, and erosion. | D38: =VLOOKUP($B38,Config_Education!$A:$F,2,0) -> Bachelor's Degree | E38: =VLOOKUP($B38,Config_Education!$A:$F,3,0) -> Bachelor's Degree | F38: =VLOOKUP($B38,Config_Education!$A:$F,4,0) -> Master's Degree or MBA | G38: =VLOOKUP($B38,Config_Education!$A:$F,5,0) -> Master's Degree or MBA | H38: =VLOOKUP($B38,Config_Education!$A:$F,6,0) -> Master's Degree or MBA
A39: =Config_RawLabor!A39 -> Expert | B39: =Config_RawLabor!B39 -> Geotechnical Engineer | C39: =Config_RawLabor!C39 -> Prepares and inspects projects involving drilling and exploration. Responsible for reviewing geological maps, site characterization, numerical modeling and analysis of excavations/supports. | D39: =VLOOKUP($B39,Config_Education!$A:$F,2,0) -> Master's Degree or MBA | E39: =VLOOKUP($B39,Config_Education!$A:$F,3,0) -> Master's Degree or MBA | F39: =VLOOKUP($B39,Config_Education!$A:$F,4,0) -> Master's Degree or MBA | G39: =VLOOKUP($B39,Config_Education!$A:$F,5,0) -> Master's Degree or MBA | H39: =VLOOKUP($B39,Config_Education!$A:$F,6,0) -> Master's Degree or MBA
A40: =Config_RawLabor!A40 -> Expert | B40: =Config_RawLabor!B40 -> Hardware Engineer | C40: =Config_RawLabor!C40 -> Reviews design, development, and implementation of hardware for products. Reviews test strategies and implementation, devices, and systems. Reviews stress and performance test results for a variety of computer hardware including circuit boards, processors and wiring. | D40: =VLOOKUP($B40,Config_Education!$A:$F,2,0) -> Bachelor's Degree | E40: =VLOOKUP($B40,Config_Education!$A:$F,3,0) -> Master's Degree or MBA | F40: =VLOOKUP($B40,Config_Education!$A:$F,4,0) -> Master's Degree or MBA | G40: =VLOOKUP($B40,Config_Education!$A:$F,5,0) -> Master's Degree or MBA | H40: =VLOOKUP($B40,Config_Education!$A:$F,6,0) -> Master's Degree or MBA
A41: =Config_RawLabor!A41 -> Expert | B41: =Config_RawLabor!B41 -> Health Scientist | C41: =Config_RawLabor!C41 -> Reviews the potential impact of policies and planned projects on community health. | D41: =VLOOKUP($B41,Config_Education!$A:$F,2,0) -> Master's Degree or MBA | E41: =VLOOKUP($B41,Config_Education!$A:$F,3,0) -> Master's Degree or MBA | F41: =VLOOKUP($B41,Config_Education!$A:$F,4,0) -> Master's Degree or MBA | G41: =VLOOKUP($B41,Config_Education!$A:$F,5,0) -> Master's Degree or MBA | H41: =VLOOKUP($B41,Config_Education!$A:$F,6,0) -> Master's Degree or MBA
A42: =Config_RawLabor!A42 -> Expert | B42: =Config_RawLabor!B42 -> Hydrologist | C42: =Config_RawLabor!C42 -> Measure the properties of bodies of water, such as volume and stream flow Collect water and soil samples to test for certain properties, such as the pH or pollution levels. Analyze data on the environmental impacts of pollution, erosion, drought, and other problems. Recommend ways to minimize the negative impacts of erosion, sedimentation, or pollution on the environment. Use computer models to forecast future water supplies, the spread of pollution, floods, and other events. Evaluate the feasibility of water-related projects, such as hydroelectric power plants, irrigation systems, and wastewater treatment facilities. | D42: =VLOOKUP($B42,Config_Education!$A:$F,2,0) -> Master's Degree or MBA | E42: =VLOOKUP($B42,Config_Education!$A:$F,3,0) -> Master's Degree or MBA | F42: =VLOOKUP($B42,Config_Education!$A:$F,4,0) -> Master's Degree or MBA | G42: =VLOOKUP($B42,Config_Education!$A:$F,5,0) -> Master's Degree or MBA | H42: =VLOOKUP($B42,Config_Education!$A:$F,6,0) -> Master's Degree or MBA
A43: =Config_RawLabor!A43 -> Expert | B43: =Config_RawLabor!B43 -> IT Project Engineer | C43: =Config_RawLabor!C43 -> Reviews IT engineering projects for compliance with industry best practices. Performs engineering design evaluations and reviews project budget and schedule. Reviews information system policies and controls to ensure data accuracy, security, and regulatory compliance. Reviews reports of computer and peripheral equipment production, malfunction, and maintenance to determine problems. | D43: =VLOOKUP($B43,Config_Education!$A:$F,2,0) -> Bachelor's Degree | E43: =VLOOKUP($B43,Config_Education!$A:$F,3,0) -> Bachelor's Degree | F43: =VLOOKUP($B43,Config_Education!$A:$F,4,0) -> Bachelor's Degree | G43: =VLOOKUP($B43,Config_Education!$A:$F,5,0) -> Bachelor's Degree | H43: =VLOOKUP($B43,Config_Education!$A:$F,6,0) -> Bachelor's Degree
A44: =Config_RawLabor!A44 -> Expert | B44: =Config_RawLabor!B44 -> Mechanical Engineer | C44: =Config_RawLabor!C44 -> Reviews all aspects of mechanical components, equipment, and machinery design, installation, and testing. Applies knowledge of engineering principles to review products such as engines, instruments, controls, robots, machines, etc. Reviews product testing, models and prototypes. May review fabrication, operation, application, installation, and/or repair of mechanical products. | D44: =VLOOKUP($B44,Config_Education!$A:$F,2,0) -> Bachelor's Degree | E44: =VLOOKUP($B44,Config_Education!$A:$F,3,0) -> Bachelor's Degree | F44: =VLOOKUP($B44,Config_Education!$A:$F,4,0) -> Bachelor's Degree | G44: =VLOOKUP($B44,Config_Education!$A:$F,5,0) -> Bachelor's Degree | H44: =VLOOKUP($B44,Config_Education!$A:$F,6,0) -> Bachelor's Degree
A45: =Config_RawLabor!A45 -> Expert | B45: =Config_RawLabor!B45 -> Network Engineer | C45: =Config_RawLabor!C45 -> Evaluates network systems and communications. May review issues such as network traffic, potential security risk, etc. Reviews network architecture design and optimization. Must have extensive knowledge of Internet, computer, routers, switches, firewall, etc. | D45: =VLOOKUP($B45,Config_Education!$A:$F,2,0) -> Bachelor's Degree | E45: =VLOOKUP($B45,Config_Education!$A:$F,3,0) -> Bachelor's Degree | F45: =VLOOKUP($B45,Config_Education!$A:$F,4,0) -> Bachelor's Degree | G45: =VLOOKUP($B45,Config_Education!$A:$F,5,0) -> Bachelor's Degree | H45: =VLOOKUP($B45,Config_Education!$A:$F,6,0) -> Bachelor's Degree
A46: =Config_RawLabor!A46 -> Expert | B46: =Config_RawLabor!B46 -> Nuclear Engineer | C46: =Config_RawLabor!C46 -> Reviews processes related to nuclear energy and radiation. Familiar with problems of nuclear energy systems. Reviews design of nuclear equipment. Reviews testing, operation, and maintenance of nuclear reactors. | D46: =VLOOKUP($B46,Config_Education!$A:$F,2,0) -> Bachelor's Degree | E46: =VLOOKUP($B46,Config_Education!$A:$F,3,0) -> Master's Degree or MBA | F46: =VLOOKUP($B46,Config_Education!$A:$F,4,0) -> Master's Degree or MBA | G46: =VLOOKUP($B46,Config_Education!$A:$F,5,0) -> Master's Degree or MBA | H46: =VLOOKUP($B46,Config_Education!$A:$F,6,0) -> JD, MD, PhD or Equivalent
A47: =Config_RawLabor!A47 -> Expert | B47: =Config_RawLabor!B47 -> Physicist | C47: =Config_RawLabor!C47 -> Provide reports regarding experimental physicists, force analysis, health physics, and high-energy physics. Provide expert witness testimony on issues regarding nuclear physics, optics, particle physics, quantum computing, quantum physics, radiation exposure, the science of matter and energy, shock physics, stress on materials, superconductivity, thermal exposure, and thermodynamics, as well as related topics. | D47: =VLOOKUP($B47,Config_Education!$A:$F,2,0) -> JD, MD, PhD or Equivalent | E47: =VLOOKUP($B47,Config_Education!$A:$F,3,0) -> JD, MD, PhD or Equivalent | F47: =VLOOKUP($B47,Config_Education!$A:$F,4,0) -> JD, MD, PhD or Equivalent | G47: =VLOOKUP($B47,Config_Education!$A:$F,5,0) -> JD, MD, PhD or Equivalent | H47: =VLOOKUP($B47,Config_Education!$A:$F,6,0) -> JD, MD, PhD or Equivalent
A48: =Config_RawLabor!A48 -> Expert | B48: =Config_RawLabor!B48 -> Process Engineer | C48: =Config_RawLabor!C48 -> Reviews continuous production and manufacturing processes with respect to output, quality, and cost. Reviews production data and applies standard scientific and statistical methods to analyze, document, and diagram production processes. Identifies process bottlenecks and recommended solutions to resolve. Recommends changes or upgrades to equipment, work methods, or other aspects of the process to improve efficiency and utilization of resources including labor, energy and raw materials. | D48: =VLOOKUP($B48,Config_Education!$A:$F,2,0) -> Bachelor's Degree | E48: =VLOOKUP($B48,Config_Education!$A:$F,3,0) -> Bachelor's Degree | F48: =VLOOKUP($B48,Config_Education!$A:$F,4,0) -> Bachelor's Degree | G48: =VLOOKUP($B48,Config_Education!$A:$F,5,0) -> Bachelor's Degree | H48: =VLOOKUP($B48,Config_Education!$A:$F,6,0) -> Bachelor's Degree
A49: =Config_RawLabor!A49 -> Expert | B49: =Config_RawLabor!B49 -> Professor - Law | C49: =Config_RawLabor!C49 -> Current or former law professor with knowledge of CPUC regulatory proceedings. | D49: =VLOOKUP($B49,Config_Education!$A:$F,2,0) -> JD, MD, PhD or Equivalent | E49: =VLOOKUP($B49,Config_Education!$A:$F,3,0) -> JD, MD, PhD or Equivalent | F49: =VLOOKUP($B49,Config_Education!$A:$F,4,0) -> JD, MD, PhD or Equivalent | G49: =VLOOKUP($B49,Config_Education!$A:$F,5,0) -> JD, MD, PhD or Equivalent | H49: =VLOOKUP($B49,Config_Education!$A:$F,6,0) -> JD, MD, PhD or Equivalent
A50: =Config_RawLabor!A50 -> Expert | B50: =Config_RawLabor!B50 -> Program Design/Evaluation Specialist | C50: =Config_RawLabor!C50 -> Designs marketing strategies and programs for a utility product or product line. Evaluates utility product performance, and recommends changes to current products based on market research and new trends. | D50: =VLOOKUP($B50,Config_Education!$A:$F,2,0) -> Bachelor's Degree | E50: =VLOOKUP($B50,Config_Education!$A:$F,3,0) -> Bachelor's Degree | F50: =VLOOKUP($B50,Config_Education!$A:$F,4,0) -> Master's Degree or MBA | G50: =VLOOKUP($B50,Config_Education!$A:$F,5,0) -> Master's Degree or MBA | H50: =VLOOKUP($B50,Config_Education!$A:$F,6,0) -> Master's Degree or MBA
A51: =Config_RawLabor!A51 -> Expert | B51: =Config_RawLabor!B51 -> Project Engineer | C51: =Config_RawLabor!C51 -> Reviews engineering designs and implementation plans for reasonableness. Reviews industry policies and procedures to ensure data accuracy, security, and regulatory compliance. Reviews reports of production, malfunction, and maintenance to determine or address problems. Provides recommendations regarding engineering process. Coordinates with other engineering experts and coordinates their specialized contributions to the proceeding. Reviews and opins on operational plans for completing the project. Reviews progress and performance against the project plan and recommends actions to resolve operational problems and minimize delays. Develops alternate or comparative project schedules, budgets, and forecasts. | D51: =VLOOKUP($B51,Config_Education!$A:$F,2,0) -> Bachelor's Degree | E51: =VLOOKUP($B51,Config_Education!$A:$F,3,0) -> Bachelor's Degree | F51: =VLOOKUP($B51,Config_Education!$A:$F,4,0) -> Bachelor's Degree | G51: =VLOOKUP($B51,Config_Education!$A:$F,5,0) -> Master's Degree or MBA | H51: =VLOOKUP($B51,Config_Education!$A:$F,6,0) -> Bachelor's Degree
A52: =Config_RawLabor!A52 -> Expert | B52: =Config_RawLabor!B52 -> Project Engineer - Construction | C52: =Config_RawLabor!C52 -> Interviews construction staff. Reviews plans and other technical documents, answers questions regarding the scope and/or scheduling of the project. Develops cost estimates or appropriate schedules. | D52: =VLOOKUP($B52,Config_Education!$A:$F,2,0) -> Bachelor's | E52: =VLOOKUP($B52,Config_Education!$A:$F,3,0) -> Bachelor's | F52: =VLOOKUP($B52,Config_Education!$A:$F,4,0) -> Bachelor's | G52: =VLOOKUP($B52,Config_Education!$A:$F,5,0) -> Bachelor's | H52: =VLOOKUP($B52,Config_Education!$A:$F,6,0) -> Bachelor's
A53: =Config_RawLabor!A53 -> Expert | B53: =Config_RawLabor!B53 -> Public Policy Analyst | C53: =Config_RawLabor!C53 -> Reviews the impact of state government policies and regulations. Analyzes proposed legislative actions and determines the potential impact. Reviews policies, plans, and programs to ensure consistency with corresponding government regulations and laws. | D53: =VLOOKUP($B53,Config_Education!$A:$F,2,0) -> Bachelor's Degree | E53: =VLOOKUP($B53,Config_Education!$A:$F,3,0) -> Bachelor's Degree | F53: =VLOOKUP($B53,Config_Education!$A:$F,4,0) -> Bachelor's Degree | G53: =VLOOKUP($B53,Config_Education!$A:$F,5,0) -> Master's Degree or MBA | H53: =VLOOKUP($B53,Config_Education!$A:$F,6,0) -> Bachelor's Degree
A54: =Config_RawLabor!A54 -> Expert | B54: =Config_RawLabor!B54 -> Regulatory Affairs Specialist | C54: =Config_RawLabor!C54 -> Familiar with regulatory forms, policies, and procedures and capable of reviewing regulatory compliance. | D54: =VLOOKUP($B54,Config_Education!$A:$F,2,0) -> Bachelor's Degree | E54: =VLOOKUP($B54,Config_Education!$A:$F,3,0) -> Master's Degree or MBA | F54: =VLOOKUP($B54,Config_Education!$A:$F,4,0) -> Bachelor's Degree | G54: =VLOOKUP($B54,Config_Education!$A:$F,5,0) -> Master's Degree or MBA | H54: =VLOOKUP($B54,Config_Education!$A:$F,6,0) -> Master's Degree or MBA
A55: =Config_RawLabor!A55 -> Expert | B55: =Config_RawLabor!B55 -> Reliability Engineer | C55: =Config_RawLabor!C55 -> Analyzes the reliability in design, cost, weight, production and consumer satisfaction of company products. Develops the methods and measures of analysis based on customer and contractual obligations. Prepares reports, charts and diagrams to disclose results and highlight areas for further investigation. Performs root cause analysis to determine product design flaws | D55: =VLOOKUP($B55,Config_Education!$A:$F,2,0) -> Bachelor's Degree | E55: =VLOOKUP($B55,Config_Education!$A:$F,3,0) -> Bachelor's Degree | F55: =VLOOKUP($B55,Config_Education!$A:$F,4,0) -> Master's Degree or MBA | G55: =VLOOKUP($B55,Config_Education!$A:$F,5,0) -> Master's Degree or MBA | H55: =VLOOKUP($B55,Config_Education!$A:$F,6,0) -> Master's Degree or MBA
A56: =Config_RawLabor!A56 -> Expert | B56: =Config_RawLabor!B56 -> Reservoir Engineer | C56: =Config_RawLabor!C56 -> Responsible for identifying oil and gas reserves and developing strategies to maximize recovery. Reviews testing results for new wells and monitors and predicts performance. | D56: =VLOOKUP($B56,Config_Education!$A:$F,2,0) -> Bachelor's Degree | E56: =VLOOKUP($B56,Config_Education!$A:$F,3,0) -> Master's Degree or MBA | F56: =VLOOKUP($B56,Config_Education!$A:$F,4,0) -> Master's Degree or MBA | G56: =VLOOKUP($B56,Config_Education!$A:$F,5,0) -> Master's Degree or MBA | H56: =VLOOKUP($B56,Config_Education!$A:$F,6,0) -> Master's Degree or MBA
A57: =Config_RawLabor!A57 -> Expert | B57: =Config_RawLabor!B57 -> Reservoir Engineering Manager | C57: =Config_RawLabor!C57 -> Reviews all aspects of engineering studies regarding the identification, evaluation, and development of oil and gas reserves within a region. Oversees the process of estimating, assessing, and planning oil and gas production and development projects. Ensures all projects, initiatives, and processes are in conformance with an organization's established policies and objectives | D57: =VLOOKUP($B57,Config_Education!$A:$F,2,0) -> Master's Degree or MBA | E57: =VLOOKUP($B57,Config_Education!$A:$F,3,0) -> Master's Degree or MBA | F57: =VLOOKUP($B57,Config_Education!$A:$F,4,0) -> Master's Degree or MBA | G57: =VLOOKUP($B57,Config_Education!$A:$F,5,0) -> Master's Degree or MBA | H57: =VLOOKUP($B57,Config_Education!$A:$F,6,0) -> Master's Degree or MBA
A58: =Config_RawLabor!A58 -> Expert | B58: =Config_RawLabor!B58 -> Sociologist | C58: =Config_RawLabor!C58 -> Provides expertise in the discipline area of sociology, including evaluating qualitative research methods in a proposed study.. Familiar with current literature and research in the selected field. | D58: =VLOOKUP($B58,Config_Education!$A:$F,2,0) -> JD, MD, PhD or Equivalent | E58: =VLOOKUP($B58,Config_Education!$A:$F,3,0) -> JD, MD, PhD or Equivalent | F58: =VLOOKUP($B58,Config_Education!$A:$F,4,0) -> JD, MD, PhD or Equivalent | G58: =VLOOKUP($B58,Config_Education!$A:$F,5,0) -> JD, MD, PhD or Equivalent | H58: =VLOOKUP($B58,Config_Education!$A:$F,6,0) -> JD, MD, PhD or Equivalent
A59: =Config_RawLabor!A59 -> Expert | B59: =Config_RawLabor!B59 -> Software Engineer | C59: =Config_RawLabor!C59 -> Reviews the design and code of software applications. Reviews s coding, debugging, testing and troubleshooting procedures throughout the application development process. Provides consultation on software application components of complex projects. | D59: =VLOOKUP($B59,Config_Education!$A:$F,2,0) -> Bachelor's Degree | E59: =VLOOKUP($B59,Config_Education!$A:$F,3,0) -> Bachelor's Degree | F59: =VLOOKUP($B59,Config_Education!$A:$F,4,0) -> Bachelor's Degree | G59: =VLOOKUP($B59,Config_Education!$A:$F,5,0) -> Bachelor's Degree | H59: =VLOOKUP($B59,Config_Education!$A:$F,6,0) -> Bachelor's Degree
A60: =Config_RawLabor!A60 -> Expert | B60: =Config_RawLabor!B60 -> Statistician | C60: =Config_RawLabor!C60 -> Analyzes and interprets data from various sources. Compiles reports, charts, and tables based on established statistical methods. | D60: =VLOOKUP($B60,Config_Education!$A:$F,2,0) -> Master's Degree or MBA | E60: =VLOOKUP($B60,Config_Education!$A:$F,3,0) -> Master's Degree or MBA | F60: =VLOOKUP($B60,Config_Education!$A:$F,4,0) -> Master's Degree or MBA | G60: =VLOOKUP($B60,Config_Education!$A:$F,5,0) -> JD, MD, PhD or Equivalent | H60: =VLOOKUP($B60,Config_Education!$A:$F,6,0) -> JD, MD, PhD or Equivalent
A61: =Config_RawLabor!A61 -> Expert | B61: =Config_RawLabor!B61 -> Structural Engineer | C61: =Config_RawLabor!C61 -> Reviews load-bearing structures or structural elements, such as buildings, bridges, or roadways. Performs analysis of building materials used in construction. Reviews blueprints or specifications used during construction and ensures all projects comply with applicable codes and regulations. Determines cause of structural failures, damages, and defects through site investigations. Provides reports detailing investigations and assessment of damages to the structure. | D61: =VLOOKUP($B61,Config_Education!$A:$F,2,0) -> Master's Degree or MBA | E61: =VLOOKUP($B61,Config_Education!$A:$F,3,0) -> Master's Degree or MBA | F61: =VLOOKUP($B61,Config_Education!$A:$F,4,0) -> Master's Degree or MBA | G61: =VLOOKUP($B61,Config_Education!$A:$F,5,0) -> Master's Degree or MBA | H61: =VLOOKUP($B61,Config_Education!$A:$F,6,0) -> Master's Degree or MBA
A62: =Config_RawLabor!A62 -> Expert | B62: =Config_RawLabor!B62 -> Systems Engineer | C62: =Config_RawLabor!C62 -> Reviews the plan and design of an organization's systems infrastructure. Ensures the accuracy and effectiveness of the system to meet business/customers' requirements. Monitors the performance of systems and suggests improvements. Verifies and reviews system related documents/reports including installation procedures. | D62: =VLOOKUP($B62,Config_Education!$A:$F,2,0) -> Bachelor's Degree | E62: =VLOOKUP($B62,Config_Education!$A:$F,3,0) -> Bachelor's Degree | F62: =VLOOKUP($B62,Config_Education!$A:$F,4,0) -> Bachelor's Degree | G62: =VLOOKUP($B62,Config_Education!$A:$F,5,0) -> Bachelor's Degree | H62: =VLOOKUP($B62,Config_Education!$A:$F,6,0) -> Bachelor's Degree
A63: =Config_RawLabor!A63 -> Expert | B63: =Config_RawLabor!B63 -> Telecommunications Economist | C63: =Config_RawLabor!C63 -> Reviews and analyzes telecommunication rating schedules and schedule tables. Reviews billing and compliance to ensure conformance to company and government standards. | D63: =VLOOKUP($B63,Config_Education!$A:$F,2,0) -> Bachelor's Degree | E63: =VLOOKUP($B63,Config_Education!$A:$F,3,0) -> Bachelor's Degree | F63: =VLOOKUP($B63,Config_Education!$A:$F,4,0) -> Bachelor's Degree | G63: =VLOOKUP($B63,Config_Education!$A:$F,5,0) -> Bachelor's Degree | H63: =VLOOKUP($B63,Config_Education!$A:$F,6,0) -> Master's Degree or MBA
A64: =Config_RawLabor!A64 -> Expert | B64: =Config_RawLabor!B64 -> Telecommunications Engineer | C64: =Config_RawLabor!C64 -> Reviews the design, implementation and maintenance of telecommunication networks, systems and equipment,. Analyzes existing networks and equipment and identifies opportunities for improvement. Recommends alternate solutions that better meet consumer requirements. | D64: =VLOOKUP($B64,Config_Education!$A:$F,2,0) -> Bachelor's Degree | E64: =VLOOKUP($B64,Config_Education!$A:$F,3,0) -> Bachelor's Degree | F64: =VLOOKUP($B64,Config_Education!$A:$F,4,0) -> Bachelor's Degree | G64: =VLOOKUP($B64,Config_Education!$A:$F,5,0) -> Bachelor's Degree | H64: =VLOOKUP($B64,Config_Education!$A:$F,6,0) -> Bachelor's Degree
A65: =Config_RawLabor!A65 -> Expert | B65: =Config_RawLabor!B65 -> Top Economic Executive | C65: =Config_RawLabor!C65 -> Provides economic data, prepares interpretative reports, and provides leadership for the use of economic data and adaptation of economic models. Communicates the results of economic studies to the stakeholders and sets guidelines for proceeding economic strategies. Understands the macro and micro economic environment and its impact on the industry. | D65: =VLOOKUP($B65,Config_Education!$A:$F,2,0) -> JD, MD, PhD or Equivalent | E65: =VLOOKUP($B65,Config_Education!$A:$F,3,0) -> JD, MD, PhD or Equivalent | F65: =VLOOKUP($B65,Config_Education!$A:$F,4,0) -> JD, MD, PhD or Equivalent | G65: =VLOOKUP($B65,Config_Education!$A:$F,5,0) -> JD, MD, PhD or Equivalent | H65: =VLOOKUP($B65,Config_Education!$A:$F,6,0) -> JD, MD, PhD or Equivalent
A66: =Config_RawLabor!A66 -> Expert | B66: =Config_RawLabor!B66 -> Urban Planner | C66: =Config_RawLabor!C66 -> Reviews land-use plans for the beneficial development of urban areas. | D66: =VLOOKUP($B66,Config_Education!$A:$F,2,0) -> Bachelor's | E66: =VLOOKUP($B66,Config_Education!$A:$F,3,0) -> Bachelor's | F66: =VLOOKUP($B66,Config_Education!$A:$F,4,0) -> Bachelor's | G66: =VLOOKUP($B66,Config_Education!$A:$F,5,0) -> Bachelor's | H66: =VLOOKUP($B66,Config_Education!$A:$F,6,0) -> Bachelor's
A67: =Config_RawLabor!A67 -> Expert | B67: =Config_RawLabor!B67 -> Utility Rate Analyst | C67: =Config_RawLabor!C67 -> Monitors, reviews, and evaluates service rates and charges for various public utilities. Calculates cost-of-service and performs related rate analysis. Ensures filings comply with the Federal Energy Regulatory Commission requirements. | D67: =VLOOKUP($B67,Config_Education!$A:$F,2,0) -> Bachelor's Degree | E67: =VLOOKUP($B67,Config_Education!$A:$F,3,0) -> Bachelor's Degree | F67: =VLOOKUP($B67,Config_Education!$A:$F,4,0) -> Bachelor's Degree | G67: =VLOOKUP($B67,Config_Education!$A:$F,5,0) -> Bachelor's Degree | H67: =VLOOKUP($B67,Config_Education!$A:$F,6,0) -> Bachelor's Degree
A68: =Config_RawLabor!A68 -> Expert | B68: =Config_RawLabor!B68 -> Utility System Planner/Operator/Manager | C68: =Config_RawLabor!C68 -> Familiar with the proper operation of utility plant equipment including controls, operation, repairs, and perventive maintenance. Equipment may include bioenergy, hydro, nuclear, solar, thermal or wind generation or gas storage and transport. | D68: =VLOOKUP($B68,Config_Education!$A:$F,2,0) -> Bachelor's | E68: =VLOOKUP($B68,Config_Education!$A:$F,3,0) -> Bachelor's | F68: =VLOOKUP($B68,Config_Education!$A:$F,4,0) -> Bachelor's | G68: =VLOOKUP($B68,Config_Education!$A:$F,5,0) -> Bachelor's | H68: =VLOOKUP($B68,Config_Education!$A:$F,6,0) -> Bachelor's
A69: =Config_RawLabor!A69 -> Expert | B69: =Config_RawLabor!B69 -> Wildfire Scientist | C69: =Config_RawLabor!C69 -> Uses analysis software to analyze wildfire risks and likely paths. Reviews approaches to preventing, controlling, or mitigating wildfire damage. | D69: =VLOOKUP($B69,Config_Education!$A:$F,2,0) -> Bachelor's | E69: =VLOOKUP($B69,Config_Education!$A:$F,3,0) -> Bachelor's | F69: =VLOOKUP($B69,Config_Education!$A:$F,4,0) -> Bachelor's | G69: =VLOOKUP($B69,Config_Education!$A:$F,5,0) -> Bachelor's | H69: =VLOOKUP($B69,Config_Education!$A:$F,6,0) -> Bachelor's
A70: =Config_RawLabor!A70 -> Legal | B70: =Config_RawLabor!B70 -> Attorney | C70: =Config_RawLabor!C70 -> Attorney authorized by the California Bar to practice law in California. Higher experience levels should have experience with areas of law and procedures relevant to CPUC matters, such as environmental law or utility regulation. | D70: =VLOOKUP($B70,Config_Education!$A:$F,2,0) -> JD, MD, PhD or Equivalent | E70: =VLOOKUP($B70,Config_Education!$A:$F,3,0) -> JD, MD, PhD or Equivalent | F70: =VLOOKUP($B70,Config_Education!$A:$F,4,0) -> JD, MD, PhD or Equivalent | G70: =VLOOKUP($B70,Config_Education!$A:$F,5,0) -> JD, MD, PhD or Equivalent | H70: =VLOOKUP($B70,Config_Education!$A:$F,6,0) -> JD, MD, PhD or Equivalent
A71: =Config_RawLabor!A71 -> Legal | B71: =Config_RawLabor!B71 -> Legal Director | C71: =Config_RawLabor!C71 -> Oversees the legal work of the organization, including providing strategic direction. Alternate title may be General Counsel. Responsible for coordinating and supervising a legal team. Participates in the most complex legal actions. Oversees all legal operations including case assignment, hiring, supervision and professional development of the legal staff, as well as budgeting. | D71: =VLOOKUP($B71,Config_Education!$A:$F,2,0) -> Bachelor's Degree | E71: =VLOOKUP($B71,Config_Education!$A:$F,3,0) -> Bachelor's Degree | F71: =VLOOKUP($B71,Config_Education!$A:$F,4,0) -> Bachelor's Degree | G71: =VLOOKUP($B71,Config_Education!$A:$F,5,0) -> Bachelor's Degree | H71: =VLOOKUP($B71,Config_Education!$A:$F,6,0) -> Bachelor's Degree
A72: =Config_RawLabor!A72 -> Legal | B72: =Config_RawLabor!B72 -> Paralegal | C72: =Config_RawLabor!C72 -> Assists and supports attorneys with research. Researches and analyzes law sources such as statutes, recorded judicial decisions, legal articles, treaties, constitutions, and legal codes. Prepares legal documents. May direct the work of clerical or other support staff. May be responsible for the creation and administration of legal databases. Has complete understanding of technical legal terminology. | D72: =VLOOKUP($B72,Config_Education!$A:$F,2,0) -> Bachelor's Degree | E72: =VLOOKUP($B72,Config_Education!$A:$F,3,0) -> Bachelor's Degree | F72: =VLOOKUP($B72,Config_Education!$A:$F,4,0) -> Bachelor's Degree | G72: =VLOOKUP($B72,Config_Education!$A:$F,5,0) -> Bachelor's Degree | H72: =VLOOKUP($B72,Config_Education!$A:$F,6,0) -> Bachelor's Degree
A73: =Config_RawLabor!A73 -> Legal | B73: =Config_RawLabor!B73 -> Paralegal Manager | C73: =Config_RawLabor!C73 -> Often the most senior Paralegal individual. Validates and oversees the preparation of legal documents. Provides research utilizing databases and legal libraries. Coordinates with attorneys on special requests or highly complex projects. Note that supervisory and training support is not reimbursable. | D73: =VLOOKUP($B73,Config_Education!$A:$F,2,0) -> Bachelor's Degree | E73: =VLOOKUP($B73,Config_Education!$A:$F,3,0) -> Bachelor's Degree | F73: =VLOOKUP($B73,Config_Education!$A:$F,4,0) -> Bachelor's Degree | G73: =VLOOKUP($B73,Config_Education!$A:$F,5,0) -> Bachelor's Degree | H73: =VLOOKUP($B73,Config_Education!$A:$F,6,0) -> Bachelor's Degree
A74: =Config_RawLabor!A74 -> Legal | B74: =Config_RawLabor!B74 -> Paralegal Supervisor | C74: =Config_RawLabor!C74 -> Reviews prepared legal documents to ensure the work is complete and accurate. Prepares complex documents. Note that supervisory and training time is not reimbursable. | D74: =VLOOKUP($B74,Config_Education!$A:$F,2,0) -> Bachelor's Degree | E74: =VLOOKUP($B74,Config_Education!$A:$F,3,0) -> Bachelor's Degree | F74: =VLOOKUP($B74,Config_Education!$A:$F,4,0) -> Bachelor's Degree | G74: =VLOOKUP($B74,Config_Education!$A:$F,5,0) -> Bachelor's Degree | H74: =VLOOKUP($B74,Config_Education!$A:$F,6,0) -> Bachelor's Degree
A75: =Config_RawLabor!A75 -> School | B75: =Config_RawLabor!B75 -> Assistant School Principal | C75: =Config_RawLabor!C75 -> Assists the school principal in the management of education and teaching programs for an assigned school. Coordinates school activities and ensures that budgetary guidelines are met. May help in developing the curriculum, staffing, reviewing faculty performance, and creating an atmosphere conducive to scholarly pursuits. | D75: =VLOOKUP($B75,Config_Education!$A:$F,2,0) -> Master's Degree or MBA | E75: =VLOOKUP($B75,Config_Education!$A:$F,3,0) -> Master's Degree or MBA | F75: =VLOOKUP($B75,Config_Education!$A:$F,4,0) -> Master's Degree or MBA | G75: =VLOOKUP($B75,Config_Education!$A:$F,5,0) -> Master's Degree or MBA | H75: =VLOOKUP($B75,Config_Education!$A:$F,6,0) -> Master's Degree or MBA
A76: =Config_RawLabor!A76 -> School | B76: =Config_RawLabor!B76 -> Public School Teacher | C76: =Config_RawLabor!C76 -> Prepares lesson plans and instructs students in an assigned school. Develops and implements grade appropriate course work to meet the academic of children in a K-12 classroom setting. Evaluates and monitors student's performance. Assesses and documents students' progress. Participates in development and implementation of Individual Education Plans for specific students. May participate in implementing special programs for students. May supervise teaching assistants. | D76: =VLOOKUP($B76,Config_Education!$A:$F,2,0) -> Master's Degree or MBA | E76: =VLOOKUP($B76,Config_Education!$A:$F,3,0) -> Master's Degree or MBA | F76: =VLOOKUP($B76,Config_Education!$A:$F,4,0) -> Master's Degree or MBA | G76: =VLOOKUP($B76,Config_Education!$A:$F,5,0) -> Master's Degree or MBA | H76: =VLOOKUP($B76,Config_Education!$A:$F,6,0) -> Master's Degree or MBA
A77: =Config_RawLabor!A77 -> School | B77: =Config_RawLabor!B77 -> School Principal | C77: =Config_RawLabor!C77 -> Directs and oversees education and teaching programs for an assigned school. Responsibilities include developing the curriculum, staffing departments, reviewing faculty performance, and creating an atmosphere conducive to scholarly pursuits. Ensures all school activities are within budgetary guidelines. | D77: =VLOOKUP($B77,Config_Education!$A:$F,2,0) -> Master's Degree or MBA | E77: =VLOOKUP($B77,Config_Education!$A:$F,3,0) -> Master's Degree or MBA | F77: =VLOOKUP($B77,Config_Education!$A:$F,4,0) -> Master's Degree or MBA | G77: =VLOOKUP($B77,Config_Education!$A:$F,5,0) -> Master's Degree or MBA | H77: =VLOOKUP($B77,Config_Education!$A:$F,6,0) -> Master's Degree or MBA
A78: =Config_RawLabor!A78 -> School | B78: =Config_RawLabor!B78 -> School Superintendent | C78: =Config_RawLabor!C78 -> Directs and manages a school district. Oversees all aspects of the district's operational policies, objectives, initiatives. Responsible for the attainment of short- and long-term financial and operational goals for the school system. | D78: =VLOOKUP($B78,Config_Education!$A:$F,2,0) -> Master's Degree or MBA | E78: =VLOOKUP($B78,Config_Education!$A:$F,3,0) -> Master's Degree or MBA | F78: =VLOOKUP($B78,Config_Education!$A:$F,4,0) -> Master's Degree or MBA | G78: =VLOOKUP($B78,Config_Education!$A:$F,5,0) -> Master's Degree or MBA | H78: =VLOOKUP($B78,Config_Education!$A:$F,6,0) -> Master's Degree or MBA

Sheet Rates
B1: =Lookup!C4 -> 1/1/2021 thru 12/31/2021 | C1: Level I | F1: Level II | I1: Level III | L1: Level IV | O1: Level V
A2: Category | B2: Role | C2: Low | D2: Median | E2: High | F2: Low | G2: Median | H2: High | I2: Low | J2: Median | K2: High | L2: Low | M2: Median | N2: High | O2: Low | P2: Median | Q2: High
A3: =Calc!A2 -> Advocate | B3: =Calc!B2 -> Administrative Analyst | C3: =Calc!D2 -> 45.59237741 | D3: =Calc!E2 -> 54.01237741 | E3: =Calc!F2 -> 65.45237741 | F3: =Calc!G2 -> 53.12043403 | G3: =Calc!H2 -> 64.34043403 | H3: =Calc!I2 -> 78.34043403 | I3: =Calc!J2 -> 63.28388151 | J3: =Calc!K2 -> 76.26388151 | K3: =Calc!L2 -> 92.10388151 | L3: =Calc!M2 -> 74.82172786 | M3: =Calc!N2 -> 89.76172786 | N3: =Calc!O2 -> 107.1417279 | O3: =Calc!P2 -> 84.41608718 | P3: =Calc!Q2 -> 101.9160872 | Q3: =Calc!R2 -> 120.8960872
A4: =Calc!A3 -> Advocate | B4: =Calc!B3 -> Advocate - Not Otherwise Classified | C4: =Calc!D3 -> 59.8647085 | D4: =Calc!E3 -> 83.2647085 | E4: =Calc!F3 -> 113.5047085 | F4: =Calc!G3 -> 69.19736958 | G4: =Calc!H3 -> 98.55736958 | H4: =Calc!I3 -> 134.9373696 | I4: =Calc!J3 -> 82.76478031 | J4: =Calc!K3 -> 117.1247803 | K4: =Calc!L3 -> 158.9247803 | L4: =Calc!M3 -> 97.63138954 | M4: =Calc!N3 -> 137.7913895 | N4: =Calc!O3 -> 185.1713895 | O4: =Calc!P3 -> 109.9888804 | P4: =Calc!Q3 -> 156.1488804 | Q4: =Calc!R3 -> 208.7688804
A5: =Calc!A4 -> Advocate | B5: =Calc!B4 -> Community Development Manager | C5: =Calc!D4 -> 55.36138645 | D5: =Calc!E4 -> 74.94138645 | E5: =Calc!F4 -> 96.98138645 | F5: =Calc!G4 -> 64.38841621 | G5: =Calc!H4 -> 89.26841621 | H5: =Calc!I4 -> 116.0684162 | I5: =Calc!J4 -> 76.7396044 | J5: =Calc!K4 -> 105.7996044 | K5: =Calc!L4 -> 136.5196044 | L5: =Calc!M4 -> 90.75495101 | M5: =Calc!N4 -> 124.534951 | N5: =Calc!O4 -> 158.854951 | O5: =Calc!P4 -> 102.371515 | P5: =Calc!Q4 -> 141.391515 | Q5: =Calc!R4 -> 179.271515
A6: =Calc!A5 -> Advocate | B6: =Calc!B5 -> Community Development Program Director | C6: =Calc!D5 -> 79.94165343 | D6: =Calc!E5 -> 104.3616534 | E6: =Calc!F5 -> 132.9416534 | F6: =Calc!G5 -> 93.01453517 | G6: =Calc!H5 -> 124.3145352 | H6: =Calc!I5 -> 159.1145352 | I6: =Calc!J5 -> 110.8332387 | J6: =Calc!K5 -> 147.3532387 | K6: =Calc!L5 -> 187.0932387 | L6: =Calc!M5 -> 131.0662761 | M6: =Calc!N5 -> 173.4462761 | N6: =Calc!O5 -> 217.6862761 | O6: =Calc!P5 -> 147.8753153 | P6: =Calc!Q5 -> 196.9153153 | Q6: =Calc!R5 -> 245.6753153
A7: =Calc!A6 -> Advocate | B7: =Calc!B6 -> Community Development Senior Specialist | C7: =Calc!D6 -> 55.27218898 | D7: =Calc!E6 -> 93.79218898 | E7: =Calc!F6 -> 132.152189 | F7: =Calc!G6 -> 64.04984016 | G7: =Calc!H6 -> 111.7298402 | H7: =Calc!I6 -> 158.1298402 | I7: =Calc!J6 -> 76.40793737 | J7: =Calc!K6 -> 132.4279374 | K7: =Calc!L6 -> 186.0079374 | L7: =Calc!M6 -> 90.41598462 | M7: =Calc!N6 -> 155.8759846 | N7: =Calc!O6 -> 216.5359846 | O7: =Calc!P6 -> 101.8929295 | P7: =Calc!Q6 -> 176.9729295 | Q7: =Calc!R6 -> 244.4329295
A8: =Calc!A7 -> Advocate | B8: =Calc!B7 -> Community Development Specialist | C8: =Calc!D7 -> 31.83184082 | D8: =Calc!E7 -> 43.63184082 | E8: =Calc!F7 -> 56.65184082 | F8: =Calc!G7 -> 37.01615486 | G8: =Calc!H7 -> 51.97615486 | H8: =Calc!I7 -> 67.81615486 | I8: =Calc!J7 -> 44.14097998 | J8: =Calc!K7 -> 61.60097998 | K8: =Calc!L7 -> 79.74097998 | L8: =Calc!M7 -> 52.18631619 | M8: =Calc!N7 -> 72.50631619 | N8: =Calc!O7 -> 92.80631619 | O8: =Calc!P7 -> 58.88006918 | P8: =Calc!Q7 -> 82.32006918 | Q8: =Calc!R7 -> 104.7400692
A9: =Calc!A8 -> Advocate | B9: =Calc!B8 -> Executive Director | C9: =Calc!D8 -> 91.63765268 | D9: =Calc!E8 -> 150.1976527 | E9: =Calc!F8 -> 238.9376527 | F9: =Calc!G8 -> 106.2946882 | G9: =Calc!H8 -> 178.9146882 | H9: =Calc!I8 -> 285.8746882 | I9: =Calc!J8 -> 126.7610325 | J9: =Calc!K8 -> 212.0610325 | K9: =Calc!L8 -> 336.3810325 | L9: =Calc!M8 -> 149.9756936 | M9: =Calc!N8 -> 249.6156936 | N9: =Calc!O8 -> 391.7756936 | O9: =Calc!P8 -> 169.0517975 | P9: =Calc!Q8 -> 283.3917975 | Q9: =Calc!R8 -> 442.3717975
A10: =Calc!A9 -> Advocate | B10: =Calc!B9 -> Housing Program Manager | C10: =Calc!D9 -> 21.89222179 | D10: =Calc!E9 -> 47.87222179 | E10: =Calc!F9 -> 76.85222179 | F10: =Calc!G9 -> 25.23522325 | G10: =Calc!H9 -> 57.03522325 | H10: =Calc!I9 -> 91.93522325 | I10: =Calc!J9 -> 30.1541917 | J10: =Calc!K9 -> 67.5941917 | K10: =Calc!L9 -> 108.1941917 | L10: =Calc!M9 -> 35.71011914 | M10: =Calc!N9 -> 79.57011914 | N10: =Calc!O9 -> 126.0101191 | O10: =Calc!P9 -> 40.17900745 | P10: =Calc!Q9 -> 90.33900745 | Q10: =Calc!R9 -> 142.2790074
A11: =Calc!A10 -> Advocate | B11: =Calc!B10 -> Program Coordinator | C11: =Calc!D10 -> 55.47713278 | D11: =Calc!E10 -> 71.67713278 | E11: =Calc!F10 -> 93.43713278 | F11: =Calc!G10 -> 64.574403 | G11: =Calc!H10 -> 85.374403 | H11: =Calc!I10 -> 111.814403 | I11: =Calc!J10 -> 76.95186369 | J11: =Calc!K10 -> 101.1918637 | K11: =Calc!L10 -> 131.5118637 | L11: =Calc!M10 -> 90.98852289 | M11: =Calc!N10 -> 119.1085229 | N11: =Calc!O10 -> 153.0285229 | O11: =Calc!P10 -> 102.6503674 | P11: =Calc!Q10 -> 135.2303674 | Q11: =Calc!R10 -> 172.7103674
A12: =Calc!A11 -> Advocate | B12: =Calc!B11 -> Program Manager | C12: =Calc!D11 -> 86.32809093 | D12: =Calc!E11 -> 96.66809093 | E12: =Calc!F11 -> 119.4680909 | F12: =Calc!G11 -> 100.6315337 | G12: =Calc!H11 -> 115.1515337 | H12: =Calc!I11 -> 142.9915337 | I12: =Calc!J11 -> 119.8793905 | J12: =Calc!K11 -> 136.4793905 | K12: =Calc!L11 -> 168.1593905 | L12: =Calc!M11 -> 141.6916612 | M12: =Calc!N11 -> 160.6516612 | N12: =Calc!O11 -> 195.6116612 | O12: =Calc!P11 -> 159.9288617 | P12: =Calc!Q11 -> 182.3888617 | Q12: =Calc!R11 -> 220.7488617
A13: =Calc!A12 -> Expert | B13: =Calc!B12 -> Accountant | C13: =Calc!D12 -> 88.96053133 | D13: =Calc!E12 -> 107.3005313 | E13: =Calc!F12 -> 127.9805313 | F13: =Calc!G12 -> 103.4307577 | G13: =Calc!H12 -> 126.3507577 | H13: =Calc!I12 -> 151.5507577 | I13: =Calc!J12 -> 128.6935197 | J13: =Calc!K12 -> 157.0935197 | K13: =Calc!L12 -> 189.5735197 | L13: =Calc!M12 -> 160.2824544 | M13: =Calc!N12 -> 192.6224544 | N13: =Calc!O12 -> 228.6024544 | O13: =Calc!P12 -> 180.6181169 | P13: =Calc!Q12 -> 217.0781169 | Q13: =Calc!R12 -> 257.6181169
A14: =Calc!A13 -> Expert | B14: =Calc!B13 -> Biologist | C14: =Calc!D13 -> 85.82206927 | D14: =Calc!E13 -> 104.5820693 | E14: =Calc!F13 -> 130.3020693 | F14: =Calc!G13 -> 91.10432959 | G14: =Calc!H13 -> 120.9243296 | H14: =Calc!I13 -> 151.2043296 | I14: =Calc!J13 -> 109.8162147 | J14: =Calc!K13 -> 147.4162147 | K14: =Calc!L13 -> 196.4162147 | L14: =Calc!M13 -> 153.8344092 | M14: =Calc!N13 -> 211.0744092 | N14: =Calc!O13 -> 278.5944092 | O14: =Calc!P13 -> 161.6233974 | P14: =Calc!Q13 -> 216.3433974 | Q14: =Calc!R13 -> 256.3033974
A15: =Calc!A14 -> Expert | B15: =Calc!B14 -> Certified Depreciation Professional | C15: =Calc!D14 -> 99.30103304 | D15: =Calc!E14 -> 121.701033 | E15: =Calc!F14 -> 144.821033 | F15: =Calc!G14 -> 119.6774018 | G15: =Calc!H14 -> 142.9974018 | H15: =Calc!I14 -> 171.2774018 | I15: =Calc!J14 -> 139.6886155 | J15: =Calc!K14 -> 168.6286155 | K15: =Calc!L14 -> 199.1886155 | L15: =Calc!M14 -> 168.000015 | M15: =Calc!N14 -> 202.940015 | N15: =Calc!O14 -> 247.580015 | O15: =Calc!P14 -> 190.2077718 | P15: =Calc!Q14 -> 229.7677718 | Q15: =Calc!R14 -> 280.3277718
A16: =Calc!A15 -> Expert | B16: =Calc!B15 -> Chemical Engineer | C16: =Calc!D15 -> 127.9939705 | D16: =Calc!E15 -> 153.2939705 | E16: =Calc!F15 -> 184.0939705 | F16: =Calc!G15 -> 142.9583704 | G16: =Calc!H15 -> 175.8183704 | H16: =Calc!I15 -> 214.3383704 | I16: =Calc!J15 -> 163.7479462 | J16: =Calc!K15 -> 209.6679462 | K16: =Calc!L15 -> 258.3879462 | L16: =Calc!M15 -> 208.7327781 | M16: =Calc!N15 -> 254.6327781 | N16: =Calc!O15 -> 313.472778 | O16: =Calc!P15 -> 225.6122529 | P16: =Calc!Q15 -> 273.0322529 | Q16: =Calc!R15 -> 319.5722529
A17: =Calc!A16 -> Expert | B17: =Calc!B16 -> Civil Engineer | C17: =Calc!D16 -> 114.0135989 | D17: =Calc!E16 -> 135.9335989 | E17: =Calc!F16 -> 169.2535989 | F17: =Calc!G16 -> 133.1440412 | G17: =Calc!H16 -> 166.2040412 | H17: =Calc!I16 -> 202.5240412 | I17: =Calc!J16 -> 160.1161121 | J17: =Calc!K16 -> 201.3761121 | K17: =Calc!L16 -> 249.9161121 | L17: =Calc!M16 -> 166.8222498 | M17: =Calc!N16 -> 210.1822498 | N17: =Calc!O16 -> 259.3622498 | O17: =Calc!P16 -> 195.1524621 | P17: =Calc!Q16 -> 248.9124621 | Q17: =Calc!R16 -> 306.9324621
A18: =Calc!A17 -> Expert | B18: =Calc!B17 -> Climate Scientist | C18: =Calc!D17 -> 100.2606125 | D18: =Calc!E17 -> 128.0406125 | E18: =Calc!F17 -> 159.3806125 | F18: =Calc!G17 -> 130.9312454 | G18: =Calc!H17 -> 160.4312454 | H18: =Calc!I17 -> 196.5912454 | I18: =Calc!J17 -> 147.6849843 | J18: =Calc!K17 -> 189.9249843 | K18: =Calc!L17 -> 237.4249843 | L18: =Calc!M17 -> 156.7267335 | M18: =Calc!N17 -> 204.9867335 | N18: =Calc!O17 -> 253.2867335 | O18: =Calc!P17 -> 166.9151571 | P18: =Calc!Q17 -> 239.2351571 | Q18: =Calc!R17 -> 303.2151571
A19: =Calc!A18 -> Expert | B19: =Calc!B18 -> Communication Specialist | C19: =Calc!D18 -> 105.9176922 | D19: =Calc!E18 -> 139.6176922 | E19: =Calc!F18 -> 176.1976922 | F19: =Calc!G18 -> 130.8614463 | G19: =Calc!H18 -> 170.3814463 | H19: =Calc!I18 -> 214.1414463 | I19: =Calc!J18 -> 165.4061527 | J19: =Calc!K18 -> 211.7461527 | K19: =Calc!L18 -> 272.7061527 | L19: =Calc!M18 -> 204.6405188 | M19: =Calc!N18 -> 259.2405188 | N19: =Calc!O18 -> 326.6805188 | O19: =Calc!P18 -> 256.7447464 | P19: =Calc!Q18 -> 343.7647464 | Q19: =Calc!R18 -> 460.1247464
A20: =Calc!A19 -> Expert | B20: =Calc!B19 -> Cost Accountant | C20: =Calc!D19 -> 99.30103304 | D20: =Calc!E19 -> 121.701033 | E20: =Calc!F19 -> 144.821033 | F20: =Calc!G19 -> 119.6774018 | G20: =Calc!H19 -> 142.9974018 | H20: =Calc!I19 -> 171.2774018 | I20: =Calc!J19 -> 139.6886155 | J20: =Calc!K19 -> 168.6286155 | K20: =Calc!L19 -> 199.1886155 | L20: =Calc!M19 -> 168.000015 | M20: =Calc!N19 -> 202.940015 | N20: =Calc!O19 -> 247.580015 | O20: =Calc!P19 -> 190.2077718 | P20: =Calc!Q19 -> 229.7677718 | Q20: =Calc!R19 -> 280.3277718
A21: =Calc!A20 -> Expert | B21: =Calc!B20 -> Cost Estimation Analyst | C21: =Calc!D20 -> 108.9081627 | D21: =Calc!E20 -> 130.5281627 | E21: =Calc!F20 -> 158.7481627 | F21: =Calc!G20 -> 133.8458045 | G21: =Calc!H20 -> 161.5858045 | H21: =Calc!I20 -> 200.0658045 | I21: =Calc!J20 -> 145.9119329 | J21: =Calc!K20 -> 183.5119329 | K21: =Calc!L20 -> 231.2519329 | L21: =Calc!M20 -> 170.9561886 | M21: =Calc!N20 -> 228.6761886 | N21: =Calc!O20 -> 279.5761886 | O21: =Calc!P20 -> 233.5460475 | P21: =Calc!Q20 -> 314.1660475 | Q21: =Calc!R20 -> 389.6660475
A22: =Calc!A21 -> Expert | B22: =Calc!B21 -> Design Engineer | C22: =Calc!D21 -> 116.1517101 | D22: =Calc!E21 -> 136.9517101 | E22: =Calc!F21 -> 159.9117101 | F22: =Calc!G21 -> 123.5705485 | G22: =Calc!H21 -> 150.4705485 | H22: =Calc!I21 -> 183.3505485 | I22: =Calc!J21 -> 170.4141932 | J22: =Calc!K21 -> 199.8541932 | K22: =Calc!L21 -> 242.0541932 | L22: =Calc!M21 -> 197.7958841 | M22: =Calc!N21 -> 251.7358841 | N22: =Calc!O21 -> 328.2158841 | O22: =Calc!P21 -> 220.7347433 | P22: =Calc!Q21 -> 280.9147433 | Q22: =Calc!R21 -> 366.2947433
A23: =Calc!A22 -> Expert | B23: =Calc!B22 -> Drilling Engineer | C23: =Calc!D22 -> 167.6099395 | D23: =Calc!E22 -> 196.5899395 | E23: =Calc!F22 -> 233.4499395 | F23: =Calc!G22 -> 197.5676323 | G23: =Calc!H22 -> 245.8476323 | H23: =Calc!I22 -> 287.8876323 | I23: =Calc!J22 -> 221.0452648 | J23: =Calc!K22 -> 290.0252648 | K23: =Calc!L22 -> 343.9252648 | L23: =Calc!M22 -> 290.1000581 | M23: =Calc!N22 -> 366.5200581 | N23: =Calc!O22 -> 429.0600581 | O23: =Calc!P22 -> 302.9995095 | P23: =Calc!Q22 -> 417.7195095 | Q23: =Calc!R22 -> 469.3995095
A24: =Calc!A23 -> Expert | B24: =Calc!B23 -> Ecologist | C24: =Calc!D23 -> 85.82206927 | D24: =Calc!E23 -> 104.5820693 | E24: =Calc!F23 -> 130.3020693 | F24: =Calc!G23 -> 91.10432959 | G24: =Calc!H23 -> 120.9243296 | H24: =Calc!I23 -> 151.2043296 | I24: =Calc!J23 -> 109.8162147 | J24: =Calc!K23 -> 147.4162147 | K24: =Calc!L23 -> 196.4162147 | L24: =Calc!M23 -> 153.8344092 | M24: =Calc!N23 -> 211.0744092 | N24: =Calc!O23 -> 278.5944092 | O24: =Calc!P23 -> 161.6233974 | P24: =Calc!Q23 -> 216.3433974 | Q24: =Calc!R23 -> 256.3033974
A25: =Calc!A24 -> Expert | B25: =Calc!B24 -> Economist | C25: =Calc!D24 -> 125.0849286 | D25: =Calc!E24 -> 178.2849286 | E25: =Calc!F24 -> 238.0449286 | F25: =Calc!G24 -> 146.6005563 | G25: =Calc!H24 -> 206.7605563 | H25: =Calc!I24 -> 276.7605563 | I25: =Calc!J24 -> 168.3625517 | J25: =Calc!K24 -> 235.5825517 | K25: =Calc!L24 -> 315.9025517 | L25: =Calc!M24 -> 178.4816757 | M25: =Calc!N24 -> 252.2816757 | N25: =Calc!O24 -> 343.2616757 | O25: =Calc!P24 -> 188.5263359 | P25: =Calc!Q24 -> 268.8863359 | Q25: =Calc!R24 -> 370.4463359
A26: =Calc!A25 -> Expert | B26: =Calc!B25 -> Electrical Controls Engineer | C26: =Calc!D25 -> 113.1104277 | D26: =Calc!E25 -> 140.3104277 | E26: =Calc!F25 -> 157.9504277 | F26: =Calc!G25 -> 118.0014556 | G26: =Calc!H25 -> 157.2614556 | H26: =Calc!I25 -> 194.9814556 | I26: =Calc!J25 -> 122.8435557 | J26: =Calc!K25 -> 174.0235557 | K26: =Calc!L25 -> 231.6035557 | L26: =Calc!M25 -> 142.6424242 | M26: =Calc!N25 -> 190.0824242 | N26: =Calc!O25 -> 246.6224242 | O26: =Calc!P25 -> 162.1598849 | P26: =Calc!Q25 -> 205.8998849 | Q26: =Calc!R25 -> 261.4198849
A27: =Calc!A26 -> Expert | B27: =Calc!B26 -> Electrical Engineer | C27: =Calc!D26 -> 121.7300119 | D27: =Calc!E26 -> 140.0900119 | E27: =Calc!F26 -> 162.3300119 | F27: =Calc!G26 -> 138.8188258 | G27: =Calc!H26 -> 165.4588258 | H27: =Calc!I26 -> 198.9788258 | I27: =Calc!J26 -> 163.6465129 | J27: =Calc!K26 -> 200.3265129 | K27: =Calc!L26 -> 238.5065129 | L27: =Calc!M26 -> 197.9758982 | M27: =Calc!N26 -> 232.0558982 | N27: =Calc!O26 -> 273.5158982 | O27: =Calc!P26 -> 226.1700738 | P27: =Calc!Q26 -> 277.4300738 | Q27: =Calc!R26 -> 318.0100738
A28: =Calc!A27 -> Expert | B28: =Calc!B27 -> Energy & Resources Expert | C28: =Calc!D27 -> 92.67616367 | D28: =Calc!E27 -> 129.2161637 | E28: =Calc!F27 -> 199.7161637 | F28: =Calc!G27 -> 106.855283 | G28: =Calc!H27 -> 152.475283 | H28: =Calc!I27 -> 238.555283 | I28: =Calc!J27 -> 131.6055651 | J28: =Calc!K27 -> 183.1655651 | K28: =Calc!L27 -> 281.8455651 | L28: =Calc!M27 -> 157.3828816 | M28: =Calc!N27 -> 221.6228816 | N28: =Calc!O27 -> 331.9828816 | O28: =Calc!P27 -> 169.0268355 | P28: =Calc!Q27 -> 241.3868355 | Q28: =Calc!R27 -> 357.1468355
A29: =Calc!A28 -> Expert | B29: =Calc!B28 -> Engineer | C29: =Calc!D28 -> 117.9057582 | D29: =Calc!E28 -> 136.8257582 | E29: =Calc!F28 -> 170.1657582 | F29: =Calc!G28 -> 130.2666711 | G29: =Calc!H28 -> 158.0066711 | H29: =Calc!I28 -> 191.0466711 | I29: =Calc!J28 -> 155.0000894 | J29: =Calc!K28 -> 188.3400894 | K29: =Calc!L28 -> 240.5800894 | L29: =Calc!M28 -> 186.2324111 | M29: =Calc!N28 -> 230.7124111 | N29: =Calc!O28 -> 279.5724111 | O29: =Calc!P28 -> 218.5188762 | P29: =Calc!Q28 -> 274.0188762 | Q29: =Calc!R28 -> 346.3188762
A30: =Calc!A29 -> Expert | B30: =Calc!B29 -> Env., Health, and Safety Engineer | C30: =Calc!D29 -> 101.3670198 | D30: =Calc!E29 -> 117.8070198 | E30: =Calc!F29 -> 154.3670198 | F30: =Calc!G29 -> 124.8587446 | G30: =Calc!H29 -> 144.7187446 | H30: =Calc!I29 -> 159.8187446 | I30: =Calc!J29 -> 144.7828192 | J30: =Calc!K29 -> 174.6428192 | K30: =Calc!L29 -> 201.8028192 | L30: =Calc!M29 -> 167.9756265 | M30: =Calc!N29 -> 209.1956265 | N30: =Calc!O29 -> 247.5756265 | O30: =Calc!P29 -> 214.1071374 | P30: =Calc!Q29 -> 266.7871374 | Q30: =Calc!R29 -> 308.6871374
A31: =Calc!A30 -> Expert | B31: =Calc!B30 -> Environmental Engineer | C31: =Calc!D30 -> 100.2606125 | D31: =Calc!E30 -> 128.0406125 | E31: =Calc!F30 -> 159.3806125 | F31: =Calc!G30 -> 130.9312454 | G31: =Calc!H30 -> 160.4312454 | H31: =Calc!I30 -> 196.5912454 | I31: =Calc!J30 -> 147.6849843 | J31: =Calc!K30 -> 189.9249843 | K31: =Calc!L30 -> 237.4249843 | L31: =Calc!M30 -> 156.7267335 | M31: =Calc!N30 -> 204.9867335 | N31: =Calc!O30 -> 253.2867335 | O31: =Calc!P30 -> 166.9151571 | P31: =Calc!Q30 -> 239.2351571 | Q31: =Calc!R30 -> 303.2151571
A32: =Calc!A31 -> Expert | B32: =Calc!B31 -> Equipment Engineer | C32: =Calc!D31 -> 112.6703325 | D32: =Calc!E31 -> 139.2503325 | E32: =Calc!F31 -> 164.4103325 | F32: =Calc!G31 -> 140.5080997 | G32: =Calc!H31 -> 173.9080997 | H32: =Calc!I31 -> 214.1880997 | I32: =Calc!J31 -> 153.2940725 | J32: =Calc!K31 -> 189.6940725 | K32: =Calc!L31 -> 237.9340725 | L32: =Calc!M31 -> 182.0691796 | M32: =Calc!N31 -> 230.0091796 | N32: =Calc!O31 -> 288.0291796 | O32: =Calc!P31 -> 210.4947017 | P32: =Calc!Q31 -> 249.5947017 | Q32: =Calc!R31 -> 290.3947017
A33: =Calc!A32 -> Expert | B33: =Calc!B32 -> Expert - Not Otherwise Classified | C33: =Calc!D32 -> 117.4083438 | D33: =Calc!E32 -> 145.7683438 | E33: =Calc!F32 -> 189.9083438 | F33: =Calc!G32 -> 135.817253 | G33: =Calc!H32 -> 172.197253 | H33: =Calc!I32 -> 225.317253 | I33: =Calc!J32 -> 161.7538377 | J33: =Calc!K32 -> 204.7138377 | K33: =Calc!L32 -> 266.4338377 | L33: =Calc!M32 -> 191.5722113 | M33: =Calc!N32 -> 241.7122113 | N33: =Calc!O32 -> 310.4522113 | O33: =Calc!P32 -> 219.118681 | P33: =Calc!Q32 -> 278.458681 | Q33: =Calc!R32 -> 356.498681
A34: =Calc!A33 -> Expert | B34: =Calc!B33 -> Expert - Social Work | C34: =Calc!D33 -> 85.8570906 | D34: =Calc!E33 -> 130.7170906 | E34: =Calc!F33 -> 237.3370906 | F34: =Calc!G33 -> 99.68804874 | G34: =Calc!H33 -> 155.7080487 | H34: =Calc!I33 -> 283.8880487 | I34: =Calc!J33 -> 118.8415321 | J34: =Calc!K33 -> 184.5615321 | K34: =Calc!L33 -> 334.1615321 | L34: =Calc!M33 -> 140.5955568 | M34: =Calc!N33 -> 217.2355568 | N34: =Calc!O33 -> 389.3755568 | O34: =Calc!P33 -> 158.5348318 | P34: =Calc!Q33 -> 246.6348318 | Q34: =Calc!R33 -> 439.7748318
A35: =Calc!A34 -> Expert | B35: =Calc!B34 -> Field Service Engineer | C35: =Calc!D34 -> 93.01799203 | D35: =Calc!E34 -> 123.117992 | E35: =Calc!F34 -> 158.557992 | F35: =Calc!G34 -> 109.2087597 | G35: =Calc!H34 -> 145.9887597 | H35: =Calc!I34 -> 187.3087597 | I35: =Calc!J34 -> 135.63565 | J35: =Calc!K34 -> 176.39565 | K35: =Calc!L34 -> 228.57565 | L35: =Calc!M34 -> 152.7676256 | M35: =Calc!N34 -> 210.5076256 | N35: =Calc!O34 -> 253.7476256 | O35: =Calc!P34 -> 169.4095653 | P35: =Calc!Q34 -> 227.6895653 | Q35: =Calc!R34 -> 276.3295653
A36: =Calc!A35 -> Expert | B36: =Calc!B35 -> Fire Fighter | C36: =Calc!D35 -> 36.13972777 | D36: =Calc!E35 -> 67.49972777 | E36: =Calc!F35 -> 99.95972777 | F36: =Calc!G35 -> 41.83930255 | G36: =Calc!H35 -> 80.39930255 | H36: =Calc!I35 -> 119.5993026 | I36: =Calc!J35 -> 49.9036119 | J36: =Calc!K35 -> 95.3036119 | K36: =Calc!L35 -> 140.7036119 | L36: =Calc!M35 -> 59.07067185 | M36: =Calc!N35 -> 112.1706718 | N36: =Calc!O35 -> 163.8306718 | O36: =Calc!P35 -> 66.538373 | P36: =Calc!Q35 -> 127.358373 | Q36: =Calc!R35 -> 184.938373
A37: =Calc!A36 -> Expert | B37: =Calc!B36 -> Fire Inspector Supervisor | C37: =Calc!D36 -> 74.67617773 | D37: =Calc!E36 -> 109.5361777 | E37: =Calc!F36 -> 157.1161777 | F37: =Calc!G36 -> 86.75568277 | G37: =Calc!H36 -> 130.4756828 | H37: =Calc!I36 -> 188.0156828 | I37: =Calc!J36 -> 103.4279535 | J37: =Calc!K36 -> 154.6479535 | K37: =Calc!L36 -> 221.1879535 | L37: =Calc!M36 -> 122.3319979 | M37: =Calc!N36 -> 182.0319979 | N37: =Calc!O36 -> 257.4919979 | O37: =Calc!P36 -> 137.9660923 | P37: =Calc!Q36 -> 206.6660923 | Q37: =Calc!R36 -> 290.6660923
A38: =Calc!A37 -> Expert | B38: =Calc!B37 -> Fire Prevention Engineer | C38: =Calc!D37 -> 84.30643224 | D38: =Calc!E37 -> 89.22643224 | E38: =Calc!F37 -> 120.7064322 | F38: =Calc!G37 -> 98.34242006 | G38: =Calc!H37 -> 106.2824201 | H38: =Calc!I37 -> 144.4624201 | I38: =Calc!J37 -> 117.123398 | J38: =Calc!K37 -> 125.983398 | K38: =Calc!L37 -> 169.903398 | L38: =Calc!M37 -> 138.427382 | M38: =Calc!N37 -> 148.287382 | N38: =Calc!O37 -> 197.747382 | O38: =Calc!P37 -> 156.2757197 | P38: =Calc!Q37 -> 168.3557197 | Q38: =Calc!R37 -> 223.2157197
A39: =Calc!A38 -> Expert | B39: =Calc!B38 -> Geologist | C39: =Calc!D38 -> 108.7520448 | D39: =Calc!E38 -> 116.4320448 | E39: =Calc!F38 -> 155.0520448 | F39: =Calc!G38 -> 118.4827427 | G39: =Calc!H38 -> 147.3427427 | H39: =Calc!I38 -> 225.6627427 | I39: =Calc!J38 -> 166.2713219 | J39: =Calc!K38 -> 187.7313219 | K39: =Calc!L38 -> 248.0113219 | L39: =Calc!M38 -> 154.9088034 | M39: =Calc!N38 -> 219.2088034 | N39: =Calc!O38 -> 281.7088034 | O39: =Calc!P38 -> 192.2251091 | P39: =Calc!Q38 -> 283.8851091 | Q39: =Calc!R38 -> 336.1651091
A40: =Calc!A39 -> Expert | B40: =Calc!B39 -> Geotechnical Engineer | C40: =Calc!D39 -> 106.3792999 | D40: =Calc!E39 -> 128.8592999 | E40: =Calc!F39 -> 144.9192999 | F40: =Calc!G39 -> 102.9051472 | G40: =Calc!H39 -> 141.0451472 | H40: =Calc!I39 -> 165.1451472 | I40: =Calc!J39 -> 133.0686712 | J40: =Calc!K39 -> 180.2686712 | K40: =Calc!L39 -> 208.1886712 | L40: =Calc!M39 -> 196.9783724 | M40: =Calc!N39 -> 217.7183724 | N40: =Calc!O39 -> 238.4983724 | O40: =Calc!P39 -> 224.3898068 | P40: =Calc!Q39 -> 248.0098068 | Q40: =Calc!R39 -> 271.6898068
A41: =Calc!A40 -> Expert | B41: =Calc!B40 -> Hardware Engineer | C41: =Calc!D40 -> 112.3386192 | D41: =Calc!E40 -> 141.1186192 | E41: =Calc!F40 -> 165.8586192 | F41: =Calc!G40 -> 134.778856 | G41: =Calc!H40 -> 167.998856 | H41: =Calc!I40 -> 203.718856 | I41: =Calc!J40 -> 164.7048146 | J41: =Calc!K40 -> 203.4648146 | K41: =Calc!L40 -> 247.1048146 | L41: =Calc!M40 -> 201.4157587 | M41: =Calc!N40 -> 248.1357587 | N41: =Calc!O40 -> 292.4357587 | O41: =Calc!P40 -> 230.662103 | P41: =Calc!Q40 -> 281.282103 | Q41: =Calc!R40 -> 332.702103
A42: =Calc!A41 -> Expert | B42: =Calc!B41 -> Health Scientist | C42: =Calc!D41 -> 127.1318329 | D42: =Calc!E41 -> 189.0118329 | E42: =Calc!F41 -> 268.7918329 | F42: =Calc!G41 -> 147.6695351 | G42: =Calc!H41 -> 225.1495351 | H42: =Calc!I41 -> 321.6295351 | I42: =Calc!J41 -> 176.0606093 | J42: =Calc!K41 -> 266.8606093 | K42: =Calc!L41 -> 378.3606093 | L42: =Calc!M41 -> 208.2535675 | M42: =Calc!N41 -> 314.1135675 | N42: =Calc!O41 -> 440.4735675 | O42: =Calc!P41 -> 234.8128332 | P42: =Calc!Q41 -> 356.6328332 | Q42: =Calc!R41 -> 497.2128332
A43: =Calc!A42 -> Expert | B43: =Calc!B42 -> Hydrologist | C43: =Calc!D42 -> 100.2606125 | D43: =Calc!E42 -> 128.0406125 | E43: =Calc!F42 -> 159.3806125 | F43: =Calc!G42 -> 130.9312454 | G43: =Calc!H42 -> 160.4312454 | H43: =Calc!I42 -> 196.5912454 | I43: =Calc!J42 -> 147.6849843 | J43: =Calc!K42 -> 189.9249843 | K43: =Calc!L42 -> 237.4249843 | L43: =Calc!M42 -> 156.7267335 | M43: =Calc!N42 -> 204.9867335 | N43: =Calc!O42 -> 253.2867335 | O43: =Calc!P42 -> 166.9151571 | P43: =Calc!Q42 -> 239.2351571 | Q43: =Calc!R42 -> 303.2151571
A44: =Calc!A43 -> Expert | B44: =Calc!B43 -> IT Project Engineer | C44: =Calc!D43 -> 142.0893774 | D44: =Calc!E43 -> 177.1093774 | E44: =Calc!F43 -> 227.5293774 | F44: =Calc!G43 -> 151.7438273 | G44: =Calc!H43 -> 196.8838273 | H44: =Calc!I43 -> 251.4838273 | I44: =Calc!J43 -> 178.901058 | J44: =Calc!K43 -> 221.161058 | K44: =Calc!L43 -> 271.101058 | L44: =Calc!M43 -> 176.7280924 | M44: =Calc!N43 -> 228.9280924 | N44: =Calc!O43 -> 278.0480924 | O44: =Calc!P43 -> 198.4678483 | P44: =Calc!Q43 -> 257.0678483 | Q44: =Calc!R43 -> 312.2478483
A45: =Calc!A44 -> Expert | B45: =Calc!B44 -> Mechanical Engineer | C45: =Calc!D44 -> 118.3303023 | D45: =Calc!E44 -> 136.7103023 | E45: =Calc!F44 -> 158.5703023 | F45: =Calc!G44 -> 140.2588258 | G45: =Calc!H44 -> 165.4588258 | H45: =Calc!I44 -> 197.8988258 | I45: =Calc!J44 -> 167.2239226 | J45: =Calc!K44 -> 197.9439226 | K45: =Calc!L44 -> 233.2839226 | L45: =Calc!M44 -> 197.3551269 | M45: =Calc!N44 -> 236.6951269 | N45: =Calc!O44 -> 282.1551269 | O45: =Calc!P44 -> 227.2521577 | P45: =Calc!Q44 -> 271.9721577 | Q45: =Calc!R44 -> 316.6721577
A46: =Calc!A45 -> Expert | B46: =Calc!B45 -> Network Engineer | C46: =Calc!D45 -> 108.2536941 | D46: =Calc!E45 -> 136.9936941 | E46: =Calc!F45 -> 177.8136941 | F46: =Calc!G45 -> 131.505384 | G46: =Calc!H45 -> 167.925384 | H46: =Calc!I45 -> 210.945384 | I46: =Calc!J45 -> 158.3879556 | J46: =Calc!K45 -> 196.5479556 | K46: =Calc!L45 -> 236.3479556 | L46: =Calc!M45 -> 194.9621009 | M46: =Calc!N45 -> 239.3821009 | N46: =Calc!O45 -> 290.4421009 | O46: =Calc!P45 -> 210.0115956 | P46: =Calc!Q45 -> 252.4915956 | Q46: =Calc!R45 -> 303.0315956
A47: =Calc!A46 -> Expert | B47: =Calc!B46 -> Nuclear Engineer | C47: =Calc!D46 -> 135.0518913 | D47: =Calc!E46 -> 152.1918913 | E47: =Calc!F46 -> 196.3918913 | F47: =Calc!G46 -> 145.8515774 | G47: =Calc!H46 -> 188.3715774 | H47: =Calc!I46 -> 222.8115774 | I47: =Calc!J46 -> 169.4929014 | J47: =Calc!K46 -> 216.3329014 | K47: =Calc!L46 -> 259.9529014 | L47: =Calc!M46 -> 195.9140443 | M47: =Calc!N46 -> 229.0540443 | N47: =Calc!O46 -> 276.7540443 | O47: =Calc!P46 -> 208.1004537 | P47: =Calc!Q46 -> 260.7204537 | Q47: =Calc!R46 -> 315.7204537
A48: =Calc!A47 -> Expert | B48: =Calc!B47 -> Physicist | C48: =Calc!D47 -> 138.8766513 | D48: =Calc!E47 -> 163.2966513 | E48: =Calc!F47 -> 259.7166513 | F48: =Calc!G47 -> 146.3527156 | G48: =Calc!H47 -> 207.6527156 | H48: =Calc!I47 -> 330.5927156 | I48: =Calc!J47 -> 168.817752 | J48: =Calc!K47 -> 235.057752 | K48: =Calc!L47 -> 346.337752 | L48: =Calc!M47 -> 208.9764972 | M48: =Calc!N47 -> 289.4164972 | N48: =Calc!O47 -> 397.2164972 | O48: =Calc!P47 -> 260.9554563 | P48: =Calc!Q47 -> 313.0954563 | Q48: =Calc!R47 -> 433.1154563
A49: =Calc!A48 -> Expert | B49: =Calc!B48 -> Process Engineer | C49: =Calc!D48 -> 117.6350067 | D49: =Calc!E48 -> 136.1750067 | E49: =Calc!F48 -> 159.2350067 | F49: =Calc!G48 -> 137.689036 | G49: =Calc!H48 -> 162.289036 | H49: =Calc!I48 -> 185.129036 | I49: =Calc!J48 -> 161.7142629 | J49: =Calc!K48 -> 191.8142629 | K49: =Calc!L48 -> 219.0542629 | L49: =Calc!M48 -> 192.7133729 | M49: =Calc!N48 -> 228.1933729 | N49: =Calc!O48 -> 266.8733729 | O49: =Calc!P48 -> 217.0773523 | P49: =Calc!Q48 -> 257.0573523 | Q49: =Calc!R48 -> 300.6173523
A50: =Calc!A49 -> Expert | B50: =Calc!B49 -> Professor - Law | C50: =Calc!D49 -> 121.3161745 | D50: =Calc!E49 -> 248.3561745 | E50: =Calc!F49 -> 391.8161745 | F50: =Calc!G49 -> 132.1311006 | G50: =Calc!H49 -> 273.4311006 | H50: =Calc!I49 -> 434.4711006 | I50: =Calc!J49 -> 142.778667 | J50: =Calc!K49 -> 298.138667 | K50: =Calc!L49 -> 476.498667 | L50: =Calc!M49 -> 155.6698968 | M50: =Calc!N49 -> 345.9898968 | N50: =Calc!O49 -> 578.2898968 | O50: =Calc!P49 -> 168.3224392 | P50: =Calc!Q49 -> 393.0224392 | Q50: =Calc!R49 -> 678.3424392
A51: =Calc!A50 -> Expert | B51: =Calc!B50 -> Program Design/Evaluation Specialist | C51: =Calc!D50 -> 100.9689294 | D51: =Calc!E50 -> 132.4489294 | E51: =Calc!F50 -> 169.1689294 | F51: =Calc!G50 -> 113.7021619 | G51: =Calc!H50 -> 154.1021619 | H51: =Calc!I50 -> 204.3021619 | I51: =Calc!J50 -> 143.0132106 | J51: =Calc!K50 -> 186.7132106 | K51: =Calc!L50 -> 235.3932106 | L51: =Calc!M50 -> 182.3395757 | M51: =Calc!N50 -> 235.5195757 | N51: =Calc!O50 -> 298.2995757 | O51: =Calc!P50 -> 182.0659991 | P51: =Calc!Q50 -> 247.5059991 | Q51: =Calc!R50 -> 295.9459991
A52: =Calc!A51 -> Expert | B52: =Calc!B51 -> Project Engineer | C52: =Calc!D51 -> 124.12892 | D52: =Calc!E51 -> 145.56892 | E52: =Calc!F51 -> 183.06892 | F52: =Calc!G51 -> 143.2143072 | G52: =Calc!H51 -> 174.6743072 | H52: =Calc!I51 -> 215.3143072 | I52: =Calc!J51 -> 167.972941 | J52: =Calc!K51 -> 205.752941 | K52: =Calc!L51 -> 252.832941 | L52: =Calc!M51 -> 197.9759539 | M52: =Calc!N51 -> 243.6959539 | N52: =Calc!O51 -> 300.2959539 | O52: =Calc!P51 -> 215.4148177 | P52: =Calc!Q51 -> 266.3148177 | Q52: =Calc!R51 -> 332.5548177
A53: =Calc!A52 -> Expert | B53: =Calc!B52 -> Project Engineer - Construction | C53: =Calc!D52 -> 104.6670406 | D53: =Calc!E52 -> 133.4670406 | E53: =Calc!F52 -> 169.9070406 | F53: =Calc!G52 -> 104.6670406 | G53: =Calc!H52 -> 133.4670406 | H53: =Calc!I52 -> 169.9070406 | I53: =Calc!J52 -> 104.6670406 | J53: =Calc!K52 -> 133.4670406 | K53: =Calc!L52 -> 169.9070406 | L53: =Calc!M52 -> 104.6670406 | M53: =Calc!N52 -> 133.4670406 | N53: =Calc!O52 -> 169.9070406 | O53: =Calc!P52 -> 104.6670406 | P53: =Calc!Q52 -> 133.4670406 | Q53: =Calc!R52 -> 169.9070406
A54: =Calc!A53 -> Expert | B54: =Calc!B53 -> Public Policy Analyst | C54: =Calc!D53 -> 148.1134172 | D54: =Calc!E53 -> 211.0534172 | E54: =Calc!F53 -> 278.8534172 | F54: =Calc!G53 -> 167.0796408 | G54: =Calc!H53 -> 234.0396408 | H54: =Calc!I53 -> 310.4996408 | I54: =Calc!J53 -> 231.5348359 | J54: =Calc!K53 -> 330.4348359 | K54: =Calc!L53 -> 437.0548359 | L54: =Calc!M53 -> 263.7155093 | M54: =Calc!N53 -> 373.1955093 | N54: =Calc!O53 -> 493.9755093 | O54: =Calc!P53 -> 491.9879829 | P54: =Calc!Q53 -> 650.8879829 | Q54: =Calc!R53 -> 868.7079829
A55: =Calc!A54 -> Expert | B55: =Calc!B54 -> Regulatory Affairs Specialist | C55: =Calc!D54 -> 120.3018064 | D55: =Calc!E54 -> 158.9618064 | E55: =Calc!F54 -> 197.0218064 | F55: =Calc!G54 -> 142.288527 | G55: =Calc!H54 -> 202.908527 | H55: =Calc!I54 -> 265.668527 | I55: =Calc!J54 -> 178.722942 | J55: =Calc!K54 -> 226.702942 | K55: =Calc!L54 -> 292.222942 | L55: =Calc!M54 -> 237.5137815 | M55: =Calc!N54 -> 283.4337815 | N55: =Calc!O54 -> 343.5737815 | O55: =Calc!P54 -> 267.4516439 | P55: =Calc!Q54 -> 319.1516439 | Q55: =Calc!R54 -> 386.8916439
A56: =Calc!A55 -> Expert | B56: =Calc!B55 -> Reliability Engineer | C56: =Calc!D55 -> 114.3444758 | D56: =Calc!E55 -> 140.1844758 | E56: =Calc!F55 -> 156.8244758 | F56: =Calc!G55 -> 149.4989512 | G56: =Calc!H55 -> 169.0589512 | H56: =Calc!I55 -> 192.3589512 | I56: =Calc!J55 -> 169.9696793 | J56: =Calc!K55 -> 202.5096793 | K56: =Calc!L55 -> 230.6296793 | L56: =Calc!M55 -> 216.4242057 | M56: =Calc!N55 -> 249.5842057 | N56: =Calc!O55 -> 286.9842057 | O56: =Calc!P55 -> 213.2426282 | P56: =Calc!Q55 -> 262.8826282 | Q56: =Calc!R55 -> 300.8626282
A57: =Calc!A56 -> Expert | B57: =Calc!B56 -> Reservoir Engineer | C57: =Calc!D56 -> 221.2885291 | D57: =Calc!E56 -> 244.8085291 | E57: =Calc!F56 -> 298.7085291 | F57: =Calc!G56 -> 227.5149733 | G57: =Calc!H56 -> 272.4549733 | H57: =Calc!I56 -> 330.6149733 | I57: =Calc!J56 -> 270.3639032 | J57: =Calc!K56 -> 314.5439032 | K57: =Calc!L56 -> 395.7039032 | L57: =Calc!M56 -> 365.7597999 | M57: =Calc!N56 -> 414.3397999 | N57: =Calc!O56 -> 454.0997999 | O57: =Calc!P56 -> 454.0302397 | P57: =Calc!Q56 -> 493.0702397 | Q57: =Calc!R56 -> 548.2502397
A58: =Calc!A57 -> Expert | B58: =Calc!B57 -> Reservoir Engineering Manager | C58: =Calc!D57 -> 194.2245216 | D58: =Calc!E57 -> 255.3045216 | E58: =Calc!F57 -> 339.5845216 | F58: =Calc!G57 -> 225.9908867 | G58: =Calc!H57 -> 304.1108867 | H58: =Calc!I57 -> 406.4108867 | I58: =Calc!J57 -> 269.2838704 | J58: =Calc!K57 -> 360.4638704 | K58: =Calc!L57 -> 477.9838704 | L58: =Calc!M57 -> 318.4300008 | M58: =Calc!N57 -> 424.2900008 | N58: =Calc!O57 -> 556.2700008 | O58: =Calc!P57 -> 359.2335758 | P58: =Calc!Q57 -> 481.7135758 | Q58: =Calc!R57 -> 627.8335758
A59: =Calc!A58 -> Expert | B59: =Calc!B58 -> Sociologist | C59: =Calc!D58 -> 84.5166097 | D59: =Calc!E58 -> 131.9766097 | E59: =Calc!F58 -> 268.0766097 | F59: =Calc!G58 -> 98.08897567 | G59: =Calc!H58 -> 157.2089757 | H59: =Calc!I58 -> 320.6089757 | I59: =Calc!J58 -> 116.9458508 | J59: =Calc!K58 -> 186.3458508 | K59: =Calc!L58 -> 377.4858508 | L59: =Calc!M58 -> 138.3547553 | M59: =Calc!N58 -> 219.3347553 | N59: =Calc!O58 -> 440.0147553 | O59: =Calc!P58 -> 155.9774221 | P59: =Calc!Q58 -> 249.0174221 | Q59: =Calc!R58 -> 497.0374221
A60: =Calc!A59 -> Expert | B60: =Calc!B59 -> Software Engineer | C60: =Calc!D59 -> 105.4455027 | D60: =Calc!E59 -> 136.1855027 | E60: =Calc!F59 -> 180.3655027 | F60: =Calc!G59 -> 139.2818923 | G60: =Calc!H59 -> 173.1418923 | H60: =Calc!I59 -> 210.3418923 | I60: =Calc!J59 -> 175.3934776 | J60: =Calc!K59 -> 216.1334776 | K60: =Calc!L59 -> 260.0934776 | L60: =Calc!M59 -> 216.1089007 | M60: =Calc!N59 -> 262.1689007 | N60: =Calc!O59 -> 314.1289007 | O60: =Calc!P59 -> 233.4959861 | P60: =Calc!Q59 -> 288.1359861 | Q60: =Calc!R59 -> 354.9759861
A61: =Calc!A60 -> Expert | B61: =Calc!B60 -> Statistician | C61: =Calc!D60 -> 97.61051155 | D61: =Calc!E60 -> 112.5905115 | E61: =Calc!F60 -> 128.3905115 | F61: =Calc!G60 -> 113.9918309 | G61: =Calc!H60 -> 147.1118309 | H61: =Calc!I60 -> 199.8518309 | I61: =Calc!J60 -> 117.3896471 | J61: =Calc!K60 -> 158.0696471 | K61: =Calc!L60 -> 196.1896471 | L61: =Calc!M60 -> 150.2690475 | M61: =Calc!N60 -> 191.0690475 | N61: =Calc!O60 -> 237.7290475 | O61: =Calc!P60 -> 203.5430882 | P61: =Calc!Q60 -> 245.9630882 | Q61: =Calc!R60 -> 326.3230882
A62: =Calc!A61 -> Expert | B62: =Calc!B61 -> Structural Engineer | C62: =Calc!D61 -> 84.76301232 | D62: =Calc!E61 -> 128.3030123 | E62: =Calc!F61 -> 143.4230123 | F62: =Calc!G61 -> 136.9203684 | G62: =Calc!H61 -> 156.1803684 | H62: =Calc!I61 -> 191.2003684 | I62: =Calc!J61 -> 149.9192832 | J62: =Calc!K61 -> 196.9992832 | K62: =Calc!L61 -> 234.6792832 | L62: =Calc!M61 -> 166.0606468 | M62: =Calc!N61 -> 214.3806468 | N62: =Calc!O61 -> 244.1406468 | O62: =Calc!P61 -> 193.1113099 | P62: =Calc!Q61 -> 249.3113099 | Q62: =Calc!R61 -> 283.9113099
A63: =Calc!A62 -> Expert | B63: =Calc!B62 -> Systems Engineer | C63: =Calc!D62 -> 108.3782335 | D63: =Calc!E62 -> 143.4382335 | E63: =Calc!F62 -> 173.2982335 | F63: =Calc!G62 -> 134.5158451 | G63: =Calc!H62 -> 171.9558451 | H63: =Calc!I62 -> 211.5958451 | I63: =Calc!J62 -> 173.6774502 | J63: =Calc!K62 -> 209.6574502 | K63: =Calc!L62 -> 252.2174502 | L63: =Calc!M62 -> 204.5681434 | M63: =Calc!N62 -> 247.1281434 | N63: =Calc!O62 -> 295.0081434 | O63: =Calc!P62 -> 229.1433505 | P63: =Calc!Q62 -> 281.9433505 | Q63: =Calc!R62 -> 341.3033505
A64: =Calc!A63 -> Expert | B64: =Calc!B63 -> Telecommunications Economist | C64: =Calc!D63 -> 116.0829426 | D64: =Calc!E63 -> 136.3429426 | E64: =Calc!F63 -> 169.2029426 | F64: =Calc!G63 -> 135.2349879 | G64: =Calc!H63 -> 162.4149879 | H64: =Calc!I63 -> 202.5149879 | I64: =Calc!J63 -> 161.1069984 | J64: =Calc!K63 -> 192.5069984 | K64: =Calc!L63 -> 238.1469984 | L64: =Calc!M63 -> 190.7160887 | M64: =Calc!N63 -> 234.1760887 | N64: =Calc!O63 -> 279.8560887 | O64: =Calc!P63 -> 223.8937513 | P64: =Calc!Q63 -> 280.8937513 | Q64: =Calc!R63 -> 326.6137513
A65: =Calc!A64 -> Expert | B65: =Calc!B64 -> Telecommunications Engineer | C65: =Calc!D64 -> 107.7174716 | D65: =Calc!E64 -> 134.9574716 | E65: =Calc!F64 -> 168.0774716 | F65: =Calc!G64 -> 126.4272426 | G65: =Calc!H64 -> 164.3672426 | H65: =Calc!I64 -> 203.7872426 | I65: =Calc!J64 -> 156.0061319 | J65: =Calc!K64 -> 196.0861319 | K65: =Calc!L64 -> 238.2861319 | L65: =Calc!M64 -> 170.7799104 | M65: =Calc!N64 -> 214.9999104 | N65: =Calc!O64 -> 252.2799104 | O65: =Calc!P64 -> 189.178133 | P65: =Calc!Q64 -> 239.298133 | Q65: =Calc!R64 -> 285.998133
A66: =Calc!A65 -> Expert | B66: =Calc!B65 -> Top Economic Executive | C66: =Calc!D65 -> 380.7181152 | D66: =Calc!E65 -> 488.1581152 | E66: =Calc!F65 -> 564.3381152 | F66: =Calc!G65 -> 459.0873329 | G66: =Calc!H65 -> 575.3273329 | H66: =Calc!I65 -> 681.1273329 | I66: =Calc!J65 -> 542.6429995 | J66: =Calc!K65 -> 683.5829995 | K66: =Calc!L65 -> 799.2629995 | L66: =Calc!M65 -> 637.2316479 | M66: =Calc!N65 -> 806.2916479 | N66: =Calc!O65 -> 928.0916479 | O66: =Calc!P65 -> 725.8439878 | P66: =Calc!Q65 -> 912.7839878 | Q66: =Calc!R65 -> 1049.523988
A67: =Calc!A66 -> Expert | B67: =Calc!B66 -> Urban Planner | C67: =Calc!D66 -> 62.69313466 | D67: =Calc!E66 -> 69.05313466 | E67: =Calc!F66 -> 87.75313466 | F67: =Calc!G66 -> 73.09709322 | G67: =Calc!H66 -> 82.25709322 | H67: =Calc!I66 -> 105.0170932 | I67: =Calc!J66 -> 87.05727433 | J67: =Calc!K66 -> 97.49727433 | K67: =Calc!L66 -> 123.4972743 | L67: =Calc!M66 -> 102.903182 | M67: =Calc!N66 -> 114.763182 | N67: =Calc!O66 -> 143.683182 | O67: =Calc!P66 -> 116.1572509 | P67: =Calc!Q66 -> 130.2972509 | Q67: =Calc!R66 -> 162.1572509
A68: =Calc!A67 -> Expert | B68: =Calc!B67 -> Utility Rate Analyst | C68: =Calc!D67 -> 121.3933641 | D68: =Calc!E67 -> 150.9533641 | E68: =Calc!F67 -> 174.7733641 | F68: =Calc!G67 -> 141.3468475 | G68: =Calc!H67 -> 179.8068475 | H68: =Calc!I67 -> 209.2268475 | I68: =Calc!J67 -> 168.4211277 | J68: =Calc!K67 -> 213.1211277 | K68: =Calc!L67 -> 245.9611277 | L68: =Calc!M67 -> 199.1247167 | M68: =Calc!N67 -> 250.8647167 | N68: =Calc!O67 -> 286.0447167 | O68: =Calc!P67 -> 224.6887565 | P68: =Calc!Q67 -> 284.8087565 | Q68: =Calc!R67 -> 322.7287565
A69: =Calc!A68 -> Expert | B69: =Calc!B68 -> Utility System Planner/Operator/Manager | C69: =Calc!D68 -> 111.9218413 | D69: =Calc!E68 -> 154.9418413 | E69: =Calc!F68 -> 218.4418413 | F69: =Calc!G68 -> 144.4714822 | G69: =Calc!H68 -> 187.3114822 | H69: =Calc!I68 -> 232.9914822 | I69: =Calc!J68 -> 177.6660528 | J69: =Calc!K68 -> 217.2460528 | K69: =Calc!L68 -> 270.0060528 | L69: =Calc!M68 -> 197.1896605 | M69: =Calc!N68 -> 228.7496605 | N69: =Calc!O68 -> 264.4696605 | O69: =Calc!P68 -> 217.2599728 | P69: =Calc!Q68 -> 261.9799728 | Q69: =Calc!R68 -> 318.2199728
A70: =Calc!A69 -> Expert | B70: =Calc!B69 -> Wildfire Scientist | C70: =Calc!D69 -> 74.67617773 | D70: =Calc!E69 -> 109.5361777 | E70: =Calc!F69 -> 157.1161777 | F70: =Calc!G69 -> 86.75568277 | G70: =Calc!H69 -> 130.4756828 | H70: =Calc!I69 -> 188.0156828 | I70: =Calc!J69 -> 103.4279535 | J70: =Calc!K69 -> 154.6479535 | K70: =Calc!L69 -> 221.1879535 | L70: =Calc!M69 -> 122.3319979 | M70: =Calc!N69 -> 182.0319979 | N70: =Calc!O69 -> 257.4919979 | O70: =Calc!P69 -> 137.9660923 | P70: =Calc!Q69 -> 206.6660923 | Q70: =Calc!R69 -> 290.6660923
A71: =Calc!A70 -> Legal | B71: =Calc!B70 -> Attorney | C71: =Calc!D70 -> 174.9688892 | D71: =Calc!E70 -> 233.3888892 | E71: =Calc!F70 -> 299.4688892 | F71: =Calc!G70 -> 215.0696694 | G71: =Calc!H70 -> 305.9896694 | H71: =Calc!I70 -> 404.2296694 | I71: =Calc!J70 -> 309.7579763 | J71: =Calc!K70 -> 413.8779763 | K71: =Calc!L70 -> 519.4779763 | L71: =Calc!M70 -> 381.8131808 | M71: =Calc!N70 -> 497.1531808 | N71: =Calc!O70 -> 619.2931808 | O71: =Calc!P70 -> 486.3115028 | P71: =Calc!Q70 -> 606.3115028 | Q71: =Calc!R70 -> 699.0315028
A72: =Calc!A71 -> Legal | B72: =Calc!B71 -> Legal Director | C72: =Calc!D71 -> 286.1918922 | D72: =Calc!E71 -> 374.8118922 | E72: =Calc!F71 -> 478.3518922 | F72: =Calc!G71 -> 333.008033 | G72: =Calc!H71 -> 446.468033 | H72: =Calc!I71 -> 572.508033 | I72: =Calc!J71 -> 396.8469499 | J72: =Calc!K71 -> 529.1869499 | K72: =Calc!L71 -> 673.2469499 | L72: =Calc!M71 -> 469.2351709 | M72: =Calc!N71 -> 622.8951709 | N72: =Calc!O71 -> 783.3551709 | O72: =Calc!P71 -> 529.3789827 | P72: =Calc!Q71 -> 707.1989827 | Q72: =Calc!R71 -> 884.0589827
A73: =Calc!A72 -> Legal | B73: =Calc!B72 -> Paralegal | C73: =Calc!D72 -> 88.52663885 | D73: =Calc!E72 -> 113.5666389 | E73: =Calc!F72 -> 141.4866389 | F73: =Calc!G72 -> 102.2271707 | G73: =Calc!H72 -> 130.5071707 | H73: =Calc!I72 -> 163.1871707 | I73: =Calc!J72 -> 122.7353783 | J73: =Calc!K72 -> 153.5353783 | K73: =Calc!L72 -> 186.5553783 | L73: =Calc!M72 -> 139.111617 | M73: =Calc!N72 -> 177.791617 | N73: =Calc!O72 -> 218.511617 | O73: =Calc!P72 -> 154.5011069 | P73: =Calc!Q72 -> 197.4611069 | Q73: =Calc!R72 -> 242.7011069
A74: =Calc!A73 -> Legal | B74: =Calc!B73 -> Paralegal Manager | C74: =Calc!D73 -> 114.0439252 | D74: =Calc!E73 -> 149.4839252 | E74: =Calc!F73 -> 199.4239252 | F74: =Calc!G73 -> 132.7045128 | G74: =Calc!H73 -> 178.0645128 | H74: =Calc!I73 -> 238.6445128 | I74: =Calc!J73 -> 158.1334172 | J74: =Calc!K73 -> 211.0534172 | K74: =Calc!L73 -> 280.6934172 | L74: =Calc!M73 -> 186.9991505 | M74: =Calc!N73 -> 248.4191505 | N74: =Calc!O73 -> 326.6591505 | O74: =Calc!P73 -> 210.9578145 | P74: =Calc!Q73 -> 282.0378145 | Q74: =Calc!R73 -> 368.6978145
A75: =Calc!A74 -> Legal | B75: =Calc!B74 -> Paralegal Supervisor | C75: =Calc!D74 -> 97.37085765 | D75: =Calc!E74 -> 120.8508576 | E75: =Calc!F74 -> 194.9508576 | F75: =Calc!G74 -> 113.3725371 | G75: =Calc!H74 -> 143.9525371 | H75: =Calc!I74 -> 233.2325371 | I75: =Calc!J74 -> 135.1028541 | J75: =Calc!K74 -> 170.6228541 | K75: =Calc!L74 -> 274.4628541 | L75: =Calc!M74 -> 159.7208165 | M75: =Calc!N74 -> 200.8408165 | N75: =Calc!O74 -> 319.6608165 | O75: =Calc!P74 -> 180.2349411 | P75: =Calc!Q74 -> 228.0149411 | Q75: =Calc!R74 -> 360.9549411
A76: =Calc!A75 -> School | B76: =Calc!B75 -> Assistant School Principal | C76: =Calc!D75 -> 65.00323562 | D76: =Calc!E75 -> 84.50323562 | E76: =Calc!F75 -> 112.0032356 | F76: =Calc!G75 -> 75.65656808 | G76: =Calc!H75 -> 100.6565681 | H76: =Calc!I75 -> 134.0365681 | I76: =Calc!J75 -> 90.14794675 | J76: =Calc!K75 -> 119.3079467 | K76: =Calc!L75 -> 157.6479467 | L76: =Calc!M75 -> 106.5963797 | M76: =Calc!N75 -> 140.4363797 | N76: =Calc!O75 -> 183.4563797 | O76: =Calc!P75 -> 120.2741261 | P76: =Calc!Q75 -> 159.4341261 | Q76: =Calc!R75 -> 207.0541261
A77: =Calc!A76 -> School | B77: =Calc!B76 -> Public School Teacher | C77: =Calc!D76 -> 44.0781992 | D77: =Calc!E76 -> 57.0981992 | E77: =Calc!F76 -> 74.1581992 | F77: =Calc!G76 -> 51.2940314 | G77: =Calc!H76 -> 68.0140314 | H77: =Calc!I76 -> 88.7340314 | I77: =Calc!J76 -> 61.09971839 | J77: =Calc!K76 -> 80.61971839 | K77: =Calc!L76 -> 104.3597184 | L77: =Calc!M76 -> 72.25426819 | M77: =Calc!N76 -> 94.89426819 | N77: =Calc!O76 -> 121.4342682 | O77: =Calc!P76 -> 81.52136301 | P77: =Calc!Q76 -> 107.741363 | Q77: =Calc!R76 -> 137.061363
A78: =Calc!A77 -> School | B78: =Calc!B77 -> School Principal | C78: =Calc!D77 -> 80.79253508 | D78: =Calc!E77 -> 102.0525351 | E78: =Calc!F77 -> 126.7725351 | F78: =Calc!G77 -> 94.03508113 | G78: =Calc!H77 -> 121.5750811 | H78: =Calc!I77 -> 151.7350811 | I78: =Calc!J77 -> 112.039481 | J78: =Calc!K77 -> 144.099481 | K78: =Calc!L77 -> 178.419481 | L78: =Calc!M77 -> 132.4847428 | M78: =Calc!N77 -> 169.6047428 | N78: =Calc!O77 -> 207.5647428 | O78: =Calc!P77 -> 149.4794784 | P78: =Calc!Q77 -> 192.5594784 | Q78: =Calc!R77 -> 234.2394784
A79: =Calc!A78 -> School | B79: =Calc!B78 -> School Superintendent | C79: =Calc!D78 -> 99.91253245 | D79: =Calc!E78 -> 150.5125325 | E79: =Calc!F78 -> 210.4125325 | F79: =Calc!G78 -> 116.0420479 | G79: =Calc!H78 -> 179.2820479 | H79: =Calc!I78 -> 251.7820479 | I79: =Calc!J78 -> 138.3418642 | J79: =Calc!K78 -> 212.5018642 | K79: =Calc!L78 -> 296.1818642 | L79: =Calc!M78 -> 163.6499973 | M79: =Calc!N78 -> 250.1299973 | N79: =Calc!O78 -> 344.7699973 | O79: =Calc!P78 -> 184.5195731 | P79: =Calc!Q78 -> 283.9795731 | Q79: =Calc!R78 -> 389.1595731

Sheet Escalation
A1: To: | B1: Escalation
A2: 1/1/2019 thru 12/31/2019 | B2: 0.0235
A3: 1/1/2020 thru 12/31/2020 | B3: 0.0255
A4: 1/1/2021 thru 12/31/2021 | B4: 0
A5: 1/1/2022 thru 12/31/2022 | B5: 0.0331
A6: 1/1/2023 thru 12/31/2023 | B6: 0.0446
A7: 1/1/2024 thru 12/31/2024 | B7: 0.0407
A8: 1/1/2025 thru 12/31/2025 | B8: 0.0346
A9: 1/1/2026 thru 12/31/2026
A10: 1/1/2027 thru 12/31/2027
A11: 1/1/2028 thru 12/31/2028
A12: 1/1/2029 thru 12/31/2029
A13: 1/1/2030 thru 12/31/2030

Sheet Calc (hidden)
A1: Category | B1: CPUC Role | C1: Description | D1: Min 1 | E1: Med 1 | F1: Max 1 | G1: Min 2 | H1: Med 2 | I1: Max 2 | J1: Min 3 | K1: Med 3 | L1: Max 3 | M1: Min 4 | N1: Med 4 | O1: Max 4 | P1: Min 5 | Q1: Med 5 | R1: Max 5
A2: =Config_RawLabor!A2 -> Advocate | B2: =Config_RawLabor!B2 -> Administrative Analyst | C2: =Config_RawLabor!C2 -> Assist in the planning, development and management of a comprehensive program within the eight county service area. Assist in the administration and development of specific programs and projects. Specific areas of focus include human resources, information systems, or grant writing. Represent orgination to community groups, partners, and funders. Coordinate community events, public relations activities. | D2: =E2-((Calc_Raw!E2-Calc_Raw!D2)*2) -> 45.59237741 | E2: =Calc_Raw!E2*Escalation -> 54.01237741 | F2: =E2+((Calc_Raw!F2-Calc_Raw!E2)*2) -> 65.45237741 | G2: =H2-((Calc_Raw!H2-Calc_Raw!G2)*2) -> 53.12043403 | H2: =Calc_Raw!H2*Escalation -> 64.34043403 | I2: =H2+((Calc_Raw!I2-Calc_Raw!H2)*2) -> 78.34043403 | J2: =K2-((Calc_Raw!K2-Calc_Raw!J2)*2) -> 63.28388151 | K2: =Calc_Raw!K2*Escalation -> 76.26388151 | L2: =K2+((Calc_Raw!L2-Calc_Raw!K2)*2) -> 92.10388151 | M2: =N2-((Calc_Raw!N2-Calc_Raw!M2)*2) -> 74.82172786 | N2: =Calc_Raw!N2*Escalation -> 89.76172786 | O2: =N2+((Calc_Raw!O2-Calc_Raw!N2)*2) -> 107.1417279 | P2: =Q2-((Calc_Raw!Q2-Calc_Raw!P2)*2) -> 84.41608718 | Q2: =Calc_Raw!Q2*Escalation -> 101.9160872 | R2: =Q2+((Calc_Raw!R2-Calc_Raw!Q2)*2) -> 120.8960872
A3: =Config_RawLabor!A3 -> Advocate | B3: =Config_RawLabor!B3 -> Advocate - Not Otherwise Classified | C3: =Config_RawLabor!C3 -> Used for advocate roles that are not better classified as one of the more detailed roles, including for example consumer advocates. May also be used for advocates that fill multiple subroles. | D3: =E3-((Calc_Raw!E3-Calc_Raw!D3)*2) -> 59.8647085 | E3: =Calc_Raw!E3*Escalation -> 83.2647085 | F3: =E3+((Calc_Raw!F3-Calc_Raw!E3)*2) -> 113.5047085 | G3: =H3-((Calc_Raw!H3-Calc_Raw!G3)*2) -> 69.19736958 | H3: =Calc_Raw!H3*Escalation -> 98.55736958 | I3: =H3+((Calc_Raw!I3-Calc_Raw!H3)*2) -> 134.9373696 | J3: =K3-((Calc_Raw!K3-Calc_Raw!J3)*2) -> 82.76478031 | K3: =Calc_Raw!K3*Escalation -> 117.1247803 | L3: =K3+((Calc_Raw!L3-Calc_Raw!K3)*2) -> 158.9247803 | M3: =N3-((Calc_Raw!N3-Calc_Raw!M3)*2) -> 97.63138954 | N3: =Calc_Raw!N3*Escalation -> 137.7913895 | O3: =N3+((Calc_Raw!O3-Calc_Raw!N3)*2) -> 185.1713895 | P3: =Q3-((Calc_Raw!Q3-Calc_Raw!P3)*2) -> 109.9888804 | Q3: =Calc_Raw!Q3*Escalation -> 156.1488804 | R3: =Q3+((Calc_Raw!R3-Calc_Raw!Q3)*2) -> 208.7688804
A4: =Config_RawLabor!A4 -> Advocate | B4: =Config_RawLabor!B4 -> Community Development Manager | C4: =Config_RawLabor!C4 -> Responsible for the supervision, support, and training of staff within a specific program, and for providing operational and program support to the program director. Meets program and organizational goals. Model and support organization's values. | D4: =E4-((Calc_Raw!E4-Calc_Raw!D4)*2) -> 55.36138645 | E4: =Calc_Raw!E4*Escalation -> 74.94138645 | F4: =E4+((Calc_Raw!F4-Calc_Raw!E4)*2) -> 96.98138645 | G4: =H4-((Calc_Raw!H4-Calc_Raw!G4)*2) -> 64.38841621 | H4: =Calc_Raw!H4*Escalation -> 89.26841621 | I4: =H4+((Calc_Raw!I4-Calc_Raw!H4)*2) -> 116.0684162 | J4: =K4-((Calc_Raw!K4-Calc_Raw!J4)*2) -> 76.7396044 | K4: =Calc_Raw!K4*Escalation -> 105.7996044 | L4: =K4+((Calc_Raw!L4-Calc_Raw!K4)*2) -> 136.5196044 | M4: =N4-((Calc_Raw!N4-Calc_Raw!M4)*2) -> 90.75495101 | N4: =Calc_Raw!N4*Escalation -> 124.534951 | O4: =N4+((Calc_Raw!O4-Calc_Raw!N4)*2) -> 158.854951 | P4: =Q4-((Calc_Raw!Q4-Calc_Raw!P4)*2) -> 102.371515 | Q4: =Calc_Raw!Q4*Escalation -> 141.391515 | R4: =Q4+((Calc_Raw!R4-Calc_Raw!Q4)*2) -> 179.271515
A5: =Config_RawLabor!A5 -> Advocate | B5: =Config_RawLabor!B5 -> Community Development Program Director | C5: =Config_RawLabor!C5 -> A senior management position which provides leadership and management to one or more programs and participates in the overall management of (non-profit) organization. Coordinate, plan and develop comprehensive programs for implementing the organization's goals. On-going in-depth review and analysis of program operations, community needs and program resources. Represents the organization to community, agencies, the media, and participants. | D5: =E5-((Calc_Raw!E5-Calc_Raw!D5)*2) -> 79.94165343 | E5: =Calc_Raw!E5*Escalation -> 104.3616534 | F5: =E5+((Calc_Raw!F5-Calc_Raw!E5)*2) -> 132.9416534 | G5: =H5-((Calc_Raw!H5-Calc_Raw!G5)*2) -> 93.01453517 | H5: =Calc_Raw!H5*Escalation -> 124.3145352 | I5: =H5+((Calc_Raw!I5-Calc_Raw!H5)*2) -> 159.1145352 | J5: =K5-((Calc_Raw!K5-Calc_Raw!J5)*2) -> 110.8332387 | K5: =Calc_Raw!K5*Escalation -> 147.3532387 | L5: =K5+((Calc_Raw!L5-Calc_Raw!K5)*2) -> 187.0932387 | M5: =N5-((Calc_Raw!N5-Calc_Raw!M5)*2) -> 131.0662761 | N5: =Calc_Raw!N5*Escalation -> 173.4462761 | O5: =N5+((Calc_Raw!O5-Calc_Raw!N5)*2) -> 217.6862761 | P5: =Q5-((Calc_Raw!Q5-Calc_Raw!P5)*2) -> 147.8753153 | Q5: =Calc_Raw!Q5*Escalation -> 196.9153153 | R5: =Q5+((Calc_Raw!R5-Calc_Raw!Q5)*2) -> 245.6753153
A6: =Config_RawLabor!A6 -> Advocate | B6: =Config_RawLabor!B6 -> Community Development Senior Specialist | C6: =Config_RawLabor!C6 -> Work closely with low-income, rural residents to assist them in the development and management of community facilities. Perform advocacy and technical assistance role regarding the needs of rural, low income people for safe and affordable water, waste water and energyfacilities. Responsible for multiple community development projects. Can include organizing, research, loan and grant writing. In addition, the SR CD Specialist provides leadership and support to CD staff, serves as a resource for other staff and effectively and positively represents the organization to staff, participants and the community | D6: =E6-((Calc_Raw!E6-Calc_Raw!D6)*2) -> 55.27218898 | E6: =Calc_Raw!E6*Escalation -> 93.79218898 | F6: =E6+((Calc_Raw!F6-Calc_Raw!E6)*2) -> 132.152189 | G6: =H6-((Calc_Raw!H6-Calc_Raw!G6)*2) -> 64.04984016 | H6: =Calc_Raw!H6*Escalation -> 111.7298402 | I6: =H6+((Calc_Raw!I6-Calc_Raw!H6)*2) -> 158.1298402 | J6: =K6-((Calc_Raw!K6-Calc_Raw!J6)*2) -> 76.40793737 | K6: =Calc_Raw!K6*Escalation -> 132.4279374 | L6: =K6+((Calc_Raw!L6-Calc_Raw!K6)*2) -> 186.0079374 | M6: =N6-((Calc_Raw!N6-Calc_Raw!M6)*2) -> 90.41598462 | N6: =Calc_Raw!N6*Escalation -> 155.8759846 | O6: =N6+((Calc_Raw!O6-Calc_Raw!N6)*2) -> 216.5359846 | P6: =Q6-((Calc_Raw!Q6-Calc_Raw!P6)*2) -> 101.8929295 | Q6: =Calc_Raw!Q6*Escalation -> 176.9729295 | R6: =Q6+((Calc_Raw!R6-Calc_Raw!Q6)*2) -> 244.4329295
A7: =Config_RawLabor!A7 -> Advocate | B7: =Config_RawLabor!B7 -> Community Development Specialist | C7: =Config_RawLabor!C7 -> Work closely with low-income, rural residents to assist them in the development and management of community facilities. Perform advocacy and technical assistance role regarding the needs of rural, low income people for safe and affordable water,waste water and energy facilities. Responsible for multiple community development projects. Can include organizing, research, loan and grant writing. | D7: =E7-((Calc_Raw!E7-Calc_Raw!D7)*2) -> 31.83184082 | E7: =Calc_Raw!E7*Escalation -> 43.63184082 | F7: =E7+((Calc_Raw!F7-Calc_Raw!E7)*2) -> 56.65184082 | G7: =H7-((Calc_Raw!H7-Calc_Raw!G7)*2) -> 37.01615486 | H7: =Calc_Raw!H7*Escalation -> 51.97615486 | I7: =H7+((Calc_Raw!I7-Calc_Raw!H7)*2) -> 67.81615486 | J7: =K7-((Calc_Raw!K7-Calc_Raw!J7)*2) -> 44.14097998 | K7: =Calc_Raw!K7*Escalation -> 61.60097998 | L7: =K7+((Calc_Raw!L7-Calc_Raw!K7)*2) -> 79.74097998 | M7: =N7-((Calc_Raw!N7-Calc_Raw!M7)*2) -> 52.18631619 | N7: =Calc_Raw!N7*Escalation -> 72.50631619 | O7: =N7+((Calc_Raw!O7-Calc_Raw!N7)*2) -> 92.80631619 | P7: =Q7-((Calc_Raw!Q7-Calc_Raw!P7)*2) -> 58.88006918 | Q7: =Calc_Raw!Q7*Escalation -> 82.32006918 | R7: =Q7+((Calc_Raw!R7-Calc_Raw!Q7)*2) -> 104.7400692
A8: =Config_RawLabor!A8 -> Advocate | B8: =Config_RawLabor!B8 -> Executive Director | C8: =Config_RawLabor!C8 -> Provides overall direction and guidance to a non-profit organization's programs. Responsible for the success of special events, community outreach initiatives, and fundraising activities. Acts as a spokesperson and represents the organization's programs to the public. Assesses needs and ensures that program objectives are met, initiates changes to maintain member satisfaction and engagement. | D8: =E8-((Calc_Raw!E8-Calc_Raw!D8)*2) -> 91.63765268 | E8: =Calc_Raw!E8*Escalation -> 150.1976527 | F8: =E8+((Calc_Raw!F8-Calc_Raw!E8)*2) -> 238.9376527 | G8: =H8-((Calc_Raw!H8-Calc_Raw!G8)*2) -> 106.2946882 | H8: =Calc_Raw!H8*Escalation -> 178.9146882 | I8: =H8+((Calc_Raw!I8-Calc_Raw!H8)*2) -> 285.8746882 | J8: =K8-((Calc_Raw!K8-Calc_Raw!J8)*2) -> 126.7610325 | K8: =Calc_Raw!K8*Escalation -> 212.0610325 | L8: =K8+((Calc_Raw!L8-Calc_Raw!K8)*2) -> 336.3810325 | M8: =N8-((Calc_Raw!N8-Calc_Raw!M8)*2) -> 149.9756936 | N8: =Calc_Raw!N8*Escalation -> 249.6156936 | O8: =N8+((Calc_Raw!O8-Calc_Raw!N8)*2) -> 391.7756936 | P8: =Q8-((Calc_Raw!Q8-Calc_Raw!P8)*2) -> 169.0517975 | Q8: =Calc_Raw!Q8*Escalation -> 283.3917975 | R8: =Q8+((Calc_Raw!R8-Calc_Raw!Q8)*2) -> 442.3717975
A9: =Config_RawLabor!A9 -> Advocate | B9: =Config_RawLabor!B9 -> Housing Program Manager | C9: =Config_RawLabor!C9 -> Oversees operations of a housing program. Sets budget and policies, hires and trains staff, and oversees occupancy eligibility/operations. Develops and provides reports or documentation needed to secure/maintain funding or grants. May lead the work of others. | D9: =E9-((Calc_Raw!E9-Calc_Raw!D9)*2) -> 21.89222179 | E9: =Calc_Raw!E9*Escalation -> 47.87222179 | F9: =E9+((Calc_Raw!F9-Calc_Raw!E9)*2) -> 76.85222179 | G9: =H9-((Calc_Raw!H9-Calc_Raw!G9)*2) -> 25.23522325 | H9: =Calc_Raw!H9*Escalation -> 57.03522325 | I9: =H9+((Calc_Raw!I9-Calc_Raw!H9)*2) -> 91.93522325 | J9: =K9-((Calc_Raw!K9-Calc_Raw!J9)*2) -> 30.1541917 | K9: =Calc_Raw!K9*Escalation -> 67.5941917 | L9: =K9+((Calc_Raw!L9-Calc_Raw!K9)*2) -> 108.1941917 | M9: =N9-((Calc_Raw!N9-Calc_Raw!M9)*2) -> 35.71011914 | N9: =Calc_Raw!N9*Escalation -> 79.57011914 | O9: =N9+((Calc_Raw!O9-Calc_Raw!N9)*2) -> 126.0101191 | P9: =Q9-((Calc_Raw!Q9-Calc_Raw!P9)*2) -> 40.17900745 | Q9: =Calc_Raw!Q9*Escalation -> 90.33900745 | R9: =Q9+((Calc_Raw!R9-Calc_Raw!Q9)*2) -> 142.2790074
A10: =Config_RawLabor!A10 -> Advocate | B10: =Config_RawLabor!B10 -> Program Coordinator | C10: =Config_RawLabor!C10 -> Plans and coordinates one or more programs for a non-profit organization, including fundraising, budgeting, and community outreach. Develops and implements programs that align with the organization's mission and support the organization's goals. Creates program materials, establishes staffing requirements, and ensures that program achieves stated objectives. May be responsible for special events that publicize the organization and its programs to the community. | D10: =E10-((Calc_Raw!E10-Calc_Raw!D10)*2) -> 55.47713278 | E10: =Calc_Raw!E10*Escalation -> 71.67713278 | F10: =E10+((Calc_Raw!F10-Calc_Raw!E10)*2) -> 93.43713278 | G10: =H10-((Calc_Raw!H10-Calc_Raw!G10)*2) -> 64.574403 | H10: =Calc_Raw!H10*Escalation -> 85.374403 | I10: =H10+((Calc_Raw!I10-Calc_Raw!H10)*2) -> 111.814403 | J10: =K10-((Calc_Raw!K10-Calc_Raw!J10)*2) -> 76.95186369 | K10: =Calc_Raw!K10*Escalation -> 101.1918637 | L10: =K10+((Calc_Raw!L10-Calc_Raw!K10)*2) -> 131.5118637 | M10: =N10-((Calc_Raw!N10-Calc_Raw!M10)*2) -> 90.98852289 | N10: =Calc_Raw!N10*Escalation -> 119.1085229 | O10: =N10+((Calc_Raw!O10-Calc_Raw!N10)*2) -> 153.0285229 | P10: =Q10-((Calc_Raw!Q10-Calc_Raw!P10)*2) -> 102.6503674 | Q10: =Calc_Raw!Q10*Escalation -> 135.2303674 | R10: =Q10+((Calc_Raw!R10-Calc_Raw!Q10)*2) -> 172.7103674
A11: =Config_RawLabor!A11 -> Advocate | B11: =Config_RawLabor!B11 -> Program Manager | C11: =Config_RawLabor!C11 -> Manages a team that coordinates programs for a non-profit organization. Designs programs that align with the organization's mission and support the organization's goals. Establishes fundraising and development goals, identifies potential donors or sources of funding, and plans outreach strategies. Schedules and forecasts planning for special events that publicize the organization and its programs to the community. May assist in the development of grants applications or proposals. | D11: =E11-((Calc_Raw!E11-Calc_Raw!D11)*2) -> 86.32809093 | E11: =Calc_Raw!E11*Escalation -> 96.66809093 | F11: =E11+((Calc_Raw!F11-Calc_Raw!E11)*2) -> 119.4680909 | G11: =H11-((Calc_Raw!H11-Calc_Raw!G11)*2) -> 100.6315337 | H11: =Calc_Raw!H11*Escalation -> 115.1515337 | I11: =H11+((Calc_Raw!I11-Calc_Raw!H11)*2) -> 142.9915337 | J11: =K11-((Calc_Raw!K11-Calc_Raw!J11)*2) -> 119.8793905 | K11: =Calc_Raw!K11*Escalation -> 136.4793905 | L11: =K11+((Calc_Raw!L11-Calc_Raw!K11)*2) -> 168.1593905 | M11: =N11-((Calc_Raw!N11-Calc_Raw!M11)*2) -> 141.6916612 | N11: =Calc_Raw!N11*Escalation -> 160.6516612 | O11: =N11+((Calc_Raw!O11-Calc_Raw!N11)*2) -> 195.6116612 | P11: =Q11-((Calc_Raw!Q11-Calc_Raw!P11)*2) -> 159.9288617 | Q11: =Calc_Raw!Q11*Escalation -> 182.3888617 | R11: =Q11+((Calc_Raw!R11-Calc_Raw!Q11)*2) -> 220.7488617
A12: =Config_RawLabor!A12 -> Expert | B12: =Config_RawLabor!B12 -> Accountant | C12: =Config_RawLabor!C12 -> Prepares complex balance sheets, profit and loss statements and other financial reports. Analyzes current costs, revenues, financial commitments, and obligations incurred to predict future revenues and expenses. | D12: =E12-((Calc_Raw!E12-Calc_Raw!D12)*2) -> 88.96053133 | E12: =Calc_Raw!E12*Escalation -> 107.3005313 | F12: =E12+((Calc_Raw!F12-Calc_Raw!E12)*2) -> 127.9805313 | G12: =H12-((Calc_Raw!H12-Calc_Raw!G12)*2) -> 103.4307577 | H12: =Calc_Raw!H12*Escalation -> 126.3507577 | I12: =H12+((Calc_Raw!I12-Calc_Raw!H12)*2) -> 151.5507577 | J12: =K12-((Calc_Raw!K12-Calc_Raw!J12)*2) -> 128.6935197 | K12: =Calc_Raw!K12*Escalation -> 157.0935197 | L12: =K12+((Calc_Raw!L12-Calc_Raw!K12)*2) -> 189.5735197 | M12: =N12-((Calc_Raw!N12-Calc_Raw!M12)*2) -> 160.2824544 | N12: =Calc_Raw!N12*Escalation -> 192.6224544 | O12: =N12+((Calc_Raw!O12-Calc_Raw!N12)*2) -> 228.6024544 | P12: =Q12-((Calc_Raw!Q12-Calc_Raw!P12)*2) -> 180.6181169 | Q12: =Calc_Raw!Q12*Escalation -> 217.0781169 | R12: =Q12+((Calc_Raw!R12-Calc_Raw!Q12)*2) -> 257.6181169
A13: =Config_RawLabor!A13 -> Expert | B13: =Config_RawLabor!B13 -> Biologist | C13: =Config_RawLabor!C13 -> Analyzes specific regional environments as well as the organisms and wildlife that inhabit those locations. Aids in the protection and survival of wildlife within any given ecosystem, and assesses the impact of human activity on the environment. | D13: =E13-((Calc_Raw!E13-Calc_Raw!D13)*2) -> 85.82206927 | E13: =Calc_Raw!E13*Escalation -> 104.5820693 | F13: =E13+((Calc_Raw!F13-Calc_Raw!E13)*2) -> 130.3020693 | G13: =H13-((Calc_Raw!H13-Calc_Raw!G13)*2) -> 91.10432959 | H13: =Calc_Raw!H13*Escalation -> 120.9243296 | I13: =H13+((Calc_Raw!I13-Calc_Raw!H13)*2) -> 151.2043296 | J13: =K13-((Calc_Raw!K13-Calc_Raw!J13)*2) -> 109.8162147 | K13: =Calc_Raw!K13*Escalation -> 147.4162147 | L13: =K13+((Calc_Raw!L13-Calc_Raw!K13)*2) -> 196.4162147 | M13: =N13-((Calc_Raw!N13-Calc_Raw!M13)*2) -> 153.8344092 | N13: =Calc_Raw!N13*Escalation -> 211.0744092 | O13: =N13+((Calc_Raw!O13-Calc_Raw!N13)*2) -> 278.5944092 | P13: =Q13-((Calc_Raw!Q13-Calc_Raw!P13)*2) -> 161.6233974 | Q13: =Calc_Raw!Q13*Escalation -> 216.3433974 | R13: =Q13+((Calc_Raw!R13-Calc_Raw!Q13)*2) -> 256.3033974
A14: =Config_RawLabor!A14 -> Expert | B14: =Config_RawLabor!B14 -> Certified Depreciation Professional | C14: =Config_RawLabor!C14 -> Specialist in calculating depreciation. | D14: =E14-((Calc_Raw!E14-Calc_Raw!D14)*2) -> 99.30103304 | E14: =Calc_Raw!E14*Escalation -> 121.701033 | F14: =E14+((Calc_Raw!F14-Calc_Raw!E14)*2) -> 144.821033 | G14: =H14-((Calc_Raw!H14-Calc_Raw!G14)*2) -> 119.6774018 | H14: =Calc_Raw!H14*Escalation -> 142.9974018 | I14: =H14+((Calc_Raw!I14-Calc_Raw!H14)*2) -> 171.2774018 | J14: =K14-((Calc_Raw!K14-Calc_Raw!J14)*2) -> 139.6886155 | K14: =Calc_Raw!K14*Escalation -> 168.6286155 | L14: =K14+((Calc_Raw!L14-Calc_Raw!K14)*2) -> 199.1886155 | M14: =N14-((Calc_Raw!N14-Calc_Raw!M14)*2) -> 168.000015 | N14: =Calc_Raw!N14*Escalation -> 202.940015 | O14: =N14+((Calc_Raw!O14-Calc_Raw!N14)*2) -> 247.580015 | P14: =Q14-((Calc_Raw!Q14-Calc_Raw!P14)*2) -> 190.2077718 | Q14: =Calc_Raw!Q14*Escalation -> 229.7677718 | R14: =Q14+((Calc_Raw!R14-Calc_Raw!Q14)*2) -> 280.3277718
A15: =Config_RawLabor!A15 -> Expert | B15: =Config_RawLabor!B15 -> Chemical Engineer | C15: =Config_RawLabor!C15 -> Analyzes processes for the transport and storage of chemicals, including gases. | D15: =E15-((Calc_Raw!E15-Calc_Raw!D15)*2) -> 127.9939705 | E15: =Calc_Raw!E15*Escalation -> 153.2939705 | F15: =E15+((Calc_Raw!F15-Calc_Raw!E15)*2) -> 184.0939705 | G15: =H15-((Calc_Raw!H15-Calc_Raw!G15)*2) -> 142.9583704 | H15: =Calc_Raw!H15*Escalation -> 175.8183704 | I15: =H15+((Calc_Raw!I15-Calc_Raw!H15)*2) -> 214.3383704 | J15: =K15-((Calc_Raw!K15-Calc_Raw!J15)*2) -> 163.7479462 | K15: =Calc_Raw!K15*Escalation -> 209.6679462 | L15: =K15+((Calc_Raw!L15-Calc_Raw!K15)*2) -> 258.3879462 | M15: =N15-((Calc_Raw!N15-Calc_Raw!M15)*2) -> 208.7327781 | N15: =Calc_Raw!N15*Escalation -> 254.6327781 | O15: =N15+((Calc_Raw!O15-Calc_Raw!N15)*2) -> 313.472778 | P15: =Q15-((Calc_Raw!Q15-Calc_Raw!P15)*2) -> 225.6122529 | Q15: =Calc_Raw!Q15*Escalation -> 273.0322529 | R15: =Q15+((Calc_Raw!R15-Calc_Raw!Q15)*2) -> 319.5722529
A16: =Config_RawLabor!A16 -> Expert | B16: =Config_RawLabor!B16 -> Civil Engineer | C16: =Config_RawLabor!C16 -> Analyzes construction projects such as channels, dams, and roads. Responsibilities also include estimating costs, personnel, material and schedule needs. | D16: =E16-((Calc_Raw!E16-Calc_Raw!D16)*2) -> 114.0135989 | E16: =Calc_Raw!E16*Escalation -> 135.9335989 | F16: =E16+((Calc_Raw!F16-Calc_Raw!E16)*2) -> 169.2535989 | G16: =H16-((Calc_Raw!H16-Calc_Raw!G16)*2) -> 133.1440412 | H16: =Calc_Raw!H16*Escalation -> 166.2040412 | I16: =H16+((Calc_Raw!I16-Calc_Raw!H16)*2) -> 202.5240412 | J16: =K16-((Calc_Raw!K16-Calc_Raw!J16)*2) -> 160.1161121 | K16: =Calc_Raw!K16*Escalation -> 201.3761121 | L16: =K16+((Calc_Raw!L16-Calc_Raw!K16)*2) -> 249.9161121 | M16: =N16-((Calc_Raw!N16-Calc_Raw!M16)*2) -> 166.8222498 | N16: =Calc_Raw!N16*Escalation -> 210.1822498 | O16: =N16+((Calc_Raw!O16-Calc_Raw!N16)*2) -> 259.3622498 | P16: =Q16-((Calc_Raw!Q16-Calc_Raw!P16)*2) -> 195.1524621 | Q16: =Calc_Raw!Q16*Escalation -> 248.9124621 | R16: =Q16+((Calc_Raw!R16-Calc_Raw!Q16)*2) -> 306.9324621
A17: =Config_RawLabor!A17 -> Expert | B17: =Config_RawLabor!B17 -> Climate Scientist | C17: =Config_RawLabor!C17 -> Analyze and interpret data obtained from meteorological stations, radar and satellite imagery, and computer models. Analyze past climate conditions and use models to predict future climate trends. Expert on factors that affect climate and cause climate change. Provides information and advises policy-makers on environmental topics such as climate change and air quality. Uses impact models to illustrate how human or natural activities respond to climate, for example crop yields, wetland ecology, biodiversity, and human health. | D17: =E17-((Calc_Raw!E17-Calc_Raw!D17)*2) -> 100.2606125 | E17: =Calc_Raw!E17*Escalation -> 128.0406125 | F17: =E17+((Calc_Raw!F17-Calc_Raw!E17)*2) -> 159.3806125 | G17: =H17-((Calc_Raw!H17-Calc_Raw!G17)*2) -> 130.9312454 | H17: =Calc_Raw!H17*Escalation -> 160.4312454 | I17: =H17+((Calc_Raw!I17-Calc_Raw!H17)*2) -> 196.5912454 | J17: =K17-((Calc_Raw!K17-Calc_Raw!J17)*2) -> 147.6849843 | K17: =Calc_Raw!K17*Escalation -> 189.9249843 | L17: =K17+((Calc_Raw!L17-Calc_Raw!K17)*2) -> 237.4249843 | M17: =N17-((Calc_Raw!N17-Calc_Raw!M17)*2) -> 156.7267335 | N17: =Calc_Raw!N17*Escalation -> 204.9867335 | O17: =N17+((Calc_Raw!O17-Calc_Raw!N17)*2) -> 253.2867335 | P17: =Q17-((Calc_Raw!Q17-Calc_Raw!P17)*2) -> 166.9151571 | Q17: =Calc_Raw!Q17*Escalation -> 239.2351571 | R17: =Q17+((Calc_Raw!R17-Calc_Raw!Q17)*2) -> 303.2151571
A18: =Config_RawLabor!A18 -> Expert | B18: =Config_RawLabor!B18 -> Communication Specialist | C18: =Config_RawLabor!C18 -> Defines, designs and implements communications strategy and programs. Evaluates and assist in establishing standard operating procedures regarding communications. Reviews and edits communications submitted for organizational issues. Works closely with various business departments to ensure messages are delivered clearly and effectively. | D18: =E18-((Calc_Raw!E18-Calc_Raw!D18)*2) -> 105.9176922 | E18: =Calc_Raw!E18*Escalation -> 139.6176922 | F18: =E18+((Calc_Raw!F18-Calc_Raw!E18)*2) -> 176.1976922 | G18: =H18-((Calc_Raw!H18-Calc_Raw!G18)*2) -> 130.8614463 | H18: =Calc_Raw!H18*Escalation -> 170.3814463 | I18: =H18+((Calc_Raw!I18-Calc_Raw!H18)*2) -> 214.1414463 | J18: =K18-((Calc_Raw!K18-Calc_Raw!J18)*2) -> 165.4061527 | K18: =Calc_Raw!K18*Escalation -> 211.7461527 | L18: =K18+((Calc_Raw!L18-Calc_Raw!K18)*2) -> 272.7061527 | M18: =N18-((Calc_Raw!N18-Calc_Raw!M18)*2) -> 204.6405188 | N18: =Calc_Raw!N18*Escalation -> 259.2405188 | O18: =N18+((Calc_Raw!O18-Calc_Raw!N18)*2) -> 326.6805188 | P18: =Q18-((Calc_Raw!Q18-Calc_Raw!P18)*2) -> 256.7447464 | Q18: =Calc_Raw!Q18*Escalation -> 343.7647464 | R18: =Q18+((Calc_Raw!R18-Calc_Raw!Q18)*2) -> 460.1247464
A19: =Config_RawLabor!A19 -> Expert | B19: =Config_RawLabor!B19 -> Cost Accountant | C19: =Config_RawLabor!C19 -> Reviews cost accounting procedures and methods. Responsible for the preparation and analysis of cost reports and costing audits. Examines and reviews unusual cost records and ensures cost data is allocated correctly. | D19: =E19-((Calc_Raw!E19-Calc_Raw!D19)*2) -> 99.30103304 | E19: =Calc_Raw!E19*Escalation -> 121.701033 | F19: =E19+((Calc_Raw!F19-Calc_Raw!E19)*2) -> 144.821033 | G19: =H19-((Calc_Raw!H19-Calc_Raw!G19)*2) -> 119.6774018 | H19: =Calc_Raw!H19*Escalation -> 142.9974018 | I19: =H19+((Calc_Raw!I19-Calc_Raw!H19)*2) -> 171.2774018 | J19: =K19-((Calc_Raw!K19-Calc_Raw!J19)*2) -> 139.6886155 | K19: =Calc_Raw!K19*Escalation -> 168.6286155 | L19: =K19+((Calc_Raw!L19-Calc_Raw!K19)*2) -> 199.1886155 | M19: =N19-((Calc_Raw!N19-Calc_Raw!M19)*2) -> 168.000015 | N19: =Calc_Raw!N19*Escalation -> 202.940015 | O19: =N19+((Calc_Raw!O19-Calc_Raw!N19)*2) -> 247.580015 | P19: =Q19-((Calc_Raw!Q19-Calc_Raw!P19)*2) -> 190.2077718 | Q19: =Calc_Raw!Q19*Escalation -> 229.7677718 | R19: =Q19+((Calc_Raw!R19-Calc_Raw!Q19)*2) -> 280.3277718
A20: =Config_RawLabor!A20 -> Expert | B20: =Config_RawLabor!B20 -> Cost Estimation Analyst | C20: =Config_RawLabor!C20 -> Reviews project cost estimates, expenditures, and forecasts. Prepares should cost estimates for comparison as part of cost reasonableness analysis. Requires technical knowledge of the construction work involved, and the ability to use cost-estimating methods. | D20: =E20-((Calc_Raw!E20-Calc_Raw!D20)*2) -> 108.9081627 | E20: =Calc_Raw!E20*Escalation -> 130.5281627 | F20: =E20+((Calc_Raw!F20-Calc_Raw!E20)*2) -> 158.7481627 | G20: =H20-((Calc_Raw!H20-Calc_Raw!G20)*2) -> 133.8458045 | H20: =Calc_Raw!H20*Escalation -> 161.5858045 | I20: =H20+((Calc_Raw!I20-Calc_Raw!H20)*2) -> 200.0658045 | J20: =K20-((Calc_Raw!K20-Calc_Raw!J20)*2) -> 145.9119329 | K20: =Calc_Raw!K20*Escalation -> 183.5119329 | L20: =K20+((Calc_Raw!L20-Calc_Raw!K20)*2) -> 231.2519329 | M20: =N20-((Calc_Raw!N20-Calc_Raw!M20)*2) -> 170.9561886 | N20: =Calc_Raw!N20*Escalation -> 228.6761886 | O20: =N20+((Calc_Raw!O20-Calc_Raw!N20)*2) -> 279.5761886 | P20: =Q20-((Calc_Raw!Q20-Calc_Raw!P20)*2) -> 233.5460475 | Q20: =Calc_Raw!Q20*Escalation -> 314.1660475 | R20: =Q20+((Calc_Raw!R20-Calc_Raw!Q20)*2) -> 389.6660475
A21: =Config_RawLabor!A21 -> Expert | B21: =Config_RawLabor!B21 -> Design Engineer | C21: =Config_RawLabor!C21 -> Evaluates products, parts, or processes for cost efficiency and reliability and to estimate project completion status. | D21: =E21-((Calc_Raw!E21-Calc_Raw!D21)*2) -> 116.1517101 | E21: =Calc_Raw!E21*Escalation -> 136.9517101 | F21: =E21+((Calc_Raw!F21-Calc_Raw!E21)*2) -> 159.9117101 | G21: =H21-((Calc_Raw!H21-Calc_Raw!G21)*2) -> 123.5705485 | H21: =Calc_Raw!H21*Escalation -> 150.4705485 | I21: =H21+((Calc_Raw!I21-Calc_Raw!H21)*2) -> 183.3505485 | J21: =K21-((Calc_Raw!K21-Calc_Raw!J21)*2) -> 170.4141932 | K21: =Calc_Raw!K21*Escalation -> 199.8541932 | L21: =K21+((Calc_Raw!L21-Calc_Raw!K21)*2) -> 242.0541932 | M21: =N21-((Calc_Raw!N21-Calc_Raw!M21)*2) -> 197.7958841 | N21: =Calc_Raw!N21*Escalation -> 251.7358841 | O21: =N21+((Calc_Raw!O21-Calc_Raw!N21)*2) -> 328.2158841 | P21: =Q21-((Calc_Raw!Q21-Calc_Raw!P21)*2) -> 220.7347433 | Q21: =Calc_Raw!Q21*Escalation -> 280.9147433 | R21: =Q21+((Calc_Raw!R21-Calc_Raw!Q21)*2) -> 366.2947433
A22: =Config_RawLabor!A22 -> Expert | B22: =Config_RawLabor!B22 -> Drilling Engineer | C22: =Config_RawLabor!C22 -> Provides expert judgment for the design and implementation of oil and gas wells. Resolves highly complex technical issues and conducts advanced research into emerging technology in the field. Recommends alterations to development and design to improve safety, costs, and efficiency. | D22: =E22-((Calc_Raw!E22-Calc_Raw!D22)*2) -> 167.6099395 | E22: =Calc_Raw!E22*Escalation -> 196.5899395 | F22: =E22+((Calc_Raw!F22-Calc_Raw!E22)*2) -> 233.4499395 | G22: =H22-((Calc_Raw!H22-Calc_Raw!G22)*2) -> 197.5676323 | H22: =Calc_Raw!H22*Escalation -> 245.8476323 | I22: =H22+((Calc_Raw!I22-Calc_Raw!H22)*2) -> 287.8876323 | J22: =K22-((Calc_Raw!K22-Calc_Raw!J22)*2) -> 221.0452648 | K22: =Calc_Raw!K22*Escalation -> 290.0252648 | L22: =K22+((Calc_Raw!L22-Calc_Raw!K22)*2) -> 343.9252648 | M22: =N22-((Calc_Raw!N22-Calc_Raw!M22)*2) -> 290.1000581 | N22: =Calc_Raw!N22*Escalation -> 366.5200581 | O22: =N22+((Calc_Raw!O22-Calc_Raw!N22)*2) -> 429.0600581 | P22: =Q22-((Calc_Raw!Q22-Calc_Raw!P22)*2) -> 302.9995095 | Q22: =Calc_Raw!Q22*Escalation -> 417.7195095 | R22: =Q22+((Calc_Raw!R22-Calc_Raw!Q22)*2) -> 469.3995095
A23: =Config_RawLabor!A23 -> Expert | B23: =Config_RawLabor!B23 -> Ecologist | C23: =Config_RawLabor!C23 -> Investigates the factors at play in a disturbed ecosystem, anticipates potential effects of proposed actions, and recommends sustainable practices. Work may include fieldwork to collect and analyze data on environmental conditions, or to assess or certify a habitat. May plan or review habitat management or environmental restoration projects, including procedures, resources, schedules, and budgets. | D23: =E23-((Calc_Raw!E23-Calc_Raw!D23)*2) -> 85.82206927 | E23: =Calc_Raw!E23*Escalation -> 104.5820693 | F23: =E23+((Calc_Raw!F23-Calc_Raw!E23)*2) -> 130.3020693 | G23: =H23-((Calc_Raw!H23-Calc_Raw!G23)*2) -> 91.10432959 | H23: =Calc_Raw!H23*Escalation -> 120.9243296 | I23: =H23+((Calc_Raw!I23-Calc_Raw!H23)*2) -> 151.2043296 | J23: =K23-((Calc_Raw!K23-Calc_Raw!J23)*2) -> 109.8162147 | K23: =Calc_Raw!K23*Escalation -> 147.4162147 | L23: =K23+((Calc_Raw!L23-Calc_Raw!K23)*2) -> 196.4162147 | M23: =N23-((Calc_Raw!N23-Calc_Raw!M23)*2) -> 153.8344092 | N23: =Calc_Raw!N23*Escalation -> 211.0744092 | O23: =N23+((Calc_Raw!O23-Calc_Raw!N23)*2) -> 278.5944092 | P23: =Q23-((Calc_Raw!Q23-Calc_Raw!P23)*2) -> 161.6233974 | Q23: =Calc_Raw!Q23*Escalation -> 216.3433974 | R23: =Q23+((Calc_Raw!R23-Calc_Raw!Q23)*2) -> 256.3033974
A24: =Config_RawLabor!A24 -> Expert | B24: =Config_RawLabor!B24 -> Economist | C24: =Config_RawLabor!C24 -> Conducts research and analyses on economic data/trends and provides recommendations based on expertise. Researches and develops new data statistical models and technological innovations. Organizes data into report format and arranges graphic illustrations of research findings. Interprets and predicts economic conditions and advises management on implications. | D24: =E24-((Calc_Raw!E24-Calc_Raw!D24)*2) -> 125.0849286 | E24: =Calc_Raw!E24*Escalation -> 178.2849286 | F24: =E24+((Calc_Raw!F24-Calc_Raw!E24)*2) -> 238.0449286 | G24: =H24-((Calc_Raw!H24-Calc_Raw!G24)*2) -> 146.6005563 | H24: =Calc_Raw!H24*Escalation -> 206.7605563 | I24: =H24+((Calc_Raw!I24-Calc_Raw!H24)*2) -> 276.7605563 | J24: =K24-((Calc_Raw!K24-Calc_Raw!J24)*2) -> 168.3625517 | K24: =Calc_Raw!K24*Escalation -> 235.5825517 | L24: =K24+((Calc_Raw!L24-Calc_Raw!K24)*2) -> 315.9025517 | M24: =N24-((Calc_Raw!N24-Calc_Raw!M24)*2) -> 178.4816757 | N24: =Calc_Raw!N24*Escalation -> 252.2816757 | O24: =N24+((Calc_Raw!O24-Calc_Raw!N24)*2) -> 343.2616757 | P24: =Q24-((Calc_Raw!Q24-Calc_Raw!P24)*2) -> 188.5263359 | Q24: =Calc_Raw!Q24*Escalation -> 268.8863359 | R24: =Q24+((Calc_Raw!R24-Calc_Raw!Q24)*2) -> 370.4463359
A25: =Config_RawLabor!A25 -> Expert | B25: =Config_RawLabor!B25 -> Electrical Controls Engineer | C25: =Config_RawLabor!C25 -> Reviews design of electrical control systems, equipment, and machinery. | D25: =E25-((Calc_Raw!E25-Calc_Raw!D25)*2) -> 113.1104277 | E25: =Calc_Raw!E25*Escalation -> 140.3104277 | F25: =E25+((Calc_Raw!F25-Calc_Raw!E25)*2) -> 157.9504277 | G25: =H25-((Calc_Raw!H25-Calc_Raw!G25)*2) -> 118.0014556 | H25: =Calc_Raw!H25*Escalation -> 157.2614556 | I25: =H25+((Calc_Raw!I25-Calc_Raw!H25)*2) -> 194.9814556 | J25: =K25-((Calc_Raw!K25-Calc_Raw!J25)*2) -> 122.8435557 | K25: =Calc_Raw!K25*Escalation -> 174.0235557 | L25: =K25+((Calc_Raw!L25-Calc_Raw!K25)*2) -> 231.6035557 | M25: =N25-((Calc_Raw!N25-Calc_Raw!M25)*2) -> 142.6424242 | N25: =Calc_Raw!N25*Escalation -> 190.0824242 | O25: =N25+((Calc_Raw!O25-Calc_Raw!N25)*2) -> 246.6224242 | P25: =Q25-((Calc_Raw!Q25-Calc_Raw!P25)*2) -> 162.1598849 | Q25: =Calc_Raw!Q25*Escalation -> 205.8998849 | R25: =Q25+((Calc_Raw!R25-Calc_Raw!Q25)*2) -> 261.4198849
A26: =Config_RawLabor!A26 -> Expert | B26: =Config_RawLabor!B26 -> Electrical Engineer | C26: =Config_RawLabor!C26 -> Reviews electrical equipment, components, or systems. Applies mathematical and engineering principles and methods to analysis of electrical system designs. Studies new technologies and researches innovative solutions and product designs to make alternate recommendations. | D26: =E26-((Calc_Raw!E26-Calc_Raw!D26)*2) -> 121.7300119 | E26: =Calc_Raw!E26*Escalation -> 140.0900119 | F26: =E26+((Calc_Raw!F26-Calc_Raw!E26)*2) -> 162.3300119 | G26: =H26-((Calc_Raw!H26-Calc_Raw!G26)*2) -> 138.8188258 | H26: =Calc_Raw!H26*Escalation -> 165.4588258 | I26: =H26+((Calc_Raw!I26-Calc_Raw!H26)*2) -> 198.9788258 | J26: =K26-((Calc_Raw!K26-Calc_Raw!J26)*2) -> 163.6465129 | K26: =Calc_Raw!K26*Escalation -> 200.3265129 | L26: =K26+((Calc_Raw!L26-Calc_Raw!K26)*2) -> 238.5065129 | M26: =N26-((Calc_Raw!N26-Calc_Raw!M26)*2) -> 197.9758982 | N26: =Calc_Raw!N26*Escalation -> 232.0558982 | O26: =N26+((Calc_Raw!O26-Calc_Raw!N26)*2) -> 273.5158982 | P26: =Q26-((Calc_Raw!Q26-Calc_Raw!P26)*2) -> 226.1700738 | Q26: =Calc_Raw!Q26*Escalation -> 277.4300738 | R26: =Q26+((Calc_Raw!R26-Calc_Raw!Q26)*2) -> 318.0100738
A27: =Config_RawLabor!A27 -> Expert | B27: =Config_RawLabor!B27 -> Energy & Resources Expert | C27: =Config_RawLabor!C27 -> Offers broad, cross discipline expertise in analytic, methodological, theoretical, and practical approaches to problems in energy, resources, and the environment. | D27: =E27-((Calc_Raw!E27-Calc_Raw!D27)*2) -> 92.67616367 | E27: =Calc_Raw!E27*Escalation -> 129.2161637 | F27: =E27+((Calc_Raw!F27-Calc_Raw!E27)*2) -> 199.7161637 | G27: =H27-((Calc_Raw!H27-Calc_Raw!G27)*2) -> 106.855283 | H27: =Calc_Raw!H27*Escalation -> 152.475283 | I27: =H27+((Calc_Raw!I27-Calc_Raw!H27)*2) -> 238.555283 | J27: =K27-((Calc_Raw!K27-Calc_Raw!J27)*2) -> 131.6055651 | K27: =Calc_Raw!K27*Escalation -> 183.1655651 | L27: =K27+((Calc_Raw!L27-Calc_Raw!K27)*2) -> 281.8455651 | M27: =N27-((Calc_Raw!N27-Calc_Raw!M27)*2) -> 157.3828816 | N27: =Calc_Raw!N27*Escalation -> 221.6228816 | O27: =N27+((Calc_Raw!O27-Calc_Raw!N27)*2) -> 331.9828816 | P27: =Q27-((Calc_Raw!Q27-Calc_Raw!P27)*2) -> 169.0268355 | Q27: =Calc_Raw!Q27*Escalation -> 241.3868355 | R27: =Q27+((Calc_Raw!R27-Calc_Raw!Q27)*2) -> 357.1468355
A28: =Config_RawLabor!A28 -> Expert | B28: =Config_RawLabor!B28 -> Engineer | C28: =Config_RawLabor!C28 -> Provides expert consultation in one or more areas of engineering. Reviews highly complex technical issues and recommends alterations to development and design to improve quality of products and/or procedures. Has extensive engineering knowledge and is considered an expert in one or more engineering specialties. | D28: =E28-((Calc_Raw!E28-Calc_Raw!D28)*2) -> 117.9057582 | E28: =Calc_Raw!E28*Escalation -> 136.8257582 | F28: =E28+((Calc_Raw!F28-Calc_Raw!E28)*2) -> 170.1657582 | G28: =H28-((Calc_Raw!H28-Calc_Raw!G28)*2) -> 130.2666711 | H28: =Calc_Raw!H28*Escalation -> 158.0066711 | I28: =H28+((Calc_Raw!I28-Calc_Raw!H28)*2) -> 191.0466711 | J28: =K28-((Calc_Raw!K28-Calc_Raw!J28)*2) -> 155.0000894 | K28: =Calc_Raw!K28*Escalation -> 188.3400894 | L28: =K28+((Calc_Raw!L28-Calc_Raw!K28)*2) -> 240.5800894 | M28: =N28-((Calc_Raw!N28-Calc_Raw!M28)*2) -> 186.2324111 | N28: =Calc_Raw!N28*Escalation -> 230.7124111 | O28: =N28+((Calc_Raw!O28-Calc_Raw!N28)*2) -> 279.5724111 | P28: =Q28-((Calc_Raw!Q28-Calc_Raw!P28)*2) -> 218.5188762 | Q28: =Calc_Raw!Q28*Escalation -> 274.0188762 | R28: =Q28+((Calc_Raw!R28-Calc_Raw!Q28)*2) -> 346.3188762
A29: =Config_RawLabor!A29 -> Expert | B29: =Config_RawLabor!B29 -> Env., Health, and Safety Engineer | C29: =Config_RawLabor!C29 -> Provides review and expert recommendations with respect to local, state and federal environmental, health and safety regulations. May review the design of facilities, work areas and work procedures from an environmental, health and safety perspective. Reviews environmental policy and procedures. Ensures compliance with all environmental, health and safety regulations. | D29: =E29-((Calc_Raw!E29-Calc_Raw!D29)*2) -> 101.3670198 | E29: =Calc_Raw!E29*Escalation -> 117.8070198 | F29: =E29+((Calc_Raw!F29-Calc_Raw!E29)*2) -> 154.3670198 | G29: =H29-((Calc_Raw!H29-Calc_Raw!G29)*2) -> 124.8587446 | H29: =Calc_Raw!H29*Escalation -> 144.7187446 | I29: =H29+((Calc_Raw!I29-Calc_Raw!H29)*2) -> 159.8187446 | J29: =K29-((Calc_Raw!K29-Calc_Raw!J29)*2) -> 144.7828192 | K29: =Calc_Raw!K29*Escalation -> 174.6428192 | L29: =K29+((Calc_Raw!L29-Calc_Raw!K29)*2) -> 201.8028192 | M29: =N29-((Calc_Raw!N29-Calc_Raw!M29)*2) -> 167.9756265 | N29: =Calc_Raw!N29*Escalation -> 209.1956265 | O29: =N29+((Calc_Raw!O29-Calc_Raw!N29)*2) -> 247.5756265 | P29: =Q29-((Calc_Raw!Q29-Calc_Raw!P29)*2) -> 214.1071374 | Q29: =Calc_Raw!Q29*Escalation -> 266.7871374 | R29: =Q29+((Calc_Raw!R29-Calc_Raw!Q29)*2) -> 308.6871374
A30: =Config_RawLabor!A30 -> Expert | B30: =Config_RawLabor!B30 -> Environmental Engineer | C30: =Config_RawLabor!C30 -> Identifies, assesses and resolves problems concerning the environment. May review measuring approaches, equipment and results in areas such as pollutants involving air, land, and water. Provides reports findings on environmental consequences of equipment, tools, and procedures. Reviews conformance to federal, state, and local environmental legislation. | D30: =E30-((Calc_Raw!E30-Calc_Raw!D30)*2) -> 100.2606125 | E30: =Calc_Raw!E30*Escalation -> 128.0406125 | F30: =E30+((Calc_Raw!F30-Calc_Raw!E30)*2) -> 159.3806125 | G30: =H30-((Calc_Raw!H30-Calc_Raw!G30)*2) -> 130.9312454 | H30: =Calc_Raw!H30*Escalation -> 160.4312454 | I30: =H30+((Calc_Raw!I30-Calc_Raw!H30)*2) -> 196.5912454 | J30: =K30-((Calc_Raw!K30-Calc_Raw!J30)*2) -> 147.6849843 | K30: =Calc_Raw!K30*Escalation -> 189.9249843 | L30: =K30+((Calc_Raw!L30-Calc_Raw!K30)*2) -> 237.4249843 | M30: =N30-((Calc_Raw!N30-Calc_Raw!M30)*2) -> 156.7267335 | N30: =Calc_Raw!N30*Escalation -> 204.9867335 | O30: =N30+((Calc_Raw!O30-Calc_Raw!N30)*2) -> 253.2867335 | P30: =Q30-((Calc_Raw!Q30-Calc_Raw!P30)*2) -> 166.9151571 | Q30: =Calc_Raw!Q30*Escalation -> 239.2351571 | R30: =Q30+((Calc_Raw!R30-Calc_Raw!Q30)*2) -> 303.2151571
A31: =Config_RawLabor!A31 -> Expert | B31: =Config_RawLabor!B31 -> Equipment Engineer | C31: =Config_RawLabor!C31 -> Provides expert consultation with respect to technical products and equipment. Recognized as technical leader and resource. Recommends alterations and enhancements to improve quality of products and/or procedures. | D31: =E31-((Calc_Raw!E31-Calc_Raw!D31)*2) -> 112.6703325 | E31: =Calc_Raw!E31*Escalation -> 139.2503325 | F31: =E31+((Calc_Raw!F31-Calc_Raw!E31)*2) -> 164.4103325 | G31: =H31-((Calc_Raw!H31-Calc_Raw!G31)*2) -> 140.5080997 | H31: =Calc_Raw!H31*Escalation -> 173.9080997 | I31: =H31+((Calc_Raw!I31-Calc_Raw!H31)*2) -> 214.1880997 | J31: =K31-((Calc_Raw!K31-Calc_Raw!J31)*2) -> 153.2940725 | K31: =Calc_Raw!K31*Escalation -> 189.6940725 | L31: =K31+((Calc_Raw!L31-Calc_Raw!K31)*2) -> 237.9340725 | M31: =N31-((Calc_Raw!N31-Calc_Raw!M31)*2) -> 182.0691796 | N31: =Calc_Raw!N31*Escalation -> 230.0091796 | O31: =N31+((Calc_Raw!O31-Calc_Raw!N31)*2) -> 288.0291796 | P31: =Q31-((Calc_Raw!Q31-Calc_Raw!P31)*2) -> 210.4947017 | Q31: =Calc_Raw!Q31*Escalation -> 249.5947017 | R31: =Q31+((Calc_Raw!R31-Calc_Raw!Q31)*2) -> 290.3947017
A32: =Config_RawLabor!A32 -> Expert | B32: =Config_RawLabor!B32 -> Expert - Not Otherwise Classified | C32: =Config_RawLabor!C32 -> Used for export roles that are not better classified as one of the more detailed roles. May also be used for experts that fill multiple subroles. | D32: =E32-((Calc_Raw!E32-Calc_Raw!D32)*2) -> 117.4083438 | E32: =Calc_Raw!E32*Escalation -> 145.7683438 | F32: =E32+((Calc_Raw!F32-Calc_Raw!E32)*2) -> 189.9083438 | G32: =H32-((Calc_Raw!H32-Calc_Raw!G32)*2) -> 135.817253 | H32: =Calc_Raw!H32*Escalation -> 172.197253 | I32: =H32+((Calc_Raw!I32-Calc_Raw!H32)*2) -> 225.317253 | J32: =K32-((Calc_Raw!K32-Calc_Raw!J32)*2) -> 161.7538377 | K32: =Calc_Raw!K32*Escalation -> 204.7138377 | L32: =K32+((Calc_Raw!L32-Calc_Raw!K32)*2) -> 266.4338377 | M32: =N32-((Calc_Raw!N32-Calc_Raw!M32)*2) -> 191.5722113 | N32: =Calc_Raw!N32*Escalation -> 241.7122113 | O32: =N32+((Calc_Raw!O32-Calc_Raw!N32)*2) -> 310.4522113 | P32: =Q32-((Calc_Raw!Q32-Calc_Raw!P32)*2) -> 219.118681 | Q32: =Calc_Raw!Q32*Escalation -> 278.458681 | R32: =Q32+((Calc_Raw!R32-Calc_Raw!Q32)*2) -> 356.498681
A33: =Config_RawLabor!A33 -> Expert | B33: =Config_RawLabor!B33 -> Expert - Social Work | C33: =Config_RawLabor!C33 -> Provides expertise in the discipline area of social work. Familiar with current literature and research in the selected field. | D33: =E33-((Calc_Raw!E33-Calc_Raw!D33)*2) -> 85.8570906 | E33: =Calc_Raw!E33*Escalation -> 130.7170906 | F33: =E33+((Calc_Raw!F33-Calc_Raw!E33)*2) -> 237.3370906 | G33: =H33-((Calc_Raw!H33-Calc_Raw!G33)*2) -> 99.68804874 | H33: =Calc_Raw!H33*Escalation -> 155.7080487 | I33: =H33+((Calc_Raw!I33-Calc_Raw!H33)*2) -> 283.8880487 | J33: =K33-((Calc_Raw!K33-Calc_Raw!J33)*2) -> 118.8415321 | K33: =Calc_Raw!K33*Escalation -> 184.5615321 | L33: =K33+((Calc_Raw!L33-Calc_Raw!K33)*2) -> 334.1615321 | M33: =N33-((Calc_Raw!N33-Calc_Raw!M33)*2) -> 140.5955568 | N33: =Calc_Raw!N33*Escalation -> 217.2355568 | O33: =N33+((Calc_Raw!O33-Calc_Raw!N33)*2) -> 389.3755568 | P33: =Q33-((Calc_Raw!Q33-Calc_Raw!P33)*2) -> 158.5348318 | Q33: =Calc_Raw!Q33*Escalation -> 246.6348318 | R33: =Q33+((Calc_Raw!R33-Calc_Raw!Q33)*2) -> 439.7748318
A34: =Config_RawLabor!A34 -> Expert | B34: =Config_RawLabor!B34 -> Field Service Engineer | C34: =Config_RawLabor!C34 -> Reviews installation and maintenance of products/equipment. Identifies, analyzes, makes recommendations regarding product failures, installation of new components or parts. Develops creative recommendations for more unique, chronic, or complex issues. Provides the intervenor team with explanations of product features and typical operation. Has extensive knowledge of an organization's products and services and is considered an expert. | D34: =E34-((Calc_Raw!E34-Calc_Raw!D34)*2) -> 93.01799203 | E34: =Calc_Raw!E34*Escalation -> 123.117992 | F34: =E34+((Calc_Raw!F34-Calc_Raw!E34)*2) -> 158.557992 | G34: =H34-((Calc_Raw!H34-Calc_Raw!G34)*2) -> 109.2087597 | H34: =Calc_Raw!H34*Escalation -> 145.9887597 | I34: =H34+((Calc_Raw!I34-Calc_Raw!H34)*2) -> 187.3087597 | J34: =K34-((Calc_Raw!K34-Calc_Raw!J34)*2) -> 135.63565 | K34: =Calc_Raw!K34*Escalation -> 176.39565 | L34: =K34+((Calc_Raw!L34-Calc_Raw!K34)*2) -> 228.57565 | M34: =N34-((Calc_Raw!N34-Calc_Raw!M34)*2) -> 152.7676256 | N34: =Calc_Raw!N34*Escalation -> 210.5076256 | O34: =N34+((Calc_Raw!O34-Calc_Raw!N34)*2) -> 253.7476256 | P34: =Q34-((Calc_Raw!Q34-Calc_Raw!P34)*2) -> 169.4095653 | Q34: =Calc_Raw!Q34*Escalation -> 227.6895653 | R34: =Q34+((Calc_Raw!R34-Calc_Raw!Q34)*2) -> 276.3295653
A35: =Config_RawLabor!A35 -> Expert | B35: =Config_RawLabor!B35 -> Fire Fighter | C35: =Config_RawLabor!C35 -> Provides explanations of standard or expected fire fighting procedures under typical, potential, or observed scenarios. | D35: =E35-((Calc_Raw!E35-Calc_Raw!D35)*2) -> 36.13972777 | E35: =Calc_Raw!E35*Escalation -> 67.49972777 | F35: =E35+((Calc_Raw!F35-Calc_Raw!E35)*2) -> 99.95972777 | G35: =H35-((Calc_Raw!H35-Calc_Raw!G35)*2) -> 41.83930255 | H35: =Calc_Raw!H35*Escalation -> 80.39930255 | I35: =H35+((Calc_Raw!I35-Calc_Raw!H35)*2) -> 119.5993026 | J35: =K35-((Calc_Raw!K35-Calc_Raw!J35)*2) -> 49.9036119 | K35: =Calc_Raw!K35*Escalation -> 95.3036119 | L35: =K35+((Calc_Raw!L35-Calc_Raw!K35)*2) -> 140.7036119 | M35: =N35-((Calc_Raw!N35-Calc_Raw!M35)*2) -> 59.07067185 | N35: =Calc_Raw!N35*Escalation -> 112.1706718 | O35: =N35+((Calc_Raw!O35-Calc_Raw!N35)*2) -> 163.8306718 | P35: =Q35-((Calc_Raw!Q35-Calc_Raw!P35)*2) -> 66.538373 | Q35: =Calc_Raw!Q35*Escalation -> 127.358373 | R35: =Q35+((Calc_Raw!R35-Calc_Raw!Q35)*2) -> 184.938373
A36: =Config_RawLabor!A36 -> Expert | B36: =Config_RawLabor!B36 -> Fire Inspector Supervisor | C36: =Config_RawLabor!C36 -> Oversees the inspection of fire-damage to determine cause. Reviews preventive actions for appropriatness. Provides explanations of a variety of fire laws, regulations, and policies, including identifying those that are appropriate for a given situation. Assesses compliance with laws, regulations, and policies. | D36: =E36-((Calc_Raw!E36-Calc_Raw!D36)*2) -> 74.67617773 | E36: =Calc_Raw!E36*Escalation -> 109.5361777 | F36: =E36+((Calc_Raw!F36-Calc_Raw!E36)*2) -> 157.1161777 | G36: =H36-((Calc_Raw!H36-Calc_Raw!G36)*2) -> 86.75568277 | H36: =Calc_Raw!H36*Escalation -> 130.4756828 | I36: =H36+((Calc_Raw!I36-Calc_Raw!H36)*2) -> 188.0156828 | J36: =K36-((Calc_Raw!K36-Calc_Raw!J36)*2) -> 103.4279535 | K36: =Calc_Raw!K36*Escalation -> 154.6479535 | L36: =K36+((Calc_Raw!L36-Calc_Raw!K36)*2) -> 221.1879535 | M36: =N36-((Calc_Raw!N36-Calc_Raw!M36)*2) -> 122.3319979 | N36: =Calc_Raw!N36*Escalation -> 182.0319979 | O36: =N36+((Calc_Raw!O36-Calc_Raw!N36)*2) -> 257.4919979 | P36: =Q36-((Calc_Raw!Q36-Calc_Raw!P36)*2) -> 137.9660923 | Q36: =Calc_Raw!Q36*Escalation -> 206.6660923 | R36: =Q36+((Calc_Raw!R36-Calc_Raw!Q36)*2) -> 290.6660923
A37: =Config_RawLabor!A37 -> Expert | B37: =Config_RawLabor!B37 -> Fire Prevention Engineer | C37: =Config_RawLabor!C37 -> Examines buildings and equipment to determine compliance with fire prevention best practices. Ensures fire compliance codes are being adhered to. | D37: =E37-((Calc_Raw!E37-Calc_Raw!D37)*2) -> 84.30643224 | E37: =Calc_Raw!E37*Escalation -> 89.22643224 | F37: =E37+((Calc_Raw!F37-Calc_Raw!E37)*2) -> 120.7064322 | G37: =H37-((Calc_Raw!H37-Calc_Raw!G37)*2) -> 98.34242006 | H37: =Calc_Raw!H37*Escalation -> 106.2824201 | I37: =H37+((Calc_Raw!I37-Calc_Raw!H37)*2) -> 144.4624201 | J37: =K37-((Calc_Raw!K37-Calc_Raw!J37)*2) -> 117.123398 | K37: =Calc_Raw!K37*Escalation -> 125.983398 | L37: =K37+((Calc_Raw!L37-Calc_Raw!K37)*2) -> 169.903398 | M37: =N37-((Calc_Raw!N37-Calc_Raw!M37)*2) -> 138.427382 | N37: =Calc_Raw!N37*Escalation -> 148.287382 | O37: =N37+((Calc_Raw!O37-Calc_Raw!N37)*2) -> 197.747382 | P37: =Q37-((Calc_Raw!Q37-Calc_Raw!P37)*2) -> 156.2757197 | Q37: =Calc_Raw!Q37*Escalation -> 168.3557197 | R37: =Q37+((Calc_Raw!R37-Calc_Raw!Q37)*2) -> 223.2157197
A38: =Config_RawLabor!A38 -> Expert | B38: =Config_RawLabor!B38 -> Geologist | C38: =Config_RawLabor!C38 -> Expert on the formation, dissolution, and content of rock layers, along with the effects of internal pressures, heat, water, pollution, and erosion. | D38: =E38-((Calc_Raw!E38-Calc_Raw!D38)*2) -> 108.7520448 | E38: =Calc_Raw!E38*Escalation -> 116.4320448 | F38: =E38+((Calc_Raw!F38-Calc_Raw!E38)*2) -> 155.0520448 | G38: =H38-((Calc_Raw!H38-Calc_Raw!G38)*2) -> 118.4827427 | H38: =Calc_Raw!H38*Escalation -> 147.3427427 | I38: =H38+((Calc_Raw!I38-Calc_Raw!H38)*2) -> 225.6627427 | J38: =K38-((Calc_Raw!K38-Calc_Raw!J38)*2) -> 166.2713219 | K38: =Calc_Raw!K38*Escalation -> 187.7313219 | L38: =K38+((Calc_Raw!L38-Calc_Raw!K38)*2) -> 248.0113219 | M38: =N38-((Calc_Raw!N38-Calc_Raw!M38)*2) -> 154.9088034 | N38: =Calc_Raw!N38*Escalation -> 219.2088034 | O38: =N38+((Calc_Raw!O38-Calc_Raw!N38)*2) -> 281.7088034 | P38: =Q38-((Calc_Raw!Q38-Calc_Raw!P38)*2) -> 192.2251091 | Q38: =Calc_Raw!Q38*Escalation -> 283.8851091 | R38: =Q38+((Calc_Raw!R38-Calc_Raw!Q38)*2) -> 336.1651091
A39: =Config_RawLabor!A39 -> Expert | B39: =Config_RawLabor!B39 -> Geotechnical Engineer | C39: =Config_RawLabor!C39 -> Prepares and inspects projects involving drilling and exploration. Responsible for reviewing geological maps, site characterization, numerical modeling and analysis of excavations/supports. | D39: =E39-((Calc_Raw!E39-Calc_Raw!D39)*2) -> 106.3792999 | E39: =Calc_Raw!E39*Escalation -> 128.8592999 | F39: =E39+((Calc_Raw!F39-Calc_Raw!E39)*2) -> 144.9192999 | G39: =H39-((Calc_Raw!H39-Calc_Raw!G39)*2) -> 102.9051472 | H39: =Calc_Raw!H39*Escalation -> 141.0451472 | I39: =H39+((Calc_Raw!I39-Calc_Raw!H39)*2) -> 165.1451472 | J39: =K39-((Calc_Raw!K39-Calc_Raw!J39)*2) -> 133.0686712 | K39: =Calc_Raw!K39*Escalation -> 180.2686712 | L39: =K39+((Calc_Raw!L39-Calc_Raw!K39)*2) -> 208.1886712 | M39: =N39-((Calc_Raw!N39-Calc_Raw!M39)*2) -> 196.9783724 | N39: =Calc_Raw!N39*Escalation -> 217.7183724 | O39: =N39+((Calc_Raw!O39-Calc_Raw!N39)*2) -> 238.4983724 | P39: =Q39-((Calc_Raw!Q39-Calc_Raw!P39)*2) -> 224.3898068 | Q39: =Calc_Raw!Q39*Escalation -> 248.0098068 | R39: =Q39+((Calc_Raw!R39-Calc_Raw!Q39)*2) -> 271.6898068
A40: =Config_RawLabor!A40 -> Expert | B40: =Config_RawLabor!B40 -> Hardware Engineer | C40: =Config_RawLabor!C40 -> Reviews design, development, and implementation of hardware for products. Reviews test strategies and implementation, devices, and systems. Reviews stress and performance test results for a variety of computer hardware including circuit boards, processors and wiring. | D40: =E40-((Calc_Raw!E40-Calc_Raw!D40)*2) -> 112.3386192 | E40: =Calc_Raw!E40*Escalation -> 141.1186192 | F40: =E40+((Calc_Raw!F40-Calc_Raw!E40)*2) -> 165.8586192 | G40: =H40-((Calc_Raw!H40-Calc_Raw!G40)*2) -> 134.778856 | H40: =Calc_Raw!H40*Escalation -> 167.998856 | I40: =H40+((Calc_Raw!I40-Calc_Raw!H40)*2) -> 203.718856 | J40: =K40-((Calc_Raw!K40-Calc_Raw!J40)*2) -> 164.7048146 | K40: =Calc_Raw!K40*Escalation -> 203.4648146 | L40: =K40+((Calc_Raw!L40-Calc_Raw!K40)*2) -> 247.1048146 | M40: =N40-((Calc_Raw!N40-Calc_Raw!M40)*2) -> 201.4157587 | N40: =Calc_Raw!N40*Escalation -> 248.1357587 | O40: =N40+((Calc_Raw!O40-Calc_Raw!N40)*2) -> 292.4357587 | P40: =Q40-((Calc_Raw!Q40-Calc_Raw!P40)*2) -> 230.662103 | Q40: =Calc_Raw!Q40*Escalation -> 281.282103 | R40: =Q40+((Calc_Raw!R40-Calc_Raw!Q40)*2) -> 332.702103
A41: =Config_RawLabor!A41 -> Expert | B41: =Config_RawLabor!B41 -> Health Scientist | C41: =Config_RawLabor!C41 -> Reviews the potential impact of policies and planned projects on community health. | D41: =E41-((Calc_Raw!E41-Calc_Raw!D41)*2) -> 127.1318329 | E41: =Calc_Raw!E41*Escalation -> 189.0118329 | F41: =E41+((Calc_Raw!F41-Calc_Raw!E41)*2) -> 268.7918329 | G41: =H41-((Calc_Raw!H41-Calc_Raw!G41)*2) -> 147.6695351 | H41: =Calc_Raw!H41*Escalation -> 225.1495351 | I41: =H41+((Calc_Raw!I41-Calc_Raw!H41)*2) -> 321.6295351 | J41: =K41-((Calc_Raw!K41-Calc_Raw!J41)*2) -> 176.0606093 | K41: =Calc_Raw!K41*Escalation -> 266.8606093 | L41: =K41+((Calc_Raw!L41-Calc_Raw!K41)*2) -> 378.3606093 | M41: =N41-((Calc_Raw!N41-Calc_Raw!M41)*2) -> 208.2535675 | N41: =Calc_Raw!N41*Escalation -> 314.1135675 | O41: =N41+((Calc_Raw!O41-Calc_Raw!N41)*2) -> 440.4735675 | P41: =Q41-((Calc_Raw!Q41-Calc_Raw!P41)*2) -> 234.8128332 | Q41: =Calc_Raw!Q41*Escalation -> 356.6328332 | R41: =Q41+((Calc_Raw!R41-Calc_Raw!Q41)*2) -> 497.2128332
A42: =Config_RawLabor!A42 -> Expert | B42: =Config_RawLabor!B42 -> Hydrologist | C42: =Config_RawLabor!C42 -> Measure the properties of bodies of water, such as volume and stream flow Collect water and soil samples to test for certain properties, such as the pH or pollution levels. Analyze data on the environmental impacts of pollution, erosion, drought, and other problems. Recommend ways to minimize the negative impacts of erosion, sedimentation, or pollution on the environment. Use computer models to forecast future water supplies, the spread of pollution, floods, and other events. Evaluate the feasibility of water-related projects, such as hydroelectric power plants, irrigation systems, and wastewater treatment facilities. | D42: =E42-((Calc_Raw!E42-Calc_Raw!D42)*2) -> 100.2606125 | E42: =Calc_Raw!E42*Escalation -> 128.0406125 | F42: =E42+((Calc_Raw!F42-Calc_Raw!E42)*2) -> 159.3806125 | G42: =H42-((Calc_Raw!H42-Calc_Raw!G42)*2) -> 130.9312454 | H42: =Calc_Raw!H42*Escalation -> 160.4312454 | I42: =H42+((Calc_Raw!I42-Calc_Raw!H42)*2) -> 196.5912454 | J42: =K42-((Calc_Raw!K42-Calc_Raw!J42)*2) -> 147.6849843 | K42: =Calc_Raw!K42*Escalation -> 189.9249843 | L42: =K42+((Calc_Raw!L42-Calc_Raw!K42)*2) -> 237.4249843 | M42: =N42-((Calc_Raw!N42-Calc_Raw!M42)*2) -> 156.7267335 | N42: =Calc_Raw!N42*Escalation -> 204.9867335 | O42: =N42+((Calc_Raw!O42-Calc_Raw!N42)*2) -> 253.2867335 | P42: =Q42-((Calc_Raw!Q42-Calc_Raw!P42)*2) -> 166.9151571 | Q42: =Calc_Raw!Q42*Escalation -> 239.2351571 | R42: =Q42+((Calc_Raw!R42-Calc_Raw!Q42)*2) -> 303.2151571
A43: =Config_RawLabor!A43 -> Expert | B43: =Config_RawLabor!B43 -> IT Project Engineer | C43: =Config_RawLabor!C43 -> Reviews IT engineering projects for compliance with industry best practices. Performs engineering design evaluations and reviews project budget and schedule. Reviews information system policies and controls to ensure data accuracy, security, and regulatory compliance. Reviews reports of computer and peripheral equipment production, malfunction, and maintenance to determine problems. | D43: =E43-((Calc_Raw!E43-Calc_Raw!D43)*2) -> 142.0893774 | E43: =Calc_Raw!E43*Escalation -> 177.1093774 | F43: =E43+((Calc_Raw!F43-Calc_Raw!E43)*2) -> 227.5293774 | G43: =H43-((Calc_Raw!H43-Calc_Raw!G43)*2) -> 151.7438273 | H43: =Calc_Raw!H43*Escalation -> 196.8838273 | I43: =H43+((Calc_Raw!I43-Calc_Raw!H43)*2) -> 251.4838273 | J43: =K43-((Calc_Raw!K43-Calc_Raw!J43)*2) -> 178.901058 | K43: =Calc_Raw!K43*Escalation -> 221.161058 | L43: =K43+((Calc_Raw!L43-Calc_Raw!K43)*2) -> 271.101058 | M43: =N43-((Calc_Raw!N43-Calc_Raw!M43)*2) -> 176.7280924 | N43: =Calc_Raw!N43*Escalation -> 228.9280924 | O43: =N43+((Calc_Raw!O43-Calc_Raw!N43)*2) -> 278.0480924 | P43: =Q43-((Calc_Raw!Q43-Calc_Raw!P43)*2) -> 198.4678483 | Q43: =Calc_Raw!Q43*Escalation -> 257.0678483 | R43: =Q43+((Calc_Raw!R43-Calc_Raw!Q43)*2) -> 312.2478483
A44: =Config_RawLabor!A44 -> Expert | B44: =Config_RawLabor!B44 -> Mechanical Engineer | C44: =Config_RawLabor!C44 -> Reviews all aspects of mechanical components, equipment, and machinery design, installation, and testing. Applies knowledge of engineering principles to review products such as engines, instruments, controls, robots, machines, etc. Reviews product testing, models and prototypes. May review fabrication, operation, application, installation, and/or repair of mechanical products. | D44: =E44-((Calc_Raw!E44-Calc_Raw!D44)*2) -> 118.3303023 | E44: =Calc_Raw!E44*Escalation -> 136.7103023 | F44: =E44+((Calc_Raw!F44-Calc_Raw!E44)*2) -> 158.5703023 | G44: =H44-((Calc_Raw!H44-Calc_Raw!G44)*2) -> 140.2588258 | H44: =Calc_Raw!H44*Escalation -> 165.4588258 | I44: =H44+((Calc_Raw!I44-Calc_Raw!H44)*2) -> 197.8988258 | J44: =K44-((Calc_Raw!K44-Calc_Raw!J44)*2) -> 167.2239226 | K44: =Calc_Raw!K44*Escalation -> 197.9439226 | L44: =K44+((Calc_Raw!L44-Calc_Raw!K44)*2) -> 233.2839226 | M44: =N44-((Calc_Raw!N44-Calc_Raw!M44)*2) -> 197.3551269 | N44: =Calc_Raw!N44*Escalation -> 236.6951269 | O44: =N44+((Calc_Raw!O44-Calc_Raw!N44)*2) -> 282.1551269 | P44: =Q44-((Calc_Raw!Q44-Calc_Raw!P44)*2) -> 227.2521577 | Q44: =Calc_Raw!Q44*Escalation -> 271.9721577 | R44: =Q44+((Calc_Raw!R44-Calc_Raw!Q44)*2) -> 316.6721577
A45: =Config_RawLabor!A45 -> Expert | B45: =Config_RawLabor!B45 -> Network Engineer | C45: =Config_RawLabor!C45 -> Evaluates network systems and communications. May review issues such as network traffic, potential security risk, etc. Reviews network architecture design and optimization. Must have extensive knowledge of Internet, computer, routers, switches, firewall, etc. | D45: =E45-((Calc_Raw!E45-Calc_Raw!D45)*2) -> 108.2536941 | E45: =Calc_Raw!E45*Escalation -> 136.9936941 | F45: =E45+((Calc_Raw!F45-Calc_Raw!E45)*2) -> 177.8136941 | G45: =H45-((Calc_Raw!H45-Calc_Raw!G45)*2) -> 131.505384 | H45: =Calc_Raw!H45*Escalation -> 167.925384 | I45: =H45+((Calc_Raw!I45-Calc_Raw!H45)*2) -> 210.945384 | J45: =K45-((Calc_Raw!K45-Calc_Raw!J45)*2) -> 158.3879556 | K45: =Calc_Raw!K45*Escalation -> 196.5479556 | L45: =K45+((Calc_Raw!L45-Calc_Raw!K45)*2) -> 236.3479556 | M45: =N45-((Calc_Raw!N45-Calc_Raw!M45)*2) -> 194.9621009 | N45: =Calc_Raw!N45*Escalation -> 239.3821009 | O45: =N45+((Calc_Raw!O45-Calc_Raw!N45)*2) -> 290.4421009 | P45: =Q45-((Calc_Raw!Q45-Calc_Raw!P45)*2) -> 210.0115956 | Q45: =Calc_Raw!Q45*Escalation -> 252.4915956 | R45: =Q45+((Calc_Raw!R45-Calc_Raw!Q45)*2) -> 303.0315956
A46: =Config_RawLabor!A46 -> Expert | B46: =Config_RawLabor!B46 -> Nuclear Engineer | C46: =Config_RawLabor!C46 -> Reviews processes related to nuclear energy and radiation. Familiar with problems of nuclear energy systems. Reviews design of nuclear equipment. Reviews testing, operation, and maintenance of nuclear reactors. | D46: =E46-((Calc_Raw!E46-Calc_Raw!D46)*2) -> 135.0518913 | E46: =Calc_Raw!E46*Escalation -> 152.1918913 | F46: =E46+((Calc_Raw!F46-Calc_Raw!E46)*2) -> 196.3918913 | G46: =H46-((Calc_Raw!H46-Calc_Raw!G46)*2) -> 145.8515774 | H46: =Calc_Raw!H46*Escalation -> 188.3715774 | I46: =H46+((Calc_Raw!I46-Calc_Raw!H46)*2) -> 222.8115774 | J46: =K46-((Calc_Raw!K46-Calc_Raw!J46)*2) -> 169.4929014 | K46: =Calc_Raw!K46*Escalation -> 216.3329014 | L46: =K46+((Calc_Raw!L46-Calc_Raw!K46)*2) -> 259.9529014 | M46: =N46-((Calc_Raw!N46-Calc_Raw!M46)*2) -> 195.9140443 | N46: =Calc_Raw!N46*Escalation -> 229.0540443 | O46: =N46+((Calc_Raw!O46-Calc_Raw!N46)*2) -> 276.7540443 | P46: =Q46-((Calc_Raw!Q46-Calc_Raw!P46)*2) -> 208.1004537 | Q46: =Calc_Raw!Q46*Escalation -> 260.7204537 | R46: =Q46+((Calc_Raw!R46-Calc_Raw!Q46)*2) -> 315.7204537
A47: =Config_RawLabor!A47 -> Expert | B47: =Config_RawLabor!B47 -> Physicist | C47: =Config_RawLabor!C47 -> Provide reports regarding experimental physicists, force analysis, health physics, and high-energy physics. Provide expert witness testimony on issues regarding nuclear physics, optics, particle physics, quantum computing, quantum physics, radiation exposure, the science of matter and energy, shock physics, stress on materials, superconductivity, thermal exposure, and thermodynamics, as well as related topics. | D47: =E47-((Calc_Raw!E47-Calc_Raw!D47)*2) -> 138.8766513 | E47: =Calc_Raw!E47*Escalation -> 163.2966513 | F47: =E47+((Calc_Raw!F47-Calc_Raw!E47)*2) -> 259.7166513 | G47: =H47-((Calc_Raw!H47-Calc_Raw!G47)*2) -> 146.3527156 | H47: =Calc_Raw!H47*Escalation -> 207.6527156 | I47: =H47+((Calc_Raw!I47-Calc_Raw!H47)*2) -> 330.5927156 | J47: =K47-((Calc_Raw!K47-Calc_Raw!J47)*2) -> 168.817752 | K47: =Calc_Raw!K47*Escalation -> 235.057752 | L47: =K47+((Calc_Raw!L47-Calc_Raw!K47)*2) -> 346.337752 | M47: =N47-((Calc_Raw!N47-Calc_Raw!M47)*2) -> 208.9764972 | N47: =Calc_Raw!N47*Escalation -> 289.4164972 | O47: =N47+((Calc_Raw!O47-Calc_Raw!N47)*2) -> 397.2164972 | P47: =Q47-((Calc_Raw!Q47-Calc_Raw!P47)*2) -> 260.9554563 | Q47: =Calc_Raw!Q47*Escalation -> 313.0954563 | R47: =Q47+((Calc_Raw!R47-Calc_Raw!Q47)*2) -> 433.1154563
A48: =Config_RawLabor!A48 -> Expert | B48: =Config_RawLabor!B48 -> Process Engineer | C48: =Config_RawLabor!C48 -> Reviews continuous production and manufacturing processes with respect to output, quality, and cost. Reviews production data and applies standard scientific and statistical methods to analyze, document, and diagram production processes. Identifies process bottlenecks and recommended solutions to resolve. Recommends changes or upgrades to equipment, work methods, or other aspects of the process to improve efficiency and utilization of resources including labor, energy and raw materials. | D48: =E48-((Calc_Raw!E48-Calc_Raw!D48)*2) -> 117.6350067 | E48: =Calc_Raw!E48*Escalation -> 136.1750067 | F48: =E48+((Calc_Raw!F48-Calc_Raw!E48)*2) -> 159.2350067 | G48: =H48-((Calc_Raw!H48-Calc_Raw!G48)*2) -> 137.689036 | H48: =Calc_Raw!H48*Escalation -> 162.289036 | I48: =H48+((Calc_Raw!I48-Calc_Raw!H48)*2) -> 185.129036 | J48: =K48-((Calc_Raw!K48-Calc_Raw!J48)*2) -> 161.7142629 | K48: =Calc_Raw!K48*Escalation -> 191.8142629 | L48: =K48+((Calc_Raw!L48-Calc_Raw!K48)*2) -> 219.0542629 | M48: =N48-((Calc_Raw!N48-Calc_Raw!M48)*2) -> 192.7133729 | N48: =Calc_Raw!N48*Escalation -> 228.1933729 | O48: =N48+((Calc_Raw!O48-Calc_Raw!N48)*2) -> 266.8733729 | P48: =Q48-((Calc_Raw!Q48-Calc_Raw!P48)*2) -> 217.0773523 | Q48: =Calc_Raw!Q48*Escalation -> 257.0573523 | R48: =Q48+((Calc_Raw!R48-Calc_Raw!Q48)*2) -> 300.6173523
A49: =Config_RawLabor!A49 -> Expert | B49: =Config_RawLabor!B49 -> Professor - Law | C49: =Config_RawLabor!C49 -> Current or former law professor with knowledge of CPUC regulatory proceedings. | D49: =E49-((Calc_Raw!E49-Calc_Raw!D49)*2) -> 121.3161745 | E49: =Calc_Raw!E49*Escalation -> 248.3561745 | F49: =E49+((Calc_Raw!F49-Calc_Raw!E49)*2) -> 391.8161745 | G49: =H49-((Calc_Raw!H49-Calc_Raw!G49)*2) -> 132.1311006 | H49: =Calc_Raw!H49*Escalation -> 273.4311006 | I49: =H49+((Calc_Raw!I49-Calc_Raw!H49)*2) -> 434.4711006 | J49: =K49-((Calc_Raw!K49-Calc_Raw!J49)*2) -> 142.778667 | K49: =Calc_Raw!K49*Escalation -> 298.138667 | L49: =K49+((Calc_Raw!L49-Calc_Raw!K49)*2) -> 476.498667 | M49: =N49-((Calc_Raw!N49-Calc_Raw!M49)*2) -> 155.6698968 | N49: =Calc_Raw!N49*Escalation -> 345.9898968 | O49: =N49+((Calc_Raw!O49-Calc_Raw!N49)*2) -> 578.2898968 | P49: =Q49-((Calc_Raw!Q49-Calc_Raw!P49)*2) -> 168.3224392 | Q49: =Calc_Raw!Q49*Escalation -> 393.0224392 | R49: =Q49+((Calc_Raw!R49-Calc_Raw!Q49)*2) -> 678.3424392
A50: =Config_RawLabor!A50 -> Expert | B50: =Config_RawLabor!B50 -> Program Design/Evaluation Specialist | C50: =Config_RawLabor!C50 -> Designs marketing strategies and programs for a utility product or product line. Evaluates utility product performance, and recommends changes to current products based on market research and new trends. | D50: =E50-((Calc_Raw!E50-Calc_Raw!D50)*2) -> 100.9689294 | E50: =Calc_Raw!E50*Escalation -> 132.4489294 | F50: =E50+((Calc_Raw!F50-Calc_Raw!E50)*2) -> 169.1689294 | G50: =H50-((Calc_Raw!H50-Calc_Raw!G50)*2) -> 113.7021619 | H50: =Calc_Raw!H50*Escalation -> 154.1021619 | I50: =H50+((Calc_Raw!I50-Calc_Raw!H50)*2) -> 204.3021619 | J50: =K50-((Calc_Raw!K50-Calc_Raw!J50)*2) -> 143.0132106 | K50: =Calc_Raw!K50*Escalation -> 186.7132106 | L50: =K50+((Calc_Raw!L50-Calc_Raw!K50)*2) -> 235.3932106 | M50: =N50-((Calc_Raw!N50-Calc_Raw!M50)*2) -> 182.3395757 | N50: =Calc_Raw!N50*Escalation -> 235.5195757 | O50: =N50+((Calc_Raw!O50-Calc_Raw!N50)*2) -> 298.2995757 | P50: =Q50-((Calc_Raw!Q50-Calc_Raw!P50)*2) -> 182.0659991 | Q50: =Calc_Raw!Q50*Escalation -> 247.5059991 | R50: =Q50+((Calc_Raw!R50-Calc_Raw!Q50)*2) -> 295.9459991
A51: =Config_RawLabor!A51 -> Expert | B51: =Config_RawLabor!B51 -> Project Engineer | C51: =Config_RawLabor!C51 -> Reviews engineering designs and implementation plans for reasonableness. Reviews industry policies and procedures to ensure data accuracy, security, and regulatory compliance. Reviews reports of production, malfunction, and maintenance to determine or address problems. Provides recommendations regarding engineering process. Coordinates with other engineering experts and coordinates their specialized contributions to the proceeding. Reviews and opins on operational plans for completing the project. Reviews progress and performance against the project plan and recommends actions to resolve operational problems and minimize delays. Develops alternate or comparative project schedules, budgets, and forecasts. | D51: =E51-((Calc_Raw!E51-Calc_Raw!D51)*2) -> 124.12892 | E51: =Calc_Raw!E51*Escalation -> 145.56892 | F51: =E51+((Calc_Raw!F51-Calc_Raw!E51)*2) -> 183.06892 | G51: =H51-((Calc_Raw!H51-Calc_Raw!G51)*2) -> 143.2143072 | H51: =Calc_Raw!H51*Escalation -> 174.6743072 | I51: =H51+((Calc_Raw!I51-Calc_Raw!H51)*2) -> 215.3143072 | J51: =K51-((Calc_Raw!K51-Calc_Raw!J51)*2) -> 167.972941 | K51: =Calc_Raw!K51*Escalation -> 205.752941 | L51: =K51+((Calc_Raw!L51-Calc_Raw!K51)*2) -> 252.832941 | M51: =N51-((Calc_Raw!N51-Calc_Raw!M51)*2) -> 197.9759539 | N51: =Calc_Raw!N51*Escalation -> 243.6959539 | O51: =N51+((Calc_Raw!O51-Calc_Raw!N51)*2) -> 300.2959539 | P51: =Q51-((Calc_Raw!Q51-Calc_Raw!P51)*2) -> 215.4148177 | Q51: =Calc_Raw!Q51*Escalation -> 266.3148177 | R51: =Q51+((Calc_Raw!R51-Calc_Raw!Q51)*2) -> 332.5548177
A52: =Config_RawLabor!A52 -> Expert | B52: =Config_RawLabor!B52 -> Project Engineer - Construction | C52: =Config_RawLabor!C52 -> Interviews construction staff. Reviews plans and other technical documents, answers questions regarding the scope and/or scheduling of the project. Develops cost estimates or appropriate schedules. | D52: =E52-((Calc_Raw!E52-Calc_Raw!D52)*2) -> 104.6670406 | E52: =Calc_Raw!E52*Escalation -> 133.4670406 | F52: =E52+((Calc_Raw!F52-Calc_Raw!E52)*2) -> 169.9070406 | G52: =H52-((Calc_Raw!H52-Calc_Raw!G52)*2) -> 104.6670406 | H52: =Calc_Raw!H52*Escalation -> 133.4670406 | I52: =H52+((Calc_Raw!I52-Calc_Raw!H52)*2) -> 169.9070406 | J52: =K52-((Calc_Raw!K52-Calc_Raw!J52)*2) -> 104.6670406 | K52: =Calc_Raw!K52*Escalation -> 133.4670406 | L52: =K52+((Calc_Raw!L52-Calc_Raw!K52)*2) -> 169.9070406 | M52: =N52-((Calc_Raw!N52-Calc_Raw!M52)*2) -> 104.6670406 | N52: =Calc_Raw!N52*Escalation -> 133.4670406 | O52: =N52+((Calc_Raw!O52-Calc_Raw!N52)*2) -> 169.9070406 | P52: =Q52-((Calc_Raw!Q52-Calc_Raw!P52)*2) -> 104.6670406 | Q52: =Calc_Raw!Q52*Escalation -> 133.4670406 | R52: =Q52+((Calc_Raw!R52-Calc_Raw!Q52)*2) -> 169.9070406
A53: =Config_RawLabor!A53 -> Expert | B53: =Config_RawLabor!B53 -> Public Policy Analyst | C53: =Config_RawLabor!C53 -> Reviews the impact of state government policies and regulations. Analyzes proposed legislative actions and determines the potential impact. Reviews policies, plans, and programs to ensure consistency with corresponding government regulations and laws. | D53: =E53-((Calc_Raw!E53-Calc_Raw!D53)*2) -> 148.1134172 | E53: =Calc_Raw!E53*Escalation -> 211.0534172 | F53: =E53+((Calc_Raw!F53-Calc_Raw!E53)*2) -> 278.8534172 | G53: =H53-((Calc_Raw!H53-Calc_Raw!G53)*2) -> 167.0796408 | H53: =Calc_Raw!H53*Escalation -> 234.0396408 | I53: =H53+((Calc_Raw!I53-Calc_Raw!H53)*2) -> 310.4996408 | J53: =K53-((Calc_Raw!K53-Calc_Raw!J53)*2) -> 231.5348359 | K53: =Calc_Raw!K53*Escalation -> 330.4348359 | L53: =K53+((Calc_Raw!L53-Calc_Raw!K53)*2) -> 437.0548359 | M53: =N53-((Calc_Raw!N53-Calc_Raw!M53)*2) -> 263.7155093 | N53: =Calc_Raw!N53*Escalation -> 373.1955093 | O53: =N53+((Calc_Raw!O53-Calc_Raw!N53)*2) -> 493.9755093 | P53: =Q53-((Calc_Raw!Q53-Calc_Raw!P53)*2) -> 491.9879829 | Q53: =Calc_Raw!Q53*Escalation -> 650.8879829 | R53: =Q53+((Calc_Raw!R53-Calc_Raw!Q53)*2) -> 868.7079829
A54: =Config_RawLabor!A54 -> Expert | B54: =Config_RawLabor!B54 -> Regulatory Affairs Specialist | C54: =Config_RawLabor!C54 -> Familiar with regulatory forms, policies, and procedures and capable of reviewing regulatory compliance. | D54: =E54-((Calc_Raw!E54-Calc_Raw!D54)*2) -> 120.3018064 | E54: =Calc_Raw!E54*Escalation -> 158.9618064 | F54: =E54+((Calc_Raw!F54-Calc_Raw!E54)*2) -> 197.0218064 | G54: =H54-((Calc_Raw!H54-Calc_Raw!G54)*2) -> 142.288527 | H54: =Calc_Raw!H54*Escalation -> 202.908527 | I54: =H54+((Calc_Raw!I54-Calc_Raw!H54)*2) -> 265.668527 | J54: =K54-((Calc_Raw!K54-Calc_Raw!J54)*2) -> 178.722942 | K54: =Calc_Raw!K54*Escalation -> 226.702942 | L54: =K54+((Calc_Raw!L54-Calc_Raw!K54)*2) -> 292.222942 | M54: =N54-((Calc_Raw!N54-Calc_Raw!M54)*2) -> 237.5137815 | N54: =Calc_Raw!N54*Escalation -> 283.4337815 | O54: =N54+((Calc_Raw!O54-Calc_Raw!N54)*2) -> 343.5737815 | P54: =Q54-((Calc_Raw!Q54-Calc_Raw!P54)*2) -> 267.4516439 | Q54: =Calc_Raw!Q54*Escalation -> 319.1516439 | R54: =Q54+((Calc_Raw!R54-Calc_Raw!Q54)*2) -> 386.8916439
A55: =Config_RawLabor!A55 -> Expert | B55: =Config_RawLabor!B55 -> Reliability Engineer | C55: =Config_RawLabor!C55 -> Analyzes the reliability in design, cost, weight, production and consumer satisfaction of company products. Develops the methods and measures of analysis based on customer and contractual obligations. Prepares reports, charts and diagrams to disclose results and highlight areas for further investigation. Performs root cause analysis to determine product design flaws | D55: =E55-((Calc_Raw!E55-Calc_Raw!D55)*2) -> 114.3444758 | E55: =Calc_Raw!E55*Escalation -> 140.1844758 | F55: =E55+((Calc_Raw!F55-Calc_Raw!E55)*2) -> 156.8244758 | G55: =H55-((Calc_Raw!H55-Calc_Raw!G55)*2) -> 149.4989512 | H55: =Calc_Raw!H55*Escalation -> 169.0589512 | I55: =H55+((Calc_Raw!I55-Calc_Raw!H55)*2) -> 192.3589512 | J55: =K55-((Calc_Raw!K55-Calc_Raw!J55)*2) -> 169.9696793 | K55: =Calc_Raw!K55*Escalation -> 202.5096793 | L55: =K55+((Calc_Raw!L55-Calc_Raw!K55)*2) -> 230.6296793 | M55: =N55-((Calc_Raw!N55-Calc_Raw!M55)*2) -> 216.4242057 | N55: =Calc_Raw!N55*Escalation -> 249.5842057 | O55: =N55+((Calc_Raw!O55-Calc_Raw!N55)*2) -> 286.9842057 | P55: =Q55-((Calc_Raw!Q55-Calc_Raw!P55)*2) -> 213.2426282 | Q55: =Calc_Raw!Q55*Escalation -> 262.8826282 | R55: =Q55+((Calc_Raw!R55-Calc_Raw!Q55)*2) -> 300.8626282
A56: =Config_RawLabor!A56 -> Expert | B56: =Config_RawLabor!B56 -> Reservoir Engineer | C56: =Config_RawLabor!C56 -> Responsible for identifying oil and gas reserves and developing strategies to maximize recovery. Reviews testing results for new wells and monitors and predicts performance. | D56: =E56-((Calc_Raw!E56-Calc_Raw!D56)*2) -> 221.2885291 | E56: =Calc_Raw!E56*Escalation -> 244.8085291 | F56: =E56+((Calc_Raw!F56-Calc_Raw!E56)*2) -> 298.7085291 | G56: =H56-((Calc_Raw!H56-Calc_Raw!G56)*2) -> 227.5149733 | H56: =Calc_Raw!H56*Escalation -> 272.4549733 | I56: =H56+((Calc_Raw!I56-Calc_Raw!H56)*2) -> 330.6149733 | J56: =K56-((Calc_Raw!K56-Calc_Raw!J56)*2) -> 270.3639032 | K56: =Calc_Raw!K56*Escalation -> 314.5439032 | L56: =K56+((Calc_Raw!L56-Calc_Raw!K56)*2) -> 395.7039032 | M56: =N56-((Calc_Raw!N56-Calc_Raw!M56)*2) -> 365.7597999 | N56: =Calc_Raw!N56*Escalation -> 414.3397999 | O56: =N56+((Calc_Raw!O56-Calc_Raw!N56)*2) -> 454.0997999 | P56: =Q56-((Calc_Raw!Q56-Calc_Raw!P56)*2) -> 454.0302397 | Q56: =Calc_Raw!Q56*Escalation -> 493.0702397 | R56: =Q56+((Calc_Raw!R56-Calc_Raw!Q56)*2) -> 548.2502397
A57: =Config_RawLabor!A57 -> Expert | B57: =Config_RawLabor!B57 -> Reservoir Engineering Manager | C57: =Config_RawLabor!C57 -> Reviews all aspects of engineering studies regarding the identification, evaluation, and development of oil and gas reserves within a region. Oversees the process of estimating, assessing, and planning oil and gas production and development projects. Ensures all projects, initiatives, and processes are in conformance with an organization's established policies and objectives | D57: =E57-((Calc_Raw!E57-Calc_Raw!D57)*2) -> 194.2245216 | E57: =Calc_Raw!E57*Escalation -> 255.3045216 | F57: =E57+((Calc_Raw!F57-Calc_Raw!E57)*2) -> 339.5845216 | G57: =H57-((Calc_Raw!H57-Calc_Raw!G57)*2) -> 225.9908867 | H57: =Calc_Raw!H57*Escalation -> 304.1108867 | I57: =H57+((Calc_Raw!I57-Calc_Raw!H57)*2) -> 406.4108867 | J57: =K57-((Calc_Raw!K57-Calc_Raw!J57)*2) -> 269.2838704 | K57: =Calc_Raw!K57*Escalation -> 360.4638704 | L57: =K57+((Calc_Raw!L57-Calc_Raw!K57)*2) -> 477.9838704 | M57: =N57-((Calc_Raw!N57-Calc_Raw!M57)*2) -> 318.4300008 | N57: =Calc_Raw!N57*Escalation -> 424.2900008 | O57: =N57+((Calc_Raw!O57-Calc_Raw!N57)*2) -> 556.2700008 | P57: =Q57-((Calc_Raw!Q57-Calc_Raw!P57)*2) -> 359.2335758 | Q57: =Calc_Raw!Q57*Escalation -> 481.7135758 | R57: =Q57+((Calc_Raw!R57-Calc_Raw!Q57)*2) -> 627.8335758
A58: =Config_RawLabor!A58 -> Expert | B58: =Config_RawLabor!B58 -> Sociologist | C58: =Config_RawLabor!C58 -> Provides expertise in the discipline area of sociology, including evaluating qualitative research methods in a proposed study.. Familiar with current literature and research in the selected field. | D58: =E58-((Calc_Raw!E58-Calc_Raw!D58)*2) -> 84.5166097 | E58: =Calc_Raw!E58*Escalation -> 131.9766097 | F58: =E58+((Calc_Raw!F58-Calc_Raw!E58)*2) -> 268.0766097 | G58: =H58-((Calc_Raw!H58-Calc_Raw!G58)*2) -> 98.08897567 | H58: =Calc_Raw!H58*Escalation -> 157.2089757 | I58: =H58+((Calc_Raw!I58-Calc_Raw!H58)*2) -> 320.6089757 | J58: =K58-((Calc_Raw!K58-Calc_Raw!J58)*2) -> 116.9458508 | K58: =Calc_Raw!K58*Escalation -> 186.3458508 | L58: =K58+((Calc_Raw!L58-Calc_Raw!K58)*2) -> 377.4858508 | M58: =N58-((Calc_Raw!N58-Calc_Raw!M58)*2) -> 138.3547553 | N58: =Calc_Raw!N58*Escalation -> 219.3347553 | O58: =N58+((Calc_Raw!O58-Calc_Raw!N58)*2) -> 440.0147553 | P58: =Q58-((Calc_Raw!Q58-Calc_Raw!P58)*2) -> 155.9774221 | Q58: =Calc_Raw!Q58*Escalation -> 249.0174221 | R58: =Q58+((Calc_Raw!R58-Calc_Raw!Q58)*2) -> 497.0374221
A59: =Config_RawLabor!A59 -> Expert | B59: =Config_RawLabor!B59 -> Software Engineer | C59: =Config_RawLabor!C59 -> Reviews the design and code of software applications. Reviews s coding, debugging, testing and troubleshooting procedures throughout the application development process. Provides consultation on software application components of complex projects. | D59: =E59-((Calc_Raw!E59-Calc_Raw!D59)*2) -> 105.4455027 | E59: =Calc_Raw!E59*Escalation -> 136.1855027 | F59: =E59+((Calc_Raw!F59-Calc_Raw!E59)*2) -> 180.3655027 | G59: =H59-((Calc_Raw!H59-Calc_Raw!G59)*2) -> 139.2818923 | H59: =Calc_Raw!H59*Escalation -> 173.1418923 | I59: =H59+((Calc_Raw!I59-Calc_Raw!H59)*2) -> 210.3418923 | J59: =K59-((Calc_Raw!K59-Calc_Raw!J59)*2) -> 175.3934776 | K59: =Calc_Raw!K59*Escalation -> 216.1334776 | L59: =K59+((Calc_Raw!L59-Calc_Raw!K59)*2) -> 260.0934776 | M59: =N59-((Calc_Raw!N59-Calc_Raw!M59)*2) -> 216.1089007 | N59: =Calc_Raw!N59*Escalation -> 262.1689007 | O59: =N59+((Calc_Raw!O59-Calc_Raw!N59)*2) -> 314.1289007 | P59: =Q59-((Calc_Raw!Q59-Calc_Raw!P59)*2) -> 233.4959861 | Q59: =Calc_Raw!Q59*Escalation -> 288.1359861 | R59: =Q59+((Calc_Raw!R59-Calc_Raw!Q59)*2) -> 354.9759861
A60: =Config_RawLabor!A60 -> Expert | B60: =Config_RawLabor!B60 -> Statistician | C60: =Config_RawLabor!C60 -> Analyzes and interprets data from various sources. Compiles reports, charts, and tables based on established statistical methods. | D60: =E60-((Calc_Raw!E60-Calc_Raw!D60)*2) -> 97.61051155 | E60: =Calc_Raw!E60*Escalation -> 112.5905115 | F60: =E60+((Calc_Raw!F60-Calc_Raw!E60)*2) -> 128.3905115 | G60: =H60-((Calc_Raw!H60-Calc_Raw!G60)*2) -> 113.9918309 | H60: =Calc_Raw!H60*Escalation -> 147.1118309 | I60: =H60+((Calc_Raw!I60-Calc_Raw!H60)*2) -> 199.8518309 | J60: =K60-((Calc_Raw!K60-Calc_Raw!J60)*2) -> 117.3896471 | K60: =Calc_Raw!K60*Escalation -> 158.0696471 | L60: =K60+((Calc_Raw!L60-Calc_Raw!K60)*2) -> 196.1896471 | M60: =N60-((Calc_Raw!N60-Calc_Raw!M60)*2) -> 150.2690475 | N60: =Calc_Raw!N60*Escalation -> 191.0690475 | O60: =N60+((Calc_Raw!O60-Calc_Raw!N60)*2) -> 237.7290475 | P60: =Q60-((Calc_Raw!Q60-Calc_Raw!P60)*2) -> 203.5430882 | Q60: =Calc_Raw!Q60*Escalation -> 245.9630882 | R60: =Q60+((Calc_Raw!R60-Calc_Raw!Q60)*2) -> 326.3230882
A61: =Config_RawLabor!A61 -> Expert | B61: =Config_RawLabor!B61 -> Structural Engineer | C61: =Config_RawLabor!C61 -> Reviews load-bearing structures or structural elements, such as buildings, bridges, or roadways. Performs analysis of building materials used in construction. Reviews blueprints or specifications used during construction and ensures all projects comply with applicable codes and regulations. Determines cause of structural failures, damages, and defects through site investigations. Provides reports detailing investigations and assessment of damages to the structure. | D61: =E61-((Calc_Raw!E61-Calc_Raw!D61)*2) -> 84.76301232 | E61: =Calc_Raw!E61*Escalation -> 128.3030123 | F61: =E61+((Calc_Raw!F61-Calc_Raw!E61)*2) -> 143.4230123 | G61: =H61-((Calc_Raw!H61-Calc_Raw!G61)*2) -> 136.9203684 | H61: =Calc_Raw!H61*Escalation -> 156.1803684 | I61: =H61+((Calc_Raw!I61-Calc_Raw!H61)*2) -> 191.2003684 | J61: =K61-((Calc_Raw!K61-Calc_Raw!J61)*2) -> 149.9192832 | K61: =Calc_Raw!K61*Escalation -> 196.9992832 | L61: =K61+((Calc_Raw!L61-Calc_Raw!K61)*2) -> 234.6792832 | M61: =N61-((Calc_Raw!N61-Calc_Raw!M61)*2) -> 166.0606468 | N61: =Calc_Raw!N61*Escalation -> 214.3806468 | O61: =N61+((Calc_Raw!O61-Calc_Raw!N61)*2) -> 244.1406468 | P61: =Q61-((Calc_Raw!Q61-Calc_Raw!P61)*2) -> 193.1113099 | Q61: =Calc_Raw!Q61*Escalation -> 249.3113099 | R61: =Q61+((Calc_Raw!R61-Calc_Raw!Q61)*2) -> 283.9113099
A62: =Config_RawLabor!A62 -> Expert | B62: =Config_RawLabor!B62 -> Systems Engineer | C62: =Config_RawLabor!C62 -> Reviews the plan and design of an organization's systems infrastructure. Ensures the accuracy and effectiveness of the system to meet business/customers' requirements. Monitors the performance of systems and suggests improvements. Verifies and reviews system related documents/reports including installation procedures. | D62: =E62-((Calc_Raw!E62-Calc_Raw!D62)*2) -> 108.3782335 | E62: =Calc_Raw!E62*Escalation -> 143.4382335 | F62: =E62+((Calc_Raw!F62-Calc_Raw!E62)*2) -> 173.2982335 | G62: =H62-((Calc_Raw!H62-Calc_Raw!G62)*2) -> 134.5158451 | H62: =Calc_Raw!H62*Escalation -> 171.9558451 | I62: =H62+((Calc_Raw!I62-Calc_Raw!H62)*2) -> 211.5958451 | J62: =K62-((Calc_Raw!K62-Calc_Raw!J62)*2) -> 173.6774502 | K62: =Calc_Raw!K62*Escalation -> 209.6574502 | L62: =K62+((Calc_Raw!L62-Calc_Raw!K62)*2) -> 252.2174502 | M62: =N62-((Calc_Raw!N62-Calc_Raw!M62)*2) -> 204.5681434 | N62: =Calc_Raw!N62*Escalation -> 247.1281434 | O62: =N62+((Calc_Raw!O62-Calc_Raw!N62)*2) -> 295.0081434 | P62: =Q62-((Calc_Raw!Q62-Calc_Raw!P62)*2) -> 229.1433505 | Q62: =Calc_Raw!Q62*Escalation -> 281.9433505 | R62: =Q62+((Calc_Raw!R62-Calc_Raw!Q62)*2) -> 341.3033505
A63: =Config_RawLabor!A63 -> Expert | B63: =Config_RawLabor!B63 -> Telecommunications Economist | C63: =Config_RawLabor!C63 -> Reviews and analyzes telecommunication rating schedules and schedule tables. Reviews billing and compliance to ensure conformance to company and government standards. | D63: =E63-((Calc_Raw!E63-Calc_Raw!D63)*2) -> 116.0829426 | E63: =Calc_Raw!E63*Escalation -> 136.3429426 | F63: =E63+((Calc_Raw!F63-Calc_Raw!E63)*2) -> 169.2029426 | G63: =H63-((Calc_Raw!H63-Calc_Raw!G63)*2) -> 135.2349879 | H63: =Calc_Raw!H63*Escalation -> 162.4149879 | I63: =H63+((Calc_Raw!I63-Calc_Raw!H63)*2) -> 202.5149879 | J63: =K63-((Calc_Raw!K63-Calc_Raw!J63)*2) -> 161.1069984 | K63: =Calc_Raw!K63*Escalation -> 192.5069984 | L63: =K63+((Calc_Raw!L63-Calc_Raw!K63)*2) -> 238.1469984 | M63: =N63-((Calc_Raw!N63-Calc_Raw!M63)*2) -> 190.7160887 | N63: =Calc_Raw!N63*Escalation -> 234.1760887 | O63: =N63+((Calc_Raw!O63-Calc_Raw!N63)*2) -> 279.8560887 | P63: =Q63-((Calc_Raw!Q63-Calc_Raw!P63)*2) -> 223.8937513 | Q63: =Calc_Raw!Q63*Escalation -> 280.8937513 | R63: =Q63+((Calc_Raw!R63-Calc_Raw!Q63)*2) -> 326.6137513
A64: =Config_RawLabor!A64 -> Expert | B64: =Config_RawLabor!B64 -> Telecommunications Engineer | C64: =Config_RawLabor!C64 -> Reviews the design, implementation and maintenance of telecommunication networks, systems and equipment,. Analyzes existing networks and equipment and identifies opportunities for improvement. Recommends alternate solutions that better meet consumer requirements. | D64: =E64-((Calc_Raw!E64-Calc_Raw!D64)*2) -> 107.7174716 | E64: =Calc_Raw!E64*Escalation -> 134.9574716 | F64: =E64+((Calc_Raw!F64-Calc_Raw!E64)*2) -> 168.0774716 | G64: =H64-((Calc_Raw!H64-Calc_Raw!G64)*2) -> 126.4272426 | H64: =Calc_Raw!H64*Escalation -> 164.3672426 | I64: =H64+((Calc_Raw!I64-Calc_Raw!H64)*2) -> 203.7872426 | J64: =K64-((Calc_Raw!K64-Calc_Raw!J64)*2) -> 156.0061319 | K64: =Calc_Raw!K64*Escalation -> 196.0861319 | L64: =K64+((Calc_Raw!L64-Calc_Raw!K64)*2) -> 238.2861319 | M64: =N64-((Calc_Raw!N64-Calc_Raw!M64)*2) -> 170.7799104 | N64: =Calc_Raw!N64*Escalation -> 214.9999104 | O64: =N64+((Calc_Raw!O64-Calc_Raw!N64)*2) -> 252.2799104 | P64: =Q64-((Calc_Raw!Q64-Calc_Raw!P64)*2) -> 189.178133 | Q64: =Calc_Raw!Q64*Escalation -> 239.298133 | R64: =Q64+((Calc_Raw!R64-Calc_Raw!Q64)*2) -> 285.998133
A65: =Config_RawLabor!A65 -> Expert | B65: =Config_RawLabor!B65 -> Top Economic Executive | C65: =Config_RawLabor!C65 -> Provides economic data, prepares interpretative reports, and provides leadership for the use of economic data and adaptation of economic models. Communicates the results of economic studies to the stakeholders and sets guidelines for proceeding economic strategies. Understands the macro and micro economic environment and its impact on the industry. | D65: =E65-((Calc_Raw!E65-Calc_Raw!D65)*2) -> 380.7181152 | E65: =Calc_Raw!E65*Escalation -> 488.1581152 | F65: =E65+((Calc_Raw!F65-Calc_Raw!E65)*2) -> 564.3381152 | G65: =H65-((Calc_Raw!H65-Calc_Raw!G65)*2) -> 459.0873329 | H65: =Calc_Raw!H65*Escalation -> 575.3273329 | I65: =H65+((Calc_Raw!I65-Calc_Raw!H65)*2) -> 681.1273329 | J65: =K65-((Calc_Raw!K65-Calc_Raw!J65)*2) -> 542.6429995 | K65: =Calc_Raw!K65*Escalation -> 683.5829995 | L65: =K65+((Calc_Raw!L65-Calc_Raw!K65)*2) -> 799.2629995 | M65: =N65-((Calc_Raw!N65-Calc_Raw!M65)*2) -> 637.2316479 | N65: =Calc_Raw!N65*Escalation -> 806.2916479 | O65: =N65+((Calc_Raw!O65-Calc_Raw!N65)*2) -> 928.0916479 | P65: =Q65-((Calc_Raw!Q65-Calc_Raw!P65)*2) -> 725.8439878 | Q65: =Calc_Raw!Q65*Escalation -> 912.7839878 | R65: =Q65+((Calc_Raw!R65-Calc_Raw!Q65)*2) -> 1049.523988
A66: =Config_RawLabor!A66 -> Expert | B66: =Config_RawLabor!B66 -> Urban Planner | C66: =Config_RawLabor!C66 -> Reviews land-use plans for the beneficial development of urban areas. | D66: =E66-((Calc_Raw!E66-Calc_Raw!D66)*2) -> 62.69313466 | E66: =Calc_Raw!E66*Escalation -> 69.05313466 | F66: =E66+((Calc_Raw!F66-Calc_Raw!E66)*2) -> 87.75313466 | G66: =H66-((Calc_Raw!H66-Calc_Raw!G66)*2) -> 73.09709322 | H66: =Calc_Raw!H66*Escalation -> 82.25709322 | I66: =H66+((Calc_Raw!I66-Calc_Raw!H66)*2) -> 105.0170932 | J66: =K66-((Calc_Raw!K66-Calc_Raw!J66)*2) -> 87.05727433 | K66: =Calc_Raw!K66*Escalation -> 97.49727433 | L66: =K66+((Calc_Raw!L66-Calc_Raw!K66)*2) -> 123.4972743 | M66: =N66-((Calc_Raw!N66-Calc_Raw!M66)*2) -> 102.903182 | N66: =Calc_Raw!N66*Escalation -> 114.763182 | O66: =N66+((Calc_Raw!O66-Calc_Raw!N66)*2) -> 143.683182 | P66: =Q66-((Calc_Raw!Q66-Calc_Raw!P66)*2) -> 116.1572509 | Q66: =Calc_Raw!Q66*Escalation -> 130.2972509 | R66: =Q66+((Calc_Raw!R66-Calc_Raw!Q66)*2) -> 162.1572509
A67: =Config_RawLabor!A67 -> Expert | B67: =Config_RawLabor!B67 -> Utility Rate Analyst | C67: =Config_RawLabor!C67 -> Monitors, reviews, and evaluates service rates and charges for various public utilities. Calculates cost-of-service and performs related rate analysis. Ensures filings comply with the Federal Energy Regulatory Commission requirements. | D67: =E67-((Calc_Raw!E67-Calc_Raw!D67)*2) -> 121.3933641 | E67: =Calc_Raw!E67*Escalation -> 150.9533641 | F67: =E67+((Calc_Raw!F67-Calc_Raw!E67)*2) -> 174.7733641 | G67: =H67-((Calc_Raw!H67-Calc_Raw!G67)*2) -> 141.3468475 | H67: =Calc_Raw!H67*Escalation -> 179.8068475 | I67: =H67+((Calc_Raw!I67-Calc_Raw!H67)*2) -> 209.2268475 | J67: =K67-((Calc_Raw!K67-Calc_Raw!J67)*2) -> 168.4211277 | K67: =Calc_Raw!K67*Escalation -> 213.1211277 | L67: =K67+((Calc_Raw!L67-Calc_Raw!K67)*2) -> 245.9611277 | M67: =N67-((Calc_Raw!N67-Calc_Raw!M67)*2) -> 199.1247167 | N67: =Calc_Raw!N67*Escalation -> 250.8647167 | O67: =N67+((Calc_Raw!O67-Calc_Raw!N67)*2) -> 286.0447167 | P67: =Q67-((Calc_Raw!Q67-Calc_Raw!P67)*2) -> 224.6887565 | Q67: =Calc_Raw!Q67*Escalation -> 284.8087565 | R67: =Q67+((Calc_Raw!R67-Calc_Raw!Q67)*2) -> 322.7287565
A68: =Config_RawLabor!A68 -> Expert | B68: =Config_RawLabor!B68 -> Utility System Planner/Operator/Manager | C68: =Config_RawLabor!C68 -> Familiar with the proper operation of utility plant equipment including controls, operation, repairs, and perventive maintenance. Equipment may include bioenergy, hydro, nuclear, solar, thermal or wind generation or gas storage and transport. | D68: =E68-((Calc_Raw!E68-Calc_Raw!D68)*2) -> 111.9218413 | E68: =Calc_Raw!E68*Escalation -> 154.9418413 | F68: =E68+((Calc_Raw!F68-Calc_Raw!E68)*2) -> 218.4418413 | G68: =H68-((Calc_Raw!H68-Calc_Raw!G68)*2) -> 144.4714822 | H68: =Calc_Raw!H68*Escalation -> 187.3114822 | I68: =H68+((Calc_Raw!I68-Calc_Raw!H68)*2) -> 232.9914822 | J68: =K68-((Calc_Raw!K68-Calc_Raw!J68)*2) -> 177.6660528 | K68: =Calc_Raw!K68*Escalation -> 217.2460528 | L68: =K68+((Calc_Raw!L68-Calc_Raw!K68)*2) -> 270.0060528 | M68: =N68-((Calc_Raw!N68-Calc_Raw!M68)*2) -> 197.1896605 | N68: =Calc_Raw!N68*Escalation -> 228.7496605 | O68: =N68+((Calc_Raw!O68-Calc_Raw!N68)*2) -> 264.4696605 | P68: =Q68-((Calc_Raw!Q68-Calc_Raw!P68)*2) -> 217.2599728 | Q68: =Calc_Raw!Q68*Escalation -> 261.9799728 | R68: =Q68+((Calc_Raw!R68-Calc_Raw!Q68)*2) -> 318.2199728
A69: =Config_RawLabor!A69 -> Expert | B69: =Config_RawLabor!B69 -> Wildfire Scientist | C69: =Config_RawLabor!C69 -> Uses analysis software to analyze wildfire risks and likely paths. Reviews approaches to preventing, controlling, or mitigating wildfire damage. | D69: =E69-((Calc_Raw!E69-Calc_Raw!D69)*2) -> 74.67617773 | E69: =Calc_Raw!E69*Escalation -> 109.5361777 | F69: =E69+((Calc_Raw!F69-Calc_Raw!E69)*2) -> 157.1161777 | G69: =H69-((Calc_Raw!H69-Calc_Raw!G69)*2) -> 86.75568277 | H69: =Calc_Raw!H69*Escalation -> 130.4756828 | I69: =H69+((Calc_Raw!I69-Calc_Raw!H69)*2) -> 188.0156828 | J69: =K69-((Calc_Raw!K69-Calc_Raw!J69)*2) -> 103.4279535 | K69: =Calc_Raw!K69*Escalation -> 154.6479535 | L69: =K69+((Calc_Raw!L69-Calc_Raw!K69)*2) -> 221.1879535 | M69: =N69-((Calc_Raw!N69-Calc_Raw!M69)*2) -> 122.3319979 | N69: =Calc_Raw!N69*Escalation -> 182.0319979 | O69: =N69+((Calc_Raw!O69-Calc_Raw!N69)*2) -> 257.4919979 | P69: =Q69-((Calc_Raw!Q69-Calc_Raw!P69)*2) -> 137.9660923 | Q69: =Calc_Raw!Q69*Escalation -> 206.6660923 | R69: =Q69+((Calc_Raw!R69-Calc_Raw!Q69)*2) -> 290.6660923
A70: =Config_RawLabor!A70 -> Legal | B70: =Config_RawLabor!B70 -> Attorney | C70: =Config_RawLabor!C70 -> Attorney authorized by the California Bar to practice law in California. Higher experience levels should have experience with areas of law and procedures relevant to CPUC matters, such as environmental law or utility regulation. | D70: =E70-((Calc_Raw!E70-Calc_Raw!D70)*2) -> 174.9688892 | E70: =Calc_Raw!E70*Escalation -> 233.3888892 | F70: =E70+((Calc_Raw!F70-Calc_Raw!E70)*2) -> 299.4688892 | G70: =H70-((Calc_Raw!H70-Calc_Raw!G70)*2) -> 215.0696694 | H70: =Calc_Raw!H70*Escalation -> 305.9896694 | I70: =H70+((Calc_Raw!I70-Calc_Raw!H70)*2) -> 404.2296694 | J70: =K70-((Calc_Raw!K70-Calc_Raw!J70)*2) -> 309.7579763 | K70: =Calc_Raw!K70*Escalation -> 413.8779763 | L70: =K70+((Calc_Raw!L70-Calc_Raw!K70)*2) -> 519.4779763 | M70: =N70-((Calc_Raw!N70-Calc_Raw!M70)*2) -> 381.8131808 | N70: =Calc_Raw!N70*Escalation -> 497.1531808 | O70: =N70+((Calc_Raw!O70-Calc_Raw!N70)*2) -> 619.2931808 | P70: =Q70-((Calc_Raw!Q70-Calc_Raw!P70)*2) -> 486.3115028 | Q70: =Calc_Raw!Q70*Escalation -> 606.3115028 | R70: =Q70+((Calc_Raw!R70-Calc_Raw!Q70)*2) -> 699.0315028
A71: =Config_RawLabor!A71 -> Legal | B71: =Config_RawLabor!B71 -> Legal Director | C71: =Config_RawLabor!C71 -> Oversees the legal work of the organization, including providing strategic direction. Alternate title may be General Counsel. Responsible for coordinating and supervising a legal team. Participates in the most complex legal actions. Oversees all legal operations including case assignment, hiring, supervision and professional development of the legal staff, as well as budgeting. | D71: =E71-((Calc_Raw!E71-Calc_Raw!D71)*2) -> 286.1918922 | E71: =Calc_Raw!E71*Escalation -> 374.8118922 | F71: =E71+((Calc_Raw!F71-Calc_Raw!E71)*2) -> 478.3518922 | G71: =H71-((Calc_Raw!H71-Calc_Raw!G71)*2) -> 333.008033 | H71: =Calc_Raw!H71*Escalation -> 446.468033 | I71: =H71+((Calc_Raw!I71-Calc_Raw!H71)*2) -> 572.508033 | J71: =K71-((Calc_Raw!K71-Calc_Raw!J71)*2) -> 396.8469499 | K71: =Calc_Raw!K71*Escalation -> 529.1869499 | L71: =K71+((Calc_Raw!L71-Calc_Raw!K71)*2) -> 673.2469499 | M71: =N71-((Calc_Raw!N71-Calc_Raw!M71)*2) -> 469.2351709 | N71: =Calc_Raw!N71*Escalation -> 622.8951709 | O71: =N71+((Calc_Raw!O71-Calc_Raw!N71)*2) -> 783.3551709 | P71: =Q71-((Calc_Raw!Q71-Calc_Raw!P71)*2) -> 529.3789827 | Q71: =Calc_Raw!Q71*Escalation -> 707.1989827 | R71: =Q71+((Calc_Raw!R71-Calc_Raw!Q71)*2) -> 884.0589827
A72: =Config_RawLabor!A72 -> Legal | B72: =Config_RawLabor!B72 -> Paralegal | C72: =Config_RawLabor!C72 -> Assists and supports attorneys with research. Researches and analyzes law sources such as statutes, recorded judicial decisions, legal articles, treaties, constitutions, and legal codes. Prepares legal documents. May direct the work of clerical or other support staff. May be responsible for the creation and administration of legal databases. Has complete understanding of technical legal terminology. | D72: =E72-((Calc_Raw!E72-Calc_Raw!D72)*2) -> 88.52663885 | E72: =Calc_Raw!E72*Escalation -> 113.5666389 | F72: =E72+((Calc_Raw!F72-Calc_Raw!E72)*2) -> 141.4866389 | G72: =H72-((Calc_Raw!H72-Calc_Raw!G72)*2) -> 102.2271707 | H72: =Calc_Raw!H72*Escalation -> 130.5071707 | I72: =H72+((Calc_Raw!I72-Calc_Raw!H72)*2) -> 163.1871707 | J72: =K72-((Calc_Raw!K72-Calc_Raw!J72)*2) -> 122.7353783 | K72: =Calc_Raw!K72*Escalation -> 153.5353783 | L72: =K72+((Calc_Raw!L72-Calc_Raw!K72)*2) -> 186.5553783 | M72: =N72-((Calc_Raw!N72-Calc_Raw!M72)*2) -> 139.111617 | N72: =Calc_Raw!N72*Escalation -> 177.791617 | O72: =N72+((Calc_Raw!O72-Calc_Raw!N72)*2) -> 218.511617 | P72: =Q72-((Calc_Raw!Q72-Calc_Raw!P72)*2) -> 154.5011069 | Q72: =Calc_Raw!Q72*Escalation -> 197.4611069 | R72: =Q72+((Calc_Raw!R72-Calc_Raw!Q72)*2) -> 242.7011069
A73: =Config_RawLabor!A73 -> Legal | B73: =Config_RawLabor!B73 -> Paralegal Manager | C73: =Config_RawLabor!C73 -> Often the most senior Paralegal individual. Validates and oversees the preparation of legal documents. Provides research utilizing databases and legal libraries. Coordinates with attorneys on special requests or highly complex projects. Note that supervisory and training support is not reimbursable. | D73: =E73-((Calc_Raw!E73-Calc_Raw!D73)*2) -> 114.0439252 | E73: =Calc_Raw!E73*Escalation -> 149.4839252 | F73: =E73+((Calc_Raw!F73-Calc_Raw!E73)*2) -> 199.4239252 | G73: =H73-((Calc_Raw!H73-Calc_Raw!G73)*2) -> 132.7045128 | H73: =Calc_Raw!H73*Escalation -> 178.0645128 | I73: =H73+((Calc_Raw!I73-Calc_Raw!H73)*2) -> 238.6445128 | J73: =K73-((Calc_Raw!K73-Calc_Raw!J73)*2) -> 158.1334172 | K73: =Calc_Raw!K73*Escalation -> 211.0534172 | L73: =K73+((Calc_Raw!L73-Calc_Raw!K73)*2) -> 280.6934172 | M73: =N73-((Calc_Raw!N73-Calc_Raw!M73)*2) -> 186.9991505 | N73: =Calc_Raw!N73*Escalation -> 248.4191505 | O73: =N73+((Calc_Raw!O73-Calc_Raw!N73)*2) -> 326.6591505 | P73: =Q73-((Calc_Raw!Q73-Calc_Raw!P73)*2) -> 210.9578145 | Q73: =Calc_Raw!Q73*Escalation -> 282.0378145 | R73: =Q73+((Calc_Raw!R73-Calc_Raw!Q73)*2) -> 368.6978145
A74: =Config_RawLabor!A74 -> Legal | B74: =Config_RawLabor!B74 -> Paralegal Supervisor | C74: =Config_RawLabor!C74 -> Reviews prepared legal documents to ensure the work is complete and accurate. Prepares complex documents. Note that supervisory and training time is not reimbursable. | D74: =E74-((Calc_Raw!E74-Calc_Raw!D74)*2) -> 97.37085765 | E74: =Calc_Raw!E74*Escalation -> 120.8508576 | F74: =E74+((Calc_Raw!F74-Calc_Raw!E74)*2) -> 194.9508576 | G74: =H74-((Calc_Raw!H74-Calc_Raw!G74)*2) -> 113.3725371 | H74: =Calc_Raw!H74*Escalation -> 143.9525371 | I74: =H74+((Calc_Raw!I74-Calc_Raw!H74)*2) -> 233.2325371 | J74: =K74-((Calc_Raw!K74-Calc_Raw!J74)*2) -> 135.1028541 | K74: =Calc_Raw!K74*Escalation -> 170.6228541 | L74: =K74+((Calc_Raw!L74-Calc_Raw!K74)*2) -> 274.4628541 | M74: =N74-((Calc_Raw!N74-Calc_Raw!M74)*2) -> 159.7208165 | N74: =Calc_Raw!N74*Escalation -> 200.8408165 | O74: =N74+((Calc_Raw!O74-Calc_Raw!N74)*2) -> 319.6608165 | P74: =Q74-((Calc_Raw!Q74-Calc_Raw!P74)*2) -> 180.2349411 | Q74: =Calc_Raw!Q74*Escalation -> 228.0149411 | R74: =Q74+((Calc_Raw!R74-Calc_Raw!Q74)*2) -> 360.9549411
A75: =Config_RawLabor!A75 -> School | B75: =Config_RawLabor!B75 -> Assistant School Principal | C75: =Config_RawLabor!C75 -> Assists the school principal in the management of education and teaching programs for an assigned school. Coordinates school activities and ensures that budgetary guidelines are met. May help in developing the curriculum, staffing, reviewing faculty performance, and creating an atmosphere conducive to scholarly pursuits. | D75: =E75-((Calc_Raw!E75-Calc_Raw!D75)*2) -> 65.00323562 | E75: =Calc_Raw!E75*Escalation -> 84.50323562 | F75: =E75+((Calc_Raw!F75-Calc_Raw!E75)*2) -> 112.0032356 | G75: =H75-((Calc_Raw!H75-Calc_Raw!G75)*2) -> 75.65656808 | H75: =Calc_Raw!H75*Escalation -> 100.6565681 | I75: =H75+((Calc_Raw!I75-Calc_Raw!H75)*2) -> 134.0365681 | J75: =K75-((Calc_Raw!K75-Calc_Raw!J75)*2) -> 90.14794675 | K75: =Calc_Raw!K75*Escalation -> 119.3079467 | L75: =K75+((Calc_Raw!L75-Calc_Raw!K75)*2) -> 157.6479467 | M75: =N75-((Calc_Raw!N75-Calc_Raw!M75)*2) -> 106.5963797 | N75: =Calc_Raw!N75*Escalation -> 140.4363797 | O75: =N75+((Calc_Raw!O75-Calc_Raw!N75)*2) -> 183.4563797 | P75: =Q75-((Calc_Raw!Q75-Calc_Raw!P75)*2) -> 120.2741261 | Q75: =Calc_Raw!Q75*Escalation -> 159.4341261 | R75: =Q75+((Calc_Raw!R75-Calc_Raw!Q75)*2) -> 207.0541261
A76: =Config_RawLabor!A76 -> School | B76: =Config_RawLabor!B76 -> Public School Teacher | C76: =Config_RawLabor!C76 -> Prepares lesson plans and instructs students in an assigned school. Develops and implements grade appropriate course work to meet the academic of children in a K-12 classroom setting. Evaluates and monitors student's performance. Assesses and documents students' progress. Participates in development and implementation of Individual Education Plans for specific students. May participate in implementing special programs for students. May supervise teaching assistants. | D76: =E76-((Calc_Raw!E76-Calc_Raw!D76)*2) -> 44.0781992 | E76: =Calc_Raw!E76*Escalation -> 57.0981992 | F76: =E76+((Calc_Raw!F76-Calc_Raw!E76)*2) -> 74.1581992 | G76: =H76-((Calc_Raw!H76-Calc_Raw!G76)*2) -> 51.2940314 | H76: =Calc_Raw!H76*Escalation -> 68.0140314 | I76: =H76+((Calc_Raw!I76-Calc_Raw!H76)*2) -> 88.7340314 | J76: =K76-((Calc_Raw!K76-Calc_Raw!J76)*2) -> 61.09971839 | K76: =Calc_Raw!K76*Escalation -> 80.61971839 | L76: =K76+((Calc_Raw!L76-Calc_Raw!K76)*2) -> 104.3597184 | M76: =N76-((Calc_Raw!N76-Calc_Raw!M76)*2) -> 72.25426819 | N76: =Calc_Raw!N76*Escalation -> 94.89426819 | O76: =N76+((Calc_Raw!O76-Calc_Raw!N76)*2) -> 121.4342682 | P76: =Q76-((Calc_Raw!Q76-Calc_Raw!P76)*2) -> 81.52136301 | Q76: =Calc_Raw!Q76*Escalation -> 107.741363 | R76: =Q76+((Calc_Raw!R76-Calc_Raw!Q76)*2) -> 137.061363
A77: =Config_RawLabor!A77 -> School | B77: =Config_RawLabor!B77 -> School Principal | C77: =Config_RawLabor!C77 -> Directs and oversees education and teaching programs for an assigned school. Responsibilities include developing the curriculum, staffing departments, reviewing faculty performance, and creating an atmosphere conducive to scholarly pursuits. Ensures all school activities are within budgetary guidelines. | D77: =E77-((Calc_Raw!E77-Calc_Raw!D77)*2) -> 80.79253508 | E77: =Calc_Raw!E77*Escalation -> 102.0525351 | F77: =E77+((Calc_Raw!F77-Calc_Raw!E77)*2) -> 126.7725351 | G77: =H77-((Calc_Raw!H77-Calc_Raw!G77)*2) -> 94.03508113 | H77: =Calc_Raw!H77*Escalation -> 121.5750811 | I77: =H77+((Calc_Raw!I77-Calc_Raw!H77)*2) -> 151.7350811 | J77: =K77-((Calc_Raw!K77-Calc_Raw!J77)*2) -> 112.039481 | K77: =Calc_Raw!K77*Escalation -> 144.099481 | L77: =K77+((Calc_Raw!L77-Calc_Raw!K77)*2) -> 178.419481 | M77: =N77-((Calc_Raw!N77-Calc_Raw!M77)*2) -> 132.4847428 | N77: =Calc_Raw!N77*Escalation -> 169.6047428 | O77: =N77+((Calc_Raw!O77-Calc_Raw!N77)*2) -> 207.5647428 | P77: =Q77-((Calc_Raw!Q77-Calc_Raw!P77)*2) -> 149.4794784 | Q77: =Calc_Raw!Q77*Escalation -> 192.5594784 | R77: =Q77+((Calc_Raw!R77-Calc_Raw!Q77)*2) -> 234.2394784
A78: =Config_RawLabor!A78 -> School | B78: =Config_RawLabor!B78 -> School Superintendent | C78: =Config_RawLabor!C78 -> Directs and manages a school district. Oversees all aspects of the district's operational policies, objectives, initiatives. Responsible for the attainment of short- and long-term financial and operational goals for the school system. | D78: =E78-((Calc_Raw!E78-Calc_Raw!D78)*2) -> 99.91253245 | E78: =Calc_Raw!E78*Escalation -> 150.5125325 | F78: =E78+((Calc_Raw!F78-Calc_Raw!E78)*2) -> 210.4125325 | G78: =H78-((Calc_Raw!H78-Calc_Raw!G78)*2) -> 116.0420479 | H78: =Calc_Raw!H78*Escalation -> 179.2820479 | I78: =H78+((Calc_Raw!I78-Calc_Raw!H78)*2) -> 251.7820479 | J78: =K78-((Calc_Raw!K78-Calc_Raw!J78)*2) -> 138.3418642 | K78: =Calc_Raw!K78*Escalation -> 212.5018642 | L78: =K78+((Calc_Raw!L78-Calc_Raw!K78)*2) -> 296.1818642 | M78: =N78-((Calc_Raw!N78-Calc_Raw!M78)*2) -> 163.6499973 | N78: =Calc_Raw!N78*Escalation -> 250.1299973 | O78: =N78+((Calc_Raw!O78-Calc_Raw!N78)*2) -> 344.7699973 | P78: =Q78-((Calc_Raw!Q78-Calc_Raw!P78)*2) -> 184.5195731 | Q78: =Calc_Raw!Q78*Escalation -> 283.9795731 | R78: =Q78+((Calc_Raw!R78-Calc_Raw!Q78)*2) -> 389.1595731

Sheet Calc_Raw (hidden)
A1: Category | B1: CPUC Role | C1: Description | D1: Min 1 | E1: Med 1 | F1: Max 1 | G1: Min 2 | H1: Med 2 | I1: Max 2 | J1: Min 3 | K1: Med 3 | L1: Max 3 | M1: Min 4 | N1: Med 4 | O1: Max 4 | P1: Min 5 | Q1: Med 5 | R1: Max 5
A2: =Config_RawLabor!A2 -> Advocate | B2: =Config_RawLabor!B2 -> Administrative Analyst | C2: =Config_RawLabor!C2 -> Assist in the planning, development and management of a comprehensive program within the eight county service area. Assist in the administration and development of specific programs and projects. Specific areas of focus include human resources, information systems, or grant writing. Represent orgination to community groups, partners, and funders. Coordinate community events, public relations activities. | D2: =ROUND(((Config_RawLabor!D2/Config!$B$7)/Config_RawLabor!$G2)*VLOOKUP($A2,Config!$A$2:$B$5,2,0),2) -> 47.25 | E2: =ROUND(((Config_RawLabor!E2/Config!$B$7)/Config_RawLabor!$G2)*VLOOKUP($A2,Config!$A$2:$B$5,2,0),2) -> 51.46 | F2: =ROUND(((Config_RawLabor!F2/Config!$B$7)/Config_RawLabor!$G2)*VLOOKUP($A2,Config!$A$2:$B$5,2,0),2) -> 57.18 | G2: =ROUND(((Config_RawLabor!H2/Config!$B$7)/Config_RawLabor!$K2)*VLOOKUP($A2,Config!$A$2:$B$5,2,0),2) -> 55.69 | H2: =ROUND(((Config_RawLabor!I2/Config!$B$7)/Config_RawLabor!$K2)*VLOOKUP($A2,Config!$A$2:$B$5,2,0),2) -> 61.3 | I2: =ROUND(((Config_RawLabor!J2/Config!$B$7)/Config_RawLabor!$K2)*VLOOKUP($A2,Config!$A$2:$B$5,2,0),2) -> 68.3 | J2: =ROUND(((Config_RawLabor!L2/Config!$B$7)/Config_RawLabor!$O2)*VLOOKUP($A2,Config!$A$2:$B$5,2,0),2) -> 66.17 | K2: =ROUND(((Config_RawLabor!M2/Config!$B$7)/Config_RawLabor!$O2)*VLOOKUP($A2,Config!$A$2:$B$5,2,0),2) -> 72.66 | L2: =ROUND(((Config_RawLabor!N2/Config!$B$7)/Config_RawLabor!$O2)*VLOOKUP($A2,Config!$A$2:$B$5,2,0),2) -> 80.58 | M2: =ROUND(((Config_RawLabor!P2/Config!$B$7)/Config_RawLabor!$S2)*VLOOKUP($A2,Config!$A$2:$B$5,2,0),2) -> 78.05 | N2: =ROUND(((Config_RawLabor!Q2/Config!$B$7)/Config_RawLabor!$S2)*VLOOKUP($A2,Config!$A$2:$B$5,2,0),2) -> 85.52 | O2: =ROUND(((Config_RawLabor!R2/Config!$B$7)/Config_RawLabor!$S2)*VLOOKUP($A2,Config!$A$2:$B$5,2,0),2) -> 94.21 | P2: =ROUND(((Config_RawLabor!T2/Config!$B$7)/Config_RawLabor!$W2)*VLOOKUP($A2,Config!$A$2:$B$5,2,0),2) -> 88.35 | Q2: =ROUND(((Config_RawLabor!U2/Config!$B$7)/Config_RawLabor!$W2)*VLOOKUP($A2,Config!$A$2:$B$5,2,0),2) -> 97.1 | R2: =ROUND(((Config_RawLabor!V2/Config!$B$7)/Config_RawLabor!$W2)*VLOOKUP($A2,Config!$A$2:$B$5,2,0),2) -> 106.59
A3: =Config_RawLabor!A3 -> Advocate | B3: =Config_RawLabor!B3 -> Advocate - Not Otherwise Classified | C3: =Config_RawLabor!C3 -> Used for advocate roles that are not better classified as one of the more detailed roles, including for example consumer advocates. May also be used for advocates that fill multiple subroles. | D3: =ROUND(((Config_RawLabor!D3/Config!$B$7)/Config_RawLabor!$G3)*VLOOKUP($A3,Config!$A$2:$B$5,2,0),2) -> 67.63 | E3: =ROUND(((Config_RawLabor!E3/Config!$B$7)/Config_RawLabor!$G3)*VLOOKUP($A3,Config!$A$2:$B$5,2,0),2) -> 79.33 | F3: =ROUND(((Config_RawLabor!F3/Config!$B$7)/Config_RawLabor!$G3)*VLOOKUP($A3,Config!$A$2:$B$5,2,0),2) -> 94.45 | G3: =ROUND(((Config_RawLabor!H3/Config!$B$7)/Config_RawLabor!$K3)*VLOOKUP($A3,Config!$A$2:$B$5,2,0),2) -> 79.22 | H3: =ROUND(((Config_RawLabor!I3/Config!$B$7)/Config_RawLabor!$K3)*VLOOKUP($A3,Config!$A$2:$B$5,2,0),2) -> 93.9 | I3: =ROUND(((Config_RawLabor!J3/Config!$B$7)/Config_RawLabor!$K3)*VLOOKUP($A3,Config!$A$2:$B$5,2,0),2) -> 112.09 | J3: =ROUND(((Config_RawLabor!L3/Config!$B$7)/Config_RawLabor!$O3)*VLOOKUP($A3,Config!$A$2:$B$5,2,0),2) -> 94.41 | K3: =ROUND(((Config_RawLabor!M3/Config!$B$7)/Config_RawLabor!$O3)*VLOOKUP($A3,Config!$A$2:$B$5,2,0),2) -> 111.59 | L3: =ROUND(((Config_RawLabor!N3/Config!$B$7)/Config_RawLabor!$O3)*VLOOKUP($A3,Config!$A$2:$B$5,2,0),2) -> 132.49 | M3: =ROUND(((Config_RawLabor!P3/Config!$B$7)/Config_RawLabor!$S3)*VLOOKUP($A3,Config!$A$2:$B$5,2,0),2) -> 111.2 | N3: =ROUND(((Config_RawLabor!Q3/Config!$B$7)/Config_RawLabor!$S3)*VLOOKUP($A3,Config!$A$2:$B$5,2,0),2) -> 131.28 | O3: =ROUND(((Config_RawLabor!R3/Config!$B$7)/Config_RawLabor!$S3)*VLOOKUP($A3,Config!$A$2:$B$5,2,0),2) -> 154.97 | P3: =ROUND(((Config_RawLabor!T3/Config!$B$7)/Config_RawLabor!$W3)*VLOOKUP($A3,Config!$A$2:$B$5,2,0),2) -> 125.69 | Q3: =ROUND(((Config_RawLabor!U3/Config!$B$7)/Config_RawLabor!$W3)*VLOOKUP($A3,Config!$A$2:$B$5,2,0),2) -> 148.77 | R3: =ROUND(((Config_RawLabor!V3/Config!$B$7)/Config_RawLabor!$W3)*VLOOKUP($A3,Config!$A$2:$B$5,2,0),2) -> 175.08
A4: =Config_RawLabor!A4 -> Advocate | B4: =Config_RawLabor!B4 -> Community Development Manager | C4: =Config_RawLabor!C4 -> Responsible for the supervision, support, and training of staff within a specific program, and for providing operational and program support to the program director. Meets program and organizational goals. Model and support organization's values. | D4: =ROUND(((Config_RawLabor!D4/Config!$B$7)/Config_RawLabor!$G4)*VLOOKUP($A4,Config!$A$2:$B$5,2,0),2) -> 61.61 | E4: =ROUND(((Config_RawLabor!E4/Config!$B$7)/Config_RawLabor!$G4)*VLOOKUP($A4,Config!$A$2:$B$5,2,0),2) -> 71.4 | F4: =ROUND(((Config_RawLabor!F4/Config!$B$7)/Config_RawLabor!$G4)*VLOOKUP($A4,Config!$A$2:$B$5,2,0),2) -> 82.42 | G4: =ROUND(((Config_RawLabor!H4/Config!$B$7)/Config_RawLabor!$K4)*VLOOKUP($A4,Config!$A$2:$B$5,2,0),2) -> 72.61 | H4: =ROUND(((Config_RawLabor!I4/Config!$B$7)/Config_RawLabor!$K4)*VLOOKUP($A4,Config!$A$2:$B$5,2,0),2) -> 85.05 | I4: =ROUND(((Config_RawLabor!J4/Config!$B$7)/Config_RawLabor!$K4)*VLOOKUP($A4,Config!$A$2:$B$5,2,0),2) -> 98.45 | J4: =ROUND(((Config_RawLabor!L4/Config!$B$7)/Config_RawLabor!$O4)*VLOOKUP($A4,Config!$A$2:$B$5,2,0),2) -> 86.27 | K4: =ROUND(((Config_RawLabor!M4/Config!$B$7)/Config_RawLabor!$O4)*VLOOKUP($A4,Config!$A$2:$B$5,2,0),2) -> 100.8 | L4: =ROUND(((Config_RawLabor!N4/Config!$B$7)/Config_RawLabor!$O4)*VLOOKUP($A4,Config!$A$2:$B$5,2,0),2) -> 116.16 | M4: =ROUND(((Config_RawLabor!P4/Config!$B$7)/Config_RawLabor!$S4)*VLOOKUP($A4,Config!$A$2:$B$5,2,0),2) -> 101.76 | N4: =ROUND(((Config_RawLabor!Q4/Config!$B$7)/Config_RawLabor!$S4)*VLOOKUP($A4,Config!$A$2:$B$5,2,0),2) -> 118.65 | O4: =ROUND(((Config_RawLabor!R4/Config!$B$7)/Config_RawLabor!$S4)*VLOOKUP($A4,Config!$A$2:$B$5,2,0),2) -> 135.81 | P4: =ROUND(((Config_RawLabor!T4/Config!$B$7)/Config_RawLabor!$W4)*VLOOKUP($A4,Config!$A$2:$B$5,2,0),2) -> 115.2 | Q4: =ROUND(((Config_RawLabor!U4/Config!$B$7)/Config_RawLabor!$W4)*VLOOKUP($A4,Config!$A$2:$B$5,2,0),2) -> 134.71 | R4: =ROUND(((Config_RawLabor!V4/Config!$B$7)/Config_RawLabor!$W4)*VLOOKUP($A4,Config!$A$2:$B$5,2,0),2) -> 153.65
A5: =Config_RawLabor!A5 -> Advocate | B5: =Config_RawLabor!B5 -> Community Development Program Director | C5: =Config_RawLabor!C5 -> A senior management position which provides leadership and management to one or more programs and participates in the overall management of (non-profit) organization. Coordinate, plan and develop comprehensive programs for implementing the organization's goals. On-going in-depth review and analysis of program operations, community needs and program resources. Represents the organization to community, agencies, the media, and participants. | D5: =ROUND(((Config_RawLabor!D5/Config!$B$7)/Config_RawLabor!$G5)*VLOOKUP($A5,Config!$A$2:$B$5,2,0),2) -> 87.22 | E5: =ROUND(((Config_RawLabor!E5/Config!$B$7)/Config_RawLabor!$G5)*VLOOKUP($A5,Config!$A$2:$B$5,2,0),2) -> 99.43 | F5: =ROUND(((Config_RawLabor!F5/Config!$B$7)/Config_RawLabor!$G5)*VLOOKUP($A5,Config!$A$2:$B$5,2,0),2) -> 113.72 | G5: =ROUND(((Config_RawLabor!H5/Config!$B$7)/Config_RawLabor!$K5)*VLOOKUP($A5,Config!$A$2:$B$5,2,0),2) -> 102.79 | H5: =ROUND(((Config_RawLabor!I5/Config!$B$7)/Config_RawLabor!$K5)*VLOOKUP($A5,Config!$A$2:$B$5,2,0),2) -> 118.44 | I5: =ROUND(((Config_RawLabor!J5/Config!$B$7)/Config_RawLabor!$K5)*VLOOKUP($A5,Config!$A$2:$B$5,2,0),2) -> 135.84 | J5: =ROUND(((Config_RawLabor!L5/Config!$B$7)/Config_RawLabor!$O5)*VLOOKUP($A5,Config!$A$2:$B$5,2,0),2) -> 122.13 | K5: =ROUND(((Config_RawLabor!M5/Config!$B$7)/Config_RawLabor!$O5)*VLOOKUP($A5,Config!$A$2:$B$5,2,0),2) -> 140.39 | L5: =ROUND(((Config_RawLabor!N5/Config!$B$7)/Config_RawLabor!$O5)*VLOOKUP($A5,Config!$A$2:$B$5,2,0),2) -> 160.26 | M5: =ROUND(((Config_RawLabor!P5/Config!$B$7)/Config_RawLabor!$S5)*VLOOKUP($A5,Config!$A$2:$B$5,2,0),2) -> 144.06 | N5: =ROUND(((Config_RawLabor!Q5/Config!$B$7)/Config_RawLabor!$S5)*VLOOKUP($A5,Config!$A$2:$B$5,2,0),2) -> 165.25 | O5: =ROUND(((Config_RawLabor!R5/Config!$B$7)/Config_RawLabor!$S5)*VLOOKUP($A5,Config!$A$2:$B$5,2,0),2) -> 187.37 | P5: =ROUND(((Config_RawLabor!T5/Config!$B$7)/Config_RawLabor!$W5)*VLOOKUP($A5,Config!$A$2:$B$5,2,0),2) -> 163.09 | Q5: =ROUND(((Config_RawLabor!U5/Config!$B$7)/Config_RawLabor!$W5)*VLOOKUP($A5,Config!$A$2:$B$5,2,0),2) -> 187.61 | R5: =ROUND(((Config_RawLabor!V5/Config!$B$7)/Config_RawLabor!$W5)*VLOOKUP($A5,Config!$A$2:$B$5,2,0),2) -> 211.99
A6: =Config_RawLabor!A6 -> Advocate | B6: =Config_RawLabor!B6 -> Community Development Senior Specialist | C6: =Config_RawLabor!C6 -> Work closely with low-income, rural residents to assist them in the development and management of community facilities. Perform advocacy and technical assistance role regarding the needs of rural, low income people for safe and affordable water, waste water and energyfacilities. Responsible for multiple community development projects. Can include organizing, research, loan and grant writing. In addition, the SR CD Specialist provides leadership and support to CD staff, serves as a resource for other staff and effectively and positively represents the organization to staff, participants and the community | D6: =ROUND(((Config_RawLabor!D6/Config!$B$7)/Config_RawLabor!$G6)*VLOOKUP($A6,Config!$A$2:$B$5,2,0),2) -> 70.1 | E6: =ROUND(((Config_RawLabor!E6/Config!$B$7)/Config_RawLabor!$G6)*VLOOKUP($A6,Config!$A$2:$B$5,2,0),2) -> 89.36 | F6: =ROUND(((Config_RawLabor!F6/Config!$B$7)/Config_RawLabor!$G6)*VLOOKUP($A6,Config!$A$2:$B$5,2,0),2) -> 108.54 | G6: =ROUND(((Config_RawLabor!H6/Config!$B$7)/Config_RawLabor!$K6)*VLOOKUP($A6,Config!$A$2:$B$5,2,0),2) -> 82.61 | H6: =ROUND(((Config_RawLabor!I6/Config!$B$7)/Config_RawLabor!$K6)*VLOOKUP($A6,Config!$A$2:$B$5,2,0),2) -> 106.45 | I6: =ROUND(((Config_RawLabor!J6/Config!$B$7)/Config_RawLabor!$K6)*VLOOKUP($A6,Config!$A$2:$B$5,2,0),2) -> 129.65 | J6: =ROUND(((Config_RawLabor!L6/Config!$B$7)/Config_RawLabor!$O6)*VLOOKUP($A6,Config!$A$2:$B$5,2,0),2) -> 98.16 | K6: =ROUND(((Config_RawLabor!M6/Config!$B$7)/Config_RawLabor!$O6)*VLOOKUP($A6,Config!$A$2:$B$5,2,0),2) -> 126.17 | L6: =ROUND(((Config_RawLabor!N6/Config!$B$7)/Config_RawLabor!$O6)*VLOOKUP($A6,Config!$A$2:$B$5,2,0),2) -> 152.96 | M6: =ROUND(((Config_RawLabor!P6/Config!$B$7)/Config_RawLabor!$S6)*VLOOKUP($A6,Config!$A$2:$B$5,2,0),2) -> 115.78 | N6: =ROUND(((Config_RawLabor!Q6/Config!$B$7)/Config_RawLabor!$S6)*VLOOKUP($A6,Config!$A$2:$B$5,2,0),2) -> 148.51 | O6: =ROUND(((Config_RawLabor!R6/Config!$B$7)/Config_RawLabor!$S6)*VLOOKUP($A6,Config!$A$2:$B$5,2,0),2) -> 178.84 | P6: =ROUND(((Config_RawLabor!T6/Config!$B$7)/Config_RawLabor!$W6)*VLOOKUP($A6,Config!$A$2:$B$5,2,0),2) -> 131.07 | Q6: =ROUND(((Config_RawLabor!U6/Config!$B$7)/Config_RawLabor!$W6)*VLOOKUP($A6,Config!$A$2:$B$5,2,0),2) -> 168.61 | R6: =ROUND(((Config_RawLabor!V6/Config!$B$7)/Config_RawLabor!$W6)*VLOOKUP($A6,Config!$A$2:$B$5,2,0),2) -> 202.34
A7: =Config_RawLabor!A7 -> Advocate | B7: =Config_RawLabor!B7 -> Community Development Specialist | C7: =Config_RawLabor!C7 -> Work closely with low-income, rural residents to assist them in the development and management of community facilities. Perform advocacy and technical assistance role regarding the needs of rural, low income people for safe and affordable water,waste water and energy facilities. Responsible for multiple community development projects. Can include organizing, research, loan and grant writing. | D7: =ROUND(((Config_RawLabor!D7/Config!$B$7)/Config_RawLabor!$G7)*VLOOKUP($A7,Config!$A$2:$B$5,2,0),2) -> 35.67 | E7: =ROUND(((Config_RawLabor!E7/Config!$B$7)/Config_RawLabor!$G7)*VLOOKUP($A7,Config!$A$2:$B$5,2,0),2) -> 41.57 | F7: =ROUND(((Config_RawLabor!F7/Config!$B$7)/Config_RawLabor!$G7)*VLOOKUP($A7,Config!$A$2:$B$5,2,0),2) -> 48.08 | G7: =ROUND(((Config_RawLabor!H7/Config!$B$7)/Config_RawLabor!$K7)*VLOOKUP($A7,Config!$A$2:$B$5,2,0),2) -> 42.04 | H7: =ROUND(((Config_RawLabor!I7/Config!$B$7)/Config_RawLabor!$K7)*VLOOKUP($A7,Config!$A$2:$B$5,2,0),2) -> 49.52 | I7: =ROUND(((Config_RawLabor!J7/Config!$B$7)/Config_RawLabor!$K7)*VLOOKUP($A7,Config!$A$2:$B$5,2,0),2) -> 57.44 | J7: =ROUND(((Config_RawLabor!L7/Config!$B$7)/Config_RawLabor!$O7)*VLOOKUP($A7,Config!$A$2:$B$5,2,0),2) -> 49.96 | K7: =ROUND(((Config_RawLabor!M7/Config!$B$7)/Config_RawLabor!$O7)*VLOOKUP($A7,Config!$A$2:$B$5,2,0),2) -> 58.69 | L7: =ROUND(((Config_RawLabor!N7/Config!$B$7)/Config_RawLabor!$O7)*VLOOKUP($A7,Config!$A$2:$B$5,2,0),2) -> 67.76 | M7: =ROUND(((Config_RawLabor!P7/Config!$B$7)/Config_RawLabor!$S7)*VLOOKUP($A7,Config!$A$2:$B$5,2,0),2) -> 58.92 | N7: =ROUND(((Config_RawLabor!Q7/Config!$B$7)/Config_RawLabor!$S7)*VLOOKUP($A7,Config!$A$2:$B$5,2,0),2) -> 69.08 | O7: =ROUND(((Config_RawLabor!R7/Config!$B$7)/Config_RawLabor!$S7)*VLOOKUP($A7,Config!$A$2:$B$5,2,0),2) -> 79.23 | P7: =ROUND(((Config_RawLabor!T7/Config!$B$7)/Config_RawLabor!$W7)*VLOOKUP($A7,Config!$A$2:$B$5,2,0),2) -> 66.71 | Q7: =ROUND(((Config_RawLabor!U7/Config!$B$7)/Config_RawLabor!$W7)*VLOOKUP($A7,Config!$A$2:$B$5,2,0),2) -> 78.43 | R7: =ROUND(((Config_RawLabor!V7/Config!$B$7)/Config_RawLabor!$W7)*VLOOKUP($A7,Config!$A$2:$B$5,2,0),2) -> 89.64
A8: =Config_RawLabor!A8 -> Advocate | B8: =Config_RawLabor!B8 -> Executive Director | C8: =Config_RawLabor!C8 -> Provides overall direction and guidance to a non-profit organization's programs. Responsible for the success of special events, community outreach initiatives, and fundraising activities. Acts as a spokesperson and represents the organization's programs to the public. Assesses needs and ensures that program objectives are met, initiates changes to maintain member satisfaction and engagement. | D8: =ROUND(((Config_RawLabor!D8/Config!$B$7)/Config_RawLabor!$G8)*VLOOKUP($A8,Config!$A$2:$B$5,2,0),2) -> 113.82 | E8: =ROUND(((Config_RawLabor!E8/Config!$B$7)/Config_RawLabor!$G8)*VLOOKUP($A8,Config!$A$2:$B$5,2,0),2) -> 143.1 | F8: =ROUND(((Config_RawLabor!F8/Config!$B$7)/Config_RawLabor!$G8)*VLOOKUP($A8,Config!$A$2:$B$5,2,0),2) -> 187.47 | G8: =ROUND(((Config_RawLabor!H8/Config!$B$7)/Config_RawLabor!$K8)*VLOOKUP($A8,Config!$A$2:$B$5,2,0),2) -> 134.15 | H8: =ROUND(((Config_RawLabor!I8/Config!$B$7)/Config_RawLabor!$K8)*VLOOKUP($A8,Config!$A$2:$B$5,2,0),2) -> 170.46 | I8: =ROUND(((Config_RawLabor!J8/Config!$B$7)/Config_RawLabor!$K8)*VLOOKUP($A8,Config!$A$2:$B$5,2,0),2) -> 223.94 | J8: =ROUND(((Config_RawLabor!L8/Config!$B$7)/Config_RawLabor!$O8)*VLOOKUP($A8,Config!$A$2:$B$5,2,0),2) -> 159.39 | K8: =ROUND(((Config_RawLabor!M8/Config!$B$7)/Config_RawLabor!$O8)*VLOOKUP($A8,Config!$A$2:$B$5,2,0),2) -> 202.04 | L8: =ROUND(((Config_RawLabor!N8/Config!$B$7)/Config_RawLabor!$O8)*VLOOKUP($A8,Config!$A$2:$B$5,2,0),2) -> 264.2 | M8: =ROUND(((Config_RawLabor!P8/Config!$B$7)/Config_RawLabor!$S8)*VLOOKUP($A8,Config!$A$2:$B$5,2,0),2) -> 188 | N8: =ROUND(((Config_RawLabor!Q8/Config!$B$7)/Config_RawLabor!$S8)*VLOOKUP($A8,Config!$A$2:$B$5,2,0),2) -> 237.82 | O8: =ROUND(((Config_RawLabor!R8/Config!$B$7)/Config_RawLabor!$S8)*VLOOKUP($A8,Config!$A$2:$B$5,2,0),2) -> 308.9 | P8: =ROUND(((Config_RawLabor!T8/Config!$B$7)/Config_RawLabor!$W8)*VLOOKUP($A8,Config!$A$2:$B$5,2,0),2) -> 212.83 | Q8: =ROUND(((Config_RawLabor!U8/Config!$B$7)/Config_RawLabor!$W8)*VLOOKUP($A8,Config!$A$2:$B$5,2,0),2) -> 270 | R8: =ROUND(((Config_RawLabor!V8/Config!$B$7)/Config_RawLabor!$W8)*VLOOKUP($A8,Config!$A$2:$B$5,2,0),2) -> 349.49
A9: =Config_RawLabor!A9 -> Advocate | B9: =Config_RawLabor!B9 -> Housing Program Manager | C9: =Config_RawLabor!C9 -> Oversees operations of a housing program. Sets budget and policies, hires and trains staff, and oversees occupancy eligibility/operations. Develops and provides reports or documentation needed to secure/maintain funding or grants. May lead the work of others. | D9: =ROUND(((Config_RawLabor!D9/Config!$B$7)/Config_RawLabor!$G9)*VLOOKUP($A9,Config!$A$2:$B$5,2,0),2) -> 32.62 | E9: =ROUND(((Config_RawLabor!E9/Config!$B$7)/Config_RawLabor!$G9)*VLOOKUP($A9,Config!$A$2:$B$5,2,0),2) -> 45.61 | F9: =ROUND(((Config_RawLabor!F9/Config!$B$7)/Config_RawLabor!$G9)*VLOOKUP($A9,Config!$A$2:$B$5,2,0),2) -> 60.1 | G9: =ROUND(((Config_RawLabor!H9/Config!$B$7)/Config_RawLabor!$K9)*VLOOKUP($A9,Config!$A$2:$B$5,2,0),2) -> 38.44 | H9: =ROUND(((Config_RawLabor!I9/Config!$B$7)/Config_RawLabor!$K9)*VLOOKUP($A9,Config!$A$2:$B$5,2,0),2) -> 54.34 | I9: =ROUND(((Config_RawLabor!J9/Config!$B$7)/Config_RawLabor!$K9)*VLOOKUP($A9,Config!$A$2:$B$5,2,0),2) -> 71.79 | J9: =ROUND(((Config_RawLabor!L9/Config!$B$7)/Config_RawLabor!$O9)*VLOOKUP($A9,Config!$A$2:$B$5,2,0),2) -> 45.68 | K9: =ROUND(((Config_RawLabor!M9/Config!$B$7)/Config_RawLabor!$O9)*VLOOKUP($A9,Config!$A$2:$B$5,2,0),2) -> 64.4 | L9: =ROUND(((Config_RawLabor!N9/Config!$B$7)/Config_RawLabor!$O9)*VLOOKUP($A9,Config!$A$2:$B$5,2,0),2) -> 84.7 | M9: =ROUND(((Config_RawLabor!P9/Config!$B$7)/Config_RawLabor!$S9)*VLOOKUP($A9,Config!$A$2:$B$5,2,0),2) -> 53.88 | N9: =ROUND(((Config_RawLabor!Q9/Config!$B$7)/Config_RawLabor!$S9)*VLOOKUP($A9,Config!$A$2:$B$5,2,0),2) -> 75.81 | O9: =ROUND(((Config_RawLabor!R9/Config!$B$7)/Config_RawLabor!$S9)*VLOOKUP($A9,Config!$A$2:$B$5,2,0),2) -> 99.03 | P9: =ROUND(((Config_RawLabor!T9/Config!$B$7)/Config_RawLabor!$W9)*VLOOKUP($A9,Config!$A$2:$B$5,2,0),2) -> 60.99 | Q9: =ROUND(((Config_RawLabor!U9/Config!$B$7)/Config_RawLabor!$W9)*VLOOKUP($A9,Config!$A$2:$B$5,2,0),2) -> 86.07 | R9: =ROUND(((Config_RawLabor!V9/Config!$B$7)/Config_RawLabor!$W9)*VLOOKUP($A9,Config!$A$2:$B$5,2,0),2) -> 112.04
A10: =Config_RawLabor!A10 -> Advocate | B10: =Config_RawLabor!B10 -> Program Coordinator | C10: =Config_RawLabor!C10 -> Plans and coordinates one or more programs for a non-profit organization, including fundraising, budgeting, and community outreach. Develops and implements programs that align with the organization's mission and support the organization's goals. Creates program materials, establishes staffing requirements, and ensures that program achieves stated objectives. May be responsible for special events that publicize the organization and its programs to the community. | D10: =ROUND(((Config_RawLabor!D10/Config!$B$7)/Config_RawLabor!$G10)*VLOOKUP($A10,Config!$A$2:$B$5,2,0),2) -> 60.19 | E10: =ROUND(((Config_RawLabor!E10/Config!$B$7)/Config_RawLabor!$G10)*VLOOKUP($A10,Config!$A$2:$B$5,2,0),2) -> 68.29 | F10: =ROUND(((Config_RawLabor!F10/Config!$B$7)/Config_RawLabor!$G10)*VLOOKUP($A10,Config!$A$2:$B$5,2,0),2) -> 79.17 | G10: =ROUND(((Config_RawLabor!H10/Config!$B$7)/Config_RawLabor!$K10)*VLOOKUP($A10,Config!$A$2:$B$5,2,0),2) -> 70.94 | H10: =ROUND(((Config_RawLabor!I10/Config!$B$7)/Config_RawLabor!$K10)*VLOOKUP($A10,Config!$A$2:$B$5,2,0),2) -> 81.34 | I10: =ROUND(((Config_RawLabor!J10/Config!$B$7)/Config_RawLabor!$K10)*VLOOKUP($A10,Config!$A$2:$B$5,2,0),2) -> 94.56 | J10: =ROUND(((Config_RawLabor!L10/Config!$B$7)/Config_RawLabor!$O10)*VLOOKUP($A10,Config!$A$2:$B$5,2,0),2) -> 84.29 | K10: =ROUND(((Config_RawLabor!M10/Config!$B$7)/Config_RawLabor!$O10)*VLOOKUP($A10,Config!$A$2:$B$5,2,0),2) -> 96.41 | L10: =ROUND(((Config_RawLabor!N10/Config!$B$7)/Config_RawLabor!$O10)*VLOOKUP($A10,Config!$A$2:$B$5,2,0),2) -> 111.57 | M10: =ROUND(((Config_RawLabor!P10/Config!$B$7)/Config_RawLabor!$S10)*VLOOKUP($A10,Config!$A$2:$B$5,2,0),2) -> 99.42 | N10: =ROUND(((Config_RawLabor!Q10/Config!$B$7)/Config_RawLabor!$S10)*VLOOKUP($A10,Config!$A$2:$B$5,2,0),2) -> 113.48 | O10: =ROUND(((Config_RawLabor!R10/Config!$B$7)/Config_RawLabor!$S10)*VLOOKUP($A10,Config!$A$2:$B$5,2,0),2) -> 130.44 | P10: =ROUND(((Config_RawLabor!T10/Config!$B$7)/Config_RawLabor!$W10)*VLOOKUP($A10,Config!$A$2:$B$5,2,0),2) -> 112.55 | Q10: =ROUND(((Config_RawLabor!U10/Config!$B$7)/Config_RawLabor!$W10)*VLOOKUP($A10,Config!$A$2:$B$5,2,0),2) -> 128.84 | R10: =ROUND(((Config_RawLabor!V10/Config!$B$7)/Config_RawLabor!$W10)*VLOOKUP($A10,Config!$A$2:$B$5,2,0),2) -> 147.58
A11: =Config_RawLabor!A11 -> Advocate | B11: =Config_RawLabor!B11 -> Program Manager | C11: =Config_RawLabor!C11 -> Manages a team that coordinates programs for a non-profit organization. Designs programs that align with the organization's mission and support the organization's goals. Establishes fundraising and development goals, identifies potential donors or sources of funding, and plans outreach strategies. Schedules and forecasts planning for special events that publicize the organization and its programs to the community. May assist in the development of grants applications or proposals. | D11: =ROUND(((Config_RawLabor!D11/Config!$B$7)/Config_RawLabor!$G11)*VLOOKUP($A11,Config!$A$2:$B$5,2,0),2) -> 86.93 | E11: =ROUND(((Config_RawLabor!E11/Config!$B$7)/Config_RawLabor!$G11)*VLOOKUP($A11,Config!$A$2:$B$5,2,0),2) -> 92.1 | F11: =ROUND(((Config_RawLabor!F11/Config!$B$7)/Config_RawLabor!$G11)*VLOOKUP($A11,Config!$A$2:$B$5,2,0),2) -> 103.5 | G11: =ROUND(((Config_RawLabor!H11/Config!$B$7)/Config_RawLabor!$K11)*VLOOKUP($A11,Config!$A$2:$B$5,2,0),2) -> 102.45 | H11: =ROUND(((Config_RawLabor!I11/Config!$B$7)/Config_RawLabor!$K11)*VLOOKUP($A11,Config!$A$2:$B$5,2,0),2) -> 109.71 | I11: =ROUND(((Config_RawLabor!J11/Config!$B$7)/Config_RawLabor!$K11)*VLOOKUP($A11,Config!$A$2:$B$5,2,0),2) -> 123.63 | J11: =ROUND(((Config_RawLabor!L11/Config!$B$7)/Config_RawLabor!$O11)*VLOOKUP($A11,Config!$A$2:$B$5,2,0),2) -> 121.73 | K11: =ROUND(((Config_RawLabor!M11/Config!$B$7)/Config_RawLabor!$O11)*VLOOKUP($A11,Config!$A$2:$B$5,2,0),2) -> 130.03 | L11: =ROUND(((Config_RawLabor!N11/Config!$B$7)/Config_RawLabor!$O11)*VLOOKUP($A11,Config!$A$2:$B$5,2,0),2) -> 145.87 | M11: =ROUND(((Config_RawLabor!P11/Config!$B$7)/Config_RawLabor!$S11)*VLOOKUP($A11,Config!$A$2:$B$5,2,0),2) -> 143.58 | N11: =ROUND(((Config_RawLabor!Q11/Config!$B$7)/Config_RawLabor!$S11)*VLOOKUP($A11,Config!$A$2:$B$5,2,0),2) -> 153.06 | O11: =ROUND(((Config_RawLabor!R11/Config!$B$7)/Config_RawLabor!$S11)*VLOOKUP($A11,Config!$A$2:$B$5,2,0),2) -> 170.54 | P11: =ROUND(((Config_RawLabor!T11/Config!$B$7)/Config_RawLabor!$W11)*VLOOKUP($A11,Config!$A$2:$B$5,2,0),2) -> 162.54 | Q11: =ROUND(((Config_RawLabor!U11/Config!$B$7)/Config_RawLabor!$W11)*VLOOKUP($A11,Config!$A$2:$B$5,2,0),2) -> 173.77 | R11: =ROUND(((Config_RawLabor!V11/Config!$B$7)/Config_RawLabor!$W11)*VLOOKUP($A11,Config!$A$2:$B$5,2,0),2) -> 192.95
A12: =Config_RawLabor!A12 -> Expert | B12: =Config_RawLabor!B12 -> Accountant | C12: =Config_RawLabor!C12 -> Prepares complex balance sheets, profit and loss statements and other financial reports. Analyzes current costs, revenues, financial commitments, and obligations incurred to predict future revenues and expenses. | D12: =ROUND(((Config_RawLabor!D12/Config!$B$7)/Config_RawLabor!$G12)*VLOOKUP($A12,Config!$A$2:$B$5,2,0),2) -> 93.06 | E12: =ROUND(((Config_RawLabor!E12/Config!$B$7)/Config_RawLabor!$G12)*VLOOKUP($A12,Config!$A$2:$B$5,2,0),2) -> 102.23 | F12: =ROUND(((Config_RawLabor!F12/Config!$B$7)/Config_RawLabor!$G12)*VLOOKUP($A12,Config!$A$2:$B$5,2,0),2) -> 112.57 | G12: =ROUND(((Config_RawLabor!H12/Config!$B$7)/Config_RawLabor!$K12)*VLOOKUP($A12,Config!$A$2:$B$5,2,0),2) -> 108.92 | H12: =ROUND(((Config_RawLabor!I12/Config!$B$7)/Config_RawLabor!$K12)*VLOOKUP($A12,Config!$A$2:$B$5,2,0),2) -> 120.38 | I12: =ROUND(((Config_RawLabor!J12/Config!$B$7)/Config_RawLabor!$K12)*VLOOKUP($A12,Config!$A$2:$B$5,2,0),2) -> 132.98 | J12: =ROUND(((Config_RawLabor!L12/Config!$B$7)/Config_RawLabor!$O12)*VLOOKUP($A12,Config!$A$2:$B$5,2,0),2) -> 135.47 | K12: =ROUND(((Config_RawLabor!M12/Config!$B$7)/Config_RawLabor!$O12)*VLOOKUP($A12,Config!$A$2:$B$5,2,0),2) -> 149.67 | L12: =ROUND(((Config_RawLabor!N12/Config!$B$7)/Config_RawLabor!$O12)*VLOOKUP($A12,Config!$A$2:$B$5,2,0),2) -> 165.91 | M12: =ROUND(((Config_RawLabor!P12/Config!$B$7)/Config_RawLabor!$S12)*VLOOKUP($A12,Config!$A$2:$B$5,2,0),2) -> 167.35 | N12: =ROUND(((Config_RawLabor!Q12/Config!$B$7)/Config_RawLabor!$S12)*VLOOKUP($A12,Config!$A$2:$B$5,2,0),2) -> 183.52 | O12: =ROUND(((Config_RawLabor!R12/Config!$B$7)/Config_RawLabor!$S12)*VLOOKUP($A12,Config!$A$2:$B$5,2,0),2) -> 201.51 | P12: =ROUND(((Config_RawLabor!T12/Config!$B$7)/Config_RawLabor!$W12)*VLOOKUP($A12,Config!$A$2:$B$5,2,0),2) -> 188.59 | Q12: =ROUND(((Config_RawLabor!U12/Config!$B$7)/Config_RawLabor!$W12)*VLOOKUP($A12,Config!$A$2:$B$5,2,0),2) -> 206.82 | R12: =ROUND(((Config_RawLabor!V12/Config!$B$7)/Config_RawLabor!$W12)*VLOOKUP($A12,Config!$A$2:$B$5,2,0),2) -> 227.09
A13: =Config_RawLabor!A13 -> Expert | B13: =Config_RawLabor!B13 -> Biologist | C13: =Config_RawLabor!C13 -> Analyzes specific regional environments as well as the organisms and wildlife that inhabit those locations. Aids in the protection and survival of wildlife within any given ecosystem, and assesses the impact of human activity on the environment. | D13: =ROUND(((Config_RawLabor!D13/Config!$B$7)/Config_RawLabor!$G13)*VLOOKUP($A13,Config!$A$2:$B$5,2,0),2) -> 90.26 | E13: =ROUND(((Config_RawLabor!E13/Config!$B$7)/Config_RawLabor!$G13)*VLOOKUP($A13,Config!$A$2:$B$5,2,0),2) -> 99.64 | F13: =ROUND(((Config_RawLabor!F13/Config!$B$7)/Config_RawLabor!$G13)*VLOOKUP($A13,Config!$A$2:$B$5,2,0),2) -> 112.5 | G13: =ROUND(((Config_RawLabor!H13/Config!$B$7)/Config_RawLabor!$K13)*VLOOKUP($A13,Config!$A$2:$B$5,2,0),2) -> 100.3 | H13: =ROUND(((Config_RawLabor!I13/Config!$B$7)/Config_RawLabor!$K13)*VLOOKUP($A13,Config!$A$2:$B$5,2,0),2) -> 115.21 | I13: =ROUND(((Config_RawLabor!J13/Config!$B$7)/Config_RawLabor!$K13)*VLOOKUP($A13,Config!$A$2:$B$5,2,0),2) -> 130.35 | J13: =ROUND(((Config_RawLabor!L13/Config!$B$7)/Config_RawLabor!$O13)*VLOOKUP($A13,Config!$A$2:$B$5,2,0),2) -> 121.65 | K13: =ROUND(((Config_RawLabor!M13/Config!$B$7)/Config_RawLabor!$O13)*VLOOKUP($A13,Config!$A$2:$B$5,2,0),2) -> 140.45 | L13: =ROUND(((Config_RawLabor!N13/Config!$B$7)/Config_RawLabor!$O13)*VLOOKUP($A13,Config!$A$2:$B$5,2,0),2) -> 164.95 | M13: =ROUND(((Config_RawLabor!P13/Config!$B$7)/Config_RawLabor!$S13)*VLOOKUP($A13,Config!$A$2:$B$5,2,0),2) -> 172.48 | N13: =ROUND(((Config_RawLabor!Q13/Config!$B$7)/Config_RawLabor!$S13)*VLOOKUP($A13,Config!$A$2:$B$5,2,0),2) -> 201.1 | O13: =ROUND(((Config_RawLabor!R13/Config!$B$7)/Config_RawLabor!$S13)*VLOOKUP($A13,Config!$A$2:$B$5,2,0),2) -> 234.86 | P13: =ROUND(((Config_RawLabor!T13/Config!$B$7)/Config_RawLabor!$W13)*VLOOKUP($A13,Config!$A$2:$B$5,2,0),2) -> 178.76 | Q13: =ROUND(((Config_RawLabor!U13/Config!$B$7)/Config_RawLabor!$W13)*VLOOKUP($A13,Config!$A$2:$B$5,2,0),2) -> 206.12 | R13: =ROUND(((Config_RawLabor!V13/Config!$B$7)/Config_RawLabor!$W13)*VLOOKUP($A13,Config!$A$2:$B$5,2,0),2) -> 226.1
A14: =Config_RawLabor!A14 -> Expert | B14: =Config_RawLabor!B14 -> Certified Depreciation Professional | C14: =Config_RawLabor!C14 -> Specialist in calculating depreciation. | D14: =ROUND(((Config_RawLabor!D14/Config!$B$7)/Config_RawLabor!$G14)*VLOOKUP($A14,Config!$A$2:$B$5,2,0),2) -> 104.75 | E14: =ROUND(((Config_RawLabor!E14/Config!$B$7)/Config_RawLabor!$G14)*VLOOKUP($A14,Config!$A$2:$B$5,2,0),2) -> 115.95 | F14: =ROUND(((Config_RawLabor!F14/Config!$B$7)/Config_RawLabor!$G14)*VLOOKUP($A14,Config!$A$2:$B$5,2,0),2) -> 127.51 | G14: =ROUND(((Config_RawLabor!H14/Config!$B$7)/Config_RawLabor!$K14)*VLOOKUP($A14,Config!$A$2:$B$5,2,0),2) -> 124.58 | H14: =ROUND(((Config_RawLabor!I14/Config!$B$7)/Config_RawLabor!$K14)*VLOOKUP($A14,Config!$A$2:$B$5,2,0),2) -> 136.24 | I14: =ROUND(((Config_RawLabor!J14/Config!$B$7)/Config_RawLabor!$K14)*VLOOKUP($A14,Config!$A$2:$B$5,2,0),2) -> 150.38 | J14: =ROUND(((Config_RawLabor!L14/Config!$B$7)/Config_RawLabor!$O14)*VLOOKUP($A14,Config!$A$2:$B$5,2,0),2) -> 146.19 | K14: =ROUND(((Config_RawLabor!M14/Config!$B$7)/Config_RawLabor!$O14)*VLOOKUP($A14,Config!$A$2:$B$5,2,0),2) -> 160.66 | L14: =ROUND(((Config_RawLabor!N14/Config!$B$7)/Config_RawLabor!$O14)*VLOOKUP($A14,Config!$A$2:$B$5,2,0),2) -> 175.94 | M14: =ROUND(((Config_RawLabor!P14/Config!$B$7)/Config_RawLabor!$S14)*VLOOKUP($A14,Config!$A$2:$B$5,2,0),2) -> 175.88 | N14: =ROUND(((Config_RawLabor!Q14/Config!$B$7)/Config_RawLabor!$S14)*VLOOKUP($A14,Config!$A$2:$B$5,2,0),2) -> 193.35 | O14: =ROUND(((Config_RawLabor!R14/Config!$B$7)/Config_RawLabor!$S14)*VLOOKUP($A14,Config!$A$2:$B$5,2,0),2) -> 215.67 | P14: =ROUND(((Config_RawLabor!T14/Config!$B$7)/Config_RawLabor!$W14)*VLOOKUP($A14,Config!$A$2:$B$5,2,0),2) -> 199.13 | Q14: =ROUND(((Config_RawLabor!U14/Config!$B$7)/Config_RawLabor!$W14)*VLOOKUP($A14,Config!$A$2:$B$5,2,0),2) -> 218.91 | R14: =ROUND(((Config_RawLabor!V14/Config!$B$7)/Config_RawLabor!$W14)*VLOOKUP($A14,Config!$A$2:$B$5,2,0),2) -> 244.19
A15: =Config_RawLabor!A15 -> Expert | B15: =Config_RawLabor!B15 -> Chemical Engineer | C15: =Config_RawLabor!C15 -> Analyzes processes for the transport and storage of chemicals, including gases. | D15: =ROUND(((Config_RawLabor!D15/Config!$B$7)/Config_RawLabor!$G15)*VLOOKUP($A15,Config!$A$2:$B$5,2,0),2) -> 133.4 | E15: =ROUND(((Config_RawLabor!E15/Config!$B$7)/Config_RawLabor!$G15)*VLOOKUP($A15,Config!$A$2:$B$5,2,0),2) -> 146.05 | F15: =ROUND(((Config_RawLabor!F15/Config!$B$7)/Config_RawLabor!$G15)*VLOOKUP($A15,Config!$A$2:$B$5,2,0),2) -> 161.45 | G15: =ROUND(((Config_RawLabor!H15/Config!$B$7)/Config_RawLabor!$K15)*VLOOKUP($A15,Config!$A$2:$B$5,2,0),2) -> 151.08 | H15: =ROUND(((Config_RawLabor!I15/Config!$B$7)/Config_RawLabor!$K15)*VLOOKUP($A15,Config!$A$2:$B$5,2,0),2) -> 167.51 | I15: =ROUND(((Config_RawLabor!J15/Config!$B$7)/Config_RawLabor!$K15)*VLOOKUP($A15,Config!$A$2:$B$5,2,0),2) -> 186.77 | J15: =ROUND(((Config_RawLabor!L15/Config!$B$7)/Config_RawLabor!$O15)*VLOOKUP($A15,Config!$A$2:$B$5,2,0),2) -> 176.8 | K15: =ROUND(((Config_RawLabor!M15/Config!$B$7)/Config_RawLabor!$O15)*VLOOKUP($A15,Config!$A$2:$B$5,2,0),2) -> 199.76 | L15: =ROUND(((Config_RawLabor!N15/Config!$B$7)/Config_RawLabor!$O15)*VLOOKUP($A15,Config!$A$2:$B$5,2,0),2) -> 224.12 | M15: =ROUND(((Config_RawLabor!P15/Config!$B$7)/Config_RawLabor!$S15)*VLOOKUP($A15,Config!$A$2:$B$5,2,0),2) -> 219.65 | N15: =ROUND(((Config_RawLabor!Q15/Config!$B$7)/Config_RawLabor!$S15)*VLOOKUP($A15,Config!$A$2:$B$5,2,0),2) -> 242.6 | O15: =ROUND(((Config_RawLabor!R15/Config!$B$7)/Config_RawLabor!$S15)*VLOOKUP($A15,Config!$A$2:$B$5,2,0),2) -> 272.02 | P15: =ROUND(((Config_RawLabor!T15/Config!$B$7)/Config_RawLabor!$W15)*VLOOKUP($A15,Config!$A$2:$B$5,2,0),2) -> 236.42 | Q15: =ROUND(((Config_RawLabor!U15/Config!$B$7)/Config_RawLabor!$W15)*VLOOKUP($A15,Config!$A$2:$B$5,2,0),2) -> 260.13 | R15: =ROUND(((Config_RawLabor!V15/Config!$B$7)/Config_RawLabor!$W15)*VLOOKUP($A15,Config!$A$2:$B$5,2,0),2) -> 283.4
A16: =Config_RawLabor!A16 -> Expert | B16: =Config_RawLabor!B16 -> Civil Engineer | C16: =Config_RawLabor!C16 -> Analyzes construction projects such as channels, dams, and roads. Responsibilities also include estimating costs, personnel, material and schedule needs. | D16: =ROUND(((Config_RawLabor!D16/Config!$B$7)/Config_RawLabor!$G16)*VLOOKUP($A16,Config!$A$2:$B$5,2,0),2) -> 118.55 | E16: =ROUND(((Config_RawLabor!E16/Config!$B$7)/Config_RawLabor!$G16)*VLOOKUP($A16,Config!$A$2:$B$5,2,0),2) -> 129.51 | F16: =ROUND(((Config_RawLabor!F16/Config!$B$7)/Config_RawLabor!$G16)*VLOOKUP($A16,Config!$A$2:$B$5,2,0),2) -> 146.17 | G16: =ROUND(((Config_RawLabor!H16/Config!$B$7)/Config_RawLabor!$K16)*VLOOKUP($A16,Config!$A$2:$B$5,2,0),2) -> 141.82 | H16: =ROUND(((Config_RawLabor!I16/Config!$B$7)/Config_RawLabor!$K16)*VLOOKUP($A16,Config!$A$2:$B$5,2,0),2) -> 158.35 | I16: =ROUND(((Config_RawLabor!J16/Config!$B$7)/Config_RawLabor!$K16)*VLOOKUP($A16,Config!$A$2:$B$5,2,0),2) -> 176.51 | J16: =ROUND(((Config_RawLabor!L16/Config!$B$7)/Config_RawLabor!$O16)*VLOOKUP($A16,Config!$A$2:$B$5,2,0),2) -> 171.23 | K16: =ROUND(((Config_RawLabor!M16/Config!$B$7)/Config_RawLabor!$O16)*VLOOKUP($A16,Config!$A$2:$B$5,2,0),2) -> 191.86 | L16: =ROUND(((Config_RawLabor!N16/Config!$B$7)/Config_RawLabor!$O16)*VLOOKUP($A16,Config!$A$2:$B$5,2,0),2) -> 216.13 | M16: =ROUND(((Config_RawLabor!P16/Config!$B$7)/Config_RawLabor!$S16)*VLOOKUP($A16,Config!$A$2:$B$5,2,0),2) -> 178.57 | N16: =ROUND(((Config_RawLabor!Q16/Config!$B$7)/Config_RawLabor!$S16)*VLOOKUP($A16,Config!$A$2:$B$5,2,0),2) -> 200.25 | O16: =ROUND(((Config_RawLabor!R16/Config!$B$7)/Config_RawLabor!$S16)*VLOOKUP($A16,Config!$A$2:$B$5,2,0),2) -> 224.84 | P16: =ROUND(((Config_RawLabor!T16/Config!$B$7)/Config_RawLabor!$W16)*VLOOKUP($A16,Config!$A$2:$B$5,2,0),2) -> 210.27 | Q16: =ROUND(((Config_RawLabor!U16/Config!$B$7)/Config_RawLabor!$W16)*VLOOKUP($A16,Config!$A$2:$B$5,2,0),2) -> 237.15 | R16: =ROUND(((Config_RawLabor!V16/Config!$B$7)/Config_RawLabor!$W16)*VLOOKUP($A16,Config!$A$2:$B$5,2,0),2) -> 266.16
A17: =Config_RawLabor!A17 -> Expert | B17: =Config_RawLabor!B17 -> Climate Scientist | C17: =Config_RawLabor!C17 -> Analyze and interpret data obtained from meteorological stations, radar and satellite imagery, and computer models. Analyze past climate conditions and use models to predict future climate trends. Expert on factors that affect climate and cause climate change. Provides information and advises policy-makers on environmental topics such as climate change and air quality. Uses impact models to illustrate how human or natural activities respond to climate, for example crop yields, wetland ecology, biodiversity, and human health. | D17: =ROUND(((Config_RawLabor!D17/Config!$B$7)/Config_RawLabor!$G17)*VLOOKUP($A17,Config!$A$2:$B$5,2,0),2) -> 108.1 | E17: =ROUND(((Config_RawLabor!E17/Config!$B$7)/Config_RawLabor!$G17)*VLOOKUP($A17,Config!$A$2:$B$5,2,0),2) -> 121.99 | F17: =ROUND(((Config_RawLabor!F17/Config!$B$7)/Config_RawLabor!$G17)*VLOOKUP($A17,Config!$A$2:$B$5,2,0),2) -> 137.66 | G17: =ROUND(((Config_RawLabor!H17/Config!$B$7)/Config_RawLabor!$K17)*VLOOKUP($A17,Config!$A$2:$B$5,2,0),2) -> 138.1 | H17: =ROUND(((Config_RawLabor!I17/Config!$B$7)/Config_RawLabor!$K17)*VLOOKUP($A17,Config!$A$2:$B$5,2,0),2) -> 152.85 | I17: =ROUND(((Config_RawLabor!J17/Config!$B$7)/Config_RawLabor!$K17)*VLOOKUP($A17,Config!$A$2:$B$5,2,0),2) -> 170.93 | J17: =ROUND(((Config_RawLabor!L17/Config!$B$7)/Config_RawLabor!$O17)*VLOOKUP($A17,Config!$A$2:$B$5,2,0),2) -> 159.83 | K17: =ROUND(((Config_RawLabor!M17/Config!$B$7)/Config_RawLabor!$O17)*VLOOKUP($A17,Config!$A$2:$B$5,2,0),2) -> 180.95 | L17: =ROUND(((Config_RawLabor!N17/Config!$B$7)/Config_RawLabor!$O17)*VLOOKUP($A17,Config!$A$2:$B$5,2,0),2) -> 204.7 | M17: =ROUND(((Config_RawLabor!P17/Config!$B$7)/Config_RawLabor!$S17)*VLOOKUP($A17,Config!$A$2:$B$5,2,0),2) -> 171.17 | N17: =ROUND(((Config_RawLabor!Q17/Config!$B$7)/Config_RawLabor!$S17)*VLOOKUP($A17,Config!$A$2:$B$5,2,0),2) -> 195.3 | O17: =ROUND(((Config_RawLabor!R17/Config!$B$7)/Config_RawLabor!$S17)*VLOOKUP($A17,Config!$A$2:$B$5,2,0),2) -> 219.45 | P17: =ROUND(((Config_RawLabor!T17/Config!$B$7)/Config_RawLabor!$W17)*VLOOKUP($A17,Config!$A$2:$B$5,2,0),2) -> 191.77 | Q17: =ROUND(((Config_RawLabor!U17/Config!$B$7)/Config_RawLabor!$W17)*VLOOKUP($A17,Config!$A$2:$B$5,2,0),2) -> 227.93 | R17: =ROUND(((Config_RawLabor!V17/Config!$B$7)/Config_RawLabor!$W17)*VLOOKUP($A17,Config!$A$2:$B$5,2,0),2) -> 259.92
A18: =Config_RawLabor!A18 -> Expert | B18: =Config_RawLabor!B18 -> Communication Specialist | C18: =Config_RawLabor!C18 -> Defines, designs and implements communications strategy and programs. Evaluates and assist in establishing standard operating procedures regarding communications. Reviews and edits communications submitted for organizational issues. Works closely with various business departments to ensure messages are delivered clearly and effectively. | D18: =ROUND(((Config_RawLabor!D18/Config!$B$7)/Config_RawLabor!$G18)*VLOOKUP($A18,Config!$A$2:$B$5,2,0),2) -> 116.17 | E18: =ROUND(((Config_RawLabor!E18/Config!$B$7)/Config_RawLabor!$G18)*VLOOKUP($A18,Config!$A$2:$B$5,2,0),2) -> 133.02 | F18: =ROUND(((Config_RawLabor!F18/Config!$B$7)/Config_RawLabor!$G18)*VLOOKUP($A18,Config!$A$2:$B$5,2,0),2) -> 151.31 | G18: =ROUND(((Config_RawLabor!H18/Config!$B$7)/Config_RawLabor!$K18)*VLOOKUP($A18,Config!$A$2:$B$5,2,0),2) -> 142.57 | H18: =ROUND(((Config_RawLabor!I18/Config!$B$7)/Config_RawLabor!$K18)*VLOOKUP($A18,Config!$A$2:$B$5,2,0),2) -> 162.33 | I18: =ROUND(((Config_RawLabor!J18/Config!$B$7)/Config_RawLabor!$K18)*VLOOKUP($A18,Config!$A$2:$B$5,2,0),2) -> 184.21 | J18: =ROUND(((Config_RawLabor!L18/Config!$B$7)/Config_RawLabor!$O18)*VLOOKUP($A18,Config!$A$2:$B$5,2,0),2) -> 178.57 | K18: =ROUND(((Config_RawLabor!M18/Config!$B$7)/Config_RawLabor!$O18)*VLOOKUP($A18,Config!$A$2:$B$5,2,0),2) -> 201.74 | L18: =ROUND(((Config_RawLabor!N18/Config!$B$7)/Config_RawLabor!$O18)*VLOOKUP($A18,Config!$A$2:$B$5,2,0),2) -> 232.22 | M18: =ROUND(((Config_RawLabor!P18/Config!$B$7)/Config_RawLabor!$S18)*VLOOKUP($A18,Config!$A$2:$B$5,2,0),2) -> 219.69 | N18: =ROUND(((Config_RawLabor!Q18/Config!$B$7)/Config_RawLabor!$S18)*VLOOKUP($A18,Config!$A$2:$B$5,2,0),2) -> 246.99 | O18: =ROUND(((Config_RawLabor!R18/Config!$B$7)/Config_RawLabor!$S18)*VLOOKUP($A18,Config!$A$2:$B$5,2,0),2) -> 280.71 | P18: =ROUND(((Config_RawLabor!T18/Config!$B$7)/Config_RawLabor!$W18)*VLOOKUP($A18,Config!$A$2:$B$5,2,0),2) -> 284.01 | Q18: =ROUND(((Config_RawLabor!U18/Config!$B$7)/Config_RawLabor!$W18)*VLOOKUP($A18,Config!$A$2:$B$5,2,0),2) -> 327.52 | R18: =ROUND(((Config_RawLabor!V18/Config!$B$7)/Config_RawLabor!$W18)*VLOOKUP($A18,Config!$A$2:$B$5,2,0),2) -> 385.7
A19: =Config_RawLabor!A19 -> Expert | B19: =Config_RawLabor!B19 -> Cost Accountant | C19: =Config_RawLabor!C19 -> Reviews cost accounting procedures and methods. Responsible for the preparation and analysis of cost reports and costing audits. Examines and reviews unusual cost records and ensures cost data is allocated correctly. | D19: =ROUND(((Config_RawLabor!D19/Config!$B$7)/Config_RawLabor!$G19)*VLOOKUP($A19,Config!$A$2:$B$5,2,0),2) -> 104.75 | E19: =ROUND(((Config_RawLabor!E19/Config!$B$7)/Config_RawLabor!$G19)*VLOOKUP($A19,Config!$A$2:$B$5,2,0),2) -> 115.95 | F19: =ROUND(((Config_RawLabor!F19/Config!$B$7)/Config_RawLabor!$G19)*VLOOKUP($A19,Config!$A$2:$B$5,2,0),2) -> 127.51 | G19: =ROUND(((Config_RawLabor!H19/Config!$B$7)/Config_RawLabor!$K19)*VLOOKUP($A19,Config!$A$2:$B$5,2,0),2) -> 124.58 | H19: =ROUND(((Config_RawLabor!I19/Config!$B$7)/Config_RawLabor!$K19)*VLOOKUP($A19,Config!$A$2:$B$5,2,0),2) -> 136.24 | I19: =ROUND(((Config_RawLabor!J19/Config!$B$7)/Config_RawLabor!$K19)*VLOOKUP($A19,Config!$A$2:$B$5,2,0),2) -> 150.38 | J19: =ROUND(((Config_RawLabor!L19/Config!$B$7)/Config_RawLabor!$O19)*VLOOKUP($A19,Config!$A$2:$B$5,2,0),2) -> 146.19 | K19: =ROUND(((Config_RawLabor!M19/Config!$B$7)/Config_RawLabor!$O19)*VLOOKUP($A19,Config!$A$2:$B$5,2,0),2) -> 160.66 | L19: =ROUND(((Config_RawLabor!N19/Config!$B$7)/Config_RawLabor!$O19)*VLOOKUP($A19,Config!$A$2:$B$5,2,0),2) -> 175.94 | M19: =ROUND(((Config_RawLabor!P19/Config!$B$7)/Config_RawLabor!$S19)*VLOOKUP($A19,Config!$A$2:$B$5,2,0),2) -> 175.88 | N19: =ROUND(((Config_RawLabor!Q19/Config!$B$7)/Config_RawLabor!$S19)*VLOOKUP($A19,Config!$A$2:$B$5,2,0),2) -> 193.35 | O19: =ROUND(((Config_RawLabor!R19/Config!$B$7)/Config_RawLabor!$S19)*VLOOKUP($A19,Config!$A$2:$B$5,2,0),2) -> 215.67 | P19: =ROUND(((Config_RawLabor!T19/Config!$B$7)/Config_RawLabor!$W19)*VLOOKUP($A19,Config!$A$2:$B$5,2,0),2) -> 199.13 | Q19: =ROUND(((Config_RawLabor!U19/Config!$B$7)/Config_RawLabor!$W19)*VLOOKUP($A19,Config!$A$2:$B$5,2,0),2) -> 218.91 | R19: =ROUND(((Config_RawLabor!V19/Config!$B$7)/Config_RawLabor!$W19)*VLOOKUP($A19,Config!$A$2:$B$5,2,0),2) -> 244.19
A20: =Config_RawLabor!A20 -> Expert | B20: =Config_RawLabor!B20 -> Cost Estimation Analyst | C20: =Config_RawLabor!C20 -> Reviews project cost estimates, expenditures, and forecasts. Prepares should cost estimates for comparison as part of cost reasonableness analysis. Requires technical knowledge of the construction work involved, and the ability to use cost-estimating methods. | D20: =ROUND(((Config_RawLabor!D20/Config!$B$7)/Config_RawLabor!$G20)*VLOOKUP($A20,Config!$A$2:$B$5,2,0),2) -> 113.55 | E20: =ROUND(((Config_RawLabor!E20/Config!$B$7)/Config_RawLabor!$G20)*VLOOKUP($A20,Config!$A$2:$B$5,2,0),2) -> 124.36 | F20: =ROUND(((Config_RawLabor!F20/Config!$B$7)/Config_RawLabor!$G20)*VLOOKUP($A20,Config!$A$2:$B$5,2,0),2) -> 138.47 | G20: =ROUND(((Config_RawLabor!H20/Config!$B$7)/Config_RawLabor!$K20)*VLOOKUP($A20,Config!$A$2:$B$5,2,0),2) -> 140.08 | H20: =ROUND(((Config_RawLabor!I20/Config!$B$7)/Config_RawLabor!$K20)*VLOOKUP($A20,Config!$A$2:$B$5,2,0),2) -> 153.95 | I20: =ROUND(((Config_RawLabor!J20/Config!$B$7)/Config_RawLabor!$K20)*VLOOKUP($A20,Config!$A$2:$B$5,2,0),2) -> 173.19 | J20: =ROUND(((Config_RawLabor!L20/Config!$B$7)/Config_RawLabor!$O20)*VLOOKUP($A20,Config!$A$2:$B$5,2,0),2) -> 156.04 | K20: =ROUND(((Config_RawLabor!M20/Config!$B$7)/Config_RawLabor!$O20)*VLOOKUP($A20,Config!$A$2:$B$5,2,0),2) -> 174.84 | L20: =ROUND(((Config_RawLabor!N20/Config!$B$7)/Config_RawLabor!$O20)*VLOOKUP($A20,Config!$A$2:$B$5,2,0),2) -> 198.71 | M20: =ROUND(((Config_RawLabor!P20/Config!$B$7)/Config_RawLabor!$S20)*VLOOKUP($A20,Config!$A$2:$B$5,2,0),2) -> 189.01 | N20: =ROUND(((Config_RawLabor!Q20/Config!$B$7)/Config_RawLabor!$S20)*VLOOKUP($A20,Config!$A$2:$B$5,2,0),2) -> 217.87 | O20: =ROUND(((Config_RawLabor!R20/Config!$B$7)/Config_RawLabor!$S20)*VLOOKUP($A20,Config!$A$2:$B$5,2,0),2) -> 243.32 | P20: =ROUND(((Config_RawLabor!T20/Config!$B$7)/Config_RawLabor!$W20)*VLOOKUP($A20,Config!$A$2:$B$5,2,0),2) -> 259.01 | Q20: =ROUND(((Config_RawLabor!U20/Config!$B$7)/Config_RawLabor!$W20)*VLOOKUP($A20,Config!$A$2:$B$5,2,0),2) -> 299.32 | R20: =ROUND(((Config_RawLabor!V20/Config!$B$7)/Config_RawLabor!$W20)*VLOOKUP($A20,Config!$A$2:$B$5,2,0),2) -> 337.07
A21: =Config_RawLabor!A21 -> Expert | B21: =Config_RawLabor!B21 -> Design Engineer | C21: =Config_RawLabor!C21 -> Evaluates products, parts, or processes for cost efficiency and reliability and to estimate project completion status. | D21: =ROUND(((Config_RawLabor!D21/Config!$B$7)/Config_RawLabor!$G21)*VLOOKUP($A21,Config!$A$2:$B$5,2,0),2) -> 120.08 | E21: =ROUND(((Config_RawLabor!E21/Config!$B$7)/Config_RawLabor!$G21)*VLOOKUP($A21,Config!$A$2:$B$5,2,0),2) -> 130.48 | F21: =ROUND(((Config_RawLabor!F21/Config!$B$7)/Config_RawLabor!$G21)*VLOOKUP($A21,Config!$A$2:$B$5,2,0),2) -> 141.96 | G21: =ROUND(((Config_RawLabor!H21/Config!$B$7)/Config_RawLabor!$K21)*VLOOKUP($A21,Config!$A$2:$B$5,2,0),2) -> 129.91 | H21: =ROUND(((Config_RawLabor!I21/Config!$B$7)/Config_RawLabor!$K21)*VLOOKUP($A21,Config!$A$2:$B$5,2,0),2) -> 143.36 | I21: =ROUND(((Config_RawLabor!J21/Config!$B$7)/Config_RawLabor!$K21)*VLOOKUP($A21,Config!$A$2:$B$5,2,0),2) -> 159.8 | J21: =ROUND(((Config_RawLabor!L21/Config!$B$7)/Config_RawLabor!$O21)*VLOOKUP($A21,Config!$A$2:$B$5,2,0),2) -> 175.69 | K21: =ROUND(((Config_RawLabor!M21/Config!$B$7)/Config_RawLabor!$O21)*VLOOKUP($A21,Config!$A$2:$B$5,2,0),2) -> 190.41 | L21: =ROUND(((Config_RawLabor!N21/Config!$B$7)/Config_RawLabor!$O21)*VLOOKUP($A21,Config!$A$2:$B$5,2,0),2) -> 211.51 | M21: =ROUND(((Config_RawLabor!P21/Config!$B$7)/Config_RawLabor!$S21)*VLOOKUP($A21,Config!$A$2:$B$5,2,0),2) -> 212.87 | N21: =ROUND(((Config_RawLabor!Q21/Config!$B$7)/Config_RawLabor!$S21)*VLOOKUP($A21,Config!$A$2:$B$5,2,0),2) -> 239.84 | O21: =ROUND(((Config_RawLabor!R21/Config!$B$7)/Config_RawLabor!$S21)*VLOOKUP($A21,Config!$A$2:$B$5,2,0),2) -> 278.08 | P21: =ROUND(((Config_RawLabor!T21/Config!$B$7)/Config_RawLabor!$W21)*VLOOKUP($A21,Config!$A$2:$B$5,2,0),2) -> 237.55 | Q21: =ROUND(((Config_RawLabor!U21/Config!$B$7)/Config_RawLabor!$W21)*VLOOKUP($A21,Config!$A$2:$B$5,2,0),2) -> 267.64 | R21: =ROUND(((Config_RawLabor!V21/Config!$B$7)/Config_RawLabor!$W21)*VLOOKUP($A21,Config!$A$2:$B$5,2,0),2) -> 310.33
A22: =Config_RawLabor!A22 -> Expert | B22: =Config_RawLabor!B22 -> Drilling Engineer | C22: =Config_RawLabor!C22 -> Provides expert judgment for the design and implementation of oil and gas wells. Resolves highly complex technical issues and conducts advanced research into emerging technology in the field. Recommends alterations to development and design to improve safety, costs, and efficiency. | D22: =ROUND(((Config_RawLabor!D22/Config!$B$7)/Config_RawLabor!$G22)*VLOOKUP($A22,Config!$A$2:$B$5,2,0),2) -> 172.81 | E22: =ROUND(((Config_RawLabor!E22/Config!$B$7)/Config_RawLabor!$G22)*VLOOKUP($A22,Config!$A$2:$B$5,2,0),2) -> 187.3 | F22: =ROUND(((Config_RawLabor!F22/Config!$B$7)/Config_RawLabor!$G22)*VLOOKUP($A22,Config!$A$2:$B$5,2,0),2) -> 205.73 | G22: =ROUND(((Config_RawLabor!H22/Config!$B$7)/Config_RawLabor!$K22)*VLOOKUP($A22,Config!$A$2:$B$5,2,0),2) -> 210.09 | H22: =ROUND(((Config_RawLabor!I22/Config!$B$7)/Config_RawLabor!$K22)*VLOOKUP($A22,Config!$A$2:$B$5,2,0),2) -> 234.23 | I22: =ROUND(((Config_RawLabor!J22/Config!$B$7)/Config_RawLabor!$K22)*VLOOKUP($A22,Config!$A$2:$B$5,2,0),2) -> 255.25 | J22: =ROUND(((Config_RawLabor!L22/Config!$B$7)/Config_RawLabor!$O22)*VLOOKUP($A22,Config!$A$2:$B$5,2,0),2) -> 241.83 | K22: =ROUND(((Config_RawLabor!M22/Config!$B$7)/Config_RawLabor!$O22)*VLOOKUP($A22,Config!$A$2:$B$5,2,0),2) -> 276.32 | L22: =ROUND(((Config_RawLabor!N22/Config!$B$7)/Config_RawLabor!$O22)*VLOOKUP($A22,Config!$A$2:$B$5,2,0),2) -> 303.27 | M22: =ROUND(((Config_RawLabor!P22/Config!$B$7)/Config_RawLabor!$S22)*VLOOKUP($A22,Config!$A$2:$B$5,2,0),2) -> 310.99 | N22: =ROUND(((Config_RawLabor!Q22/Config!$B$7)/Config_RawLabor!$S22)*VLOOKUP($A22,Config!$A$2:$B$5,2,0),2) -> 349.2 | O22: =ROUND(((Config_RawLabor!R22/Config!$B$7)/Config_RawLabor!$S22)*VLOOKUP($A22,Config!$A$2:$B$5,2,0),2) -> 380.47 | P22: =ROUND(((Config_RawLabor!T22/Config!$B$7)/Config_RawLabor!$W22)*VLOOKUP($A22,Config!$A$2:$B$5,2,0),2) -> 340.62 | Q22: =ROUND(((Config_RawLabor!U22/Config!$B$7)/Config_RawLabor!$W22)*VLOOKUP($A22,Config!$A$2:$B$5,2,0),2) -> 397.98 | R22: =ROUND(((Config_RawLabor!V22/Config!$B$7)/Config_RawLabor!$W22)*VLOOKUP($A22,Config!$A$2:$B$5,2,0),2) -> 423.82
A23: =Config_RawLabor!A23 -> Expert | B23: =Config_RawLabor!B23 -> Ecologist | C23: =Config_RawLabor!C23 -> Investigates the factors at play in a disturbed ecosystem, anticipates potential effects of proposed actions, and recommends sustainable practices. Work may include fieldwork to collect and analyze data on environmental conditions, or to assess or certify a habitat. May plan or review habitat management or environmental restoration projects, including procedures, resources, schedules, and budgets. | D23: =ROUND(((Config_RawLabor!D23/Config!$B$7)/Config_RawLabor!$G23)*VLOOKUP($A23,Config!$A$2:$B$5,2,0),2) -> 90.26 | E23: =ROUND(((Config_RawLabor!E23/Config!$B$7)/Config_RawLabor!$G23)*VLOOKUP($A23,Config!$A$2:$B$5,2,0),2) -> 99.64 | F23: =ROUND(((Config_RawLabor!F23/Config!$B$7)/Config_RawLabor!$G23)*VLOOKUP($A23,Config!$A$2:$B$5,2,0),2) -> 112.5 | G23: =ROUND(((Config_RawLabor!H23/Config!$B$7)/Config_RawLabor!$K23)*VLOOKUP($A23,Config!$A$2:$B$5,2,0),2) -> 100.3 | H23: =ROUND(((Config_RawLabor!I23/Config!$B$7)/Config_RawLabor!$K23)*VLOOKUP($A23,Config!$A$2:$B$5,2,0),2) -> 115.21 | I23: =ROUND(((Config_RawLabor!J23/Config!$B$7)/Config_RawLabor!$K23)*VLOOKUP($A23,Config!$A$2:$B$5,2,0),2) -> 130.35 | J23: =ROUND(((Config_RawLabor!L23/Config!$B$7)/Config_RawLabor!$O23)*VLOOKUP($A23,Config!$A$2:$B$5,2,0),2) -> 121.65 | K23: =ROUND(((Config_RawLabor!M23/Config!$B$7)/Config_RawLabor!$O23)*VLOOKUP($A23,Config!$A$2:$B$5,2,0),2) -> 140.45 | L23: =ROUND(((Config_RawLabor!N23/Config!$B$7)/Config_RawLabor!$O23)*VLOOKUP($A23,Config!$A$2:$B$5,2,0),2) -> 164.95 | M23: =ROUND(((Config_RawLabor!P23/Config!$B$7)/Config_RawLabor!$S23)*VLOOKUP($A23,Config!$A$2:$B$5,2,0),2) -> 172.48 | N23: =ROUND(((Config_RawLabor!Q23/Config!$B$7)/Config_RawLabor!$S23)*VLOOKUP($A23,Config!$A$2:$B$5,2,0),2) -> 201.1 | O23: =ROUND(((Config_RawLabor!R23/Config!$B$7)/Config_RawLabor!$S23)*VLOOKUP($A23,Config!$A$2:$B$5,2,0),2) -> 234.86 | P23: =ROUND(((Config_RawLabor!T23/Config!$B$7)/Config_RawLabor!$W23)*VLOOKUP($A23,Config!$A$2:$B$5,2,0),2) -> 178.76 | Q23: =ROUND(((Config_RawLabor!U23/Config!$B$7)/Config_RawLabor!$W23)*VLOOKUP($A23,Config!$A$2:$B$5,2,0),2) -> 206.12 | R23: =ROUND(((Config_RawLabor!V23/Config!$B$7)/Config_RawLabor!$W23)*VLOOKUP($A23,Config!$A$2:$B$5,2,0),2) -> 226.1
A24: =Config_RawLabor!A24 -> Expert | B24: =Config_RawLabor!B24 -> Economist | C24: =Config_RawLabor!C24 -> Conducts research and analyses on economic data/trends and provides recommendations based on expertise. Researches and develops new data statistical models and technological innovations. Organizes data into report format and arranges graphic illustrations of research findings. Interprets and predicts economic conditions and advises management on implications. | D24: =ROUND(((Config_RawLabor!D24/Config!$B$7)/Config_RawLabor!$G24)*VLOOKUP($A24,Config!$A$2:$B$5,2,0),2) -> 143.26 | E24: =ROUND(((Config_RawLabor!E24/Config!$B$7)/Config_RawLabor!$G24)*VLOOKUP($A24,Config!$A$2:$B$5,2,0),2) -> 169.86 | F24: =ROUND(((Config_RawLabor!F24/Config!$B$7)/Config_RawLabor!$G24)*VLOOKUP($A24,Config!$A$2:$B$5,2,0),2) -> 199.74 | G24: =ROUND(((Config_RawLabor!H24/Config!$B$7)/Config_RawLabor!$K24)*VLOOKUP($A24,Config!$A$2:$B$5,2,0),2) -> 166.91 | H24: =ROUND(((Config_RawLabor!I24/Config!$B$7)/Config_RawLabor!$K24)*VLOOKUP($A24,Config!$A$2:$B$5,2,0),2) -> 196.99 | I24: =ROUND(((Config_RawLabor!J24/Config!$B$7)/Config_RawLabor!$K24)*VLOOKUP($A24,Config!$A$2:$B$5,2,0),2) -> 231.99 | J24: =ROUND(((Config_RawLabor!L24/Config!$B$7)/Config_RawLabor!$O24)*VLOOKUP($A24,Config!$A$2:$B$5,2,0),2) -> 190.84 | K24: =ROUND(((Config_RawLabor!M24/Config!$B$7)/Config_RawLabor!$O24)*VLOOKUP($A24,Config!$A$2:$B$5,2,0),2) -> 224.45 | L24: =ROUND(((Config_RawLabor!N24/Config!$B$7)/Config_RawLabor!$O24)*VLOOKUP($A24,Config!$A$2:$B$5,2,0),2) -> 264.61 | M24: =ROUND(((Config_RawLabor!P24/Config!$B$7)/Config_RawLabor!$S24)*VLOOKUP($A24,Config!$A$2:$B$5,2,0),2) -> 203.46 | N24: =ROUND(((Config_RawLabor!Q24/Config!$B$7)/Config_RawLabor!$S24)*VLOOKUP($A24,Config!$A$2:$B$5,2,0),2) -> 240.36 | O24: =ROUND(((Config_RawLabor!R24/Config!$B$7)/Config_RawLabor!$S24)*VLOOKUP($A24,Config!$A$2:$B$5,2,0),2) -> 285.85 | P24: =ROUND(((Config_RawLabor!T24/Config!$B$7)/Config_RawLabor!$W24)*VLOOKUP($A24,Config!$A$2:$B$5,2,0),2) -> 216 | Q24: =ROUND(((Config_RawLabor!U24/Config!$B$7)/Config_RawLabor!$W24)*VLOOKUP($A24,Config!$A$2:$B$5,2,0),2) -> 256.18 | R24: =ROUND(((Config_RawLabor!V24/Config!$B$7)/Config_RawLabor!$W24)*VLOOKUP($A24,Config!$A$2:$B$5,2,0),2) -> 306.96
A25: =Config_RawLabor!A25 -> Expert | B25: =Config_RawLabor!B25 -> Electrical Controls Engineer | C25: =Config_RawLabor!C25 -> Reviews design of electrical control systems, equipment, and machinery. | D25: =ROUND(((Config_RawLabor!D25/Config!$B$7)/Config_RawLabor!$G25)*VLOOKUP($A25,Config!$A$2:$B$5,2,0),2) -> 120.08 | E25: =ROUND(((Config_RawLabor!E25/Config!$B$7)/Config_RawLabor!$G25)*VLOOKUP($A25,Config!$A$2:$B$5,2,0),2) -> 133.68 | F25: =ROUND(((Config_RawLabor!F25/Config!$B$7)/Config_RawLabor!$G25)*VLOOKUP($A25,Config!$A$2:$B$5,2,0),2) -> 142.5 | G25: =ROUND(((Config_RawLabor!H25/Config!$B$7)/Config_RawLabor!$K25)*VLOOKUP($A25,Config!$A$2:$B$5,2,0),2) -> 130.2 | H25: =ROUND(((Config_RawLabor!I25/Config!$B$7)/Config_RawLabor!$K25)*VLOOKUP($A25,Config!$A$2:$B$5,2,0),2) -> 149.83 | I25: =ROUND(((Config_RawLabor!J25/Config!$B$7)/Config_RawLabor!$K25)*VLOOKUP($A25,Config!$A$2:$B$5,2,0),2) -> 168.69 | J25: =ROUND(((Config_RawLabor!L25/Config!$B$7)/Config_RawLabor!$O25)*VLOOKUP($A25,Config!$A$2:$B$5,2,0),2) -> 140.21 | K25: =ROUND(((Config_RawLabor!M25/Config!$B$7)/Config_RawLabor!$O25)*VLOOKUP($A25,Config!$A$2:$B$5,2,0),2) -> 165.8 | L25: =ROUND(((Config_RawLabor!N25/Config!$B$7)/Config_RawLabor!$O25)*VLOOKUP($A25,Config!$A$2:$B$5,2,0),2) -> 194.59 | M25: =ROUND(((Config_RawLabor!P25/Config!$B$7)/Config_RawLabor!$S25)*VLOOKUP($A25,Config!$A$2:$B$5,2,0),2) -> 157.38 | N25: =ROUND(((Config_RawLabor!Q25/Config!$B$7)/Config_RawLabor!$S25)*VLOOKUP($A25,Config!$A$2:$B$5,2,0),2) -> 181.1 | O25: =ROUND(((Config_RawLabor!R25/Config!$B$7)/Config_RawLabor!$S25)*VLOOKUP($A25,Config!$A$2:$B$5,2,0),2) -> 209.37 | P25: =ROUND(((Config_RawLabor!T25/Config!$B$7)/Config_RawLabor!$W25)*VLOOKUP($A25,Config!$A$2:$B$5,2,0),2) -> 174.3 | Q25: =ROUND(((Config_RawLabor!U25/Config!$B$7)/Config_RawLabor!$W25)*VLOOKUP($A25,Config!$A$2:$B$5,2,0),2) -> 196.17 | R25: =ROUND(((Config_RawLabor!V25/Config!$B$7)/Config_RawLabor!$W25)*VLOOKUP($A25,Config!$A$2:$B$5,2,0),2) -> 223.93
A26: =Config_RawLabor!A26 -> Expert | B26: =Config_RawLabor!B26 -> Electrical Engineer | C26: =Config_RawLabor!C26 -> Reviews electrical equipment, components, or systems. Applies mathematical and engineering principles and methods to analysis of electrical system designs. Studies new technologies and researches innovative solutions and product designs to make alternate recommendations. | D26: =ROUND(((Config_RawLabor!D26/Config!$B$7)/Config_RawLabor!$G26)*VLOOKUP($A26,Config!$A$2:$B$5,2,0),2) -> 124.29 | E26: =ROUND(((Config_RawLabor!E26/Config!$B$7)/Config_RawLabor!$G26)*VLOOKUP($A26,Config!$A$2:$B$5,2,0),2) -> 133.47 | F26: =ROUND(((Config_RawLabor!F26/Config!$B$7)/Config_RawLabor!$G26)*VLOOKUP($A26,Config!$A$2:$B$5,2,0),2) -> 144.59 | G26: =ROUND(((Config_RawLabor!H26/Config!$B$7)/Config_RawLabor!$K26)*VLOOKUP($A26,Config!$A$2:$B$5,2,0),2) -> 144.32 | H26: =ROUND(((Config_RawLabor!I26/Config!$B$7)/Config_RawLabor!$K26)*VLOOKUP($A26,Config!$A$2:$B$5,2,0),2) -> 157.64 | I26: =ROUND(((Config_RawLabor!J26/Config!$B$7)/Config_RawLabor!$K26)*VLOOKUP($A26,Config!$A$2:$B$5,2,0),2) -> 174.4 | J26: =ROUND(((Config_RawLabor!L26/Config!$B$7)/Config_RawLabor!$O26)*VLOOKUP($A26,Config!$A$2:$B$5,2,0),2) -> 172.52 | K26: =ROUND(((Config_RawLabor!M26/Config!$B$7)/Config_RawLabor!$O26)*VLOOKUP($A26,Config!$A$2:$B$5,2,0),2) -> 190.86 | L26: =ROUND(((Config_RawLabor!N26/Config!$B$7)/Config_RawLabor!$O26)*VLOOKUP($A26,Config!$A$2:$B$5,2,0),2) -> 209.95 | M26: =ROUND(((Config_RawLabor!P26/Config!$B$7)/Config_RawLabor!$S26)*VLOOKUP($A26,Config!$A$2:$B$5,2,0),2) -> 204.05 | N26: =ROUND(((Config_RawLabor!Q26/Config!$B$7)/Config_RawLabor!$S26)*VLOOKUP($A26,Config!$A$2:$B$5,2,0),2) -> 221.09 | O26: =ROUND(((Config_RawLabor!R26/Config!$B$7)/Config_RawLabor!$S26)*VLOOKUP($A26,Config!$A$2:$B$5,2,0),2) -> 241.82 | P26: =ROUND(((Config_RawLabor!T26/Config!$B$7)/Config_RawLabor!$W26)*VLOOKUP($A26,Config!$A$2:$B$5,2,0),2) -> 238.69 | Q26: =ROUND(((Config_RawLabor!U26/Config!$B$7)/Config_RawLabor!$W26)*VLOOKUP($A26,Config!$A$2:$B$5,2,0),2) -> 264.32 | R26: =ROUND(((Config_RawLabor!V26/Config!$B$7)/Config_RawLabor!$W26)*VLOOKUP($A26,Config!$A$2:$B$5,2,0),2) -> 284.61
A27: =Config_RawLabor!A27 -> Expert | B27: =Config_RawLabor!B27 -> Energy & Resources Expert | C27: =Config_RawLabor!C27 -> Offers broad, cross discipline expertise in analytic, methodological, theoretical, and practical approaches to problems in energy, resources, and the environment. | D27: =ROUND(((Config_RawLabor!D27/Config!$B$7)/Config_RawLabor!$G27)*VLOOKUP($A27,Config!$A$2:$B$5,2,0),2) -> 104.84 | E27: =ROUND(((Config_RawLabor!E27/Config!$B$7)/Config_RawLabor!$G27)*VLOOKUP($A27,Config!$A$2:$B$5,2,0),2) -> 123.11 | F27: =ROUND(((Config_RawLabor!F27/Config!$B$7)/Config_RawLabor!$G27)*VLOOKUP($A27,Config!$A$2:$B$5,2,0),2) -> 158.36 | G27: =ROUND(((Config_RawLabor!H27/Config!$B$7)/Config_RawLabor!$K27)*VLOOKUP($A27,Config!$A$2:$B$5,2,0),2) -> 122.46 | H27: =ROUND(((Config_RawLabor!I27/Config!$B$7)/Config_RawLabor!$K27)*VLOOKUP($A27,Config!$A$2:$B$5,2,0),2) -> 145.27 | I27: =ROUND(((Config_RawLabor!J27/Config!$B$7)/Config_RawLabor!$K27)*VLOOKUP($A27,Config!$A$2:$B$5,2,0),2) -> 188.31 | J27: =ROUND(((Config_RawLabor!L27/Config!$B$7)/Config_RawLabor!$O27)*VLOOKUP($A27,Config!$A$2:$B$5,2,0),2) -> 148.73 | K27: =ROUND(((Config_RawLabor!M27/Config!$B$7)/Config_RawLabor!$O27)*VLOOKUP($A27,Config!$A$2:$B$5,2,0),2) -> 174.51 | L27: =ROUND(((Config_RawLabor!N27/Config!$B$7)/Config_RawLabor!$O27)*VLOOKUP($A27,Config!$A$2:$B$5,2,0),2) -> 223.85 | M27: =ROUND(((Config_RawLabor!P27/Config!$B$7)/Config_RawLabor!$S27)*VLOOKUP($A27,Config!$A$2:$B$5,2,0),2) -> 179.03 | N27: =ROUND(((Config_RawLabor!Q27/Config!$B$7)/Config_RawLabor!$S27)*VLOOKUP($A27,Config!$A$2:$B$5,2,0),2) -> 211.15 | O27: =ROUND(((Config_RawLabor!R27/Config!$B$7)/Config_RawLabor!$S27)*VLOOKUP($A27,Config!$A$2:$B$5,2,0),2) -> 266.33 | P27: =ROUND(((Config_RawLabor!T27/Config!$B$7)/Config_RawLabor!$W27)*VLOOKUP($A27,Config!$A$2:$B$5,2,0),2) -> 193.8 | Q27: =ROUND(((Config_RawLabor!U27/Config!$B$7)/Config_RawLabor!$W27)*VLOOKUP($A27,Config!$A$2:$B$5,2,0),2) -> 229.98 | R27: =ROUND(((Config_RawLabor!V27/Config!$B$7)/Config_RawLabor!$W27)*VLOOKUP($A27,Config!$A$2:$B$5,2,0),2) -> 287.86
A28: =Config_RawLabor!A28 -> Expert | B28: =Config_RawLabor!B28 -> Engineer | C28: =Config_RawLabor!C28 -> Provides expert consultation in one or more areas of engineering. Reviews highly complex technical issues and recommends alterations to development and design to improve quality of products and/or procedures. Has extensive engineering knowledge and is considered an expert in one or more engineering specialties. | D28: =ROUND(((Config_RawLabor!D28/Config!$B$7)/Config_RawLabor!$G28)*VLOOKUP($A28,Config!$A$2:$B$5,2,0),2) -> 120.9 | E28: =ROUND(((Config_RawLabor!E28/Config!$B$7)/Config_RawLabor!$G28)*VLOOKUP($A28,Config!$A$2:$B$5,2,0),2) -> 130.36 | F28: =ROUND(((Config_RawLabor!F28/Config!$B$7)/Config_RawLabor!$G28)*VLOOKUP($A28,Config!$A$2:$B$5,2,0),2) -> 147.03 | G28: =ROUND(((Config_RawLabor!H28/Config!$B$7)/Config_RawLabor!$K28)*VLOOKUP($A28,Config!$A$2:$B$5,2,0),2) -> 136.67 | H28: =ROUND(((Config_RawLabor!I28/Config!$B$7)/Config_RawLabor!$K28)*VLOOKUP($A28,Config!$A$2:$B$5,2,0),2) -> 150.54 | I28: =ROUND(((Config_RawLabor!J28/Config!$B$7)/Config_RawLabor!$K28)*VLOOKUP($A28,Config!$A$2:$B$5,2,0),2) -> 167.06 | J28: =ROUND(((Config_RawLabor!L28/Config!$B$7)/Config_RawLabor!$O28)*VLOOKUP($A28,Config!$A$2:$B$5,2,0),2) -> 162.77 | K28: =ROUND(((Config_RawLabor!M28/Config!$B$7)/Config_RawLabor!$O28)*VLOOKUP($A28,Config!$A$2:$B$5,2,0),2) -> 179.44 | L28: =ROUND(((Config_RawLabor!N28/Config!$B$7)/Config_RawLabor!$O28)*VLOOKUP($A28,Config!$A$2:$B$5,2,0),2) -> 205.56 | M28: =ROUND(((Config_RawLabor!P28/Config!$B$7)/Config_RawLabor!$S28)*VLOOKUP($A28,Config!$A$2:$B$5,2,0),2) -> 197.57 | N28: =ROUND(((Config_RawLabor!Q28/Config!$B$7)/Config_RawLabor!$S28)*VLOOKUP($A28,Config!$A$2:$B$5,2,0),2) -> 219.81 | O28: =ROUND(((Config_RawLabor!R28/Config!$B$7)/Config_RawLabor!$S28)*VLOOKUP($A28,Config!$A$2:$B$5,2,0),2) -> 244.24 | P28: =ROUND(((Config_RawLabor!T28/Config!$B$7)/Config_RawLabor!$W28)*VLOOKUP($A28,Config!$A$2:$B$5,2,0),2) -> 233.32 | Q28: =ROUND(((Config_RawLabor!U28/Config!$B$7)/Config_RawLabor!$W28)*VLOOKUP($A28,Config!$A$2:$B$5,2,0),2) -> 261.07 | R28: =ROUND(((Config_RawLabor!V28/Config!$B$7)/Config_RawLabor!$W28)*VLOOKUP($A28,Config!$A$2:$B$5,2,0),2) -> 297.22
A29: =Config_RawLabor!A29 -> Expert | B29: =Config_RawLabor!B29 -> Env., Health, and Safety Engineer | C29: =Config_RawLabor!C29 -> Provides review and expert recommendations with respect to local, state and federal environmental, health and safety regulations. May review the design of facilities, work areas and work procedures from an environmental, health and safety perspective. Reviews environmental policy and procedures. Ensures compliance with all environmental, health and safety regulations. | D29: =ROUND(((Config_RawLabor!D29/Config!$B$7)/Config_RawLabor!$G29)*VLOOKUP($A29,Config!$A$2:$B$5,2,0),2) -> 104.02 | E29: =ROUND(((Config_RawLabor!E29/Config!$B$7)/Config_RawLabor!$G29)*VLOOKUP($A29,Config!$A$2:$B$5,2,0),2) -> 112.24 | F29: =ROUND(((Config_RawLabor!F29/Config!$B$7)/Config_RawLabor!$G29)*VLOOKUP($A29,Config!$A$2:$B$5,2,0),2) -> 130.52 | G29: =ROUND(((Config_RawLabor!H29/Config!$B$7)/Config_RawLabor!$K29)*VLOOKUP($A29,Config!$A$2:$B$5,2,0),2) -> 127.95 | H29: =ROUND(((Config_RawLabor!I29/Config!$B$7)/Config_RawLabor!$K29)*VLOOKUP($A29,Config!$A$2:$B$5,2,0),2) -> 137.88 | I29: =ROUND(((Config_RawLabor!J29/Config!$B$7)/Config_RawLabor!$K29)*VLOOKUP($A29,Config!$A$2:$B$5,2,0),2) -> 145.43 | J29: =ROUND(((Config_RawLabor!L29/Config!$B$7)/Config_RawLabor!$O29)*VLOOKUP($A29,Config!$A$2:$B$5,2,0),2) -> 151.46 | K29: =ROUND(((Config_RawLabor!M29/Config!$B$7)/Config_RawLabor!$O29)*VLOOKUP($A29,Config!$A$2:$B$5,2,0),2) -> 166.39 | L29: =ROUND(((Config_RawLabor!N29/Config!$B$7)/Config_RawLabor!$O29)*VLOOKUP($A29,Config!$A$2:$B$5,2,0),2) -> 179.97 | M29: =ROUND(((Config_RawLabor!P29/Config!$B$7)/Config_RawLabor!$S29)*VLOOKUP($A29,Config!$A$2:$B$5,2,0),2) -> 178.7 | N29: =ROUND(((Config_RawLabor!Q29/Config!$B$7)/Config_RawLabor!$S29)*VLOOKUP($A29,Config!$A$2:$B$5,2,0),2) -> 199.31 | O29: =ROUND(((Config_RawLabor!R29/Config!$B$7)/Config_RawLabor!$S29)*VLOOKUP($A29,Config!$A$2:$B$5,2,0),2) -> 218.5 | P29: =ROUND(((Config_RawLabor!T29/Config!$B$7)/Config_RawLabor!$W29)*VLOOKUP($A29,Config!$A$2:$B$5,2,0),2) -> 227.84 | Q29: =ROUND(((Config_RawLabor!U29/Config!$B$7)/Config_RawLabor!$W29)*VLOOKUP($A29,Config!$A$2:$B$5,2,0),2) -> 254.18 | R29: =ROUND(((Config_RawLabor!V29/Config!$B$7)/Config_RawLabor!$W29)*VLOOKUP($A29,Config!$A$2:$B$5,2,0),2) -> 275.13
A30: =Config_RawLabor!A30 -> Expert | B30: =Config_RawLabor!B30 -> Environmental Engineer | C30: =Config_RawLabor!C30 -> Identifies, assesses and resolves problems concerning the environment. May review measuring approaches, equipment and results in areas such as pollutants involving air, land, and water. Provides reports findings on environmental consequences of equipment, tools, and procedures. Reviews conformance to federal, state, and local environmental legislation. | D30: =ROUND(((Config_RawLabor!D30/Config!$B$7)/Config_RawLabor!$G30)*VLOOKUP($A30,Config!$A$2:$B$5,2,0),2) -> 108.1 | E30: =ROUND(((Config_RawLabor!E30/Config!$B$7)/Config_RawLabor!$G30)*VLOOKUP($A30,Config!$A$2:$B$5,2,0),2) -> 121.99 | F30: =ROUND(((Config_RawLabor!F30/Config!$B$7)/Config_RawLabor!$G30)*VLOOKUP($A30,Config!$A$2:$B$5,2,0),2) -> 137.66 | G30: =ROUND(((Config_RawLabor!H30/Config!$B$7)/Config_RawLabor!$K30)*VLOOKUP($A30,Config!$A$2:$B$5,2,0),2) -> 138.1 | H30: =ROUND(((Config_RawLabor!I30/Config!$B$7)/Config_RawLabor!$K30)*VLOOKUP($A30,Config!$A$2:$B$5,2,0),2) -> 152.85 | I30: =ROUND(((Config_RawLabor!J30/Config!$B$7)/Config_RawLabor!$K30)*VLOOKUP($A30,Config!$A$2:$B$5,2,0),2) -> 170.93 | J30: =ROUND(((Config_RawLabor!L30/Config!$B$7)/Config_RawLabor!$O30)*VLOOKUP($A30,Config!$A$2:$B$5,2,0),2) -> 159.83 | K30: =ROUND(((Config_RawLabor!M30/Config!$B$7)/Config_RawLabor!$O30)*VLOOKUP($A30,Config!$A$2:$B$5,2,0),2) -> 180.95 | L30: =ROUND(((Config_RawLabor!N30/Config!$B$7)/Config_RawLabor!$O30)*VLOOKUP($A30,Config!$A$2:$B$5,2,0),2) -> 204.7 | M30: =ROUND(((Config_RawLabor!P30/Config!$B$7)/Config_RawLabor!$S30)*VLOOKUP($A30,Config!$A$2:$B$5,2,0),2) -> 171.17 | N30: =ROUND(((Config_RawLabor!Q30/Config!$B$7)/Config_RawLabor!$S30)*VLOOKUP($A30,Config!$A$2:$B$5,2,0),2) -> 195.3 | O30: =ROUND(((Config_RawLabor!R30/Config!$B$7)/Config_RawLabor!$S30)*VLOOKUP($A30,Config!$A$2:$B$5,2,0),2) -> 219.45 | P30: =ROUND(((Config_RawLabor!T30/Config!$B$7)/Config_RawLabor!$W30)*VLOOKUP($A30,Config!$A$2:$B$5,2,0),2) -> 191.77 | Q30: =ROUND(((Config_RawLabor!U30/Config!$B$7)/Config_RawLabor!$W30)*VLOOKUP($A30,Config!$A$2:$B$5,2,0),2) -> 227.93 | R30: =ROUND(((Config_RawLabor!V30/Config!$B$7)/Config_RawLabor!$W30)*VLOOKUP($A30,Config!$A$2:$B$5,2,0),2) -> 259.92
A31: =Config_RawLabor!A31 -> Expert | B31: =Config_RawLabor!B31 -> Equipment Engineer | C31: =Config_RawLabor!C31 -> Provides expert consultation with respect to technical products and equipment. Recognized as technical leader and resource. Recommends alterations and enhancements to improve quality of products and/or procedures. | D31: =ROUND(((Config_RawLabor!D31/Config!$B$7)/Config_RawLabor!$G31)*VLOOKUP($A31,Config!$A$2:$B$5,2,0),2) -> 119.38 | E31: =ROUND(((Config_RawLabor!E31/Config!$B$7)/Config_RawLabor!$G31)*VLOOKUP($A31,Config!$A$2:$B$5,2,0),2) -> 132.67 | F31: =ROUND(((Config_RawLabor!F31/Config!$B$7)/Config_RawLabor!$G31)*VLOOKUP($A31,Config!$A$2:$B$5,2,0),2) -> 145.25 | G31: =ROUND(((Config_RawLabor!H31/Config!$B$7)/Config_RawLabor!$K31)*VLOOKUP($A31,Config!$A$2:$B$5,2,0),2) -> 148.99 | H31: =ROUND(((Config_RawLabor!I31/Config!$B$7)/Config_RawLabor!$K31)*VLOOKUP($A31,Config!$A$2:$B$5,2,0),2) -> 165.69 | I31: =ROUND(((Config_RawLabor!J31/Config!$B$7)/Config_RawLabor!$K31)*VLOOKUP($A31,Config!$A$2:$B$5,2,0),2) -> 185.83 | J31: =ROUND(((Config_RawLabor!L31/Config!$B$7)/Config_RawLabor!$O31)*VLOOKUP($A31,Config!$A$2:$B$5,2,0),2) -> 162.53 | K31: =ROUND(((Config_RawLabor!M31/Config!$B$7)/Config_RawLabor!$O31)*VLOOKUP($A31,Config!$A$2:$B$5,2,0),2) -> 180.73 | L31: =ROUND(((Config_RawLabor!N31/Config!$B$7)/Config_RawLabor!$O31)*VLOOKUP($A31,Config!$A$2:$B$5,2,0),2) -> 204.85 | M31: =ROUND(((Config_RawLabor!P31/Config!$B$7)/Config_RawLabor!$S31)*VLOOKUP($A31,Config!$A$2:$B$5,2,0),2) -> 195.17 | N31: =ROUND(((Config_RawLabor!Q31/Config!$B$7)/Config_RawLabor!$S31)*VLOOKUP($A31,Config!$A$2:$B$5,2,0),2) -> 219.14 | O31: =ROUND(((Config_RawLabor!R31/Config!$B$7)/Config_RawLabor!$S31)*VLOOKUP($A31,Config!$A$2:$B$5,2,0),2) -> 248.15 | P31: =ROUND(((Config_RawLabor!T31/Config!$B$7)/Config_RawLabor!$W31)*VLOOKUP($A31,Config!$A$2:$B$5,2,0),2) -> 218.25 | Q31: =ROUND(((Config_RawLabor!U31/Config!$B$7)/Config_RawLabor!$W31)*VLOOKUP($A31,Config!$A$2:$B$5,2,0),2) -> 237.8 | R31: =ROUND(((Config_RawLabor!V31/Config!$B$7)/Config_RawLabor!$W31)*VLOOKUP($A31,Config!$A$2:$B$5,2,0),2) -> 258.2
A32: =Config_RawLabor!A32 -> Expert | B32: =Config_RawLabor!B32 -> Expert - Not Otherwise Classified | C32: =Config_RawLabor!C32 -> Used for export roles that are not better classified as one of the more detailed roles. May also be used for experts that fill multiple subroles. | D32: =ROUND(((Config_RawLabor!D32/Config!$B$7)/Config_RawLabor!$G32)*VLOOKUP($A32,Config!$A$2:$B$5,2,0),2) -> 124.7 | E32: =ROUND(((Config_RawLabor!E32/Config!$B$7)/Config_RawLabor!$G32)*VLOOKUP($A32,Config!$A$2:$B$5,2,0),2) -> 138.88 | F32: =ROUND(((Config_RawLabor!F32/Config!$B$7)/Config_RawLabor!$G32)*VLOOKUP($A32,Config!$A$2:$B$5,2,0),2) -> 160.95 | G32: =ROUND(((Config_RawLabor!H32/Config!$B$7)/Config_RawLabor!$K32)*VLOOKUP($A32,Config!$A$2:$B$5,2,0),2) -> 145.87 | H32: =ROUND(((Config_RawLabor!I32/Config!$B$7)/Config_RawLabor!$K32)*VLOOKUP($A32,Config!$A$2:$B$5,2,0),2) -> 164.06 | I32: =ROUND(((Config_RawLabor!J32/Config!$B$7)/Config_RawLabor!$K32)*VLOOKUP($A32,Config!$A$2:$B$5,2,0),2) -> 190.62 | J32: =ROUND(((Config_RawLabor!L32/Config!$B$7)/Config_RawLabor!$O32)*VLOOKUP($A32,Config!$A$2:$B$5,2,0),2) -> 173.56 | K32: =ROUND(((Config_RawLabor!M32/Config!$B$7)/Config_RawLabor!$O32)*VLOOKUP($A32,Config!$A$2:$B$5,2,0),2) -> 195.04 | L32: =ROUND(((Config_RawLabor!N32/Config!$B$7)/Config_RawLabor!$O32)*VLOOKUP($A32,Config!$A$2:$B$5,2,0),2) -> 225.9 | M32: =ROUND(((Config_RawLabor!P32/Config!$B$7)/Config_RawLabor!$S32)*VLOOKUP($A32,Config!$A$2:$B$5,2,0),2) -> 205.22 | N32: =ROUND(((Config_RawLabor!Q32/Config!$B$7)/Config_RawLabor!$S32)*VLOOKUP($A32,Config!$A$2:$B$5,2,0),2) -> 230.29 | O32: =ROUND(((Config_RawLabor!R32/Config!$B$7)/Config_RawLabor!$S32)*VLOOKUP($A32,Config!$A$2:$B$5,2,0),2) -> 264.66 | P32: =ROUND(((Config_RawLabor!T32/Config!$B$7)/Config_RawLabor!$W32)*VLOOKUP($A32,Config!$A$2:$B$5,2,0),2) -> 235.63 | Q32: =ROUND(((Config_RawLabor!U32/Config!$B$7)/Config_RawLabor!$W32)*VLOOKUP($A32,Config!$A$2:$B$5,2,0),2) -> 265.3 | R32: =ROUND(((Config_RawLabor!V32/Config!$B$7)/Config_RawLabor!$W32)*VLOOKUP($A32,Config!$A$2:$B$5,2,0),2) -> 304.32
A33: =Config_RawLabor!A33 -> Expert | B33: =Config_RawLabor!B33 -> Expert - Social Work | C33: =Config_RawLabor!C33 -> Provides expertise in the discipline area of social work. Familiar with current literature and research in the selected field. | D33: =ROUND(((Config_RawLabor!D33/Config!$B$7)/Config_RawLabor!$G33)*VLOOKUP($A33,Config!$A$2:$B$5,2,0),2) -> 102.11 | E33: =ROUND(((Config_RawLabor!E33/Config!$B$7)/Config_RawLabor!$G33)*VLOOKUP($A33,Config!$A$2:$B$5,2,0),2) -> 124.54 | F33: =ROUND(((Config_RawLabor!F33/Config!$B$7)/Config_RawLabor!$G33)*VLOOKUP($A33,Config!$A$2:$B$5,2,0),2) -> 177.85 | G33: =ROUND(((Config_RawLabor!H33/Config!$B$7)/Config_RawLabor!$K33)*VLOOKUP($A33,Config!$A$2:$B$5,2,0),2) -> 120.34 | H33: =ROUND(((Config_RawLabor!I33/Config!$B$7)/Config_RawLabor!$K33)*VLOOKUP($A33,Config!$A$2:$B$5,2,0),2) -> 148.35 | I33: =ROUND(((Config_RawLabor!J33/Config!$B$7)/Config_RawLabor!$K33)*VLOOKUP($A33,Config!$A$2:$B$5,2,0),2) -> 212.44 | J33: =ROUND(((Config_RawLabor!L33/Config!$B$7)/Config_RawLabor!$O33)*VLOOKUP($A33,Config!$A$2:$B$5,2,0),2) -> 142.98 | K33: =ROUND(((Config_RawLabor!M33/Config!$B$7)/Config_RawLabor!$O33)*VLOOKUP($A33,Config!$A$2:$B$5,2,0),2) -> 175.84 | L33: =ROUND(((Config_RawLabor!N33/Config!$B$7)/Config_RawLabor!$O33)*VLOOKUP($A33,Config!$A$2:$B$5,2,0),2) -> 250.64 | M33: =ROUND(((Config_RawLabor!P33/Config!$B$7)/Config_RawLabor!$S33)*VLOOKUP($A33,Config!$A$2:$B$5,2,0),2) -> 168.65 | N33: =ROUND(((Config_RawLabor!Q33/Config!$B$7)/Config_RawLabor!$S33)*VLOOKUP($A33,Config!$A$2:$B$5,2,0),2) -> 206.97 | O33: =ROUND(((Config_RawLabor!R33/Config!$B$7)/Config_RawLabor!$S33)*VLOOKUP($A33,Config!$A$2:$B$5,2,0),2) -> 293.04 | P33: =ROUND(((Config_RawLabor!T33/Config!$B$7)/Config_RawLabor!$W33)*VLOOKUP($A33,Config!$A$2:$B$5,2,0),2) -> 190.93 | Q33: =ROUND(((Config_RawLabor!U33/Config!$B$7)/Config_RawLabor!$W33)*VLOOKUP($A33,Config!$A$2:$B$5,2,0),2) -> 234.98 | R33: =ROUND(((Config_RawLabor!V33/Config!$B$7)/Config_RawLabor!$W33)*VLOOKUP($A33,Config!$A$2:$B$5,2,0),2) -> 331.55
A34: =Config_RawLabor!A34 -> Expert | B34: =Config_RawLabor!B34 -> Field Service Engineer | C34: =Config_RawLabor!C34 -> Reviews installation and maintenance of products/equipment. Identifies, analyzes, makes recommendations regarding product failures, installation of new components or parts. Develops creative recommendations for more unique, chronic, or complex issues. Provides the intervenor team with explanations of product features and typical operation. Has extensive knowledge of an organization's products and services and is considered an expert. | D34: =ROUND(((Config_RawLabor!D34/Config!$B$7)/Config_RawLabor!$G34)*VLOOKUP($A34,Config!$A$2:$B$5,2,0),2) -> 102.25 | E34: =ROUND(((Config_RawLabor!E34/Config!$B$7)/Config_RawLabor!$G34)*VLOOKUP($A34,Config!$A$2:$B$5,2,0),2) -> 117.3 | F34: =ROUND(((Config_RawLabor!F34/Config!$B$7)/Config_RawLabor!$G34)*VLOOKUP($A34,Config!$A$2:$B$5,2,0),2) -> 135.02 | G34: =ROUND(((Config_RawLabor!H34/Config!$B$7)/Config_RawLabor!$K34)*VLOOKUP($A34,Config!$A$2:$B$5,2,0),2) -> 120.7 | H34: =ROUND(((Config_RawLabor!I34/Config!$B$7)/Config_RawLabor!$K34)*VLOOKUP($A34,Config!$A$2:$B$5,2,0),2) -> 139.09 | I34: =ROUND(((Config_RawLabor!J34/Config!$B$7)/Config_RawLabor!$K34)*VLOOKUP($A34,Config!$A$2:$B$5,2,0),2) -> 159.75 | J34: =ROUND(((Config_RawLabor!L34/Config!$B$7)/Config_RawLabor!$O34)*VLOOKUP($A34,Config!$A$2:$B$5,2,0),2) -> 147.68 | K34: =ROUND(((Config_RawLabor!M34/Config!$B$7)/Config_RawLabor!$O34)*VLOOKUP($A34,Config!$A$2:$B$5,2,0),2) -> 168.06 | L34: =ROUND(((Config_RawLabor!N34/Config!$B$7)/Config_RawLabor!$O34)*VLOOKUP($A34,Config!$A$2:$B$5,2,0),2) -> 194.15 | M34: =ROUND(((Config_RawLabor!P34/Config!$B$7)/Config_RawLabor!$S34)*VLOOKUP($A34,Config!$A$2:$B$5,2,0),2) -> 171.69 | N34: =ROUND(((Config_RawLabor!Q34/Config!$B$7)/Config_RawLabor!$S34)*VLOOKUP($A34,Config!$A$2:$B$5,2,0),2) -> 200.56 | O34: =ROUND(((Config_RawLabor!R34/Config!$B$7)/Config_RawLabor!$S34)*VLOOKUP($A34,Config!$A$2:$B$5,2,0),2) -> 222.18 | P34: =ROUND(((Config_RawLabor!T34/Config!$B$7)/Config_RawLabor!$W34)*VLOOKUP($A34,Config!$A$2:$B$5,2,0),2) -> 187.79 | Q34: =ROUND(((Config_RawLabor!U34/Config!$B$7)/Config_RawLabor!$W34)*VLOOKUP($A34,Config!$A$2:$B$5,2,0),2) -> 216.93 | R34: =ROUND(((Config_RawLabor!V34/Config!$B$7)/Config_RawLabor!$W34)*VLOOKUP($A34,Config!$A$2:$B$5,2,0),2) -> 241.25
A35: =Config_RawLabor!A35 -> Expert | B35: =Config_RawLabor!B35 -> Fire Fighter | C35: =Config_RawLabor!C35 -> Provides explanations of standard or expected fire fighting procedures under typical, potential, or observed scenarios. | D35: =ROUND(((Config_RawLabor!D35/Config!$B$7)/Config_RawLabor!$G35)*VLOOKUP($A35,Config!$A$2:$B$5,2,0),2) -> 48.63 | E35: =ROUND(((Config_RawLabor!E35/Config!$B$7)/Config_RawLabor!$G35)*VLOOKUP($A35,Config!$A$2:$B$5,2,0),2) -> 64.31 | F35: =ROUND(((Config_RawLabor!F35/Config!$B$7)/Config_RawLabor!$G35)*VLOOKUP($A35,Config!$A$2:$B$5,2,0),2) -> 80.54 | G35: =ROUND(((Config_RawLabor!H35/Config!$B$7)/Config_RawLabor!$K35)*VLOOKUP($A35,Config!$A$2:$B$5,2,0),2) -> 57.32 | H35: =ROUND(((Config_RawLabor!I35/Config!$B$7)/Config_RawLabor!$K35)*VLOOKUP($A35,Config!$A$2:$B$5,2,0),2) -> 76.6 | I35: =ROUND(((Config_RawLabor!J35/Config!$B$7)/Config_RawLabor!$K35)*VLOOKUP($A35,Config!$A$2:$B$5,2,0),2) -> 96.2 | J35: =ROUND(((Config_RawLabor!L35/Config!$B$7)/Config_RawLabor!$O35)*VLOOKUP($A35,Config!$A$2:$B$5,2,0),2) -> 68.1 | K35: =ROUND(((Config_RawLabor!M35/Config!$B$7)/Config_RawLabor!$O35)*VLOOKUP($A35,Config!$A$2:$B$5,2,0),2) -> 90.8 | L35: =ROUND(((Config_RawLabor!N35/Config!$B$7)/Config_RawLabor!$O35)*VLOOKUP($A35,Config!$A$2:$B$5,2,0),2) -> 113.5 | M35: =ROUND(((Config_RawLabor!P35/Config!$B$7)/Config_RawLabor!$S35)*VLOOKUP($A35,Config!$A$2:$B$5,2,0),2) -> 80.32 | N35: =ROUND(((Config_RawLabor!Q35/Config!$B$7)/Config_RawLabor!$S35)*VLOOKUP($A35,Config!$A$2:$B$5,2,0),2) -> 106.87 | O35: =ROUND(((Config_RawLabor!R35/Config!$B$7)/Config_RawLabor!$S35)*VLOOKUP($A35,Config!$A$2:$B$5,2,0),2) -> 132.7 | P35: =ROUND(((Config_RawLabor!T35/Config!$B$7)/Config_RawLabor!$W35)*VLOOKUP($A35,Config!$A$2:$B$5,2,0),2) -> 90.93 | Q35: =ROUND(((Config_RawLabor!U35/Config!$B$7)/Config_RawLabor!$W35)*VLOOKUP($A35,Config!$A$2:$B$5,2,0),2) -> 121.34 | R35: =ROUND(((Config_RawLabor!V35/Config!$B$7)/Config_RawLabor!$W35)*VLOOKUP($A35,Config!$A$2:$B$5,2,0),2) -> 150.13
A36: =Config_RawLabor!A36 -> Expert | B36: =Config_RawLabor!B36 -> Fire Inspector Supervisor | C36: =Config_RawLabor!C36 -> Oversees the inspection of fire-damage to determine cause. Reviews preventive actions for appropriatness. Provides explanations of a variety of fire laws, regulations, and policies, including identifying those that are appropriate for a given situation. Assesses compliance with laws, regulations, and policies. | D36: =ROUND(((Config_RawLabor!D36/Config!$B$7)/Config_RawLabor!$G36)*VLOOKUP($A36,Config!$A$2:$B$5,2,0),2) -> 86.93 | E36: =ROUND(((Config_RawLabor!E36/Config!$B$7)/Config_RawLabor!$G36)*VLOOKUP($A36,Config!$A$2:$B$5,2,0),2) -> 104.36 | F36: =ROUND(((Config_RawLabor!F36/Config!$B$7)/Config_RawLabor!$G36)*VLOOKUP($A36,Config!$A$2:$B$5,2,0),2) -> 128.15 | G36: =ROUND(((Config_RawLabor!H36/Config!$B$7)/Config_RawLabor!$K36)*VLOOKUP($A36,Config!$A$2:$B$5,2,0),2) -> 102.45 | H36: =ROUND(((Config_RawLabor!I36/Config!$B$7)/Config_RawLabor!$K36)*VLOOKUP($A36,Config!$A$2:$B$5,2,0),2) -> 124.31 | I36: =ROUND(((Config_RawLabor!J36/Config!$B$7)/Config_RawLabor!$K36)*VLOOKUP($A36,Config!$A$2:$B$5,2,0),2) -> 153.08 | J36: =ROUND(((Config_RawLabor!L36/Config!$B$7)/Config_RawLabor!$O36)*VLOOKUP($A36,Config!$A$2:$B$5,2,0),2) -> 121.73 | K36: =ROUND(((Config_RawLabor!M36/Config!$B$7)/Config_RawLabor!$O36)*VLOOKUP($A36,Config!$A$2:$B$5,2,0),2) -> 147.34 | L36: =ROUND(((Config_RawLabor!N36/Config!$B$7)/Config_RawLabor!$O36)*VLOOKUP($A36,Config!$A$2:$B$5,2,0),2) -> 180.61 | M36: =ROUND(((Config_RawLabor!P36/Config!$B$7)/Config_RawLabor!$S36)*VLOOKUP($A36,Config!$A$2:$B$5,2,0),2) -> 143.58 | N36: =ROUND(((Config_RawLabor!Q36/Config!$B$7)/Config_RawLabor!$S36)*VLOOKUP($A36,Config!$A$2:$B$5,2,0),2) -> 173.43 | O36: =ROUND(((Config_RawLabor!R36/Config!$B$7)/Config_RawLabor!$S36)*VLOOKUP($A36,Config!$A$2:$B$5,2,0),2) -> 211.16 | P36: =ROUND(((Config_RawLabor!T36/Config!$B$7)/Config_RawLabor!$W36)*VLOOKUP($A36,Config!$A$2:$B$5,2,0),2) -> 162.55 | Q36: =ROUND(((Config_RawLabor!U36/Config!$B$7)/Config_RawLabor!$W36)*VLOOKUP($A36,Config!$A$2:$B$5,2,0),2) -> 196.9 | R36: =ROUND(((Config_RawLabor!V36/Config!$B$7)/Config_RawLabor!$W36)*VLOOKUP($A36,Config!$A$2:$B$5,2,0),2) -> 238.9
A37: =Config_RawLabor!A37 -> Expert | B37: =Config_RawLabor!B37 -> Fire Prevention Engineer | C37: =Config_RawLabor!C37 -> Examines buildings and equipment to determine compliance with fire prevention best practices. Ensures fire compliance codes are being adhered to. | D37: =ROUND(((Config_RawLabor!D37/Config!$B$7)/Config_RawLabor!$G37)*VLOOKUP($A37,Config!$A$2:$B$5,2,0),2) -> 82.55 | E37: =ROUND(((Config_RawLabor!E37/Config!$B$7)/Config_RawLabor!$G37)*VLOOKUP($A37,Config!$A$2:$B$5,2,0),2) -> 85.01 | F37: =ROUND(((Config_RawLabor!F37/Config!$B$7)/Config_RawLabor!$G37)*VLOOKUP($A37,Config!$A$2:$B$5,2,0),2) -> 100.75 | G37: =ROUND(((Config_RawLabor!H37/Config!$B$7)/Config_RawLabor!$K37)*VLOOKUP($A37,Config!$A$2:$B$5,2,0),2) -> 97.29 | H37: =ROUND(((Config_RawLabor!I37/Config!$B$7)/Config_RawLabor!$K37)*VLOOKUP($A37,Config!$A$2:$B$5,2,0),2) -> 101.26 | I37: =ROUND(((Config_RawLabor!J37/Config!$B$7)/Config_RawLabor!$K37)*VLOOKUP($A37,Config!$A$2:$B$5,2,0),2) -> 120.35 | J37: =ROUND(((Config_RawLabor!L37/Config!$B$7)/Config_RawLabor!$O37)*VLOOKUP($A37,Config!$A$2:$B$5,2,0),2) -> 115.6 | K37: =ROUND(((Config_RawLabor!M37/Config!$B$7)/Config_RawLabor!$O37)*VLOOKUP($A37,Config!$A$2:$B$5,2,0),2) -> 120.03 | L37: =ROUND(((Config_RawLabor!N37/Config!$B$7)/Config_RawLabor!$O37)*VLOOKUP($A37,Config!$A$2:$B$5,2,0),2) -> 141.99 | M37: =ROUND(((Config_RawLabor!P37/Config!$B$7)/Config_RawLabor!$S37)*VLOOKUP($A37,Config!$A$2:$B$5,2,0),2) -> 136.35 | N37: =ROUND(((Config_RawLabor!Q37/Config!$B$7)/Config_RawLabor!$S37)*VLOOKUP($A37,Config!$A$2:$B$5,2,0),2) -> 141.28 | O37: =ROUND(((Config_RawLabor!R37/Config!$B$7)/Config_RawLabor!$S37)*VLOOKUP($A37,Config!$A$2:$B$5,2,0),2) -> 166.01 | P37: =ROUND(((Config_RawLabor!T37/Config!$B$7)/Config_RawLabor!$W37)*VLOOKUP($A37,Config!$A$2:$B$5,2,0),2) -> 154.36 | Q37: =ROUND(((Config_RawLabor!U37/Config!$B$7)/Config_RawLabor!$W37)*VLOOKUP($A37,Config!$A$2:$B$5,2,0),2) -> 160.4 | R37: =ROUND(((Config_RawLabor!V37/Config!$B$7)/Config_RawLabor!$W37)*VLOOKUP($A37,Config!$A$2:$B$5,2,0),2) -> 187.83
A38: =Config_RawLabor!A38 -> Expert | B38: =Config_RawLabor!B38 -> Geologist | C38: =Config_RawLabor!C38 -> Expert on the formation, dissolution, and content of rock layers, along with the effects of internal pressures, heat, water, pollution, and erosion. | D38: =ROUND(((Config_RawLabor!D38/Config!$B$7)/Config_RawLabor!$G38)*VLOOKUP($A38,Config!$A$2:$B$5,2,0),2) -> 107.09 | E38: =ROUND(((Config_RawLabor!E38/Config!$B$7)/Config_RawLabor!$G38)*VLOOKUP($A38,Config!$A$2:$B$5,2,0),2) -> 110.93 | F38: =ROUND(((Config_RawLabor!F38/Config!$B$7)/Config_RawLabor!$G38)*VLOOKUP($A38,Config!$A$2:$B$5,2,0),2) -> 130.24 | G38: =ROUND(((Config_RawLabor!H38/Config!$B$7)/Config_RawLabor!$K38)*VLOOKUP($A38,Config!$A$2:$B$5,2,0),2) -> 125.95 | H38: =ROUND(((Config_RawLabor!I38/Config!$B$7)/Config_RawLabor!$K38)*VLOOKUP($A38,Config!$A$2:$B$5,2,0),2) -> 140.38 | I38: =ROUND(((Config_RawLabor!J38/Config!$B$7)/Config_RawLabor!$K38)*VLOOKUP($A38,Config!$A$2:$B$5,2,0),2) -> 179.54 | J38: =ROUND(((Config_RawLabor!L38/Config!$B$7)/Config_RawLabor!$O38)*VLOOKUP($A38,Config!$A$2:$B$5,2,0),2) -> 168.13 | K38: =ROUND(((Config_RawLabor!M38/Config!$B$7)/Config_RawLabor!$O38)*VLOOKUP($A38,Config!$A$2:$B$5,2,0),2) -> 178.86 | L38: =ROUND(((Config_RawLabor!N38/Config!$B$7)/Config_RawLabor!$O38)*VLOOKUP($A38,Config!$A$2:$B$5,2,0),2) -> 209 | M38: =ROUND(((Config_RawLabor!P38/Config!$B$7)/Config_RawLabor!$S38)*VLOOKUP($A38,Config!$A$2:$B$5,2,0),2) -> 176.7 | N38: =ROUND(((Config_RawLabor!Q38/Config!$B$7)/Config_RawLabor!$S38)*VLOOKUP($A38,Config!$A$2:$B$5,2,0),2) -> 208.85 | O38: =ROUND(((Config_RawLabor!R38/Config!$B$7)/Config_RawLabor!$S38)*VLOOKUP($A38,Config!$A$2:$B$5,2,0),2) -> 240.1 | P38: =ROUND(((Config_RawLabor!T38/Config!$B$7)/Config_RawLabor!$W38)*VLOOKUP($A38,Config!$A$2:$B$5,2,0),2) -> 224.64 | Q38: =ROUND(((Config_RawLabor!U38/Config!$B$7)/Config_RawLabor!$W38)*VLOOKUP($A38,Config!$A$2:$B$5,2,0),2) -> 270.47 | R38: =ROUND(((Config_RawLabor!V38/Config!$B$7)/Config_RawLabor!$W38)*VLOOKUP($A38,Config!$A$2:$B$5,2,0),2) -> 296.61
A39: =Config_RawLabor!A39 -> Expert | B39: =Config_RawLabor!B39 -> Geotechnical Engineer | C39: =Config_RawLabor!C39 -> Prepares and inspects projects involving drilling and exploration. Responsible for reviewing geological maps, site characterization, numerical modeling and analysis of excavations/supports. | D39: =ROUND(((Config_RawLabor!D39/Config!$B$7)/Config_RawLabor!$G39)*VLOOKUP($A39,Config!$A$2:$B$5,2,0),2) -> 111.53 | E39: =ROUND(((Config_RawLabor!E39/Config!$B$7)/Config_RawLabor!$G39)*VLOOKUP($A39,Config!$A$2:$B$5,2,0),2) -> 122.77 | F39: =ROUND(((Config_RawLabor!F39/Config!$B$7)/Config_RawLabor!$G39)*VLOOKUP($A39,Config!$A$2:$B$5,2,0),2) -> 130.8 | G39: =ROUND(((Config_RawLabor!H39/Config!$B$7)/Config_RawLabor!$K39)*VLOOKUP($A39,Config!$A$2:$B$5,2,0),2) -> 115.31 | H39: =ROUND(((Config_RawLabor!I39/Config!$B$7)/Config_RawLabor!$K39)*VLOOKUP($A39,Config!$A$2:$B$5,2,0),2) -> 134.38 | I39: =ROUND(((Config_RawLabor!J39/Config!$B$7)/Config_RawLabor!$K39)*VLOOKUP($A39,Config!$A$2:$B$5,2,0),2) -> 146.43 | J39: =ROUND(((Config_RawLabor!L39/Config!$B$7)/Config_RawLabor!$O39)*VLOOKUP($A39,Config!$A$2:$B$5,2,0),2) -> 148.15 | K39: =ROUND(((Config_RawLabor!M39/Config!$B$7)/Config_RawLabor!$O39)*VLOOKUP($A39,Config!$A$2:$B$5,2,0),2) -> 171.75 | L39: =ROUND(((Config_RawLabor!N39/Config!$B$7)/Config_RawLabor!$O39)*VLOOKUP($A39,Config!$A$2:$B$5,2,0),2) -> 185.71 | M39: =ROUND(((Config_RawLabor!P39/Config!$B$7)/Config_RawLabor!$S39)*VLOOKUP($A39,Config!$A$2:$B$5,2,0),2) -> 197.06 | N39: =ROUND(((Config_RawLabor!Q39/Config!$B$7)/Config_RawLabor!$S39)*VLOOKUP($A39,Config!$A$2:$B$5,2,0),2) -> 207.43 | O39: =ROUND(((Config_RawLabor!R39/Config!$B$7)/Config_RawLabor!$S39)*VLOOKUP($A39,Config!$A$2:$B$5,2,0),2) -> 217.82 | P39: =ROUND(((Config_RawLabor!T39/Config!$B$7)/Config_RawLabor!$W39)*VLOOKUP($A39,Config!$A$2:$B$5,2,0),2) -> 224.48 | Q39: =ROUND(((Config_RawLabor!U39/Config!$B$7)/Config_RawLabor!$W39)*VLOOKUP($A39,Config!$A$2:$B$5,2,0),2) -> 236.29 | R39: =ROUND(((Config_RawLabor!V39/Config!$B$7)/Config_RawLabor!$W39)*VLOOKUP($A39,Config!$A$2:$B$5,2,0),2) -> 248.13
A40: =Config_RawLabor!A40 -> Expert | B40: =Config_RawLabor!B40 -> Hardware Engineer | C40: =Config_RawLabor!C40 -> Reviews design, development, and implementation of hardware for products. Reviews test strategies and implementation, devices, and systems. Reviews stress and performance test results for a variety of computer hardware including circuit boards, processors and wiring. | D40: =ROUND(((Config_RawLabor!D40/Config!$B$7)/Config_RawLabor!$G40)*VLOOKUP($A40,Config!$A$2:$B$5,2,0),2) -> 120.06 | E40: =ROUND(((Config_RawLabor!E40/Config!$B$7)/Config_RawLabor!$G40)*VLOOKUP($A40,Config!$A$2:$B$5,2,0),2) -> 134.45 | F40: =ROUND(((Config_RawLabor!F40/Config!$B$7)/Config_RawLabor!$G40)*VLOOKUP($A40,Config!$A$2:$B$5,2,0),2) -> 146.82 | G40: =ROUND(((Config_RawLabor!H40/Config!$B$7)/Config_RawLabor!$K40)*VLOOKUP($A40,Config!$A$2:$B$5,2,0),2) -> 143.45 | H40: =ROUND(((Config_RawLabor!I40/Config!$B$7)/Config_RawLabor!$K40)*VLOOKUP($A40,Config!$A$2:$B$5,2,0),2) -> 160.06 | I40: =ROUND(((Config_RawLabor!J40/Config!$B$7)/Config_RawLabor!$K40)*VLOOKUP($A40,Config!$A$2:$B$5,2,0),2) -> 177.92 | J40: =ROUND(((Config_RawLabor!L40/Config!$B$7)/Config_RawLabor!$O40)*VLOOKUP($A40,Config!$A$2:$B$5,2,0),2) -> 174.47 | K40: =ROUND(((Config_RawLabor!M40/Config!$B$7)/Config_RawLabor!$O40)*VLOOKUP($A40,Config!$A$2:$B$5,2,0),2) -> 193.85 | L40: =ROUND(((Config_RawLabor!N40/Config!$B$7)/Config_RawLabor!$O40)*VLOOKUP($A40,Config!$A$2:$B$5,2,0),2) -> 215.67 | M40: =ROUND(((Config_RawLabor!P40/Config!$B$7)/Config_RawLabor!$S40)*VLOOKUP($A40,Config!$A$2:$B$5,2,0),2) -> 213.05 | N40: =ROUND(((Config_RawLabor!Q40/Config!$B$7)/Config_RawLabor!$S40)*VLOOKUP($A40,Config!$A$2:$B$5,2,0),2) -> 236.41 | O40: =ROUND(((Config_RawLabor!R40/Config!$B$7)/Config_RawLabor!$S40)*VLOOKUP($A40,Config!$A$2:$B$5,2,0),2) -> 258.56 | P40: =ROUND(((Config_RawLabor!T40/Config!$B$7)/Config_RawLabor!$W40)*VLOOKUP($A40,Config!$A$2:$B$5,2,0),2) -> 242.68 | Q40: =ROUND(((Config_RawLabor!U40/Config!$B$7)/Config_RawLabor!$W40)*VLOOKUP($A40,Config!$A$2:$B$5,2,0),2) -> 267.99 | R40: =ROUND(((Config_RawLabor!V40/Config!$B$7)/Config_RawLabor!$W40)*VLOOKUP($A40,Config!$A$2:$B$5,2,0),2) -> 293.7
A41: =Config_RawLabor!A41 -> Expert | B41: =Config_RawLabor!B41 -> Health Scientist | C41: =Config_RawLabor!C41 -> Reviews the potential impact of policies and planned projects on community health. | D41: =ROUND(((Config_RawLabor!D41/Config!$B$7)/Config_RawLabor!$G41)*VLOOKUP($A41,Config!$A$2:$B$5,2,0),2) -> 149.14 | E41: =ROUND(((Config_RawLabor!E41/Config!$B$7)/Config_RawLabor!$G41)*VLOOKUP($A41,Config!$A$2:$B$5,2,0),2) -> 180.08 | F41: =ROUND(((Config_RawLabor!F41/Config!$B$7)/Config_RawLabor!$G41)*VLOOKUP($A41,Config!$A$2:$B$5,2,0),2) -> 219.97 | G41: =ROUND(((Config_RawLabor!H41/Config!$B$7)/Config_RawLabor!$K41)*VLOOKUP($A41,Config!$A$2:$B$5,2,0),2) -> 175.77 | H41: =ROUND(((Config_RawLabor!I41/Config!$B$7)/Config_RawLabor!$K41)*VLOOKUP($A41,Config!$A$2:$B$5,2,0),2) -> 214.51 | I41: =ROUND(((Config_RawLabor!J41/Config!$B$7)/Config_RawLabor!$K41)*VLOOKUP($A41,Config!$A$2:$B$5,2,0),2) -> 262.75 | J41: =ROUND(((Config_RawLabor!L41/Config!$B$7)/Config_RawLabor!$O41)*VLOOKUP($A41,Config!$A$2:$B$5,2,0),2) -> 208.85 | K41: =ROUND(((Config_RawLabor!M41/Config!$B$7)/Config_RawLabor!$O41)*VLOOKUP($A41,Config!$A$2:$B$5,2,0),2) -> 254.25 | L41: =ROUND(((Config_RawLabor!N41/Config!$B$7)/Config_RawLabor!$O41)*VLOOKUP($A41,Config!$A$2:$B$5,2,0),2) -> 310 | M41: =ROUND(((Config_RawLabor!P41/Config!$B$7)/Config_RawLabor!$S41)*VLOOKUP($A41,Config!$A$2:$B$5,2,0),2) -> 246.34 | N41: =ROUND(((Config_RawLabor!Q41/Config!$B$7)/Config_RawLabor!$S41)*VLOOKUP($A41,Config!$A$2:$B$5,2,0),2) -> 299.27 | O41: =ROUND(((Config_RawLabor!R41/Config!$B$7)/Config_RawLabor!$S41)*VLOOKUP($A41,Config!$A$2:$B$5,2,0),2) -> 362.45 | P41: =ROUND(((Config_RawLabor!T41/Config!$B$7)/Config_RawLabor!$W41)*VLOOKUP($A41,Config!$A$2:$B$5,2,0),2) -> 278.87 | Q41: =ROUND(((Config_RawLabor!U41/Config!$B$7)/Config_RawLabor!$W41)*VLOOKUP($A41,Config!$A$2:$B$5,2,0),2) -> 339.78 | R41: =ROUND(((Config_RawLabor!V41/Config!$B$7)/Config_RawLabor!$W41)*VLOOKUP($A41,Config!$A$2:$B$5,2,0),2) -> 410.07
A42: =Config_RawLabor!A42 -> Expert | B42: =Config_RawLabor!B42 -> Hydrologist | C42: =Config_RawLabor!C42 -> Measure the properties of bodies of water, such as volume and stream flow Collect water and soil samples to test for certain properties, such as the pH or pollution levels. Analyze data on the environmental impacts of pollution, erosion, drought, and other problems. Recommend ways to minimize the negative impacts of erosion, sedimentation, or pollution on the environment. Use computer models to forecast future water supplies, the spread of pollution, floods, and other events. Evaluate the feasibility of water-related projects, such as hydroelectric power plants, irrigation systems, and wastewater treatment facilities. | D42: =ROUND(((Config_RawLabor!D42/Config!$B$7)/Config_RawLabor!$G42)*VLOOKUP($A42,Config!$A$2:$B$5,2,0),2) -> 108.1 | E42: =ROUND(((Config_RawLabor!E42/Config!$B$7)/Config_RawLabor!$G42)*VLOOKUP($A42,Config!$A$2:$B$5,2,0),2) -> 121.99 | F42: =ROUND(((Config_RawLabor!F42/Config!$B$7)/Config_RawLabor!$G42)*VLOOKUP($A42,Config!$A$2:$B$5,2,0),2) -> 137.66 | G42: =ROUND(((Config_RawLabor!H42/Config!$B$7)/Config_RawLabor!$K42)*VLOOKUP($A42,Config!$A$2:$B$5,2,0),2) -> 138.1 | H42: =ROUND(((Config_RawLabor!I42/Config!$B$7)/Config_RawLabor!$K42)*VLOOKUP($A42,Config!$A$2:$B$5,2,0),2) -> 152.85 | I42: =ROUND(((Config_RawLabor!J42/Config!$B$7)/Config_RawLabor!$K42)*VLOOKUP($A42,Config!$A$2:$B$5,2,0),2) -> 170.93 | J42: =ROUND(((Config_RawLabor!L42/Config!$B$7)/Config_RawLabor!$O42)*VLOOKUP($A42,Config!$A$2:$B$5,2,0),2) -> 159.83 | K42: =ROUND(((Config_RawLabor!M42/Config!$B$7)/Config_RawLabor!$O42)*VLOOKUP($A42,Config!$A$2:$B$5,2,0),2) -> 180.95 | L42: =ROUND(((Config_RawLabor!N42/Config!$B$7)/Config_RawLabor!$O42)*VLOOKUP($A42,Config!$A$2:$B$5,2,0),2) -> 204.7 | M42: =ROUND(((Config_RawLabor!P42/Config!$B$7)/Config_RawLabor!$S42)*VLOOKUP($A42,Config!$A$2:$B$5,2,0),2) -> 171.17 | N42: =ROUND(((Config_RawLabor!Q42/Config!$B$7)/Config_RawLabor!$S42)*VLOOKUP($A42,Config!$A$2:$B$5,2,0),2) -> 195.3 | O42: =ROUND(((Config_RawLabor!R42/Config!$B$7)/Config_RawLabor!$S42)*VLOOKUP($A42,Config!$A$2:$B$5,2,0),2) -> 219.45 | P42: =ROUND(((Config_RawLabor!T42/Config!$B$7)/Config_RawLabor!$W42)*VLOOKUP($A42,Config!$A$2:$B$5,2,0),2) -> 191.77 | Q42: =ROUND(((Config_RawLabor!U42/Config!$B$7)/Config_RawLabor!$W42)*VLOOKUP($A42,Config!$A$2:$B$5,2,0),2) -> 227.93 | R42: =ROUND(((Config_RawLabor!V42/Config!$B$7)/Config_RawLabor!$W42)*VLOOKUP($A42,Config!$A$2:$B$5,2,0),2) -> 259.92
A43: =Config_RawLabor!A43 -> Expert | B43: =Config_RawLabor!B43 -> IT Project Engineer | C43: =Config_RawLabor!C43 -> Reviews IT engineering projects for compliance with industry best practices. Performs engineering design evaluations and reviews project budget and schedule. Reviews information system policies and controls to ensure data accuracy, security, and regulatory compliance. Reviews reports of computer and peripheral equipment production, malfunction, and maintenance to determine problems. | D43: =ROUND(((Config_RawLabor!D43/Config!$B$7)/Config_RawLabor!$G43)*VLOOKUP($A43,Config!$A$2:$B$5,2,0),2) -> 151.23 | E43: =ROUND(((Config_RawLabor!E43/Config!$B$7)/Config_RawLabor!$G43)*VLOOKUP($A43,Config!$A$2:$B$5,2,0),2) -> 168.74 | F43: =ROUND(((Config_RawLabor!F43/Config!$B$7)/Config_RawLabor!$G43)*VLOOKUP($A43,Config!$A$2:$B$5,2,0),2) -> 193.95 | G43: =ROUND(((Config_RawLabor!H43/Config!$B$7)/Config_RawLabor!$K43)*VLOOKUP($A43,Config!$A$2:$B$5,2,0),2) -> 165.01 | H43: =ROUND(((Config_RawLabor!I43/Config!$B$7)/Config_RawLabor!$K43)*VLOOKUP($A43,Config!$A$2:$B$5,2,0),2) -> 187.58 | I43: =ROUND(((Config_RawLabor!J43/Config!$B$7)/Config_RawLabor!$K43)*VLOOKUP($A43,Config!$A$2:$B$5,2,0),2) -> 214.88 | J43: =ROUND(((Config_RawLabor!L43/Config!$B$7)/Config_RawLabor!$O43)*VLOOKUP($A43,Config!$A$2:$B$5,2,0),2) -> 189.58 | K43: =ROUND(((Config_RawLabor!M43/Config!$B$7)/Config_RawLabor!$O43)*VLOOKUP($A43,Config!$A$2:$B$5,2,0),2) -> 210.71 | L43: =ROUND(((Config_RawLabor!N43/Config!$B$7)/Config_RawLabor!$O43)*VLOOKUP($A43,Config!$A$2:$B$5,2,0),2) -> 235.68 | M43: =ROUND(((Config_RawLabor!P43/Config!$B$7)/Config_RawLabor!$S43)*VLOOKUP($A43,Config!$A$2:$B$5,2,0),2) -> 192.01 | N43: =ROUND(((Config_RawLabor!Q43/Config!$B$7)/Config_RawLabor!$S43)*VLOOKUP($A43,Config!$A$2:$B$5,2,0),2) -> 218.11 | O43: =ROUND(((Config_RawLabor!R43/Config!$B$7)/Config_RawLabor!$S43)*VLOOKUP($A43,Config!$A$2:$B$5,2,0),2) -> 242.67 | P43: =ROUND(((Config_RawLabor!T43/Config!$B$7)/Config_RawLabor!$W43)*VLOOKUP($A43,Config!$A$2:$B$5,2,0),2) -> 215.62 | Q43: =ROUND(((Config_RawLabor!U43/Config!$B$7)/Config_RawLabor!$W43)*VLOOKUP($A43,Config!$A$2:$B$5,2,0),2) -> 244.92 | R43: =ROUND(((Config_RawLabor!V43/Config!$B$7)/Config_RawLabor!$W43)*VLOOKUP($A43,Config!$A$2:$B$5,2,0),2) -> 272.51
A44: =Config_RawLabor!A44 -> Expert | B44: =Config_RawLabor!B44 -> Mechanical Engineer | C44: =Config_RawLabor!C44 -> Reviews all aspects of mechanical components, equipment, and machinery design, installation, and testing. Applies knowledge of engineering principles to review products such as engines, instruments, controls, robots, machines, etc. Reviews product testing, models and prototypes. May review fabrication, operation, application, installation, and/or repair of mechanical products. | D44: =ROUND(((Config_RawLabor!D44/Config!$B$7)/Config_RawLabor!$G44)*VLOOKUP($A44,Config!$A$2:$B$5,2,0),2) -> 121.06 | E44: =ROUND(((Config_RawLabor!E44/Config!$B$7)/Config_RawLabor!$G44)*VLOOKUP($A44,Config!$A$2:$B$5,2,0),2) -> 130.25 | F44: =ROUND(((Config_RawLabor!F44/Config!$B$7)/Config_RawLabor!$G44)*VLOOKUP($A44,Config!$A$2:$B$5,2,0),2) -> 141.18 | G44: =ROUND(((Config_RawLabor!H44/Config!$B$7)/Config_RawLabor!$K44)*VLOOKUP($A44,Config!$A$2:$B$5,2,0),2) -> 145.04 | H44: =ROUND(((Config_RawLabor!I44/Config!$B$7)/Config_RawLabor!$K44)*VLOOKUP($A44,Config!$A$2:$B$5,2,0),2) -> 157.64 | I44: =ROUND(((Config_RawLabor!J44/Config!$B$7)/Config_RawLabor!$K44)*VLOOKUP($A44,Config!$A$2:$B$5,2,0),2) -> 173.86 | J44: =ROUND(((Config_RawLabor!L44/Config!$B$7)/Config_RawLabor!$O44)*VLOOKUP($A44,Config!$A$2:$B$5,2,0),2) -> 173.23 | K44: =ROUND(((Config_RawLabor!M44/Config!$B$7)/Config_RawLabor!$O44)*VLOOKUP($A44,Config!$A$2:$B$5,2,0),2) -> 188.59 | L44: =ROUND(((Config_RawLabor!N44/Config!$B$7)/Config_RawLabor!$O44)*VLOOKUP($A44,Config!$A$2:$B$5,2,0),2) -> 206.26 | M44: =ROUND(((Config_RawLabor!P44/Config!$B$7)/Config_RawLabor!$S44)*VLOOKUP($A44,Config!$A$2:$B$5,2,0),2) -> 205.84 | N44: =ROUND(((Config_RawLabor!Q44/Config!$B$7)/Config_RawLabor!$S44)*VLOOKUP($A44,Config!$A$2:$B$5,2,0),2) -> 225.51 | O44: =ROUND(((Config_RawLabor!R44/Config!$B$7)/Config_RawLabor!$S44)*VLOOKUP($A44,Config!$A$2:$B$5,2,0),2) -> 248.24 | P44: =ROUND(((Config_RawLabor!T44/Config!$B$7)/Config_RawLabor!$W44)*VLOOKUP($A44,Config!$A$2:$B$5,2,0),2) -> 236.76 | Q44: =ROUND(((Config_RawLabor!U44/Config!$B$7)/Config_RawLabor!$W44)*VLOOKUP($A44,Config!$A$2:$B$5,2,0),2) -> 259.12 | R44: =ROUND(((Config_RawLabor!V44/Config!$B$7)/Config_RawLabor!$W44)*VLOOKUP($A44,Config!$A$2:$B$5,2,0),2) -> 281.47
A45: =Config_RawLabor!A45 -> Expert | B45: =Config_RawLabor!B45 -> Network Engineer | C45: =Config_RawLabor!C45 -> Evaluates network systems and communications. May review issues such as network traffic, potential security risk, etc. Reviews network architecture design and optimization. Must have extensive knowledge of Internet, computer, routers, switches, firewall, etc. | D45: =ROUND(((Config_RawLabor!D45/Config!$B$7)/Config_RawLabor!$G45)*VLOOKUP($A45,Config!$A$2:$B$5,2,0),2) -> 116.15 | E45: =ROUND(((Config_RawLabor!E45/Config!$B$7)/Config_RawLabor!$G45)*VLOOKUP($A45,Config!$A$2:$B$5,2,0),2) -> 130.52 | F45: =ROUND(((Config_RawLabor!F45/Config!$B$7)/Config_RawLabor!$G45)*VLOOKUP($A45,Config!$A$2:$B$5,2,0),2) -> 150.93 | G45: =ROUND(((Config_RawLabor!H45/Config!$B$7)/Config_RawLabor!$K45)*VLOOKUP($A45,Config!$A$2:$B$5,2,0),2) -> 141.78 | H45: =ROUND(((Config_RawLabor!I45/Config!$B$7)/Config_RawLabor!$K45)*VLOOKUP($A45,Config!$A$2:$B$5,2,0),2) -> 159.99 | I45: =ROUND(((Config_RawLabor!J45/Config!$B$7)/Config_RawLabor!$K45)*VLOOKUP($A45,Config!$A$2:$B$5,2,0),2) -> 181.5 | J45: =ROUND(((Config_RawLabor!L45/Config!$B$7)/Config_RawLabor!$O45)*VLOOKUP($A45,Config!$A$2:$B$5,2,0),2) -> 168.18 | K45: =ROUND(((Config_RawLabor!M45/Config!$B$7)/Config_RawLabor!$O45)*VLOOKUP($A45,Config!$A$2:$B$5,2,0),2) -> 187.26 | L45: =ROUND(((Config_RawLabor!N45/Config!$B$7)/Config_RawLabor!$O45)*VLOOKUP($A45,Config!$A$2:$B$5,2,0),2) -> 207.16 | M45: =ROUND(((Config_RawLabor!P45/Config!$B$7)/Config_RawLabor!$S45)*VLOOKUP($A45,Config!$A$2:$B$5,2,0),2) -> 205.86 | N45: =ROUND(((Config_RawLabor!Q45/Config!$B$7)/Config_RawLabor!$S45)*VLOOKUP($A45,Config!$A$2:$B$5,2,0),2) -> 228.07 | O45: =ROUND(((Config_RawLabor!R45/Config!$B$7)/Config_RawLabor!$S45)*VLOOKUP($A45,Config!$A$2:$B$5,2,0),2) -> 253.6 | P45: =ROUND(((Config_RawLabor!T45/Config!$B$7)/Config_RawLabor!$W45)*VLOOKUP($A45,Config!$A$2:$B$5,2,0),2) -> 219.32 | Q45: =ROUND(((Config_RawLabor!U45/Config!$B$7)/Config_RawLabor!$W45)*VLOOKUP($A45,Config!$A$2:$B$5,2,0),2) -> 240.56 | R45: =ROUND(((Config_RawLabor!V45/Config!$B$7)/Config_RawLabor!$W45)*VLOOKUP($A45,Config!$A$2:$B$5,2,0),2) -> 265.83
A46: =Config_RawLabor!A46 -> Expert | B46: =Config_RawLabor!B46 -> Nuclear Engineer | C46: =Config_RawLabor!C46 -> Reviews processes related to nuclear energy and radiation. Familiar with problems of nuclear energy systems. Reviews design of nuclear equipment. Reviews testing, operation, and maintenance of nuclear reactors. | D46: =ROUND(((Config_RawLabor!D46/Config!$B$7)/Config_RawLabor!$G46)*VLOOKUP($A46,Config!$A$2:$B$5,2,0),2) -> 136.43 | E46: =ROUND(((Config_RawLabor!E46/Config!$B$7)/Config_RawLabor!$G46)*VLOOKUP($A46,Config!$A$2:$B$5,2,0),2) -> 145 | F46: =ROUND(((Config_RawLabor!F46/Config!$B$7)/Config_RawLabor!$G46)*VLOOKUP($A46,Config!$A$2:$B$5,2,0),2) -> 167.1 | G46: =ROUND(((Config_RawLabor!H46/Config!$B$7)/Config_RawLabor!$K46)*VLOOKUP($A46,Config!$A$2:$B$5,2,0),2) -> 158.21 | H46: =ROUND(((Config_RawLabor!I46/Config!$B$7)/Config_RawLabor!$K46)*VLOOKUP($A46,Config!$A$2:$B$5,2,0),2) -> 179.47 | I46: =ROUND(((Config_RawLabor!J46/Config!$B$7)/Config_RawLabor!$K46)*VLOOKUP($A46,Config!$A$2:$B$5,2,0),2) -> 196.69 | J46: =ROUND(((Config_RawLabor!L46/Config!$B$7)/Config_RawLabor!$O46)*VLOOKUP($A46,Config!$A$2:$B$5,2,0),2) -> 182.69 | K46: =ROUND(((Config_RawLabor!M46/Config!$B$7)/Config_RawLabor!$O46)*VLOOKUP($A46,Config!$A$2:$B$5,2,0),2) -> 206.11 | L46: =ROUND(((Config_RawLabor!N46/Config!$B$7)/Config_RawLabor!$O46)*VLOOKUP($A46,Config!$A$2:$B$5,2,0),2) -> 227.92 | M46: =ROUND(((Config_RawLabor!P46/Config!$B$7)/Config_RawLabor!$S46)*VLOOKUP($A46,Config!$A$2:$B$5,2,0),2) -> 201.66 | N46: =ROUND(((Config_RawLabor!Q46/Config!$B$7)/Config_RawLabor!$S46)*VLOOKUP($A46,Config!$A$2:$B$5,2,0),2) -> 218.23 | O46: =ROUND(((Config_RawLabor!R46/Config!$B$7)/Config_RawLabor!$S46)*VLOOKUP($A46,Config!$A$2:$B$5,2,0),2) -> 242.08 | P46: =ROUND(((Config_RawLabor!T46/Config!$B$7)/Config_RawLabor!$W46)*VLOOKUP($A46,Config!$A$2:$B$5,2,0),2) -> 222.09 | Q46: =ROUND(((Config_RawLabor!U46/Config!$B$7)/Config_RawLabor!$W46)*VLOOKUP($A46,Config!$A$2:$B$5,2,0),2) -> 248.4 | R46: =ROUND(((Config_RawLabor!V46/Config!$B$7)/Config_RawLabor!$W46)*VLOOKUP($A46,Config!$A$2:$B$5,2,0),2) -> 275.9
A47: =Config_RawLabor!A47 -> Expert | B47: =Config_RawLabor!B47 -> Physicist | C47: =Config_RawLabor!C47 -> Provide reports regarding experimental physicists, force analysis, health physics, and high-energy physics. Provide expert witness testimony on issues regarding nuclear physics, optics, particle physics, quantum computing, quantum physics, radiation exposure, the science of matter and energy, shock physics, stress on materials, superconductivity, thermal exposure, and thermodynamics, as well as related topics. | D47: =ROUND(((Config_RawLabor!D47/Config!$B$7)/Config_RawLabor!$G47)*VLOOKUP($A47,Config!$A$2:$B$5,2,0),2) -> 143.37 | E47: =ROUND(((Config_RawLabor!E47/Config!$B$7)/Config_RawLabor!$G47)*VLOOKUP($A47,Config!$A$2:$B$5,2,0),2) -> 155.58 | F47: =ROUND(((Config_RawLabor!F47/Config!$B$7)/Config_RawLabor!$G47)*VLOOKUP($A47,Config!$A$2:$B$5,2,0),2) -> 203.79 | G47: =ROUND(((Config_RawLabor!H47/Config!$B$7)/Config_RawLabor!$K47)*VLOOKUP($A47,Config!$A$2:$B$5,2,0),2) -> 167.19 | H47: =ROUND(((Config_RawLabor!I47/Config!$B$7)/Config_RawLabor!$K47)*VLOOKUP($A47,Config!$A$2:$B$5,2,0),2) -> 197.84 | I47: =ROUND(((Config_RawLabor!J47/Config!$B$7)/Config_RawLabor!$K47)*VLOOKUP($A47,Config!$A$2:$B$5,2,0),2) -> 259.31 | J47: =ROUND(((Config_RawLabor!L47/Config!$B$7)/Config_RawLabor!$O47)*VLOOKUP($A47,Config!$A$2:$B$5,2,0),2) -> 190.83 | K47: =ROUND(((Config_RawLabor!M47/Config!$B$7)/Config_RawLabor!$O47)*VLOOKUP($A47,Config!$A$2:$B$5,2,0),2) -> 223.95 | L47: =ROUND(((Config_RawLabor!N47/Config!$B$7)/Config_RawLabor!$O47)*VLOOKUP($A47,Config!$A$2:$B$5,2,0),2) -> 279.59 | M47: =ROUND(((Config_RawLabor!P47/Config!$B$7)/Config_RawLabor!$S47)*VLOOKUP($A47,Config!$A$2:$B$5,2,0),2) -> 235.52 | N47: =ROUND(((Config_RawLabor!Q47/Config!$B$7)/Config_RawLabor!$S47)*VLOOKUP($A47,Config!$A$2:$B$5,2,0),2) -> 275.74 | O47: =ROUND(((Config_RawLabor!R47/Config!$B$7)/Config_RawLabor!$S47)*VLOOKUP($A47,Config!$A$2:$B$5,2,0),2) -> 329.64 | P47: =ROUND(((Config_RawLabor!T47/Config!$B$7)/Config_RawLabor!$W47)*VLOOKUP($A47,Config!$A$2:$B$5,2,0),2) -> 272.23 | Q47: =ROUND(((Config_RawLabor!U47/Config!$B$7)/Config_RawLabor!$W47)*VLOOKUP($A47,Config!$A$2:$B$5,2,0),2) -> 298.3 | R47: =ROUND(((Config_RawLabor!V47/Config!$B$7)/Config_RawLabor!$W47)*VLOOKUP($A47,Config!$A$2:$B$5,2,0),2) -> 358.31
A48: =Config_RawLabor!A48 -> Expert | B48: =Config_RawLabor!B48 -> Process Engineer | C48: =Config_RawLabor!C48 -> Reviews continuous production and manufacturing processes with respect to output, quality, and cost. Reviews production data and applies standard scientific and statistical methods to analyze, document, and diagram production processes. Identifies process bottlenecks and recommended solutions to resolve. Recommends changes or upgrades to equipment, work methods, or other aspects of the process to improve efficiency and utilization of resources including labor, energy and raw materials. | D48: =ROUND(((Config_RawLabor!D48/Config!$B$7)/Config_RawLabor!$G48)*VLOOKUP($A48,Config!$A$2:$B$5,2,0),2) -> 120.47 | E48: =ROUND(((Config_RawLabor!E48/Config!$B$7)/Config_RawLabor!$G48)*VLOOKUP($A48,Config!$A$2:$B$5,2,0),2) -> 129.74 | F48: =ROUND(((Config_RawLabor!F48/Config!$B$7)/Config_RawLabor!$G48)*VLOOKUP($A48,Config!$A$2:$B$5,2,0),2) -> 141.27 | G48: =ROUND(((Config_RawLabor!H48/Config!$B$7)/Config_RawLabor!$K48)*VLOOKUP($A48,Config!$A$2:$B$5,2,0),2) -> 142.32 | H48: =ROUND(((Config_RawLabor!I48/Config!$B$7)/Config_RawLabor!$K48)*VLOOKUP($A48,Config!$A$2:$B$5,2,0),2) -> 154.62 | I48: =ROUND(((Config_RawLabor!J48/Config!$B$7)/Config_RawLabor!$K48)*VLOOKUP($A48,Config!$A$2:$B$5,2,0),2) -> 166.04 | J48: =ROUND(((Config_RawLabor!L48/Config!$B$7)/Config_RawLabor!$O48)*VLOOKUP($A48,Config!$A$2:$B$5,2,0),2) -> 167.7 | K48: =ROUND(((Config_RawLabor!M48/Config!$B$7)/Config_RawLabor!$O48)*VLOOKUP($A48,Config!$A$2:$B$5,2,0),2) -> 182.75 | L48: =ROUND(((Config_RawLabor!N48/Config!$B$7)/Config_RawLabor!$O48)*VLOOKUP($A48,Config!$A$2:$B$5,2,0),2) -> 196.37 | M48: =ROUND(((Config_RawLabor!P48/Config!$B$7)/Config_RawLabor!$S48)*VLOOKUP($A48,Config!$A$2:$B$5,2,0),2) -> 199.67 | N48: =ROUND(((Config_RawLabor!Q48/Config!$B$7)/Config_RawLabor!$S48)*VLOOKUP($A48,Config!$A$2:$B$5,2,0),2) -> 217.41 | O48: =ROUND(((Config_RawLabor!R48/Config!$B$7)/Config_RawLabor!$S48)*VLOOKUP($A48,Config!$A$2:$B$5,2,0),2) -> 236.75 | P48: =ROUND(((Config_RawLabor!T48/Config!$B$7)/Config_RawLabor!$W48)*VLOOKUP($A48,Config!$A$2:$B$5,2,0),2) -> 224.92 | Q48: =ROUND(((Config_RawLabor!U48/Config!$B$7)/Config_RawLabor!$W48)*VLOOKUP($A48,Config!$A$2:$B$5,2,0),2) -> 244.91 | R48: =ROUND(((Config_RawLabor!V48/Config!$B$7)/Config_RawLabor!$W48)*VLOOKUP($A48,Config!$A$2:$B$5,2,0),2) -> 266.69
